Workbook

Sheet notes (hidden)
H2: =SUM(H3:H8) -> 0
C3: 600 | D3: 24 | E3: 600 | F3: 1000 | G3: =IF(Form!$D$4=D3,1,0) -> 0 | H3: =IF(G3=1,IF(OR(E3>Form!M$5,F3<Form!M$5),1,0),0) -> 0
C4: 800 | D4: 30 | E4: 800 | F4: 1200 | G4: =IF(Form!$D$4=D4,1,0) -> 0 | H4: =IF(G4=1,IF(OR(E4>Form!M$5,F4<Form!M$5),1,0),0) -> 0
C5: 1000 | D5: 36 | E5: 1000 | F5: 1400 | G5: =IF(Form!$D$4=D5,1,0) -> 0 | H5: =IF(G5=1,IF(OR(E5>Form!M$5,F5<Form!M$5),1,0),0) -> 0
C6: 1200 | D6: 42 | E6: 1200 | F6: 1600 | G6: =IF(Form!$D$4=D6,1,0) -> 0 | H6: =IF(G6=1,IF(OR(E6>Form!M$5,F6<Form!M$5),1,0),0) -> 0
C7: 1400 | D7: 48 | E7: 1400 | F7: 1800 | G7: =IF(Form!$D$4=D7,1,0) -> 0 | H7: =IF(G7=1,IF(OR(E7>Form!M$5,F7<Form!M$5),1,0),0) -> 0
C8: 1600 | D8: 60 | E8: 1600 | F8: 2000 | G8: =IF(Form!$D$4=D8,1,0) -> 0 | H8: =IF(G8=1,IF(OR(E8>Form!M$5,F8<Form!M$5),1,0),0) -> 0
C9: 1800
C10: 2000
D13: Total
B14: =Form!M5+Form!M6 -> 0 | E14: =E31 -> 0 | F14: =F31 -> 0 | G14: 0 | H14: 0 | I14: 0 | J14: 0 | K14: 0 | L14: =SUM(E14:K14) -> 0 | P14: 58
E15: =Form!C27 -> 75 | F15: =Form!E27 -> 85 | G15: =Form!G27 -> 95 | H15: =Form!I27 -> 100 | I15: =Form!K27 -> 105 | J15: =Form!M27 -> 115 | K15: =Form!O27 -> 125
A16: =C16+D16 -> 0 | B16: =P16 -> 0 | C16: =Form!A31 -> 0 | D16: =Form!B31 -> 0 | E16: =Form!C31 -> 0 | F16: =Form!E31 -> 0 | G16: =Form!G31 -> 0 | H16: =Form!I31 -> 0 | I16: =Form!K31 -> 0 | J16: =Form!M31 -> 0 | K16: =Form!O31 -> 0 | L16: =Form!$M$5+Form!M$6 -> 0 | M16: =IF(C16+D16=Form!M$5+Form!M$6,1,0) -> 1 | N16: =IF(A16<L16,1,0) -> 0 | O16: =IF(A16>L16,2,0) -> 0 | P16: =IF(AND(N16=1,N17=0),1,0)+IF(AND(O15=0,O16=2),2,0) -> 0
A17: =C17+D17 -> 0 | B17: =P17 -> 0 | C17: =C16 -> 0 | D17: =Form!B32 -> 0 | E17: =Form!C32 -> 0 | F17: =Form!E32 -> 0 | G17: =Form!G32 -> 0 | H17: =Form!I32 -> 0 | I17: =Form!K32 -> 0 | J17: =Form!M32 -> 0 | K17: =Form!O32 -> 0 | L17: =Form!$M$5+Form!M$6 -> 0 | M17: =IF(C17+D17=Form!M$5+Form!M$6,1,0) -> 1 | N17: =IF(A17<L17,1,0) -> 0 | O17: =IF(A17>L17,2,0) -> 0 | P17: =IF(AND(N17=1,N18=0),1,0)+IF(AND(O16=0,O17=2),2,0) -> 0
A18: 0 | B18: 0 | C18: =C17 -> 0 | D18: =Form!B33 -> 0 | E18: =Form!C33 -> 0 | F18: =Form!E33 -> 0 | G18: =Form!G33 -> 0 | H18: =Form!I33 -> 0 | I18: =Form!K33 -> 0 | J18: =Form!M33 -> 0 | K18: =Form!O33 -> 0 | L18: =Form!$M$5+Form!M$6 -> 0 | M18: =IF(C18+D18=Form!M$5+Form!M$6,1,0) -> 1 | N18: 0 | O18: =IF(A18>L18,2,0) -> 0 | P18: =IF(AND(N18=1,N19=0),1,0)+IF(AND(O17=0,O18=2),2,0) -> 0
A19: 0 | B19: 0 | C19: =C18 -> 0 | D19: =Form!B34 -> 0 | E19: =Form!C34 -> 0 | F19: =Form!E34 -> 0 | G19: =Form!G34 -> 0 | H19: =Form!I34 -> 0 | I19: =Form!K34 -> 0 | J19: =Form!M34 -> 0 | K19: =Form!O34 -> 0 | L19: =Form!$M$5+Form!M$6 -> 0 | M19: =IF(C19+D19=Form!M$5+Form!M$6,1,0) -> 1 | N19: 0 | O19: =IF(A19>L19,2,0) -> 0 | P19: =IF(AND(N19=1,N20=0),1,0)+IF(AND(O18=0,O19=2),2,0) -> 0
A20: 0 | B20: 0 | C20: =Form!A35 -> 0 | D20: =Form!B35 -> 0 | E20: =Form!C35 -> 0 | F20: =Form!E35 -> 0 | G20: =Form!G35 -> 0 | H20: =Form!I35 -> 0 | I20: =Form!K35 -> 0 | J20: =Form!M35 -> 0 | K20: =Form!O35 -> 0 | L20: =Form!$M$5+Form!M$6 -> 0 | M20: =IF(C20+D20=Form!M$5+Form!M$6,1,0) -> 1 | N20: 0 | O20: =IF(A20>L20,2,0) -> 0 | P20: =IF(AND(N20=1,N21=0),1,0)+IF(AND(O19=0,O20=2),2,0) -> 0
A21: 0 | B21: 0 | C21: =C20 -> 0 | D21: =Form!B36 -> 0 | E21: =Form!C36 -> 0 | F21: =Form!E36 -> 0 | G21: =Form!G36 -> 0 | H21: =Form!I36 -> 0 | I21: =Form!K36 -> 0 | J21: =Form!M36 -> 0 | K21: =Form!O36 -> 0 | L21: =Form!$M$5+Form!M$6 -> 0 | M21: =IF(C21+D21=Form!M$5+Form!M$6,1,0) -> 1 | N21: 0 | O21: =IF(A21>L21,2,0) -> 0 | P21: =IF(AND(N21=1,N22=0),1,0)+IF(AND(O20=0,O21=2),2,0) -> 0
A22: 0 | B22: 0 | C22: =C21 -> 0 | D22: =Form!B37 -> 0 | E22: =Form!C37 -> 0 | F22: =Form!E37 -> 0 | G22: =Form!G37 -> 0 | H22: =Form!I37 -> 0 | I22: =Form!K37 -> 0 | J22: =Form!M37 -> 0 | K22: =Form!O37 -> 0 | L22: =Form!$M$5+Form!M$6 -> 0 | M22: =IF(C22+D22=Form!M$5+Form!M$6,1,0) -> 1 | N22: 0 | O22: 0 | P22: 0
A23: 0 | B23: 0 | C23: =C22 -> 0 | D23: =Form!B38 -> 0 | E23: =Form!C38 -> 0 | F23: =Form!E38 -> 0 | G23: =Form!G38 -> 0 | H23: =Form!I38 -> 0 | I23: =Form!K38 -> 0 | J23: =Form!M38 -> 0 | K23: =Form!O38 -> 0 | L23: =Form!$M$5+Form!M$6 -> 0 | M23: =IF(C23+D23=Form!M$5+Form!M$6,1,0) -> 1 | N23: 0 | O23: 0 | P23: 0
A24: 0 | B24: 0 | C24: =Form!A39 -> 0 | D24: =Form!B39 -> 0 | E24: =Form!C39 -> 0 | F24: =Form!E39 -> 0 | G24: =Form!G39 -> 0 | H24: =Form!I39 -> 0 | I24: =Form!K39 -> 0 | J24: =Form!M39 -> 0 | K24: =Form!O39 -> 0 | L24: =Form!$M$5+Form!M$6 -> 0 | M24: =IF(C24+D24=Form!M$5+Form!M$6,1,0) -> 1 | N24: 0 | O24: 0 | P24: 0
A25: 0 | B25: 0 | C25: =C24 -> 0 | D25: =Form!B40 -> 0 | E25: =Form!C40 -> 0 | F25: =Form!E40 -> 0 | G25: =Form!G40 -> 0 | H25: =Form!I40 -> 0 | I25: =Form!K40 -> 0 | J25: =Form!M40 -> 0 | K25: =Form!O40 -> 0 | L25: =Form!$M$5+Form!M$6 -> 0 | M25: =IF(C25+D25=Form!M$5+Form!M$6,1,0) -> 1 | N25: 0 | O25: 0 | P25: 0
A26: 0 | B26: 0 | C26: =C25 -> 0 | D26: =Form!B41 -> 0 | E26: =Form!C41 -> 0 | F26: =Form!E41 -> 0 | G26: =Form!G41 -> 0 | H26: =Form!I41 -> 0 | I26: =Form!K41 -> 0 | J26: =Form!M41 -> 0 | K26: =Form!O41 -> 0 | L26: =Form!$M$5+Form!M$6 -> 0 | M26: =IF(C26+D26=Form!M$5+Form!M$6,1,0) -> 1 | N26: 0 | O26: 0 | P26: 0
A27: 0 | B27: 0 | C27: =C26 -> 0 | D27: =Form!B42 -> 0 | E27: =Form!C42 -> 0 | F27: =Form!E42 -> 0 | G27: =Form!G42 -> 0 | H27: =Form!I42 -> 0 | I27: =Form!K42 -> 0 | J27: =Form!M42 -> 0 | K27: =Form!O42 -> 0 | L27: =Form!$M$5+Form!M$6 -> 0 | M27: =IF(C27+D27=Form!M$5+Form!M$6,1,0) -> 1 | N27: 0 | O27: 0 | P27: 0
A28: 0 | B28: =SUM(B16:B27) -> 0
F29: =IF(AND(F15>Form!$M$4,E15<Form!$M$4),2,0) -> 0 | G29: =IF(AND(G15>Form!$M$4,F15<Form!$M$4),2,0) -> 0 | H29: =IF(AND(H15>Form!$M$4,G15<Form!$M$4),2,0) -> 0 | I29: =IF(AND(I15>Form!$M$4,H15<Form!$M$4),2,0) -> 0 | J29: =IF(AND(J15>Form!$M$4,I15<Form!$M$4),2,0) -> 0 | K29: =IF(AND(K15>Form!$M$4,J15<Form!$M$4),2,0) -> 0
C30: =HLOOKUP(1,E14:K15,2,FALSE) ->  | E30: =IF(F29=2,1,0) -> 0 | F30: =IF(G29=2,1,0) -> 0 | G30: 0 | H30: 0 | I30: 0 | J30: 0 | K30: 0
C31: =HLOOKUP(2,E14:K15,2,FALSE) ->  | E31: =SUM(E29:E30) -> 0 | F31: 0 | G31: 0 | H31: 0 | I31: 0 | J31: 0 | K31: 0
B32: =(VLOOKUP(1,B14:K27,3,FALSE)) ->  | C32: =IF(ISERROR(B32),0,B32) -> 0 | E32: =(C34-C35)/(C32-C33)*(Form!$M$6-C33)+C35 ->  | F32: =(C36-C37)/(C32-C33)*(Form!M6-C33)+C37 -> 
B33: =VLOOKUP(2,B14:K27,3,FALSE) ->  | C33: =IF(ISERROR(B33),0,B33) -> 0 | E33: =IF(AND(B28=0,L14=3),VLOOKUP(Form!$M$5+Form!$M$6,notes!A14:K27,MATCH(1,notes!A14:K14,FALSE),FALSE),0) -> 0 | F33: =IF(AND(B28=0,L14=3),VLOOKUP(Form!$M$5+Form!$M$6,notes!A14:K27,MATCH(2,notes!A14:K14,FALSE),FALSE),0) -> 0 | I33: exactly
B34: =VLOOKUP(1,B14:K27,MATCH(1,B14:K14,FALSE),FALSE) ->  | C34: =MIN(B34,B36) ->  | E34: =IF(ISERROR(E32),E33,E32) -> 0 | F34: =IF(ISERROR(F32),F33,F32) -> 0 | I34: x | J34: y | K34: err1 | L34: err2 | M34: err3 | N34: ans
B35: =VLOOKUP(2,B14:K27,MATCH(1,B14:K14,FALSE),FALSE) ->  | C35: =MAX(B35,B37) ->  | E35: =MIN(E34:F34) -> 0 | F35: =MAX(E34:F34) -> 0 | I35: y | J35: y | K35: =IF(ISERROR(VLOOKUP(Form!$M$5+Form!$M$6,notes!A15:K27,MATCH(Form!$M$4,notes!A15:K15,FALSE),FALSE)),0,VLOOKUP(Form!$M$5+Form!$M$6,notes!A15:K27,MATCH(Form!$M$4,notes!A15:K15,FALSE),FALSE)) -> 0 | N35: =SUM(K35:M35) -> 0
B36: =VLOOKUP(1,B14:K27,MATCH(2,B14:K14,FALSE),FALSE) ->  | C36: =MAX(B36,B34) ->  | E36: =(E35-F35)/(C31-C30)*(Form!$M$4-C30)+F35 ->  | I36: y | J36: n | N36: =SUM(K36:M36) -> 0
B37: =VLOOKUP(2,B14:K27,MATCH(2,B14:K14,FALSE),FALSE) ->  | C37: =MIN(B35,B37) ->  | I37: n | J37: n | K37: =IF(OR(E36>100000,E36<=0),0,E36) ->  | L37: =IF(K37<>0,0,MIN(E32:F32)) ->  | M37: =IF(AND(L37=0,K37=0),C34,0) ->  | N37: =SUM(K37:M37) -> 
N38: =IF(ISERROR(N37),N35,N37) -> 0
A41: sens | E41: =E58 -> 0 | F41: =F58 -> 0 | G41: 0 | H41: 0 | I41: 0 | J41: 0 | K41: 0 | L41: =SUM(E41:K41) -> 0
E42: =E15 -> 75 | F42: =F15 -> 85 | G42: 95 | H42: 100 | I42: 105 | J42: 115 | K42: 125
A43: =C43+D43 -> 0 | B43: =P43 -> 0 | C43: =C16 -> 0 | D43: =D16 -> 0 | E43: =Form!D31 -> 0 | F43: =Form!F31 -> 0 | G43: =Form!H31 -> 0 | H43: =Form!J31 -> 0 | I43: =Form!L31 -> 0 | J43: =Form!N31 -> 0 | K43: =Form!P31 -> 0 | L43: =Form!$M$5+Form!M$6 -> 0 | M43: =IF(C43+D43=Form!M$5+Form!M$6,1,0) -> 1 | N43: =IF(A43<L43,1,0) -> 0 | O43: =IF(A43>L43,2,0) -> 0 | P43: =IF(AND(N43=1,N44=0),1,0)+IF(AND(O42=0,O43=2),2,0) -> 0
A44: =C44+D44 -> 0 | B44: =P44 -> 0 | C44: =C17 -> 0 | D44: =D17 -> 0 | E44: =Form!D32 -> 0 | F44: =Form!F32 -> 0 | G44: =Form!H32 -> 0 | H44: =Form!J32 -> 0 | I44: =Form!L32 -> 0 | J44: =Form!N32 -> 0 | K44: =Form!P32 -> 0 | L44: =Form!$M$5+Form!M$6 -> 0 | M44: =IF(C44+D44=Form!M$5+Form!M$6,1,0) -> 1 | N44: =IF(A44<L44,1,0) -> 0 | O44: =IF(A44>L44,2,0) -> 0 | P44: =IF(AND(N44=1,N45=0),1,0)+IF(AND(O43=0,O44=2),2,0) -> 0
A45: =C45+D45 -> 0 | B45: 0 | C45: 0 | D45: 0 | E45: =Form!D33 -> 0 | F45: =Form!F33 -> 0 | G45: =Form!H33 -> 0 | H45: =Form!J33 -> 0 | I45: =Form!L33 -> 0 | J45: =Form!N33 -> 0 | K45: =Form!P33 -> 0 | L45: =Form!$M$5+Form!M$6 -> 0 | M45: =IF(C45+D45=Form!M$5+Form!M$6,1,0) -> 1 | N45: 0 | O45: =IF(A45>L45,2,0) -> 0 | P45: =IF(AND(N45=1,N46=0),1,0)+IF(AND(O44=0,O45=2),2,0) -> 0
A46: 0 | B46: 0 | C46: 0 | D46: 0 | E46: =Form!D34 -> 0 | F46: =Form!F34 -> 0 | G46: =Form!H34 -> 0 | H46: =Form!J34 -> 0 | I46: =Form!L34 -> 0 | J46: =Form!N34 -> 0 | K46: =Form!P34 -> 0 | L46: =Form!$M$5+Form!M$6 -> 0 | M46: =IF(C46+D46=Form!M$5+Form!M$6,1,0) -> 1 | N46: 0 | O46: =IF(A46>L46,2,0) -> 0 | P46: =IF(AND(N46=1,N47=0),1,0)+IF(AND(O45=0,O46=2),2,0) -> 0
A47: 0 | B47: 0 | C47: 0 | D47: 0 | E47: =Form!D35 -> 0 | F47: =Form!F35 -> 0 | G47: =Form!H35 -> 0 | H47: =Form!J35 -> 0 | I47: =Form!L35 -> 0 | J47: =Form!N35 -> 0 | K47: =Form!P35 -> 0 | L47: =Form!$M$5+Form!M$6 -> 0 | M47: =IF(C47+D47=Form!M$5+Form!M$6,1,0) -> 1 | N47: 0 | O47: =IF(A47>L47,2,0) -> 0 | P47: =IF(AND(N47=1,N48=0),1,0)+IF(AND(O46=0,O47=2),2,0) -> 0
A48: 0 | B48: 0 | C48: 0 | D48: 0 | E48: =Form!D36 -> 0 | F48: =Form!F36 -> 0 | G48: =Form!H36 -> 0 | H48: =Form!J36 -> 0 | I48: =Form!L36 -> 0 | J48: =Form!N36 -> 0 | K48: =Form!P36 -> 0 | L48: =Form!$M$5+Form!M$6 -> 0 | M48: =IF(C48+D48=Form!M$5+Form!M$6,1,0) -> 1 | N48: 0 | O48: =IF(A48>L48,2,0) -> 0 | P48: =IF(AND(N48=1,N49=0),1,0)+IF(AND(O47=0,O48=2),2,0) -> 0
A49: 0 | B49: 0 | C49: 0 | D49: 0 | E49: =Form!D37 -> 0 | F49: =Form!F37 -> 0 | G49: =Form!H37 -> 0 | H49: =Form!J37 -> 0 | I49: =Form!L37 -> 0 | J49: =Form!N37 -> 0 | K49: =Form!P37 -> 0 | L49: =Form!$M$5+Form!M$6 -> 0 | M49: =IF(C49+D49=Form!M$5+Form!M$6,1,0) -> 1 | N49: 0 | O49: 0 | P49: 0
A50: 0 | B50: 0 | C50: 0 | D50: 0 | E50: =Form!D38 -> 0 | F50: =Form!F38 -> 0 | G50: =Form!H38 -> 0 | H50: =Form!J38 -> 0 | I50: =Form!L38 -> 0 | J50: =Form!N38 -> 0 | K50: =Form!P38 -> 0 | L50: =Form!$M$5+Form!M$6 -> 0 | M50: =IF(C50+D50=Form!M$5+Form!M$6,1,0) -> 1 | N50: 0 | O50: 0 | P50: 0
A51: 0 | B51: 0 | C51: 0 | D51: 0 | E51: =Form!D39 -> 0 | F51: =Form!F39 -> 0 | G51: =Form!H39 -> 0 | H51: =Form!J39 -> 0 | I51: =Form!L39 -> 0 | J51: =Form!N39 -> 0 | K51: =Form!P39 -> 0 | L51: =Form!$M$5+Form!M$6 -> 0 | M51: =IF(C51+D51=Form!M$5+Form!M$6,1,0) -> 1 | N51: 0 | O51: 0 | P51: 0
A52: 0 | B52: 0 | C52: 0 | D52: 0 | E52: =Form!D40 -> 0 | F52: =Form!F40 -> 0 | G52: =Form!H40 -> 0 | H52: =Form!J40 -> 0 | I52: =Form!L40 -> 0 | J52: =Form!N40 -> 0 | K52: =Form!P40 -> 0 | L52: =Form!$M$5+Form!M$6 -> 0 | M52: =IF(C52+D52=Form!M$5+Form!M$6,1,0) -> 1 | N52: 0 | O52: 0 | P52: 0
A53: 0 | B53: 0 | C53: 0 | D53: 0 | E53: =Form!D41 -> 0 | F53: =Form!F41 -> 0 | G53: =Form!H41 -> 0 | H53: =Form!J41 -> 0 | I53: =Form!L41 -> 0 | J53: =Form!N41 -> 0 | K53: =Form!P41 -> 0 | L53: =Form!$M$5+Form!M$6 -> 0 | M53: =IF(C53+D53=Form!M$5+Form!M$6,1,0) -> 1 | N53: 0 | O53: 0 | P53: 0
A54: 0 | B54: 0 | C54: 0 | D54: 0 | E54: =Form!D42 -> 0 | F54: =Form!F42 -> 0 | G54: =Form!H42 -> 0 | H54: =Form!J42 -> 0 | I54: =Form!L42 -> 0 | J54: =Form!N42 -> 0 | K54: =Form!P42 -> 0 | L54: =Form!$M$5+Form!M$6 -> 0 | M54: =IF(C54+D54=Form!M$5+Form!M$6,1,0) -> 1 | N54: 0 | O54: 0 | P54: 0
A55: 0 | B55: =SUM(B43:B54) -> 0
F56: =IF(AND(F42>Form!$M$4,E42<Form!$M$4),2,0) -> 0 | G56: =IF(AND(G42>Form!$M$4,F42<Form!$M$4),2,0) -> 0 | H56: =IF(AND(H42>Form!$M$4,G42<Form!$M$4),2,0) -> 0 | I56: =IF(AND(I42>Form!$M$4,H42<Form!$M$4),2,0) -> 0 | J56: =IF(AND(J42>Form!$M$4,I42<Form!$M$4),2,0) -> 0 | K56: =IF(AND(K42>Form!$M$4,J42<Form!$M$4),2,0) -> 0
C57: =HLOOKUP(1,E41:K42,2,FALSE) ->  | E57: =IF(F56=2,1,0) -> 0 | F57: =IF(G56=2,1,0) -> 0 | G57: 0 | H57: 0 | I57: 0 | J57: 0 | K57: 0
C58: =HLOOKUP(2,E41:K42,2,FALSE) ->  | E58: =SUM(E56:E57) -> 0 | F58: 0 | G58: 0 | H58: 0 | I58: 0 | J58: 0 | K58: 0
B59: =(VLOOKUP(1,B41:K54,3,FALSE)) ->  | C59: =IF(ISERROR(B59),0,B59) -> 0 | E59: =(C61-C62)/(C59-C60)*(Form!$M$6-C60)+C62 ->  | F59: =(C63-C64)/(C59-C60)*(Form!M6-C60)+C64 -> 
B60: =VLOOKUP(2,B41:K54,3,FALSE) ->  | C60: =IF(ISERROR(B60),0,B60) -> 0 | E60: =IF(AND(B55=0,L41=3),VLOOKUP(Form!$M$5+Form!$M$6,notes!A41:K54,MATCH(1,notes!A41:K41,FALSE),FALSE),0) -> 0 | F60: =IF(AND(B55=0,L41=3),VLOOKUP(Form!$M$5+Form!$M$6,notes!A41:K54,MATCH(2,notes!A41:K41,FALSE),FALSE),0) -> 0 | I60: exactly
B61: =VLOOKUP(1,B41:K54,MATCH(1,B41:K41,FALSE),FALSE) ->  | C61: =MIN(B61,B63) ->  | E61: =IF(ISERROR(E59),E60,E59) -> 0 | F61: =IF(ISERROR(F59),F60,F59) -> 0 | I61: x | J61: y | K61: err1 | L61: err2 | M61: err3 | N61: ans
B62: =VLOOKUP(2,B41:K54,MATCH(1,B41:K41,FALSE),FALSE) ->  | C62: =MAX(B62,B64) ->  | E62: =MIN(E61:F61) -> 0 | F62: =MAX(E61:F61) -> 0 | I62: y | J62: y | K62: =IF(ISERROR(VLOOKUP(Form!$M$5+Form!$M$6,notes!A42:K54,MATCH(Form!$M$4,notes!A42:K42,FALSE),FALSE)),0,VLOOKUP(Form!$M$5+Form!$M$6,notes!A42:K54,MATCH(Form!$M$4,notes!A42:K42,FALSE),FALSE)) -> 0 | N62: =SUM(K62:M62) -> 0
B63: =VLOOKUP(1,B41:K54,MATCH(2,B41:K41,FALSE),FALSE) ->  | C63: =MAX(B63,B61) ->  | E63: =(E62-F62)/(C58-C57)*(Form!$M$4-C57)+F62 ->  | I63: y | J63: n | N63: =SUM(K63:M63) -> 0
B64: =VLOOKUP(2,B41:K54,MATCH(2,B41:K41,FALSE),FALSE) ->  | C64: =MIN(B62,B64) ->  | I64: n | J64: n | K64: =IF(OR(E63>100000,E63<=0),0,E63) ->  | L64: =IF(K64<>0,0,MIN(E59:F59)) ->  | M64: =IF(AND(L64=0,K64=0),C61,0) ->  | N64: =SUM(K64:M64) -> 
B65: =VLOOKUP(Form!M32+Form!M33,A41:K54,MATCH(2,A41:K41,FALSE),FALSE) ->  | N65: =IF(ISERROR(N64),N62,N64) -> 0

Sheet Options (hidden)
A1: 24ABB3
A2: 24ABC6
A3: 24ACB3
A4: 24ACB7
A5: 24ACC6
A6: 24AHA4
A7: 24ANA1
A8: 24ANB1
A9: 24ANB6
A10: 24ANB7
A11: 24APA5
A12: 24APA7
A13: CA13NA
A14: CA14NA
A15: CA15NA
A16: CA16NA
A17: CA16NW

Sheet Calcs (hidden)
D1: Condenser :
D2: ADP Evaporator:
D3: Condenser Entering Air Temperature: | E3: 100 | F3: (°F) Dry Bulb, 85°F to 115°F
D4: Evaporator Air Flow: | E4: 1265 | F4: CFM
D5: Entering Evaporator Air (DB): | E5: 77.5 | F5: (°F) Dry Bulb
D6: Entering Evaporator Air (WB): | E6: 60.6 | F6: (°F) Wet Bulb, 63°F to 71°F
A9: Total
A10: 28.55 | B10: 1200 60.6
B12: Diff 200 | C12: =A10-A14 -> 0.308 | D12: Diff 1 cfm | E12: =C12/200 -> 0.00154 | F12: 1265 total | G12: =A10-(65*E12) -> 28.4499
A14: 28.242 | B14: 1400 60.6
A16: Sens
A17: 25.32 | B17: 1200 60.6
B19: Diff 200 | C19: =A17-A21 -> 0.5544 | D19: Diff 1 cfm | E19: =C19/200 -> 0.002772 | F19: 1265 Sens | G19: =A17-(65*E19) -> 25.13982
A21: 24.7656 | B21: 1400 60.6

Sheet CA13NA_18 (hidden)
A2: CA13NA_18
A3: Evaporator Air | C3: Condenser Entering Air Temperature ˚F
A4: 80 | B4: °F DB | C4: 75 | E4: 85 | G4: 95 | I4: 100 | K4: 105 | M4: 115 | O4: 125
A5: CFM | B5: EWB† ˚F | C5: Capacity Mbtuh | E5: Capacity Mbtuh | G5: Capacity Mbtuh | I5: Capacity Mbtuh | K5: Capacity Mbtuh | M5: Capacity Mbtuh | O5: Capacity Mbtuh
C6: Total | D6: Sens. | E6: Total | F6: Sens. | G6: Total | H6: Sens. | I6: Total | J6: Sens. | K6: Total | L6: Sens. | M6: Total | N6: Sens. | O6: Total | P6: Sens.
R7: Total Factors | Y7: Sens. % | AF7: IDB Adj | AM7: Sens Calc
A8: 525 | B8: 72 | C8: =R8*$G$13 -> 21.11 | D8: =IF(AM8>C8,C8,AM8) -> 10.3 | E8: =S8*$G$13 -> 20.16 | F8: =IF(AN8>E8,E8,AN8) -> 9.97 | G8: =T8*$G$13 -> 19.13 | H8: =IF(AO8>G8,G8,AO8) -> 9.61 | I8: =U8*$G$13 -> 18.58 | J8: =IF(AP8>I8,I8,AP8) -> 9.42 | K8: =V8*$G$13 -> 18.03 | L8: =IF(AQ8>K8,K8,AQ8) -> 9.23 | M8: =W8*$G$13 -> 16.86 | N8: =IF(AR8>M8,M8,AR8) -> 8.83 | O8: =X8*$G$13 -> 15.63 | P8: =IF(AS8>O8,O8,AS8) -> 8.42 | R8: 1.199431818 | S8: 1.145454545 | T8: 1.086931818 | U8: 1.055681818 | V8: 1.024431818 | W8: 0.9579545455 | X8: 0.8880681818 | Y8: 0.4879204169 | Z8: 0.4945436508 | AA8: 0.5023523262 | AB8: 0.5069967707 | AC8: 0.5119245702 | AD8: 0.5237247924 | AE8: 0.5387076136 | AF8: 0.835 | AG8: 0.835 | AH8: 0.835 | AI8: 0.835 | AJ8: 0.835 | AK8: 0.835 | AL8: 0.835 | AM8: =Y8*C8+($A$4-80)*AF8*$A$8/1000 -> 10.3 | AN8: =Z8*E8+($A$4-80)*AG8*$A$8/1000 -> 9.97 | AO8: =AA8*G8+($A$4-80)*AH8*$A$8/1000 -> 9.61 | AP8: =AB8*I8+($A$4-80)*AI8*$A$8/1000 -> 9.42 | AQ8: =AC8*K8+($A$4-80)*AJ8*$A$8/1000 -> 9.23 | AR8: =AD8*M8+($A$4-80)*AK8*$A$8/1000 -> 8.83 | AS8: =AE8*O8+($A$4-80)*AL8*$A$8/1000 -> 8.42
B9: 67 | C9: 19.26 | D9: 12.62 | E9: 18.37 | F9: =IF(AN9>E9,E9,AN9) -> 12.28 | G9: =T9*$G$13 -> 17.41 | H9: =IF(AO9>G9,G9,AO9) -> 11.91 | I9: 16.905 | J9: =IF(AP9>I9,I9,AP9) -> 11.715 | K9: 16.4 | L9: =IF(AQ9>K9,K9,AQ9) -> 11.52 | M9: 15.33 | N9: =IF(AR9>M9,M9,AR9) -> 11.12 | O9: 14.2 | P9: =IF(AS9>O9,O9,AS9) -> 10.7 | R9: 1.094318182 | S9: 1.04375 | T9: 0.9892045455 | U9: 0.9605113636 | V9: 0.9318181818 | W9: 0.8710227273 | X9: 0.8068181818 | Y9: 0.6552440291 | Z9: 0.6684812194 | AA9: 0.6840896037 | AB9: 0.6929902396 | AC9: 0.7024390244 | AD9: 0.7253750815 | AE9: 0.7535211268 | AF9: 0.835 | AG9: 0.835 | AH9: 0.835 | AI9: 0.835 | AJ9: 0.835 | AK9: 0.835 | AL9: 0.835 | AM9: =Y9*C9+($A$4-80)*AF9*$A$8/1000 -> 12.62 | AN9: =Z9*E9+($A$4-80)*AG9*$A$8/1000 -> 12.28 | AO9: =AA9*G9+($A$4-80)*AH9*$A$8/1000 -> 11.91 | AP9: =AB9*I9+($A$4-80)*AI9*$A$8/1000 -> 11.715 | AQ9: =AC9*K9+($A$4-80)*AJ9*$A$8/1000 -> 11.52 | AR9: =AD9*M9+($A$4-80)*AK9*$A$8/1000 -> 11.12 | AS9: =AE9*O9+($A$4-80)*AL9*$A$8/1000 -> 10.7
B10: 62 | C10: 17.61 | D10: 14.91 | E10: 16.8 | F10: 14.55 | G10: =T10*$G$13 -> 15.95 | H10: 14.17 | I10: 15.51 | J10: 13.965 | K10: 15.07 | L10: 13.76 | M10: 14.21 | N10: 14.21 | O10: 13.35 | P10: 13.35 | R10: 1.000568182 | S10: 0.9545454545 | T10: 0.90625 | U10: 0.88125 | V10: 0.85625 | W10: 0.8073863636 | X10: 0.7585227273 | Y10: 0.8466780239 | Z10: 0.8660714286 | AA10: 0.8884012539 | AB10: 0.9003868472 | AC10: 0.9130723291 | AD10: 1 | AE10: 1 | AF10: 0.835 | AG10: 0.835 | AH10: 0.835 | AI10: 0.835 | AJ10: 0.835 | AK10: 0.835 | AL10: 0.835 | AM10: 14.91 | AN10: =Z10*E10+($A$4-80)*AG10*$A$8/1000 -> 14.55 | AO10: =AA10*G10+($A$4-80)*AH10*$A$8/1000 -> 14.17 | AP10: 13.965 | AQ10: 13.76 | AR10: 14.21 | AS10: 13.35
B11: 57 | C11: 17.08 | D11: 17.08 | E11: 16.44 | F11: 16.44 | G11: =T11*$G$13 -> 15.74 | H11: 15.74 | I11: 15.37 | J11: 15.37 | K11: 15 | L11: 15 | M11: 14.19 | N11: 14.19 | O11: 13.33 | P11: 13.33 | R11: 0.9704545455 | S11: 0.9340909091 | T11: 0.8943181818 | U11: 0.8732954545 | V11: 0.8522727273 | W11: 0.80625 | X11: 0.7573863636 | Y11: 1 | Z11: 1 | AA11: 1 | AB11: 1 | AC11: 1 | AD11: 1 | AE11: 1 | AF11: 0.835 | AG11: 0.835 | AH11: 0.835 | AI11: 0.835 | AJ11: 0.835 | AK11: 0.835 | AL11: 0.835 | AM11: 17.08 | AN11: =Z11*E11+($A$4-80)*AG11*$A$8/1000 -> 16.44 | AO11: =AA11*G11+($A$4-80)*AH11*$A$8/1000 -> 15.74 | AP11: =AB11*I11+($A$4-80)*AI11*$A$8/1000 -> 15.37 | AQ11: 15 | AR11: 14.19 | AS11: 13.33
A12: 600 | B12: 72 | C12: 21.37 | D12: 10.77 | E12: 20.39 | F12: 10.43 | G12: =T12*$G$13 -> 19.32 | H12: 10.07 | I12: 18.745 | J12: 9.875 | K12: 18.17 | L12: 9.68 | M12: 16.96 | N12: 9.28 | O12: 15.69 | P12: 8.86 | R12: 1.214204545 | S12: 1.158522727 | T12: 1.097727273 | U12: 1.065056818 | V12: 1.032386364 | W12: 0.9636363636 | X12: 0.8914772727 | Y12: 0.5039775386 | Z12: 0.5115252575 | AA12: 0.5212215321 | AB12: 0.5268071486 | AC12: 0.5327462851 | AD12: 0.5471698113 | AE12: 0.5646908859 | AF12: 0.835 | AG12: 0.835 | AH12: 0.835 | AI12: 0.835 | AJ12: 0.835 | AK12: 0.835 | AL12: 0.835 | AM12: =Y12*C12+($A$4-80)*AF12*$A$12/1000 -> 10.77 | AN12: =Z12*E12+($A$4-80)*AG12*$A$12/1000 -> 10.43 | AO12: =AA12*G12+($A$4-80)*AH12*$A$12/1000 -> 10.07 | AP12: =AB12*I12+($A$4-80)*AI12*$A$12/1000 -> 9.875 | AQ12: =AC12*K12+($A$4-80)*AJ12*$A$12/1000 -> 9.68 | AR12: =AD12*M12+($A$4-80)*AK12*$A$12/1000 -> 9.28 | AS12: =AE12*O12+($A$4-80)*AL12*$A$12/1000 -> 8.86
B13: 67 | C13: 19.51 | D13: 13.39 | E13: 18.59 | F13: 13.05 | G13: 17.6 | H13: 12.67 | I13: 17.075 | J13: 12.475 | K13: 16.55 | L13: 12.28 | M13: 15.44 | N13: 11.87 | O13: 14.28 | P13: 11.44 | R13: 1.108522727 | S13: 1.05625 | T13: 1 | U13: 0.9701704545 | V13: 0.9403409091 | W13: 0.8772727273 | X13: 0.8113636364 | Y13: 0.6863147104 | Z13: 0.7019903174 | AA13: 0.7198863636 | AB13: 0.7306002928 | AC13: 0.7419939577 | AD13: 0.7687823834 | AE13: 0.8011204482 | AF13: 0.835 | AG13: 0.835 | AH13: 0.835 | AI13: 0.835 | AJ13: 0.835 | AK13: 0.835 | AL13: 0.835 | AM13: =Y13*C13+($A$4-80)*AF13*$A$12/1000 -> 13.39 | AN13: =Z13*E13+($A$4-80)*AG13*$A$12/1000 -> 13.05 | AO13: =AA13*G13+($A$4-80)*AH13*$A$12/1000 -> 12.67 | AP13: =AB13*I13+($A$4-80)*AI13*$A$12/1000 -> 12.475 | AQ13: =AC13*K13+($A$4-80)*AJ13*$A$12/1000 -> 12.28 | AR13: =AD13*M13+($A$4-80)*AK13*$A$12/1000 -> 11.87 | AS13: =AE13*O13+($A$4-80)*AL13*$A$12/1000 -> 11.44
B14: 62 | C14: 17.94 | D14: 15.97 | E14: 17.12 | F14: 15.58 | G14: =T14*$G$13 -> 16.31 | H14: 16.31 | I14: 15.91 | J14: 15.91 | K14: 15.51 | L14: 15.51 | M14: 14.65 | N14: 14.65 | O14: 13.72 | P14: 13.72 | R14: 1.019318182 | S14: 0.9727272727 | T14: 0.9267045455 | U14: 0.9039772727 | V14: 0.88125 | W14: 0.8323863636 | X14: 0.7795454545 | Y14: 0.8901895206 | Z14: 0.910046729 | AA14: 1 | AB14: 1 | AC14: 1 | AD14: 1 | AE14: 1 | AF14: 0.835 | AG14: 0.835 | AH14: 0.835 | AI14: 0.835 | AJ14: 0.835 | AK14: 0.835 | AL14: 0.835 | AM14: 15.97 | AN14: =Z14*E14+($A$4-80)*AG14*$A$12/1000 -> 15.58 | AO14: =AA14*G14+($A$4-80)*AH14*$A$12/1000 -> 16.31 | AP14: 15.91 | AQ14: 15.51 | AR14: 14.65 | AS14: 13.72
B15: 57 | C15: 17.74 | D15: 17.74 | E15: 17.03 | F15: 17.03 | G15: 16.29 | H15: 16.29 | I15: 15.89 | J15: 15.89 | K15: 15.49 | L15: 15.49 | M15: 14.63 | N15: 14.63 | O15: 13.71 | P15: 13.71 | R15: 1.007954545 | S15: 0.9676136364 | T15: 0.9255681818 | U15: 0.9028409091 | V15: 0.8801136364 | W15: 0.83125 | X15: 0.7789772727 | Y15: 1 | Z15: 1 | AA15: 1 | AB15: 1 | AC15: 1 | AD15: 1 | AE15: 1 | AF15: 0.835 | AG15: 0.835 | AH15: 0.835 | AI15: 0.835 | AJ15: 0.835 | AK15: 0.835 | AL15: 0.835 | AM15: 17.74 | AN15: =Z15*E15+($A$4-80)*AG15*$A$12/1000 -> 17.03 | AO15: =AA15*G15+($A$4-80)*AH15*$A$12/1000 -> 16.29 | AP15: 15.89 | AQ15: 15.49 | AR15: 14.63 | AS15: 13.71
A16: 675 | B16: 72 | C16: 21.73 | D16: 11.28 | E16: 20.71 | F16: 10.93 | G16: 19.61 | H16: 10.57 | I16: =U16*$G$13 -> 19.02 | J16: 10.375 | K16: 18.43 | L16: 10.18 | M16: 17.19 | N16: 9.77 | O16: 15.89 | P16: 9.35 | R16: 1.234659091 | S16: 1.176704545 | T16: 1.114204545 | U16: 1.080681818 | V16: 1.047159091 | W16: 0.9767045455 | X16: 0.9028409091 | Y16: 0.5190980212 | Z16: 0.527764365 | AA16: 0.5390107088 | AB16: 0.5454784437 | AC16: 0.5523602821 | AD16: 0.568353694 | AE16: 0.5884203902 | AF16: 0.835 | AG16: 0.835 | AH16: 0.835 | AI16: 0.835 | AJ16: 0.835 | AK16: 0.835 | AL16: 0.835 | AM16: =Y16*C16+($A$4-80)*AF16*$A$16/1000 -> 11.28 | AN16: =Z16*E16+($A$4-80)*AG16*$A$16/1000 -> 10.93 | AO16: =AA16*G16+($A$4-80)*AH16*$A$16/1000 -> 10.57 | AP16: =AB16*I16+($A$4-80)*AI16*$A$16/1000 -> 10.375 | AQ16: =AC16*K16+($A$4-80)*AJ16*$A$16/1000 -> 10.18 | AR16: =AD16*M16+($A$4-80)*AK16*$A$16/1000 -> 9.77 | AS16: =AE16*O16+($A$4-80)*AL16*$A$16/1000 -> 9.35
B17: 67 | C17: 19.86 | D17: 14.2 | E17: 18.93 | F17: 13.86 | G17: 17.9 | H17: 13.47 | I17: 17.36 | J17: 13.27 | K17: 16.82 | L17: 13.07 | M17: 15.69 | N17: 12.66 | O17: 14.51 | P17: 12.21 | R17: 1.128409091 | S17: 1.075568182 | T17: 1.017045455 | U17: 0.9863636364 | V17: 0.9556818182 | W17: 0.8914772727 | X17: 0.8244318182 | Y17: 0.7150050352 | Z17: 0.7321711569 | AA17: 0.7525139665 | AB17: 0.7644009217 | AC17: 0.7770511296 | AD17: 0.8068833652 | AE17: 0.8414886285 | AF17: 0.835 | AG17: 0.835 | AH17: 0.835 | AI17: 0.835 | AJ17: 0.835 | AK17: 0.835 | AL17: 0.835 | AM17: =Y17*C17+($A$4-80)*AF17*$A$16/1000 -> 14.2 | AN17: =Z17*E17+($A$4-80)*AG17*$A$16/1000 -> 13.86 | AO17: =AA17*G17+($A$4-80)*AH17*$A$16/1000 -> 13.47 | AP17: =AB17*I17+($A$4-80)*AI17*$A$16/1000 -> 13.27 | AQ17: =AC17*K17+($A$4-80)*AJ17*$A$16/1000 -> 13.07 | AR17: =AD17*M17+($A$4-80)*AK17*$A$16/1000 -> 12.66 | AS17: =AE17*O17+($A$4-80)*AL17*$A$16/1000 -> 12.21
B18: 62 | C18: 18.4 | D18: 18.4 | E18: 17.68 | F18: 17.68 | G18: 16.89 | H18: 16.89 | I18: 16.465 | J18: 16.465 | K18: 16.04 | L18: 16.04 | M18: 15.14 | N18: 15.14 | O18: 14.17 | P18: 14.17 | R18: 1.045454545 | S18: 1.004545455 | T18: 0.9596590909 | U18: 0.9355113636 | V18: 0.9113636364 | W18: 0.8602272727 | X18: 0.8051136364 | Y18: 1 | Z18: 1 | AA18: 1 | AB18: 1 | AC18: 1 | AD18: 1 | AE18: 1 | AF18: 0.835 | AG18: 0.835 | AH18: 0.835 | AI18: 0.835 | AJ18: 0.835 | AK18: 0.835 | AL18: 0.835 | AM18: 18.4 | AN18: =Z18*E18+($A$4-80)*AG18*$A$16/1000 -> 17.68 | AO18: =AA18*G18+($A$4-80)*AH18*$A$16/1000 -> 16.89 | AP18: 16.465 | AQ18: 16.04 | AR18: 15.14 | AS18: 14.17
B19: 57 | C19: 18.39 | D19: 18.39 | E19: 17.66 | F19: 17.66 | G19: 16.87 | H19: 16.87 | I19: 16.445 | J19: 16.445 | K19: 16.02 | L19: 16.02 | M19: 15.12 | N19: 15.12 | O19: 14.15 | P19: 14.15 | R19: 1.044886364 | S19: 1.003409091 | T19: 0.9585227273 | U19: 0.934375 | V19: 0.9102272727 | W19: 0.8590909091 | X19: 0.8039772727 | Y19: 1 | Z19: 1 | AA19: 1 | AB19: 1 | AC19: 1 | AD19: 1 | AE19: 1 | AF19: 0.835 | AG19: 0.835 | AH19: 0.835 | AI19: 0.835 | AJ19: 0.835 | AK19: 0.835 | AL19: 0.835 | AM19: 18.39 | AN19: =Z19*E19+($A$4-80)*AG19*$A$16/1000 -> 17.66 | AO19: =AA19*G19+($A$4-80)*AH19*$A$16/1000 -> 16.87 | AP19: 16.445 | AQ19: 16.02 | AR19: 15.12 | AS19: 14.15

Sheet CA13NA_24 (hidden)
A2: CA13NA_24
A3: Evaporator Air | C3: Condenser Entering Air Temperature ˚F
A4: 80 | B4: °F DB | C4: 75 | E4: 85 | G4: 95 | I4: 100 | K4: 105 | M4: 115 | O4: 125
A5: CFM | B5: EWB† ˚F | C5: Capacity Mbtuh | E5: Capacity Mbtuh | G5: Capacity Mbtuh | I5: Capacity Mbtuh | K5: Capacity Mbtuh | M5: Capacity Mbtuh | O5: Capacity Mbtuh
C6: Total | D6: Sens. | E6: Total | F6: Sens. | G6: Total | H6: Sens. | I6: Total | J6: Sens. | K6: Total | L6: Sens. | M6: Total | N6: Sens. | O6: Total | P6: Sens.
R7: Total Factors | Y7: Sens. % | AF7: IDB Adj | AM7: Sens Calc
A8: 700 | B8: 72 | C8: =R8*$G$13 -> 28.41391304 | D8: =IF(AM8>C8,C8,AM8) -> 13.96173913 | E8: =S8*$G$13 -> 27.17217391 | F8: =IF(AN8>E8,E8,AN8) -> 13.53391304 | G8: =T8*$G$13 -> 25.86782609 | H8: =IF(AO8>G8,G8,AO8) -> 13.09565217 | I8: =U8*$G$13 -> 25.1426087 | J8: =IF(AP8>I8,I8,AP8) -> 12.85043478 | K8: =V8*$G$13 -> 24.4173913 | L8: =IF(AQ8>K8,K8,AQ8) -> 12.60521739 | M8: =W8*$G$13 -> 22.87304348 | N8: =IF(AR8>M8,M8,AR8) -> 12.09391304 | O8: =X8*$G$13 -> 21.25565217 | P8: =IF(AS8>O8,O8,AS8) -> 11.56173913 | R8: 1.183913043 | S8: 1.132173913 | T8: 1.077826087 | U8: 1.047608696 | V8: 1.017391304 | W8: 0.9530434783 | X8: 0.8856521739 | Y8: 0.4913698127 | Z8: 0.4980798771 | AA8: 0.5062525212 | AB8: 0.5111018884 | AC8: 0.5162393162 | AD8: 0.5287408759 | AE8: 0.5439371625 | AF8: 0.835 | AG8: 0.835 | AH8: 0.835 | AI8: 0.835 | AJ8: 0.835 | AK8: 0.835 | AL8: 0.835 | AM8: =Y8*C8+($A$4-80)*AF8*$A$8/1000 -> 13.96173913 | AN8: =Z8*E8+($A$4-80)*AG8*$A$8/1000 -> 13.53391304 | AO8: =AA8*G8+($A$4-80)*AH8*$A$8/1000 -> 13.09565217 | AP8: =AB8*I8+($A$4-80)*AI8*$A$8/1000 -> 12.85043478 | AQ8: =AC8*K8+($A$4-80)*AJ8*$A$8/1000 -> 12.60521739 | AR8: =AD8*M8+($A$4-80)*AK8*$A$8/1000 -> 12.09391304 | AS8: =AE8*O8+($A$4-80)*AL8*$A$8/1000 -> 11.56173913
B9: 67 | C9: 26.05565217 | D9: 17.30086957 | E9: 24.91826087 | F9: =IF(AN9>E9,E9,AN9) -> 16.87304348 | G9: =T9*$G$13 -> 23.67652174 | H9: =IF(AO9>G9,G9,AO9) -> 16.40347826 | I9: 23.00347826 | J9: =IF(AP9>I9,I9,AP9) -> 16.15304348 | K9: 22.33043478 | L9: =IF(AQ9>K9,K9,AQ9) -> 15.9026087 | M9: 20.91130435 | N9: =IF(AR9>M9,M9,AR9) -> 15.38086957 | O9: 19.41913043 | P9: =IF(AS9>O9,O9,AS9) -> 14.83826087 | R9: 1.085652174 | S9: 1.03826087 | T9: 0.9865217391 | U9: 0.9584782609 | V9: 0.9304347826 | W9: 0.8713043478 | X9: 0.8091304348 | Y9: 0.6639967962 | Z9: 0.6771356784 | AA9: 0.6928162186 | AB9: 0.7022000454 | AC9: 0.7121495327 | AD9: 0.7355289421 | AE9: 0.7641053197 | AF9: 0.835 | AG9: 0.835 | AH9: 0.835 | AI9: 0.835 | AJ9: 0.835 | AK9: 0.835 | AL9: 0.835 | AM9: =Y9*C9+($A$4-80)*AF9*$A$8/1000 -> 17.30086957 | AN9: =Z9*E9+($A$4-80)*AG9*$A$8/1000 -> 16.87304348 | AO9: =AA9*G9+($A$4-80)*AH9*$A$8/1000 -> 16.40347826 | AP9: =AB9*I9+($A$4-80)*AI9*$A$8/1000 -> 16.15304348 | AQ9: =AC9*K9+($A$4-80)*AJ9*$A$8/1000 -> 15.9026087 | AR9: =AD9*M9+($A$4-80)*AK9*$A$8/1000 -> 15.38086957 | AS9: =AE9*O9+($A$4-80)*AL9*$A$8/1000 -> 14.83826087
B10: 62 | C10: 23.98956522 | D10: 20.59826087 | E10: 22.95652174 | F10: 20.13913043 | G10: =T10*$G$13 -> 21.82956522 | H10: 19.62782609 | I10: 21.27652174 | J10: 20.17565217 | K10: 20.72347826 | L10: 20.72347826 | M10: 19.62782609 | N10: 19.62782609 | O10: 18.45913043 | P10: 18.45913043 | R10: 0.9995652174 | S10: 0.9565217391 | T10: 0.9095652174 | U10: 0.8865217391 | V10: 0.8634782609 | W10: 0.817826087 | X10: 0.7691304348 | Y10: 0.8586341888 | Z10: 0.8772727273 | AA10: 0.8991395793 | AB10: 0.9482589505 | AC10: 1 | AD10: 1 | AE10: 1 | AF10: 0.835 | AG10: 0.835 | AH10: 0.835 | AI10: 0.835 | AJ10: 0.835 | AK10: 0.835 | AL10: 0.835 | AM10: 20.59826087 | AN10: =Z10*E10+($A$4-80)*AG10*$A$8/1000 -> 20.13913043 | AO10: =AA10*G10+($A$4-80)*AH10*$A$8/1000 -> 19.62782609 | AP10: 20.17565217 | AQ10: 20.72347826 | AR10: 19.62782609 | AS10: 18.45913043
B11: 57 | C11: 23.52 | D11: 23.52 | E11: 22.66434783 | F11: 22.66434783 | G11: =T11*$G$13 -> 21.70434783 | H11: 21.70434783 | I11: 21.19826087 | J11: 21.19826087 | K11: 20.69217391 | L11: 20.69217391 | M11: 19.59652174 | N11: 19.59652174 | O11: 18.42782609 | P11: 18.42782609 | R11: 0.98 | S11: 0.9443478261 | T11: 0.9043478261 | U11: 0.8832608696 | V11: 0.862173913 | W11: 0.8165217391 | X11: 0.767826087 | Y11: 1 | Z11: 1 | AA11: 1 | AB11: 1 | AC11: 1 | AD11: 1 | AE11: 1 | AF11: 0.835 | AG11: 0.835 | AH11: 0.835 | AI11: 0.835 | AJ11: 0.835 | AK11: 0.835 | AL11: 0.835 | AM11: 23.52 | AN11: =Z11*E11+($A$4-80)*AG11*$A$8/1000 -> 22.66434783 | AO11: =AA11*G11+($A$4-80)*AH11*$A$8/1000 -> 21.70434783 | AP11: =AB11*I11+($A$4-80)*AI11*$A$8/1000 -> 21.19826087 | AQ11: 20.69217391 | AR11: 19.59652174 | AS11: 18.42782609
A12: 800 | B12: 72 | C12: 28.82086957 | D12: 14.66086957 | E12: 27.52695652 | F12: 14.2226087 | G12: =T12*$G$13 -> 26.16 | H12: 13.77391304 | I12: 25.41913043 | J12: 13.52869565 | K12: 24.67826087 | L12: 13.28347826 | M12: 23.09217391 | N12: 12.76173913 | O12: 21.4226087 | P12: 12.22956522 | R12: 1.200869565 | S12: 1.146956522 | T12: 1.09 | U12: 1.059130435 | V12: 1.02826087 | W12: 0.962173913 | X12: 0.8926086957 | Y12: 0.5086893555 | Z12: 0.5166793025 | AA12: 0.526525728 | AB12: 0.5322249589 | AC12: 0.5382663848 | AD12: 0.5526434704 | AE12: 0.5708718948 | AF12: 0.835 | AG12: 0.835 | AH12: 0.835 | AI12: 0.835 | AJ12: 0.835 | AK12: 0.835 | AL12: 0.835 | AM12: =Y12*C12+($A$4-80)*AF12*$A$12/1000 -> 14.66086957 | AN12: =Z12*E12+($A$4-80)*AG12*$A$12/1000 -> 14.2226087 | AO12: =AA12*G12+($A$4-80)*AH12*$A$12/1000 -> 13.77391304 | AP12: =AB12*I12+($A$4-80)*AI12*$A$12/1000 -> 13.52869565 | AQ12: =AC12*K12+($A$4-80)*AJ12*$A$12/1000 -> 13.28347826 | AR12: =AD12*M12+($A$4-80)*AK12*$A$12/1000 -> 12.76173913 | AS12: =AE12*O12+($A$4-80)*AL12*$A$12/1000 -> 12.22956522
B13: 67 | C13: 26.45217391 | D13: 18.42782609 | E13: 25.27304348 | F13: 17.98956522 | G13: 24 | H13: 17.52 | I13: 23.30086957 | J13: 17.26434783 | K13: 22.60173913 | L13: 17.00869565 | M13: 21.15130435 | N13: 16.47652174 | O13: 19.6173913 | P13: 15.92347826 | R13: 1.102173913 | S13: 1.053043478 | T13: 1 | U13: 0.9708695652 | V13: 0.9417391304 | W13: 0.8813043478 | X13: 0.8173913043 | Y13: 0.6966469428 | Z13: 0.7118084228 | AA13: 0.73 | AB13: 0.7409314823 | AC13: 0.7525392428 | AD13: 0.7789837198 | AE13: 0.8117021277 | AF13: 0.835 | AG13: 0.835 | AH13: 0.835 | AI13: 0.835 | AJ13: 0.835 | AK13: 0.835 | AL13: 0.835 | AM13: =Y13*C13+($A$4-80)*AF13*$A$12/1000 -> 18.42782609 | AN13: =Z13*E13+($A$4-80)*AG13*$A$12/1000 -> 17.98956522 | AO13: =AA13*G13+($A$4-80)*AH13*$A$12/1000 -> 17.52 | AP13: =AB13*I13+($A$4-80)*AI13*$A$12/1000 -> 17.26434783 | AQ13: =AC13*K13+($A$4-80)*AJ13*$A$12/1000 -> 17.00869565 | AR13: =AD13*M13+($A$4-80)*AK13*$A$12/1000 -> 16.47652174 | AS13: =AE13*O13+($A$4-80)*AL13*$A$12/1000 -> 15.92347826
B14: 62 | C14: 24.51130435 | D14: 22.09043478 | E14: 23.52 | F14: 23.52 | G14: =T14*$G$13 -> 22.51826087 | H14: 22.51826087 | I14: 21.97043478 | J14: 21.97043478 | K14: 21.4226087 | L14: 21.4226087 | M14: 20.26434783 | N14: 20.26434783 | O14: 19.0226087 | P14: 19.0226087 | R14: 1.021304348 | S14: 0.98 | T14: 0.9382608696 | U14: 0.9154347826 | V14: 0.8926086957 | W14: 0.8443478261 | X14: 0.7926086957 | Y14: 0.9012345679 | Z14: 1 | AA14: 1 | AB14: 1 | AC14: 1 | AD14: 1 | AE14: 1 | AF14: 0.835 | AG14: 0.835 | AH14: 0.835 | AI14: 0.835 | AJ14: 0.835 | AK14: 0.835 | AL14: 0.835 | AM14: 22.09043478 | AN14: =Z14*E14+($A$4-80)*AG14*$A$12/1000 -> 23.52 | AO14: =AA14*G14+($A$4-80)*AH14*$A$12/1000 -> 22.51826087 | AP14: 21.97043478 | AQ14: 21.4226087 | AR14: 20.26434783 | AS14: 19.0226087
B15: 57 | C15: 24.39652174 | D15: 24.39652174 | E15: 23.49913043 | F15: 23.49913043 | G15: 22.48695652 | H15: 22.48695652 | I15: 21.94434783 | J15: 21.94434783 | K15: 21.40173913 | L15: 21.40173913 | M15: 20.24347826 | N15: 20.24347826 | O15: 19.00173913 | P15: 19.00173913 | R15: 1.016521739 | S15: 0.9791304348 | T15: 0.9369565217 | U15: 0.9143478261 | V15: 0.8917391304 | W15: 0.8434782609 | X15: 0.7917391304 | Y15: 1 | Z15: 1 | AA15: 1 | AB15: 1 | AC15: 1 | AD15: 1 | AE15: 1 | AF15: 0.835 | AG15: 0.835 | AH15: 0.835 | AI15: 0.835 | AJ15: 0.835 | AK15: 0.835 | AL15: 0.835 | AM15: 24.39652174 | AN15: =Z15*E15+($A$4-80)*AG15*$A$12/1000 -> 23.49913043 | AO15: =AA15*G15+($A$4-80)*AH15*$A$12/1000 -> 22.48695652 | AP15: 21.94434783 | AQ15: 21.40173913 | AR15: 20.24347826 | AS15: 19.00173913
A16: 900 | B16: 72 | C16: 29.1026087 | D16: 15.30782609 | E16: 27.76695652 | F16: 14.86956522 | G16: 26.36869565 | H16: 14.42086957 | I16: 25.6173913 | J16: 14.17565217 | K16: 24.86608696 | L16: 13.93043478 | M16: 23.22782609 | N16: 13.39826087 | O16: 21.52695652 | P16: 12.85565217 | R16: 1.212608696 | S16: 1.156956522 | T16: 1.098695652 | U16: 1.067391304 | V16: 1.036086957 | W16: 0.967826087 | X16: 0.8969565217 | Y16: 0.5259949803 | Z16: 0.5355129651 | AA16: 0.5468935497 | AB16: 0.5533604888 | AC16: 0.5602182123 | AD16: 0.576819407 | AE16: 0.5971885603 | AF16: 0.835 | AG16: 0.835 | AH16: 0.835 | AI16: 0.835 | AJ16: 0.835 | AK16: 0.835 | AL16: 0.835 | AM16: =Y16*C16+($A$4-80)*AF16*$A$16/1000 -> 15.30782609 | AN16: =Z16*E16+($A$4-80)*AG16*$A$16/1000 -> 14.86956522 | AO16: =AA16*G16+($A$4-80)*AH16*$A$16/1000 -> 14.42086957 | AP16: =AB16*I16+($A$4-80)*AI16*$A$16/1000 -> 14.17565217 | AQ16: =AC16*K16+($A$4-80)*AJ16*$A$16/1000 -> 13.93043478 | AR16: =AD16*M16+($A$4-80)*AK16*$A$16/1000 -> 13.39826087 | AS16: =AE16*O16+($A$4-80)*AL16*$A$16/1000 -> 12.85565217
B17: 67 | C17: 26.74434783 | D17: 19.5026087 | E17: 25.52347826 | F17: 19.06434783 | G17: 24.22956522 | H17: 18.58434783 | I17: 23.52 | J17: 18.32869565 | K17: 22.81043478 | L17: 18.07304348 | M17: 21.31826087 | N17: 17.52 | O17: 19.77391304 | P17: 16.93565217 | R17: 1.114347826 | S17: 1.063478261 | T17: 1.009565217 | U17: 0.98 | V17: 0.9504347826 | W17: 0.8882608696 | X17: 0.8239130435 | Y17: 0.7292235661 | Z17: 0.7469337694 | AA17: 0.7670111972 | AB17: 0.7792812777 | AC17: 0.7923147301 | AD17: 0.8218306412 | AE17: 0.8564643799 | AF17: 0.835 | AG17: 0.835 | AH17: 0.835 | AI17: 0.835 | AJ17: 0.835 | AK17: 0.835 | AL17: 0.835 | AM17: =Y17*C17+($A$4-80)*AF17*$A$16/1000 -> 19.5026087 | AN17: =Z17*E17+($A$4-80)*AG17*$A$16/1000 -> 19.06434783 | AO17: =AA17*G17+($A$4-80)*AH17*$A$16/1000 -> 18.58434783 | AP17: =AB17*I17+($A$4-80)*AI17*$A$16/1000 -> 18.32869565 | AQ17: =AC17*K17+($A$4-80)*AJ17*$A$16/1000 -> 18.07304348 | AR17: =AD17*M17+($A$4-80)*AK17*$A$16/1000 -> 17.52 | AS17: =AE17*O17+($A$4-80)*AL17*$A$16/1000 -> 16.93565217
B18: 62 | C18: 25.14782609 | D18: 25.14782609 | E18: 24.19826087 | F18: 24.19826087 | G18: 23.14434783 | H18: 23.14434783 | I18: 22.57043478 | J18: 22.57043478 | K18: 21.99652174 | L18: 21.99652174 | M18: 20.76521739 | N18: 20.76521739 | O18: 19.47130435 | P18: 19.47130435 | R18: 1.047826087 | S18: 1.00826087 | T18: 0.9643478261 | U18: 0.9404347826 | V18: 0.9165217391 | W18: 0.8652173913 | X18: 0.8113043478 | Y18: 1 | Z18: 1 | AA18: 1 | AB18: 1 | AC18: 1 | AD18: 1 | AE18: 1 | AF18: 0.835 | AG18: 0.835 | AH18: 0.835 | AI18: 0.835 | AJ18: 0.835 | AK18: 0.835 | AL18: 0.835 | AM18: 25.14782609 | AN18: =Z18*E18+($A$4-80)*AG18*$A$16/1000 -> 24.19826087 | AO18: =AA18*G18+($A$4-80)*AH18*$A$16/1000 -> 23.14434783 | AP18: 22.57043478 | AQ18: 21.99652174 | AR18: 20.76521739 | AS18: 19.47130435
B19: 57 | C19: 25.11652174 | D19: 25.11652174 | E19: 24.16695652 | F19: 24.16695652 | G19: 23.11304348 | H19: 23.11304348 | I19: 22.53913043 | J19: 22.53913043 | K19: 21.96521739 | L19: 21.96521739 | M19: 20.74434783 | N19: 20.74434783 | O19: 19.45043478 | P19: 19.45043478 | R19: 1.046521739 | S19: 1.006956522 | T19: 0.9630434783 | U19: 0.9391304348 | V19: 0.9152173913 | W19: 0.8643478261 | X19: 0.8104347826 | Y19: 1 | Z19: 1 | AA19: 1 | AB19: 1 | AC19: 1 | AD19: 1 | AE19: 1 | AF19: 0.835 | AG19: 0.835 | AH19: 0.835 | AI19: 0.835 | AJ19: 0.835 | AK19: 0.835 | AL19: 0.835 | AM19: 25.11652174 | AN19: =Z19*E19+($A$4-80)*AG19*$A$16/1000 -> 24.16695652 | AO19: =AA19*G19+($A$4-80)*AH19*$A$16/1000 -> 23.11304348 | AP19: 22.53913043 | AQ19: 21.96521739 | AR19: 20.74434783 | AS19: 19.45043478

Sheet CA13NA_30 (hidden)
A2: CA13NA_30
A3: Evaporator Air | C3: Condenser Entering Air Temperature ˚F
A4: 80 | B4: °F DB | C4: 75 | E4: 85 | G4: 95 | I4: 100 | K4: 105 | M4: 115 | O4: 125
A5: CFM | B5: EWB† ˚F | C5: Capacity Mbtuh | E5: Capacity Mbtuh | G5: Capacity Mbtuh | I5: Capacity Mbtuh | K5: Capacity Mbtuh | M5: Capacity Mbtuh | O5: Capacity Mbtuh
C6: Total | D6: Sens. | E6: Total | F6: Sens. | G6: Total | H6: Sens. | I6: Total | J6: Sens. | K6: Total | L6: Sens. | M6: Total | N6: Sens. | O6: Total | P6: Sens.
R7: Total Factors | Y7: Sens. % | AF7: IDB Adj | AM7: Sens Calc
A8: 875 | B8: 72 | C8: =R8*$G$13 -> 32.44 | D8: =IF(AM8>C8,C8,AM8) -> 15.85 | E8: =S8*$G$13 -> 31.11 | F8: =IF(AN8>E8,E8,AN8) -> 15.41 | G8: =T8*$G$13 -> 29.62 | H8: =IF(AO8>G8,G8,AO8) -> 14.91 | I8: =U8*$G$13 -> 28.825 | J8: =IF(AP8>I8,I8,AP8) -> 14.645 | K8: =V8*$G$13 -> 28.03 | L8: =IF(AQ8>K8,K8,AQ8) -> 14.38 | M8: =W8*$G$13 -> 26.3 | N8: =IF(AR8>M8,M8,AR8) -> 13.82 | O8: =X8*$G$13 -> 24.43 | P8: =IF(AS8>O8,O8,AS8) -> 13.22 | R8: 1.183941606 | S8: 1.13540146 | T8: 1.081021898 | U8: 1.052007299 | V8: 1.022992701 | W8: 0.9598540146 | X8: 0.8916058394 | Y8: 0.488594328 | Z8: 0.4953391193 | AA8: 0.5033760972 | AB8: 0.508065915 | AC8: 0.5130217624 | AD8: 0.5254752852 | AE8: 0.5411379451 | AF8: 0.835 | AG8: 0.835 | AH8: 0.835 | AI8: 0.835 | AJ8: 0.835 | AK8: 0.835 | AL8: 0.835 | AM8: =Y8*C8+($A$4-80)*AF8*$A$8/1000 -> 15.85 | AN8: =Z8*E8+($A$4-80)*AG8*$A$8/1000 -> 15.41 | AO8: =AA8*G8+($A$4-80)*AH8*$A$8/1000 -> 14.91 | AP8: =AB8*I8+($A$4-80)*AI8*$A$8/1000 -> 14.645 | AQ8: =AC8*K8+($A$4-80)*AJ8*$A$8/1000 -> 14.38 | AR8: =AD8*M8+($A$4-80)*AK8*$A$8/1000 -> 13.82 | AS8: =AE8*O8+($A$4-80)*AL8*$A$8/1000 -> 13.22
B9: 67 | C9: 29.71 | D9: 19.71 | E9: 28.42 | F9: =IF(AN9>E9,E9,AN9) -> 19.23 | G9: =T9*$G$13 -> 27.05 | H9: =IF(AO9>G9,G9,AO9) -> 18.72 | I9: 26.31 | J9: =IF(AP9>I9,I9,AP9) -> 18.455 | K9: 25.57 | L9: =IF(AQ9>K9,K9,AQ9) -> 18.19 | M9: 23.96 | N9: =IF(AR9>M9,M9,AR9) -> 17.6 | O9: 22.21 | P9: =IF(AS9>O9,O9,AS9) -> 16.98 | R9: 1.084306569 | S9: 1.037226277 | T9: 0.9872262774 | U9: 0.9602189781 | V9: 0.9332116788 | W9: 0.8744525547 | X9: 0.8105839416 | Y9: 0.6634129923 | Z9: 0.6766361717 | AA9: 0.692051756 | AB9: 0.7014443177 | AC9: 0.7113805241 | AD9: 0.734557596 | AE9: 0.7645204863 | AF9: 0.835 | AG9: 0.835 | AH9: 0.835 | AI9: 0.835 | AJ9: 0.835 | AK9: 0.835 | AL9: 0.835 | AM9: =Y9*C9+($A$4-80)*AF9*$A$8/1000 -> 19.71 | AN9: =Z9*E9+($A$4-80)*AG9*$A$8/1000 -> 19.23 | AO9: =AA9*G9+($A$4-80)*AH9*$A$8/1000 -> 18.72 | AP9: =AB9*I9+($A$4-80)*AI9*$A$8/1000 -> 18.455 | AQ9: =AC9*K9+($A$4-80)*AJ9*$A$8/1000 -> 18.19 | AR9: =AD9*M9+($A$4-80)*AK9*$A$8/1000 -> 17.6 | AS9: =AE9*O9+($A$4-80)*AL9*$A$8/1000 -> 16.98
B10: 62 | C10: 27.34 | D10: 23.5 | E10: 26.18 | F10: 22.98 | G10: =T10*$G$13 -> 24.98 | H10: 24.83 | I10: 24.4 | J10: 24.325 | K10: 23.82 | L10: 23.82 | M10: 22.57 | N10: 22.57 | O10: 21.19 | P10: 21.19 | R10: 0.997810219 | S10: 0.9554744526 | T10: 0.9116788321 | U10: 0.8905109489 | V10: 0.8693430657 | W10: 0.8237226277 | X10: 0.7733576642 | Y10: 0.8595464521 | Z10: 0.8777692895 | AA10: 0.9939951962 | AB10: 0.9969262295 | AC10: 1 | AD10: 1 | AE10: 1 | AF10: 0.835 | AG10: 0.835 | AH10: 0.835 | AI10: 0.835 | AJ10: 0.835 | AK10: 0.835 | AL10: 0.835 | AM10: 23.5 | AN10: =Z10*E10+($A$4-80)*AG10*$A$8/1000 -> 22.98 | AO10: =AA10*G10+($A$4-80)*AH10*$A$8/1000 -> 24.83 | AP10: 24.325 | AQ10: 23.82 | AR10: 22.57 | AS10: 21.19
B11: 57 | C11: 26.95 | D11: 26.95 | E11: 25.98 | F11: 25.98 | G11: =T11*$G$13 -> 24.93 | H11: 24.93 | I11: 24.36 | J11: 24.36 | K11: 23.79 | L11: 23.79 | M11: 22.54 | N11: 22.54 | O11: 21.16 | P11: 21.16 | R11: 0.9835766423 | S11: 0.9481751825 | T11: 0.9098540146 | U11: 0.8890510949 | V11: 0.8682481752 | W11: 0.8226277372 | X11: 0.7722627737 | Y11: 1 | Z11: 1 | AA11: 1 | AB11: 1 | AC11: 1 | AD11: 1 | AE11: 1 | AF11: 0.835 | AG11: 0.835 | AH11: 0.835 | AI11: 0.835 | AJ11: 0.835 | AK11: 0.835 | AL11: 0.835 | AM11: 26.95 | AN11: =Z11*E11+($A$4-80)*AG11*$A$8/1000 -> 25.98 | AO11: =AA11*G11+($A$4-80)*AH11*$A$8/1000 -> 24.93 | AP11: =AB11*I11+($A$4-80)*AI11*$A$8/1000 -> 24.36 | AQ11: 23.79 | AR11: 22.54 | AS11: 21.16
A12: 1000 | B12: 72 | C12: 32.88 | D12: 16.64 | E12: 31.52 | F12: 16.19 | G12: =T12*$G$13 -> 29.97 | H12: 15.69 | I12: 29.15 | J12: 15.425 | K12: 28.33 | L12: 15.16 | M12: 26.55 | N12: 14.59 | O12: 24.63 | P12: 13.98 | R12: 1.2 | S12: 1.150364964 | T12: 1.09379562 | U12: 1.063868613 | V12: 1.033941606 | W12: 0.9689781022 | X12: 0.8989051095 | Y12: 0.5060827251 | Z12: 0.513642132 | AA12: 0.5235235235 | AB12: 0.5291595197 | AC12: 0.535121779 | AD12: 0.5495291902 | AE12: 0.5676004872 | AF12: 0.835 | AG12: 0.835 | AH12: 0.835 | AI12: 0.835 | AJ12: 0.835 | AK12: 0.835 | AL12: 0.835 | AM12: =Y12*C12+($A$4-80)*AF12*$A$12/1000 -> 16.64 | AN12: =Z12*E12+($A$4-80)*AG12*$A$12/1000 -> 16.19 | AO12: =AA12*G12+($A$4-80)*AH12*$A$12/1000 -> 15.69 | AP12: =AB12*I12+($A$4-80)*AI12*$A$12/1000 -> 15.425 | AQ12: =AC12*K12+($A$4-80)*AJ12*$A$12/1000 -> 15.16 | AR12: =AD12*M12+($A$4-80)*AK12*$A$12/1000 -> 14.59 | AS12: =AE12*O12+($A$4-80)*AL12*$A$12/1000 -> 13.98
B13: 67 | C13: 30.13 | D13: 20.99 | E13: 28.82 | F13: 20.52 | G13: 27.4 | H13: 20 | I13: 26.635 | J13: 19.725 | K13: 25.87 | L13: 19.45 | M13: 24.23 | N13: 18.86 | O13: 22.45 | P13: 18.22 | R13: 1.099635036 | S13: 1.051824818 | T13: 1 | U13: 0.972080292 | V13: 0.9441605839 | W13: 0.8843065693 | X13: 0.8193430657 | Y13: 0.6966478593 | Z13: 0.7120055517 | AA13: 0.7299270073 | AB13: 0.7405669232 | AC13: 0.7518361036 | AD13: 0.7783739166 | AE13: 0.8115812918 | AF13: 0.835 | AG13: 0.835 | AH13: 0.835 | AI13: 0.835 | AJ13: 0.835 | AK13: 0.835 | AL13: 0.835 | AM13: =Y13*C13+($A$4-80)*AF13*$A$12/1000 -> 20.99 | AN13: =Z13*E13+($A$4-80)*AG13*$A$12/1000 -> 20.52 | AO13: =AA13*G13+($A$4-80)*AH13*$A$12/1000 -> 20 | AP13: =AB13*I13+($A$4-80)*AI13*$A$12/1000 -> 19.725 | AQ13: =AC13*K13+($A$4-80)*AJ13*$A$12/1000 -> 19.45 | AR13: =AD13*M13+($A$4-80)*AK13*$A$12/1000 -> 18.86 | AS13: =AE13*O13+($A$4-80)*AL13*$A$12/1000 -> 18.22
B14: 62 | C14: 27.99 | D14: 27.87 | E14: 26.94 | F14: 26.94 | G14: =T14*$G$13 -> 25.83 | H14: 25.83 | I14: 25.225 | J14: 25.225 | K14: 24.62 | L14: 24.62 | M14: 23.3 | N14: 23.3 | O14: 21.85 | P14: 21.85 | R14: 1.021532847 | S14: 0.9832116788 | T14: 0.9427007299 | U14: 0.920620438 | V14: 0.898540146 | W14: 0.8503649635 | X14: 0.7974452555 | Y14: 0.9957127546 | Z14: 1 | AA14: 1 | AB14: 1 | AC14: 1 | AD14: 1 | AE14: 1 | AF14: 0.835 | AG14: 0.835 | AH14: 0.835 | AI14: 0.835 | AJ14: 0.835 | AK14: 0.835 | AL14: 0.835 | AM14: 27.87 | AN14: =Z14*E14+($A$4-80)*AG14*$A$12/1000 -> 26.94 | AO14: =AA14*G14+($A$4-80)*AH14*$A$12/1000 -> 25.83 | AP14: 25.225 | AQ14: 24.62 | AR14: 23.3 | AS14: 21.85
B15: 57 | C15: 27.95 | D15: 27.95 | E15: 26.91 | F15: 26.91 | G15: 25.8 | H15: 25.8 | I15: 25.195 | J15: 25.195 | K15: 24.59 | L15: 24.59 | M15: 23.27 | N15: 23.27 | O15: 21.82 | P15: 21.82 | R15: 1.020072993 | S15: 0.9821167883 | T15: 0.9416058394 | U15: 0.9195255474 | V15: 0.8974452555 | W15: 0.849270073 | X15: 0.796350365 | Y15: 1 | Z15: 1 | AA15: 1 | AB15: 1 | AC15: 1 | AD15: 1 | AE15: 1 | AF15: 0.835 | AG15: 0.835 | AH15: 0.835 | AI15: 0.835 | AJ15: 0.835 | AK15: 0.835 | AL15: 0.835 | AM15: 27.95 | AN15: =Z15*E15+($A$4-80)*AG15*$A$12/1000 -> 26.91 | AO15: =AA15*G15+($A$4-80)*AH15*$A$12/1000 -> 25.8 | AP15: 25.195 | AQ15: 24.59 | AR15: 23.27 | AS15: 21.82
A16: 1125 | B16: 72 | C16: 33.18 | D16: 17.39 | E16: 31.78 | F16: 16.93 | G16: 30.21 | H16: 16.43 | I16: 29.37 | J16: 16.16 | K16: 28.53 | L16: 15.89 | M16: 26.7 | N16: 15.32 | O16: 24.74 | P16: 14.7 | R16: 1.210948905 | S16: 1.159854015 | T16: 1.102554745 | U16: 1.07189781 | V16: 1.041240876 | W16: 0.9744525547 | X16: 0.902919708 | Y16: 0.5241109102 | Z16: 0.5327249843 | AA16: 0.5438596491 | AB16: 0.5502213143 | AC16: 0.5569575885 | AD16: 0.5737827715 | AE16: 0.5941794665 | AF16: 0.835 | AG16: 0.835 | AH16: 0.835 | AI16: 0.835 | AJ16: 0.835 | AK16: 0.835 | AL16: 0.835 | AM16: =Y16*C16+($A$4-80)*AF16*$A$16/1000 -> 17.39 | AN16: =Z16*E16+($A$4-80)*AG16*$A$16/1000 -> 16.93 | AO16: =AA16*G16+($A$4-80)*AH16*$A$16/1000 -> 16.43 | AP16: =AB16*I16+($A$4-80)*AI16*$A$16/1000 -> 16.16 | AQ16: =AC16*K16+($A$4-80)*AJ16*$A$16/1000 -> 15.89 | AR16: =AD16*M16+($A$4-80)*AK16*$A$16/1000 -> 15.32 | AS16: =AE16*O16+($A$4-80)*AL16*$A$16/1000 -> 14.7
B17: 67 | C17: 30.44 | D17: 22.22 | E17: 29.11 | F17: 21.74 | G17: 27.65 | H17: 21.21 | I17: 26.875 | J17: 20.93 | K17: 26.1 | L17: 20.65 | M17: 24.43 | N17: 20.04 | O17: 22.64 | P17: 19.37 | R17: 1.110948905 | S17: 1.062408759 | T17: 1.009124088 | U17: 0.9808394161 | V17: 0.9525547445 | W17: 0.8916058394 | X17: 0.8262773723 | Y17: 0.7299605782 | Z17: 0.7468223978 | AA17: 0.7670886076 | AB17: 0.7787906977 | AC17: 0.7911877395 | AD17: 0.8203029063 | AE17: 0.855565371 | AF17: 0.835 | AG17: 0.835 | AH17: 0.835 | AI17: 0.835 | AJ17: 0.835 | AK17: 0.835 | AL17: 0.835 | AM17: =Y17*C17+($A$4-80)*AF17*$A$16/1000 -> 22.22 | AN17: =Z17*E17+($A$4-80)*AG17*$A$16/1000 -> 21.74 | AO17: =AA17*G17+($A$4-80)*AH17*$A$16/1000 -> 21.21 | AP17: =AB17*I17+($A$4-80)*AI17*$A$16/1000 -> 20.93 | AQ17: =AC17*K17+($A$4-80)*AJ17*$A$16/1000 -> 20.65 | AR17: =AD17*M17+($A$4-80)*AK17*$A$16/1000 -> 20.04 | AS17: =AE17*O17+($A$4-80)*AL17*$A$16/1000 -> 19.37
B18: 62 | C18: 28.79 | D18: 28.79 | E18: 27.7 | F18: 27.7 | G18: 26.53 | H18: 26.53 | I18: 25.895 | J18: 25.895 | K18: 25.26 | L18: 25.26 | M18: 23.88 | N18: 23.88 | O18: 22.37 | P18: 22.37 | R18: 1.050729927 | S18: 1.010948905 | T18: 0.9682481752 | U18: 0.9450729927 | V18: 0.9218978102 | W18: 0.8715328467 | X18: 0.8164233577 | Y18: 1 | Z18: 1 | AA18: 1 | AB18: 1 | AC18: 1 | AD18: 1 | AE18: 1 | AF18: 0.835 | AG18: 0.835 | AH18: 0.835 | AI18: 0.835 | AJ18: 0.835 | AK18: 0.835 | AL18: 0.835 | AM18: 28.79 | AN18: =Z18*E18+($A$4-80)*AG18*$A$16/1000 -> 27.7 | AO18: =AA18*G18+($A$4-80)*AH18*$A$16/1000 -> 26.53 | AP18: 25.895 | AQ18: 25.26 | AR18: 23.88 | AS18: 22.37
B19: 57 | C19: 28.76 | D19: 28.76 | E19: 27.67 | F19: 27.67 | G19: 26.5 | H19: 26.5 | I19: 25.87 | J19: 25.87 | K19: 25.24 | L19: 25.24 | M19: 23.85 | N19: 23.85 | O19: 22.34 | P19: 22.34 | R19: 1.049635036 | S19: 1.009854015 | T19: 0.9671532847 | U19: 0.9441605839 | V19: 0.9211678832 | W19: 0.8704379562 | X19: 0.8153284672 | Y19: 1 | Z19: 1 | AA19: 1 | AB19: 1 | AC19: 1 | AD19: 1 | AE19: 1 | AF19: 0.835 | AG19: 0.835 | AH19: 0.835 | AI19: 0.835 | AJ19: 0.835 | AK19: 0.835 | AL19: 0.835 | AM19: 28.76 | AN19: =Z19*E19+($A$4-80)*AG19*$A$16/1000 -> 27.67 | AO19: =AA19*G19+($A$4-80)*AH19*$A$16/1000 -> 26.5 | AP19: 25.87 | AQ19: 25.24 | AR19: 23.85 | AS19: 22.34

Sheet CA13NA_36 (hidden)
A2: CA13NA_36
A3: Evaporator Air | C3: Condenser Entering Air Temperature ˚F
A4: 80 | B4: °F DB | C4: 75 | E4: 85 | G4: 95 | I4: 100 | K4: 105 | M4: 115 | O4: 125
A5: CFM | B5: EWB† ˚F | C5: Capacity Mbtuh | E5: Capacity Mbtuh | G5: Capacity Mbtuh | I5: Capacity Mbtuh | K5: Capacity Mbtuh | M5: Capacity Mbtuh | O5: Capacity Mbtuh
C6: Total | D6: Sens. | E6: Total | F6: Sens. | G6: Total | H6: Sens. | I6: Total | J6: Sens. | K6: Total | L6: Sens. | M6: Total | N6: Sens. | O6: Total | P6: Sens.
R7: Total Factors | Y7: Sens. % | AF7: IDB Adj | AM7: Sens Calc
A8: 1050 | B8: 72 | C8: =R8*$G$13 -> 40.43 | D8: =IF(AM8>C8,C8,AM8) -> 20.39 | E8: =S8*$G$13 -> 38.69 | F8: =IF(AN8>E8,E8,AN8) -> 19.78 | G8: =T8*$G$13 -> 36.78 | H8: =IF(AO8>G8,G8,AO8) -> 19.11 | I8: =U8*$G$13 -> 35.72 | J8: =IF(AP8>I8,I8,AP8) -> 18.745 | K8: =V8*$G$13 -> 34.66 | L8: =IF(AQ8>K8,K8,AQ8) -> 18.38 | M8: =W8*$G$13 -> 32.3 | N8: =IF(AR8>M8,M8,AR8) -> 17.57 | O8: =X8*$G$13 -> 29.68 | P8: =IF(AS8>O8,O8,AS8) -> 16.69 | R8: 1.189117647 | S8: 1.137941176 | T8: 1.081764706 | U8: 1.050588235 | V8: 1.019411765 | W8: 0.95 | X8: 0.8729411765 | Y8: 0.504328469 | Z8: 0.5112432153 | AA8: 0.5195758564 | AB8: 0.5247760358 | AC8: 0.5302942874 | AD8: 0.5439628483 | AE8: 0.5623315364 | AF8: 0.835 | AG8: 0.835 | AH8: 0.835 | AI8: 0.835 | AJ8: 0.835 | AK8: 0.835 | AL8: 0.835 | AM8: =Y8*C8+($A$4-80)*AF8*$A$8/1000 -> 20.39 | AN8: =Z8*E8+($A$4-80)*AG8*$A$8/1000 -> 19.78 | AO8: =AA8*G8+($A$4-80)*AH8*$A$8/1000 -> 19.11 | AP8: =AB8*I8+($A$4-80)*AI8*$A$8/1000 -> 18.745 | AQ8: =AC8*K8+($A$4-80)*AJ8*$A$8/1000 -> 18.38 | AR8: =AD8*M8+($A$4-80)*AK8*$A$8/1000 -> 17.57 | AS8: =AE8*O8+($A$4-80)*AL8*$A$8/1000 -> 16.69
B9: 67 | C9: 36.96 | D9: 25.25 | E9: 35.34 | F9: =IF(AN9>E9,E9,AN9) -> 24.61 | G9: =T9*$G$13 -> 33.57 | H9: =IF(AO9>G9,G9,AO9) -> 23.93 | I9: 32.59 | J9: =IF(AP9>I9,I9,AP9) -> 23.56 | K9: 31.61 | L9: =IF(AQ9>K9,K9,AQ9) -> 23.19 | M9: 29.49 | N9: =IF(AR9>M9,M9,AR9) -> 22.39 | O9: 27.07 | P9: =IF(AS9>O9,O9,AS9) -> 21.48 | R9: 1.087058824 | S9: 1.039411765 | T9: 0.9873529412 | U9: 0.9585294118 | V9: 0.9297058824 | W9: 0.8673529412 | X9: 0.7961764706 | Y9: 0.6831709957 | Z9: 0.6963780419 | AA9: 0.7128388442 | AB9: 0.7229211415 | AC9: 0.7336285985 | AD9: 0.7592404205 | AE9: 0.7934983376 | AF9: 0.835 | AG9: 0.835 | AH9: 0.835 | AI9: 0.835 | AJ9: 0.835 | AK9: 0.835 | AL9: 0.835 | AM9: =Y9*C9+($A$4-80)*AF9*$A$8/1000 -> 25.25 | AN9: =Z9*E9+($A$4-80)*AG9*$A$8/1000 -> 24.61 | AO9: =AA9*G9+($A$4-80)*AH9*$A$8/1000 -> 23.93 | AP9: =AB9*I9+($A$4-80)*AI9*$A$8/1000 -> 23.56 | AQ9: =AC9*K9+($A$4-80)*AJ9*$A$8/1000 -> 23.19 | AR9: =AD9*M9+($A$4-80)*AK9*$A$8/1000 -> 22.39 | AS9: =AE9*O9+($A$4-80)*AL9*$A$8/1000 -> 21.48
B10: 62 | C10: 33.94 | D10: 30.03 | E10: 32.49 | F10: 29.36 | G10: =T10*$G$13 -> 30.97 | H10: 28.62 | I10: 30.185 | J10: 29.01 | K10: 29.4 | L10: 29.4 | M10: 27.75 | N10: 27.75 | O10: 25.84 | P10: 25.84 | R10: 0.9982352941 | S10: 0.9555882353 | T10: 0.9108823529 | U10: 0.8877941176 | V10: 0.8647058824 | W10: 0.8161764706 | X10: 0.76 | Y10: 0.8847967001 | Z10: 0.9036626654 | AA10: 0.9241201162 | AB10: 0.9610733808 | AC10: 1 | AD10: 1 | AE10: 1 | AF10: 0.835 | AG10: 0.835 | AH10: 0.835 | AI10: 0.835 | AJ10: 0.835 | AK10: 0.835 | AL10: 0.835 | AM10: 30.03 | AN10: =Z10*E10+($A$4-80)*AG10*$A$8/1000 -> 29.36 | AO10: =AA10*G10+($A$4-80)*AH10*$A$8/1000 -> 28.62 | AP10: 29.01 | AQ10: 29.4 | AR10: 27.75 | AS10: 25.84
B11: 57 | C11: 33.34 | D11: 33.34 | E11: 32.14 | F11: 32.14 | G11: =T11*$G$13 -> 30.83 | H11: 30.83 | I11: 30.095 | J11: 30.095 | K11: 29.36 | L11: 29.36 | M11: 27.72 | N11: 27.72 | O11: 25.81 | P11: 25.81 | R11: 0.9805882353 | S11: 0.9452941176 | T11: 0.9067647059 | U11: 0.8851470588 | V11: 0.8635294118 | W11: 0.8152941176 | X11: 0.7591176471 | Y11: 1 | Z11: 1 | AA11: 1 | AB11: 1 | AC11: 1 | AD11: 1 | AE11: 1 | AF11: 0.835 | AG11: 0.835 | AH11: 0.835 | AI11: 0.835 | AJ11: 0.835 | AK11: 0.835 | AL11: 0.835 | AM11: 33.34 | AN11: =Z11*E11+($A$4-80)*AG11*$A$8/1000 -> 32.14 | AO11: =AA11*G11+($A$4-80)*AH11*$A$8/1000 -> 30.83 | AP11: =AB11*I11+($A$4-80)*AI11*$A$8/1000 -> 30.095 | AQ11: 29.36 | AR11: 27.72 | AS11: 25.81
A12: 1200 | B12: 72 | C12: 40.98 | D12: 21.36 | E12: 39.2 | F12: 20.74 | G12: =T12*$G$13 -> 37.21 | H12: 20.06 | I12: 36.115 | J12: 19.69 | K12: 35.02 | L12: 19.32 | M12: 32.59 | N12: 18.5 | O12: 29.89 | P12: 17.61 | R12: 1.205294118 | S12: 1.152941176 | T12: 1.094411765 | U12: 1.062205882 | V12: 1.03 | W12: 0.9585294118 | X12: 0.8791176471 | Y12: 0.5212298682 | Z12: 0.5290816327 | AA12: 0.5391023918 | AB12: 0.5452028243 | AC12: 0.5516847516 | AD12: 0.567658791 | AE12: 0.5891602543 | AF12: 0.835 | AG12: 0.835 | AH12: 0.835 | AI12: 0.835 | AJ12: 0.835 | AK12: 0.835 | AL12: 0.835 | AM12: =Y12*C12+($A$4-80)*AF12*$A$12/1000 -> 21.36 | AN12: =Z12*E12+($A$4-80)*AG12*$A$12/1000 -> 20.74 | AO12: =AA12*G12+($A$4-80)*AH12*$A$12/1000 -> 20.06 | AP12: =AB12*I12+($A$4-80)*AI12*$A$12/1000 -> 19.69 | AQ12: =AC12*K12+($A$4-80)*AJ12*$A$12/1000 -> 19.32 | AR12: =AD12*M12+($A$4-80)*AK12*$A$12/1000 -> 18.5 | AS12: =AE12*O12+($A$4-80)*AL12*$A$12/1000 -> 17.61
B13: 67 | C13: 37.5 | D13: 26.82 | E13: 35.82 | F13: 26.18 | G13: 34 | H13: 25.5 | I13: 32.99 | J13: 25.12 | K13: 31.98 | L13: 24.74 | M13: 29.79 | N13: 23.93 | O13: 27.32 | P13: 23 | R13: 1.102941176 | S13: 1.053529412 | T13: 1 | U13: 0.9702941176 | V13: 0.9405882353 | W13: 0.8761764706 | X13: 0.8035294118 | Y13: 0.7152 | Z13: 0.7308766052 | AA13: 0.75 | AB13: 0.7614428615 | AC13: 0.7736085053 | AD13: 0.8032896945 | AE13: 0.8418740849 | AF13: 0.835 | AG13: 0.835 | AH13: 0.835 | AI13: 0.835 | AJ13: 0.835 | AK13: 0.835 | AL13: 0.835 | AM13: =Y13*C13+($A$4-80)*AF13*$A$12/1000 -> 26.82 | AN13: =Z13*E13+($A$4-80)*AG13*$A$12/1000 -> 26.18 | AO13: =AA13*G13+($A$4-80)*AH13*$A$12/1000 -> 25.5 | AP13: =AB13*I13+($A$4-80)*AI13*$A$12/1000 -> 25.12 | AQ13: =AC13*K13+($A$4-80)*AJ13*$A$12/1000 -> 24.74 | AR13: =AD13*M13+($A$4-80)*AK13*$A$12/1000 -> 23.93 | AS13: =AE13*O13+($A$4-80)*AL13*$A$12/1000 -> 23
B14: 62 | C14: 34.69 | D14: 32.12 | E14: 33.33 | F14: 33.33 | G14: =T14*$G$13 -> 31.94 | H14: 31.94 | I14: 31.13 | J14: 31.13 | K14: 30.32 | L14: 30.32 | M14: 28.63 | N14: 28.63 | O14: 26.6 | P14: 26.6 | R14: 1.020294118 | S14: 0.9802941176 | T14: 0.9394117647 | U14: 0.9155882353 | V14: 0.8917647059 | W14: 0.8420588235 | X14: 0.7823529412 | Y14: 0.9259152494 | Z14: 1 | AA14: 1 | AB14: 1 | AC14: 1 | AD14: 1 | AE14: 1 | AF14: 0.835 | AG14: 0.835 | AH14: 0.835 | AI14: 0.835 | AJ14: 0.835 | AK14: 0.835 | AL14: 0.835 | AM14: 32.12 | AN14: =Z14*E14+($A$4-80)*AG14*$A$12/1000 -> 33.33 | AO14: =AA14*G14+($A$4-80)*AH14*$A$12/1000 -> 31.94 | AP14: 31.13 | AQ14: 30.32 | AR14: 28.63 | AS14: 26.6
B15: 57 | C15: 34.58 | D15: 34.58 | E15: 33.28 | F15: 33.28 | G15: 31.9 | H15: 31.9 | I15: 31.095 | J15: 31.095 | K15: 30.29 | L15: 30.29 | M15: 28.6 | N15: 28.6 | O15: 26.57 | P15: 26.57 | R15: 1.017058824 | S15: 0.9788235294 | T15: 0.9382352941 | U15: 0.9145588235 | V15: 0.8908823529 | W15: 0.8411764706 | X15: 0.7814705882 | Y15: 1 | Z15: 1 | AA15: 1 | AB15: 1 | AC15: 1 | AD15: 1 | AE15: 1 | AF15: 0.835 | AG15: 0.835 | AH15: 0.835 | AI15: 0.835 | AJ15: 0.835 | AK15: 0.835 | AL15: 0.835 | AM15: 34.58 | AN15: =Z15*E15+($A$4-80)*AG15*$A$12/1000 -> 33.28 | AO15: =AA15*G15+($A$4-80)*AH15*$A$12/1000 -> 31.9 | AP15: 31.095 | AQ15: 30.29 | AR15: 28.6 | AS15: 26.57
A16: 1350 | B16: 72 | C16: 41.37 | D16: 22.26 | E16: 39.55 | F16: 21.64 | G16: 37.51 | H16: 20.95 | I16: 36.39 | J16: 20.58 | K16: 35.27 | L16: 20.21 | M16: 32.76 | N16: 19.38 | O16: 30.01 | P16: 18.47 | R16: 1.216764706 | S16: 1.163235294 | T16: 1.103235294 | U16: 1.070294118 | V16: 1.037352941 | W16: 0.9635294118 | X16: 0.8826470588 | Y16: 0.538071066 | Z16: 0.5471554994 | AA16: 0.5585177286 | AB16: 0.5655399835 | AC16: 0.5730082223 | AD16: 0.5915750916 | AE16: 0.6154615128 | AF16: 0.835 | AG16: 0.835 | AH16: 0.835 | AI16: 0.835 | AJ16: 0.835 | AK16: 0.835 | AL16: 0.835 | AM16: =Y16*C16+($A$4-80)*AF16*$A$16/1000 -> 22.26 | AN16: =Z16*E16+($A$4-80)*AG16*$A$16/1000 -> 21.64 | AO16: =AA16*G16+($A$4-80)*AH16*$A$16/1000 -> 20.95 | AP16: =AB16*I16+($A$4-80)*AI16*$A$16/1000 -> 20.58 | AQ16: =AC16*K16+($A$4-80)*AJ16*$A$16/1000 -> 20.21 | AR16: =AD16*M16+($A$4-80)*AK16*$A$16/1000 -> 19.38 | AS16: =AE16*O16+($A$4-80)*AL16*$A$16/1000 -> 18.47
B17: 67 | C17: 37.9 | D17: 28.32 | E17: 36.17 | F17: 27.68 | G17: 34.31 | H17: 26.98 | I17: 33.285 | J17: 26.595 | K17: 32.26 | L17: 26.21 | M17: 30.01 | N17: 25.37 | O17: 27.52 | P17: 24.4 | R17: 1.114705882 | S17: 1.063823529 | T17: 1.009117647 | U17: 0.9789705882 | V17: 0.9488235294 | W17: 0.8826470588 | X17: 0.8094117647 | Y17: 0.7472295515 | Z17: 0.7652750899 | AA17: 0.7863596619 | AB17: 0.7990085624 | AC17: 0.8124612523 | AD17: 0.8453848717 | AE17: 0.886627907 | AF17: 0.835 | AG17: 0.835 | AH17: 0.835 | AI17: 0.835 | AJ17: 0.835 | AK17: 0.835 | AL17: 0.835 | AM17: =Y17*C17+($A$4-80)*AF17*$A$16/1000 -> 28.32 | AN17: =Z17*E17+($A$4-80)*AG17*$A$16/1000 -> 27.68 | AO17: =AA17*G17+($A$4-80)*AH17*$A$16/1000 -> 26.98 | AP17: =AB17*I17+($A$4-80)*AI17*$A$16/1000 -> 26.595 | AQ17: =AC17*K17+($A$4-80)*AJ17*$A$16/1000 -> 26.21 | AR17: =AD17*M17+($A$4-80)*AK17*$A$16/1000 -> 25.37 | AS17: =AE17*O17+($A$4-80)*AL17*$A$16/1000 -> 24.4
B18: 62 | C18: 35.63 | D18: 35.63 | E18: 34.28 | F18: 34.28 | G18: 32.8 | H18: 32.8 | I18: 31.96 | J18: 31.96 | K18: 31.12 | L18: 31.12 | M18: 29.31 | N18: 29.31 | O18: 27.19 | P18: 27.19 | R18: 1.047941176 | S18: 1.008235294 | T18: 0.9647058824 | U18: 0.94 | V18: 0.9152941176 | W18: 0.8620588235 | X18: 0.7997058824 | Y18: 1 | Z18: 1 | AA18: 1 | AB18: 1 | AC18: 1 | AD18: 1 | AE18: 1 | AF18: 0.835 | AG18: 0.835 | AH18: 0.835 | AI18: 0.835 | AJ18: 0.835 | AK18: 0.835 | AL18: 0.835 | AM18: 35.63 | AN18: =Z18*E18+($A$4-80)*AG18*$A$16/1000 -> 34.28 | AO18: =AA18*G18+($A$4-80)*AH18*$A$16/1000 -> 32.8 | AP18: 31.96 | AQ18: 31.12 | AR18: 29.31 | AS18: 27.19
B19: 57 | C19: 35.59 | D19: 35.59 | E19: 34.24 | F19: 34.24 | G19: 32.76 | H19: 32.76 | I19: 31.925 | J19: 31.925 | K19: 31.09 | L19: 31.09 | M19: 29.28 | N19: 29.28 | O19: 27.17 | P19: 27.17 | R19: 1.046764706 | S19: 1.007058824 | T19: 0.9635294118 | U19: 0.9389705882 | V19: 0.9144117647 | W19: 0.8611764706 | X19: 0.7991176471 | Y19: 1 | Z19: 1 | AA19: 1 | AB19: 1 | AC19: 1 | AD19: 1 | AE19: 1 | AF19: 0.835 | AG19: 0.835 | AH19: 0.835 | AI19: 0.835 | AJ19: 0.835 | AK19: 0.835 | AL19: 0.835 | AM19: 35.59 | AN19: =Z19*E19+($A$4-80)*AG19*$A$16/1000 -> 34.24 | AO19: =AA19*G19+($A$4-80)*AH19*$A$16/1000 -> 32.76 | AP19: 31.925 | AQ19: 31.09 | AR19: 29.28 | AS19: 27.17

Sheet CA13NA_42 (hidden)
A2: CA13NA_42
A3: Evaporator Air | C3: Condenser Entering Air Temperature ˚F
A4: 80 | B4: °F DB | C4: 75 | E4: 85 | G4: 95 | I4: 100 | K4: 105 | M4: 115 | O4: 125
A5: CFM | B5: EWB† ˚F | C5: Capacity Mbtuh | E5: Capacity Mbtuh | G5: Capacity Mbtuh | I5: Capacity Mbtuh | K5: Capacity Mbtuh | M5: Capacity Mbtuh | O5: Capacity Mbtuh
C6: Total | D6: Sens. | E6: Total | F6: Sens. | G6: Total | H6: Sens. | I6: Total | J6: Sens. | K6: Total | L6: Sens. | M6: Total | N6: Sens. | O6: Total | P6: Sens.
R7: Total Factors | Y7: Sens. % | AF7: IDB Adj | AM7: Sens Calc
A8: 1225 | B8: 72 | C8: =R8*$G$13 -> 49.15 | D8: =IF(AM8>C8,C8,AM8) -> 24.36 | E8: =S8*$G$13 -> 46.87 | F8: =IF(AN8>E8,E8,AN8) -> 23.54 | G8: =T8*$G$13 -> 44.48 | H8: =IF(AO8>G8,G8,AO8) -> 22.7 | I8: =U8*$G$13 -> 43.2 | J8: =IF(AP8>I8,I8,AP8) -> 22.255 | K8: =V8*$G$13 -> 41.92 | L8: =IF(AQ8>K8,K8,AQ8) -> 21.81 | M8: =W8*$G$13 -> 39.19 | N8: =IF(AR8>M8,M8,AR8) -> 20.87 | O8: =X8*$G$13 -> 36.25 | P8: =IF(AS8>O8,O8,AS8) -> 19.87 | R8: 1.198780488 | S8: 1.143170732 | T8: 1.084878049 | U8: 1.053658537 | V8: 1.022439024 | W8: 0.9558536585 | X8: 0.8841463415 | Y8: 0.4956256358 | Z8: 0.502240239 | AA8: 0.5103417266 | AB8: 0.515162037 | AC8: 0.5202767176 | AD8: 0.5325338096 | AE8: 0.548137931 | AF8: 0.835 | AG8: 0.835 | AH8: 0.835 | AI8: 0.835 | AJ8: 0.835 | AK8: 0.835 | AL8: 0.835 | AM8: =Y8*C8+($A$4-80)*AF8*$A$8/1000 -> 24.36 | AN8: =Z8*E8+($A$4-80)*AG8*$A$8/1000 -> 23.54 | AO8: =AA8*G8+($A$4-80)*AH8*$A$8/1000 -> 22.7 | AP8: =AB8*I8+($A$4-80)*AI8*$A$8/1000 -> 22.255 | AQ8: =AC8*K8+($A$4-80)*AJ8*$A$8/1000 -> 21.81 | AR8: =AD8*M8+($A$4-80)*AK8*$A$8/1000 -> 20.87 | AS8: =AE8*O8+($A$4-80)*AL8*$A$8/1000 -> 19.87
B9: 67 | C9: 44.68 | D9: 29.83 | E9: 42.6 | F9: =IF(AN9>E9,E9,AN9) -> 29.01 | G9: =T9*$G$13 -> 40.43 | H9: =IF(AO9>G9,G9,AO9) -> 28.16 | I9: 39.26 | J9: =IF(AP9>I9,I9,AP9) -> 27.715 | K9: 38.09 | L9: =IF(AQ9>K9,K9,AQ9) -> 27.27 | M9: 35.61 | N9: =IF(AR9>M9,M9,AR9) -> 26.33 | O9: 32.95 | P9: =IF(AS9>O9,O9,AS9) -> 25.33 | R9: 1.089756098 | S9: 1.03902439 | T9: 0.986097561 | U9: 0.9575609756 | V9: 0.9290243902 | W9: 0.8685365854 | X9: 0.8036585366 | Y9: 0.6676365264 | Z9: 0.6809859155 | AA9: 0.6965124907 | AB9: 0.7059347937 | AC9: 0.7159359412 | AD9: 0.7393990452 | AE9: 0.7687405159 | AF9: 0.835 | AG9: 0.835 | AH9: 0.835 | AI9: 0.835 | AJ9: 0.835 | AK9: 0.835 | AL9: 0.835 | AM9: =Y9*C9+($A$4-80)*AF9*$A$8/1000 -> 29.83 | AN9: =Z9*E9+($A$4-80)*AG9*$A$8/1000 -> 29.01 | AO9: =AA9*G9+($A$4-80)*AH9*$A$8/1000 -> 28.16 | AP9: =AB9*I9+($A$4-80)*AI9*$A$8/1000 -> 27.715 | AQ9: =AC9*K9+($A$4-80)*AJ9*$A$8/1000 -> 27.27 | AR9: =AD9*M9+($A$4-80)*AK9*$A$8/1000 -> 26.33 | AS9: =AE9*O9+($A$4-80)*AL9*$A$8/1000 -> 25.33
B10: 62 | C10: 40.75 | D10: 35.25 | E10: 38.92 | F10: 34.42 | G10: =T10*$G$13 -> 37.03 | H10: 33.54 | I10: 36.04 | J10: 34.135 | K10: 35.05 | L10: 34.73 | M10: 33.15 | N10: 33.15 | O10: 31.12 | P10: 31.12 | R10: 0.993902439 | S10: 0.9492682927 | T10: 0.9031707317 | U10: 0.8790243902 | V10: 0.8548780488 | W10: 0.8085365854 | X10: 0.7590243902 | Y10: 0.8650306748 | Z10: 0.8843782117 | AA10: 0.9057520929 | AB10: 0.9471420644 | AC10: 0.9908701854 | AD10: 1 | AE10: 1 | AF10: 0.835 | AG10: 0.835 | AH10: 0.835 | AI10: 0.835 | AJ10: 0.835 | AK10: 0.835 | AL10: 0.835 | AM10: 35.25 | AN10: =Z10*E10+($A$4-80)*AG10*$A$8/1000 -> 34.42 | AO10: =AA10*G10+($A$4-80)*AH10*$A$8/1000 -> 33.54 | AP10: 34.135 | AQ10: 34.73 | AR10: 33.15 | AS10: 31.12
B11: 57 | C11: 39.73 | D11: 39.73 | E11: 38.25 | F11: 38.25 | G11: =T11*$G$13 -> 36.67 | H11: 36.67 | I11: 35.815 | J11: 35.815 | K11: 34.96 | L11: 34.96 | M11: 33.11 | N11: 33.11 | O11: 31.08 | P11: 31.08 | R11: 0.9690243902 | S11: 0.9329268293 | T11: 0.8943902439 | U11: 0.8735365854 | V11: 0.8526829268 | W11: 0.8075609756 | X11: 0.7580487805 | Y11: 1 | Z11: 1 | AA11: 1 | AB11: 1 | AC11: 1 | AD11: 1 | AE11: 1 | AF11: 0.835 | AG11: 0.835 | AH11: 0.835 | AI11: 0.835 | AJ11: 0.835 | AK11: 0.835 | AL11: 0.835 | AM11: 39.73 | AN11: =Z11*E11+($A$4-80)*AG11*$A$8/1000 -> 38.25 | AO11: =AA11*G11+($A$4-80)*AH11*$A$8/1000 -> 36.67 | AP11: =AB11*I11+($A$4-80)*AI11*$A$8/1000 -> 35.815 | AQ11: 34.96 | AR11: 33.11 | AS11: 31.08
A12: 1400 | B12: 72 | C12: 49.96 | D12: 25.48 | E12: 47.58 | F12: 24.65 | G12: =T12*$G$13 -> 45.09 | H12: 23.79 | I12: 43.765 | J12: 23.335 | K12: 42.44 | L12: 22.88 | M12: 39.6 | N12: 21.92 | O12: 36.58 | P12: 20.91 | R12: 1.218536585 | S12: 1.160487805 | T12: 1.099756098 | U12: 1.067439024 | V12: 1.035121951 | W12: 0.9658536585 | X12: 0.892195122 | Y12: 0.5100080064 | Z12: 0.5180748214 | AA12: 0.5276114438 | AB12: 0.533188621 | AC12: 0.5391140434 | AD12: 0.5535353535 | AE12: 0.5716238382 | AF12: 0.835 | AG12: 0.835 | AH12: 0.835 | AI12: 0.835 | AJ12: 0.835 | AK12: 0.835 | AL12: 0.835 | AM12: =Y12*C12+($A$4-80)*AF12*$A$12/1000 -> 25.48 | AN12: =Z12*E12+($A$4-80)*AG12*$A$12/1000 -> 24.65 | AO12: =AA12*G12+($A$4-80)*AH12*$A$12/1000 -> 23.79 | AP12: =AB12*I12+($A$4-80)*AI12*$A$12/1000 -> 23.335 | AQ12: =AC12*K12+($A$4-80)*AJ12*$A$12/1000 -> 22.88 | AR12: =AD12*M12+($A$4-80)*AK12*$A$12/1000 -> 21.92 | AS12: =AE12*O12+($A$4-80)*AL12*$A$12/1000 -> 20.91
B13: 67 | C13: 45.44 | D13: 31.63 | E13: 43.28 | F13: 30.8 | G13: 41 | H13: 29.93 | I13: 39.8 | J13: 29.48 | K13: 38.6 | L13: 29.03 | M13: 36.04 | N13: 28.08 | O13: 33.31 | P13: 27.06 | R13: 1.108292683 | S13: 1.055609756 | T13: 1 | U13: 0.9707317073 | V13: 0.9414634146 | W13: 0.8790243902 | X13: 0.8124390244 | Y13: 0.6960827465 | Z13: 0.7116451017 | AA13: 0.73 | AB13: 0.7407035176 | AC13: 0.7520725389 | AD13: 0.7791342952 | AE13: 0.8123686581 | AF13: 0.835 | AG13: 0.835 | AH13: 0.835 | AI13: 0.835 | AJ13: 0.835 | AK13: 0.835 | AL13: 0.835 | AM13: =Y13*C13+($A$4-80)*AF13*$A$12/1000 -> 31.63 | AN13: =Z13*E13+($A$4-80)*AG13*$A$12/1000 -> 30.8 | AO13: =AA13*G13+($A$4-80)*AH13*$A$12/1000 -> 29.93 | AP13: =AB13*I13+($A$4-80)*AI13*$A$12/1000 -> 29.48 | AQ13: =AC13*K13+($A$4-80)*AJ13*$A$12/1000 -> 29.03 | AR13: =AD13*M13+($A$4-80)*AK13*$A$12/1000 -> 28.08 | AS13: =AE13*O13+($A$4-80)*AL13*$A$12/1000 -> 27.06
B14: 62 | C14: 41.71 | D14: 37.71 | E14: 39.87 | F14: 36.8 | G14: =T14*$G$13 -> 38.08 | H14: 38.08 | I14: 37.17 | J14: 37.17 | K14: 36.26 | L14: 36.26 | M14: 34.27 | N14: 34.27 | O14: 32.1 | P14: 32.1 | R14: 1.017317073 | S14: 0.9724390244 | T14: 0.9287804878 | U14: 0.9065853659 | V14: 0.8843902439 | W14: 0.8358536585 | X14: 0.7829268293 | Y14: 0.9040997363 | Z14: 0.9229997492 | AA14: 1 | AB14: 1 | AC14: 1 | AD14: 1 | AE14: 1 | AF14: 0.835 | AG14: 0.835 | AH14: 0.835 | AI14: 0.835 | AJ14: 0.835 | AK14: 0.835 | AL14: 0.835 | AM14: 37.71 | AN14: =Z14*E14+($A$4-80)*AG14*$A$12/1000 -> 36.8 | AO14: =AA14*G14+($A$4-80)*AH14*$A$12/1000 -> 38.08 | AP14: 37.17 | AQ14: 36.26 | AR14: 34.27 | AS14: 32.1
B15: 57 | C15: 41.33 | D15: 41.33 | E15: 39.74 | F15: 39.74 | G15: 38.04 | H15: 38.04 | I15: 37.125 | J15: 37.125 | K15: 36.21 | L15: 36.21 | M15: 34.23 | N15: 34.23 | O15: 32.06 | P15: 32.06 | R15: 1.00804878 | S15: 0.9692682927 | T15: 0.927804878 | U15: 0.9054878049 | V15: 0.8831707317 | W15: 0.8348780488 | X15: 0.7819512195 | Y15: 1 | Z15: 1 | AA15: 1 | AB15: 1 | AC15: 1 | AD15: 1 | AE15: 1 | AF15: 0.835 | AG15: 0.835 | AH15: 0.835 | AI15: 0.835 | AJ15: 0.835 | AK15: 0.835 | AL15: 0.835 | AM15: 41.33 | AN15: =Z15*E15+($A$4-80)*AG15*$A$12/1000 -> 39.74 | AO15: =AA15*G15+($A$4-80)*AH15*$A$12/1000 -> 38.04 | AP15: 37.125 | AQ15: 36.21 | AR15: 34.23 | AS15: 32.06
A16: 1575 | B16: 72 | C16: 50.59 | D16: 26.56 | E16: 48.13 | F16: 25.72 | G16: 45.56 | H16: 24.84 | I16: 44.185 | J16: 24.38 | K16: 42.81 | L16: 23.92 | M16: 39.9 | N16: 22.95 | O16: 36.8 | P16: 21.92 | R16: 1.233902439 | S16: 1.173902439 | T16: 1.111219512 | U16: 1.077682927 | V16: 1.044146341 | W16: 0.9731707317 | X16: 0.8975609756 | Y16: 0.5250049417 | Z16: 0.5343860378 | AA16: 0.545215101 | AB16: 0.551770963 | AC16: 0.5587479561 | AD16: 0.5751879699 | AE16: 0.5956521739 | AF16: 0.835 | AG16: 0.835 | AH16: 0.835 | AI16: 0.835 | AJ16: 0.835 | AK16: 0.835 | AL16: 0.835 | AM16: =Y16*C16+($A$4-80)*AF16*$A$16/1000 -> 26.56 | AN16: =Z16*E16+($A$4-80)*AG16*$A$16/1000 -> 25.72 | AO16: =AA16*G16+($A$4-80)*AH16*$A$16/1000 -> 24.84 | AP16: =AB16*I16+($A$4-80)*AI16*$A$16/1000 -> 24.38 | AQ16: =AC16*K16+($A$4-80)*AJ16*$A$16/1000 -> 23.92 | AR16: =AD16*M16+($A$4-80)*AK16*$A$16/1000 -> 22.95 | AS16: =AE16*O16+($A$4-80)*AL16*$A$16/1000 -> 21.92
B17: 67 | C17: 46.04 | D17: 33.38 | E17: 43.8 | F17: 32.54 | G17: 41.47 | H17: 31.67 | I17: 40.235 | J17: 31.21 | K17: 39 | L17: 30.75 | M17: 36.38 | N17: 29.77 | O17: 33.59 | P17: 28.71 | R17: 1.122926829 | S17: 1.068292683 | T17: 1.011463415 | U17: 0.9813414634 | V17: 0.9512195122 | W17: 0.8873170732 | X17: 0.8192682927 | Y17: 0.7250217202 | Z17: 0.7429223744 | AA17: 0.7636845913 | AB17: 0.7756928048 | AC17: 0.7884615385 | AD17: 0.818306762 | AE17: 0.8547186663 | AF17: 0.835 | AG17: 0.835 | AH17: 0.835 | AI17: 0.835 | AJ17: 0.835 | AK17: 0.835 | AL17: 0.835 | AM17: =Y17*C17+($A$4-80)*AF17*$A$16/1000 -> 33.38 | AN17: =Z17*E17+($A$4-80)*AG17*$A$16/1000 -> 32.54 | AO17: =AA17*G17+($A$4-80)*AH17*$A$16/1000 -> 31.67 | AP17: =AB17*I17+($A$4-80)*AI17*$A$16/1000 -> 31.21 | AQ17: =AC17*K17+($A$4-80)*AJ17*$A$16/1000 -> 30.75 | AR17: =AD17*M17+($A$4-80)*AK17*$A$16/1000 -> 29.77 | AS17: =AE17*O17+($A$4-80)*AL17*$A$16/1000 -> 28.71
B18: 62 | C18: 42.64 | D18: 42.64 | E18: 41 | F18: 41 | G18: 39.2 | H18: 39.2 | I18: 38.23 | J18: 38.23 | K18: 37.26 | L18: 37.26 | M18: 35.17 | N18: 35.17 | O18: 32.87 | P18: 32.87 | R18: 1.04 | S18: 1 | T18: 0.956097561 | U18: 0.9324390244 | V18: 0.9087804878 | W18: 0.857804878 | X18: 0.8017073171 | Y18: 1 | Z18: 1 | AA18: 1 | AB18: 1 | AC18: 1 | AD18: 1 | AE18: 1 | AF18: 0.835 | AG18: 0.835 | AH18: 0.835 | AI18: 0.835 | AJ18: 0.835 | AK18: 0.835 | AL18: 0.835 | AM18: 42.64 | AN18: =Z18*E18+($A$4-80)*AG18*$A$16/1000 -> 41 | AO18: =AA18*G18+($A$4-80)*AH18*$A$16/1000 -> 39.2 | AP18: 38.23 | AQ18: 37.26 | AR18: 35.17 | AS18: 32.87
B19: 57 | C19: 42.64 | D19: 42.64 | E19: 40.95 | F19: 40.95 | G19: 39.15 | H19: 39.15 | I19: 38.185 | J19: 38.185 | K19: 37.22 | L19: 37.22 | M19: 35.13 | N19: 35.13 | O19: 32.84 | P19: 32.84 | R19: 1.04 | S19: 0.9987804878 | T19: 0.9548780488 | U19: 0.9313414634 | V19: 0.907804878 | W19: 0.8568292683 | X19: 0.8009756098 | Y19: 1 | Z19: 1 | AA19: 1 | AB19: 1 | AC19: 1 | AD19: 1 | AE19: 1 | AF19: 0.835 | AG19: 0.835 | AH19: 0.835 | AI19: 0.835 | AJ19: 0.835 | AK19: 0.835 | AL19: 0.835 | AM19: 42.64 | AN19: =Z19*E19+($A$4-80)*AG19*$A$16/1000 -> 40.95 | AO19: =AA19*G19+($A$4-80)*AH19*$A$16/1000 -> 39.15 | AP19: 38.185 | AQ19: 37.22 | AR19: 35.13 | AS19: 32.84

Sheet CA13NA_48 (hidden)
A2: CA13NA_48
A3: Evaporator Air | C3: Condenser Entering Air Temperature ˚F
A4: 80 | B4: °F DB | C4: 75 | E4: 85 | G4: 95 | I4: 100 | K4: 105 | M4: 115 | O4: 125
A5: CFM | B5: EWB† ˚F | C5: Capacity Mbtuh | E5: Capacity Mbtuh | G5: Capacity Mbtuh | I5: Capacity Mbtuh | K5: Capacity Mbtuh | M5: Capacity Mbtuh | O5: Capacity Mbtuh
C6: Total | D6: Sens. | E6: Total | F6: Sens. | G6: Total | H6: Sens. | I6: Total | J6: Sens. | K6: Total | L6: Sens. | M6: Total | N6: Sens. | O6: Total | P6: Sens.
R7: Total Factors | Y7: Sens. % | AF7: IDB Adj | AM7: Sens Calc
A8: 1400 | B8: 72 | C8: =R8*$G$13 -> 54.82 | D8: =IF(AM8>C8,C8,AM8) -> 26.67 | E8: =S8*$G$13 -> 52.39 | F8: =IF(AN8>E8,E8,AN8) -> 25.83 | G8: =T8*$G$13 -> 49.8 | H8: =IF(AO8>G8,G8,AO8) -> 24.95 | I8: =U8*$G$13 -> 48.45 | J8: =IF(AP8>I8,I8,AP8) -> 24.49 | K8: =V8*$G$13 -> 47.1 | L8: =IF(AQ8>K8,K8,AQ8) -> 24.03 | M8: =W8*$G$13 -> 44.24 | N8: =IF(AR8>M8,M8,AR8) -> 23.08 | O8: =X8*$G$13 -> 41.29 | P8: =IF(AS8>O8,O8,AS8) -> 22.11 | R8: 1.19173913 | S8: 1.138913043 | T8: 1.082608696 | U8: 1.05326087 | V8: 1.023913043 | W8: 0.9617391304 | X8: 0.8976086957 | Y8: 0.4865012769 | Z8: 0.4930330216 | AA8: 0.5010040161 | AB8: 0.5054695562 | AC8: 0.5101910828 | AD8: 0.5216998192 | AE8: 0.5354807459 | AF8: 0.835 | AG8: 0.835 | AH8: 0.835 | AI8: 0.835 | AJ8: 0.835 | AK8: 0.835 | AL8: 0.835 | AM8: =Y8*C8+($A$4-80)*AF8*$A$8/1000 -> 26.67 | AN8: =Z8*E8+($A$4-80)*AG8*$A$8/1000 -> 25.83 | AO8: =AA8*G8+($A$4-80)*AH8*$A$8/1000 -> 24.95 | AP8: =AB8*I8+($A$4-80)*AI8*$A$8/1000 -> 24.49 | AQ8: =AC8*K8+($A$4-80)*AJ8*$A$8/1000 -> 24.03 | AR8: =AD8*M8+($A$4-80)*AK8*$A$8/1000 -> 23.08 | AS8: =AE8*O8+($A$4-80)*AL8*$A$8/1000 -> 22.11
B9: 67 | C9: 49.99 | D9: 32.85 | E9: 47.75 | F9: =IF(AN9>E9,E9,AN9) -> 31.99 | G9: =T9*$G$13 -> 45.36 | H9: =IF(AO9>G9,G9,AO9) -> 31.09 | I9: 44.11 | J9: =IF(AP9>I9,I9,AP9) -> 30.625 | K9: 42.86 | L9: =IF(AQ9>K9,K9,AQ9) -> 30.16 | M9: 40.23 | N9: =IF(AR9>M9,M9,AR9) -> 29.2 | O9: 37.5 | P9: =IF(AS9>O9,O9,AS9) -> 28.21 | R9: 1.08673913 | S9: 1.038043478 | T9: 0.9860869565 | U9: 0.9589130435 | V9: 0.9317391304 | W9: 0.8745652174 | X9: 0.8152173913 | Y9: 0.6571314263 | Z9: 0.669947644 | AA9: 0.6854056437 | AB9: 0.6942870097 | AC9: 0.7036864209 | AD9: 0.7258264976 | AE9: 0.7522666667 | AF9: 0.835 | AG9: 0.835 | AH9: 0.835 | AI9: 0.835 | AJ9: 0.835 | AK9: 0.835 | AL9: 0.835 | AM9: =Y9*C9+($A$4-80)*AF9*$A$8/1000 -> 32.85 | AN9: =Z9*E9+($A$4-80)*AG9*$A$8/1000 -> 31.99 | AO9: =AA9*G9+($A$4-80)*AH9*$A$8/1000 -> 31.09 | AP9: =AB9*I9+($A$4-80)*AI9*$A$8/1000 -> 30.625 | AQ9: =AC9*K9+($A$4-80)*AJ9*$A$8/1000 -> 30.16 | AR9: =AD9*M9+($A$4-80)*AK9*$A$8/1000 -> 29.2 | AS9: =AE9*O9+($A$4-80)*AL9*$A$8/1000 -> 28.21
B10: 62 | C10: 45.74 | D10: 38.94 | E10: 43.74 | F10: 38.05 | G10: =T10*$G$13 -> 41.63 | H10: 37.08 | I10: 40.55 | J10: 38.275 | K10: 39.47 | L10: 39.47 | M10: 37.49 | N10: 37.49 | O10: 35.39 | P10: 35.39 | R10: 0.9943478261 | S10: 0.9508695652 | T10: 0.905 | U10: 0.8815217391 | V10: 0.8580434783 | W10: 0.815 | X10: 0.7693478261 | Y10: 0.8513336248 | Z10: 0.869913123 | AA10: 0.8907038194 | AB10: 0.9438964242 | AC10: 1 | AD10: 1 | AE10: 1 | AF10: 0.835 | AG10: 0.835 | AH10: 0.835 | AI10: 0.835 | AJ10: 0.835 | AK10: 0.835 | AL10: 0.835 | AM10: 38.94 | AN10: =Z10*E10+($A$4-80)*AG10*$A$8/1000 -> 38.05 | AO10: =AA10*G10+($A$4-80)*AH10*$A$8/1000 -> 37.08 | AP10: 38.275 | AQ10: 39.47 | AR10: 37.49 | AS10: 35.39
B11: 57 | C11: 44.72 | D11: 44.72 | E11: 43.08 | F11: 43.08 | G11: =T11*$G$13 -> 41.31 | H11: 41.31 | I11: 40.375 | J11: 40.375 | K11: 39.44 | L11: 39.44 | M11: 37.44 | N11: 37.44 | O11: 35.35 | P11: 35.35 | R11: 0.972173913 | S11: 0.9365217391 | T11: 0.8980434783 | U11: 0.8777173913 | V11: 0.8573913043 | W11: 0.8139130435 | X11: 0.7684782609 | Y11: 1 | Z11: 1 | AA11: 1 | AB11: 1 | AC11: 1 | AD11: 1 | AE11: 1 | AF11: 0.835 | AG11: 0.835 | AH11: 0.835 | AI11: 0.835 | AJ11: 0.835 | AK11: 0.835 | AL11: 0.835 | AM11: 44.72 | AN11: =Z11*E11+($A$4-80)*AG11*$A$8/1000 -> 43.08 | AO11: =AA11*G11+($A$4-80)*AH11*$A$8/1000 -> 41.31 | AP11: =AB11*I11+($A$4-80)*AI11*$A$8/1000 -> 40.375 | AQ11: 39.44 | AR11: 37.44 | AS11: 35.35
A12: 1600 | B12: 72 | C12: 55.69 | D12: 27.95 | E12: 53.16 | F12: 27.1 | G12: =T12*$G$13 -> 50.48 | H12: 26.2 | I12: 49.075 | J12: 25.735 | K12: 47.67 | L12: 25.27 | M12: 44.73 | N12: 24.31 | O12: 41.67 | P12: 23.32 | R12: 1.210652174 | S12: 1.155652174 | T12: 1.097391304 | U12: 1.066847826 | V12: 1.036304348 | W12: 0.9723913043 | X12: 0.9058695652 | Y12: 0.5018854372 | Z12: 0.5097817908 | AA12: 0.5190174326 | AB12: 0.5244014264 | AC12: 0.53010279 | AD12: 0.5434831209 | AE12: 0.5596352292 | AF12: 0.835 | AG12: 0.835 | AH12: 0.835 | AI12: 0.835 | AJ12: 0.835 | AK12: 0.835 | AL12: 0.835 | AM12: =Y12*C12+($A$4-80)*AF12*$A$12/1000 -> 27.95 | AN12: =Z12*E12+($A$4-80)*AG12*$A$12/1000 -> 27.1 | AO12: =AA12*G12+($A$4-80)*AH12*$A$12/1000 -> 26.2 | AP12: =AB12*I12+($A$4-80)*AI12*$A$12/1000 -> 25.735 | AQ12: =AC12*K12+($A$4-80)*AJ12*$A$12/1000 -> 25.27 | AR12: =AD12*M12+($A$4-80)*AK12*$A$12/1000 -> 24.31 | AS12: =AE12*O12+($A$4-80)*AL12*$A$12/1000 -> 23.32
B13: 67 | C13: 50.8 | D13: 34.9 | E13: 48.46 | F13: 34.03 | G13: 46 | H13: 33.12 | I13: 44.705 | J13: 32.65 | K13: 43.41 | L13: 32.18 | M13: 40.71 | N13: 31.2 | O13: 37.92 | P13: 30.18 | R13: 1.104347826 | S13: 1.053478261 | T13: 1 | U13: 0.9718478261 | V13: 0.9436956522 | W13: 0.885 | X13: 0.8243478261 | Y13: 0.687007874 | Z13: 0.7022286422 | AA13: 0.72 | AB13: 0.730343362 | AC13: 0.741303847 | AD13: 0.7663964628 | AE13: 0.7958860759 | AF13: 0.835 | AG13: 0.835 | AH13: 0.835 | AI13: 0.835 | AJ13: 0.835 | AK13: 0.835 | AL13: 0.835 | AM13: =Y13*C13+($A$4-80)*AF13*$A$12/1000 -> 34.9 | AN13: =Z13*E13+($A$4-80)*AG13*$A$12/1000 -> 34.03 | AO13: =AA13*G13+($A$4-80)*AH13*$A$12/1000 -> 33.12 | AP13: =AB13*I13+($A$4-80)*AI13*$A$12/1000 -> 32.65 | AQ13: =AC13*K13+($A$4-80)*AJ13*$A$12/1000 -> 32.18 | AR13: =AD13*M13+($A$4-80)*AK13*$A$12/1000 -> 31.2 | AS13: =AE13*O13+($A$4-80)*AL13*$A$12/1000 -> 30.18
B14: 62 | C14: 46.75 | D14: 41.65 | E14: 44.68 | F14: 44.68 | G14: =T14*$G$13 -> 42.84 | H14: 42.84 | I14: 41.845 | J14: 41.845 | K14: 40.85 | L14: 40.85 | M14: 38.72 | N14: 38.72 | O14: 36.5 | P14: 36.5 | R14: 1.016304348 | S14: 0.9713043478 | T14: 0.9313043478 | U14: 0.909673913 | V14: 0.8880434783 | W14: 0.8417391304 | X14: 0.7934782609 | Y14: 0.8909090909 | Z14: 1 | AA14: 1 | AB14: 1 | AC14: 1 | AD14: 1 | AE14: 1 | AF14: 0.835 | AG14: 0.835 | AH14: 0.835 | AI14: 0.835 | AJ14: 0.835 | AK14: 0.835 | AL14: 0.835 | AM14: 41.65 | AN14: =Z14*E14+($A$4-80)*AG14*$A$12/1000 -> 44.68 | AO14: =AA14*G14+($A$4-80)*AH14*$A$12/1000 -> 42.84 | AP14: 41.845 | AQ14: 40.85 | AR14: 38.72 | AS14: 36.5
B15: 57 | C15: 46.42 | D15: 46.42 | E15: 44.66 | F15: 44.66 | G15: 42.79 | H15: 42.79 | I15: 41.795 | J15: 41.795 | K15: 40.8 | L15: 40.8 | M15: 38.68 | N15: 38.68 | O15: 36.46 | P15: 36.46 | R15: 1.009130435 | S15: 0.9708695652 | T15: 0.9302173913 | U15: 0.9085869565 | V15: 0.8869565217 | W15: 0.8408695652 | X15: 0.7926086957 | Y15: 1 | Z15: 1 | AA15: 1 | AB15: 1 | AC15: 1 | AD15: 1 | AE15: 1 | AF15: 0.835 | AG15: 0.835 | AH15: 0.835 | AI15: 0.835 | AJ15: 0.835 | AK15: 0.835 | AL15: 0.835 | AM15: 46.42 | AN15: =Z15*E15+($A$4-80)*AG15*$A$12/1000 -> 44.66 | AO15: =AA15*G15+($A$4-80)*AH15*$A$12/1000 -> 42.79 | AP15: 41.795 | AQ15: 40.8 | AR15: 38.68 | AS15: 36.46
A16: 1800 | B16: 72 | C16: 56.33 | D16: 29.15 | E16: 53.72 | F16: 28.29 | G16: 50.95 | H16: 27.38 | I16: 49.51 | J16: 26.91 | K16: 48.07 | L16: 26.44 | M16: 45.05 | N16: 25.47 | O16: 41.91 | P16: 24.47 | R16: 1.224565217 | S16: 1.167826087 | T16: 1.107608696 | U16: 1.076304348 | V16: 1.045 | W16: 0.9793478261 | X16: 0.9110869565 | Y16: 0.5174862418 | Z16: 0.5266195086 | AA16: 0.5373895976 | AB16: 0.5435265603 | AC16: 0.5500312045 | AD16: 0.5653718091 | AE16: 0.583870198 | AF16: 0.835 | AG16: 0.835 | AH16: 0.835 | AI16: 0.835 | AJ16: 0.835 | AK16: 0.835 | AL16: 0.835 | AM16: =Y16*C16+($A$4-80)*AF16*$A$16/1000 -> 29.15 | AN16: =Z16*E16+($A$4-80)*AG16*$A$16/1000 -> 28.29 | AO16: =AA16*G16+($A$4-80)*AH16*$A$16/1000 -> 27.38 | AP16: =AB16*I16+($A$4-80)*AI16*$A$16/1000 -> 26.91 | AQ16: =AC16*K16+($A$4-80)*AJ16*$A$16/1000 -> 26.44 | AR16: =AD16*M16+($A$4-80)*AK16*$A$16/1000 -> 25.47 | AS16: =AE16*O16+($A$4-80)*AL16*$A$16/1000 -> 24.47
B17: 67 | C17: 51.39 | D17: 36.84 | E17: 49 | F17: 35.97 | G17: 46.46 | H17: 35.05 | I17: 45.14 | J17: 34.57 | K17: 43.82 | L17: 34.09 | M17: 41.07 | N17: 33.08 | O17: 38.21 | P17: 32.02 | R17: 1.117173913 | S17: 1.065217391 | T17: 1.01 | U17: 0.9813043478 | V17: 0.9526086957 | W17: 0.892826087 | X17: 0.8306521739 | Y17: 0.7168709866 | Z17: 0.7340816327 | AA17: 0.7544123978 | AB17: 0.7658396101 | AC17: 0.7779552716 | AD17: 0.8054541028 | AE17: 0.8380005234 | AF17: 0.835 | AG17: 0.835 | AH17: 0.835 | AI17: 0.835 | AJ17: 0.835 | AK17: 0.835 | AL17: 0.835 | AM17: =Y17*C17+($A$4-80)*AF17*$A$16/1000 -> 36.84 | AN17: =Z17*E17+($A$4-80)*AG17*$A$16/1000 -> 35.97 | AO17: =AA17*G17+($A$4-80)*AH17*$A$16/1000 -> 35.05 | AP17: =AB17*I17+($A$4-80)*AI17*$A$16/1000 -> 34.57 | AQ17: =AC17*K17+($A$4-80)*AJ17*$A$16/1000 -> 34.09 | AR17: =AD17*M17+($A$4-80)*AK17*$A$16/1000 -> 33.08 | AS17: =AE17*O17+($A$4-80)*AL17*$A$16/1000 -> 32.02
B18: 62 | C18: 47.87 | D18: 47.87 | E18: 46.01 | F18: 46.01 | G18: 44.03 | H18: 44.03 | I18: 42.98 | J18: 42.98 | K18: 41.93 | L18: 41.93 | M18: 39.71 | N18: 39.71 | O18: 37.39 | P18: 37.39 | R18: 1.040652174 | S18: 1.000217391 | T18: 0.957173913 | U18: 0.9343478261 | V18: 0.9115217391 | W18: 0.8632608696 | X18: 0.812826087 | Y18: 1 | Z18: 1 | AA18: 1 | AB18: 1 | AC18: 1 | AD18: 1 | AE18: 1 | AF18: 0.835 | AG18: 0.835 | AH18: 0.835 | AI18: 0.835 | AJ18: 0.835 | AK18: 0.835 | AL18: 0.835 | AM18: 47.87 | AN18: =Z18*E18+($A$4-80)*AG18*$A$16/1000 -> 46.01 | AO18: =AA18*G18+($A$4-80)*AH18*$A$16/1000 -> 44.03 | AP18: 42.98 | AQ18: 41.93 | AR18: 39.71 | AS18: 37.39
B19: 57 | C19: 47.81 | D19: 47.81 | E19: 45.95 | F19: 45.95 | G19: 43.98 | H19: 43.98 | I19: 42.935 | J19: 42.935 | K19: 41.89 | L19: 41.89 | M19: 39.67 | N19: 39.67 | O19: 37.35 | P19: 37.35 | R19: 1.039347826 | S19: 0.9989130435 | T19: 0.9560869565 | U19: 0.9333695652 | V19: 0.9106521739 | W19: 0.8623913043 | X19: 0.8119565217 | Y19: 1 | Z19: 1 | AA19: 1 | AB19: 1 | AC19: 1 | AD19: 1 | AE19: 1 | AF19: 0.835 | AG19: 0.835 | AH19: 0.835 | AI19: 0.835 | AJ19: 0.835 | AK19: 0.835 | AL19: 0.835 | AM19: 47.81 | AN19: =Z19*E19+($A$4-80)*AG19*$A$16/1000 -> 45.95 | AO19: =AA19*G19+($A$4-80)*AH19*$A$16/1000 -> 43.98 | AP19: 42.935 | AQ19: 41.89 | AR19: 39.67 | AS19: 37.35

Sheet CA13NA_60 (hidden)
A2: CA13NA_60
A3: Evaporator Air | C3: Condenser Entering Air Temperature ˚F
A4: 80 | B4: °F DB | C4: 75 | E4: 85 | G4: 95 | I4: 100 | K4: 105 | M4: 115 | O4: 125
A5: CFM | B5: EWB† ˚F | C5: Capacity Mbtuh | E5: Capacity Mbtuh | G5: Capacity Mbtuh | I5: Capacity Mbtuh | K5: Capacity Mbtuh | M5: Capacity Mbtuh | O5: Capacity Mbtuh
C6: Total | D6: Sens. | E6: Total | F6: Sens. | G6: Total | H6: Sens. | I6: Total | J6: Sens. | K6: Total | L6: Sens. | M6: Total | N6: Sens. | O6: Total | P6: Sens.
R7: Total Factors | Y7: Sens. % | AF7: IDB Adj | AM7: Sens Calc
A8: 1750 | B8: 72 | C8: =R8*$G$13 -> 68.76 | D8: =IF(AM8>C8,C8,AM8) -> 33.98 | E8: =S8*$G$13 -> 65.62 | F8: =IF(AN8>E8,E8,AN8) -> 32.87 | G8: =T8*$G$13 -> 62.08 | H8: =IF(AO8>G8,G8,AO8) -> 31.64 | I8: =U8*$G$13 -> 60.14 | J8: =IF(AP8>I8,I8,AP8) -> 30.975 | K8: =V8*$G$13 -> 58.2 | L8: =IF(AQ8>K8,K8,AQ8) -> 30.31 | M8: =W8*$G$13 -> 53.89 | N8: =IF(AR8>M8,M8,AR8) -> 28.86 | O8: =X8*$G$13 -> 49.22 | P8: =IF(AS8>O8,O8,AS8) -> 27.3 | R8: 1.195826087 | S8: 1.141217391 | T8: 1.079652174 | U8: 1.045913043 | V8: 1.012173913 | W8: 0.9372173913 | X8: 0.856 | Y8: 0.4941826643 | Z8: 0.5009143554 | AA8: 0.5096649485 | AB8: 0.5150482208 | AC8: 0.520790378 | AD8: 0.5355353498 | AE8: 0.5546525803 | AF8: 0.835 | AG8: 0.835 | AH8: 0.835 | AI8: 0.835 | AJ8: 0.835 | AK8: 0.835 | AL8: 0.835 | AM8: =Y8*C8+($A$4-80)*AF8*$A$8/1000 -> 33.98 | AN8: =Z8*E8+($A$4-80)*AG8*$A$8/1000 -> 32.87 | AO8: =AA8*G8+($A$4-80)*AH8*$A$8/1000 -> 31.64 | AP8: =AB8*I8+($A$4-80)*AI8*$A$8/1000 -> 30.975 | AQ8: =AC8*K8+($A$4-80)*AJ8*$A$8/1000 -> 30.31 | AR8: =AD8*M8+($A$4-80)*AK8*$A$8/1000 -> 28.86 | AS8: =AE8*O8+($A$4-80)*AL8*$A$8/1000 -> 27.3
B9: 67 | C9: 62.81 | D9: 41.88 | E9: 59.96 | F9: =IF(AN9>E9,E9,AN9) -> 40.78 | G9: =T9*$G$13 -> 56.78 | H9: =IF(AO9>G9,G9,AO9) -> 39.56 | I9: 55.015 | J9: =IF(AP9>I9,I9,AP9) -> 38.895 | K9: 53.25 | L9: =IF(AQ9>K9,K9,AQ9) -> 38.23 | M9: 49.32 | N9: =IF(AR9>M9,M9,AR9) -> 36.76 | O9: 45.03 | P9: =IF(AS9>O9,O9,AS9) -> 35.17 | R9: 1.092347826 | S9: 1.042782609 | T9: 0.9874782609 | U9: 0.9567826087 | V9: 0.9260869565 | W9: 0.8577391304 | X9: 0.7831304348 | Y9: 0.6667728069 | Z9: 0.6801200801 | AA9: 0.6967241987 | AB9: 0.706989003 | AC9: 0.7179342723 | AD9: 0.7453365775 | AE9: 0.7810348656 | AF9: 0.835 | AG9: 0.835 | AH9: 0.835 | AI9: 0.835 | AJ9: 0.835 | AK9: 0.835 | AL9: 0.835 | AM9: =Y9*C9+($A$4-80)*AF9*$A$8/1000 -> 41.88 | AN9: =Z9*E9+($A$4-80)*AG9*$A$8/1000 -> 40.78 | AO9: =AA9*G9+($A$4-80)*AH9*$A$8/1000 -> 39.56 | AP9: =AB9*I9+($A$4-80)*AI9*$A$8/1000 -> 38.895 | AQ9: =AC9*K9+($A$4-80)*AJ9*$A$8/1000 -> 38.23 | AR9: =AD9*M9+($A$4-80)*AK9*$A$8/1000 -> 36.76 | AS9: =AE9*O9+($A$4-80)*AL9*$A$8/1000 -> 35.17
B10: 62 | C10: 57.61 | D10: 49.71 | E10: 55.07 | F10: 48.57 | G10: =T10*$G$13 -> 52.29 | H10: 47.29 | I10: 50.795 | J10: 48.295 | K10: 49.3 | L10: 49.3 | M10: 46.32 | N10: 46.32 | O10: 42.95 | P10: 42.95 | R10: 1.001913043 | S10: 0.9577391304 | T10: 0.9093913043 | U10: 0.8833913043 | V10: 0.8573913043 | W10: 0.8055652174 | X10: 0.7469565217 | Y10: 0.8628710293 | Z10: 0.8819684038 | AA10: 0.9043794225 | AB10: 0.9507825573 | AC10: 1 | AD10: 1 | AE10: 1 | AF10: 0.835 | AG10: 0.835 | AH10: 0.835 | AI10: 0.835 | AJ10: 0.835 | AK10: 0.835 | AL10: 0.835 | AM10: 49.71 | AN10: =Z10*E10+($A$4-80)*AG10*$A$8/1000 -> 48.57 | AO10: =AA10*G10+($A$4-80)*AH10*$A$8/1000 -> 47.29 | AP10: 48.295 | AQ10: 49.3 | AR10: 46.32 | AS10: 42.95
B11: 57 | C11: 56.3 | D11: 56.3 | E11: 54.21 | F11: 54.21 | G11: =T11*$G$13 -> 51.89 | H11: 51.89 | I11: 50.575 | J11: 50.575 | K11: 49.26 | L11: 49.26 | M11: 46.26 | N11: 46.26 | O11: 42.9 | P11: 42.9 | R11: 0.9791304348 | S11: 0.9427826087 | T11: 0.9024347826 | U11: 0.8795652174 | V11: 0.8566956522 | W11: 0.8045217391 | X11: 0.7460869565 | Y11: 1 | Z11: 1 | AA11: 1 | AB11: 1 | AC11: 1 | AD11: 1 | AE11: 1 | AF11: 0.835 | AG11: 0.835 | AH11: 0.835 | AI11: 0.835 | AJ11: 0.835 | AK11: 0.835 | AL11: 0.835 | AM11: 56.3 | AN11: =Z11*E11+($A$4-80)*AG11*$A$8/1000 -> 54.21 | AO11: =AA11*G11+($A$4-80)*AH11*$A$8/1000 -> 51.89 | AP11: =AB11*I11+($A$4-80)*AI11*$A$8/1000 -> 50.575 | AQ11: 49.26 | AR11: 46.26 | AS11: 42.9
A12: 2000 | B12: 72 | C12: 69.75 | D12: 35.59 | E12: 66.44 | F12: 34.45 | G12: =T12*$G$13 -> 62.8 | H12: 33.21 | I12: 60.78 | J12: 32.53 | K12: 58.76 | L12: 31.85 | M12: 54.33 | N12: 30.38 | O12: 49.5 | P12: 28.8 | R12: 1.213043478 | S12: 1.155478261 | T12: 1.092173913 | U12: 1.057043478 | V12: 1.021913043 | W12: 0.9448695652 | X12: 0.8608695652 | Y12: 0.5102508961 | Z12: 0.518512944 | AA12: 0.5288216561 | AB12: 0.5352089503 | AC12: 0.5420353982 | AD12: 0.5591754095 | AE12: 0.5818181818 | AF12: 0.835 | AG12: 0.835 | AH12: 0.835 | AI12: 0.835 | AJ12: 0.835 | AK12: 0.835 | AL12: 0.835 | AM12: =Y12*C12+($A$4-80)*AF12*$A$12/1000 -> 35.59 | AN12: =Z12*E12+($A$4-80)*AG12*$A$12/1000 -> 34.45 | AO12: =AA12*G12+($A$4-80)*AH12*$A$12/1000 -> 33.21 | AP12: =AB12*I12+($A$4-80)*AI12*$A$12/1000 -> 32.53 | AQ12: =AC12*K12+($A$4-80)*AJ12*$A$12/1000 -> 31.85 | AR12: =AD12*M12+($A$4-80)*AK12*$A$12/1000 -> 30.38 | AS12: =AE12*O12+($A$4-80)*AL12*$A$12/1000 -> 28.8
B13: 67 | C13: 63.77 | D13: 44.5 | E13: 60.77 | F13: 43.37 | G13: 57.5 | H13: 42.15 | I13: 55.66 | J13: 41.465 | K13: 53.82 | L13: 40.78 | M13: 49.77 | N13: 39.28 | O13: 45.37 | P13: 37.64 | R13: 1.109043478 | S13: 1.056869565 | T13: 1 | U13: 0.968 | V13: 0.936 | W13: 0.8655652174 | X13: 0.7890434783 | Y13: 0.6978202917 | Z13: 0.7136745104 | AA13: 0.7330434783 | AB13: 0.7449694574 | AC13: 0.7577108881 | AD13: 0.7892304601 | AE13: 0.829623099 | AF13: 0.835 | AG13: 0.835 | AH13: 0.835 | AI13: 0.835 | AJ13: 0.835 | AK13: 0.835 | AL13: 0.835 | AM13: =Y13*C13+($A$4-80)*AF13*$A$12/1000 -> 44.5 | AN13: =Z13*E13+($A$4-80)*AG13*$A$12/1000 -> 43.37 | AO13: =AA13*G13+($A$4-80)*AH13*$A$12/1000 -> 42.15 | AP13: =AB13*I13+($A$4-80)*AI13*$A$12/1000 -> 41.465 | AQ13: =AC13*K13+($A$4-80)*AJ13*$A$12/1000 -> 40.78 | AR13: =AD13*M13+($A$4-80)*AK13*$A$12/1000 -> 39.28 | AS13: =AE13*O13+($A$4-80)*AL13*$A$12/1000 -> 37.64
B14: 62 | C14: 58.82 | D14: 53.2 | E14: 56.16 | F14: 56.15 | G14: =T14*$G$13 -> 53.71 | H14: 53.71 | I14: 52.3 | J14: 52.3 | K14: 50.89 | L14: 50.89 | M14: 47.69 | N14: 47.69 | O14: 44.11 | P14: 44.11 | R14: 1.022956522 | S14: 0.9766956522 | T14: 0.9340869565 | U14: 0.9095652174 | V14: 0.8850434783 | W14: 0.8293913043 | X14: 0.7671304348 | Y14: 0.9044542673 | Z14: 0.9998219373 | AA14: 1 | AB14: 1 | AC14: 1 | AD14: 1 | AE14: 1 | AF14: 0.835 | AG14: 0.835 | AH14: 0.835 | AI14: 0.835 | AJ14: 0.835 | AK14: 0.835 | AL14: 0.835 | AM14: 53.2 | AN14: =Z14*E14+($A$4-80)*AG14*$A$12/1000 -> 56.15 | AO14: =AA14*G14+($A$4-80)*AH14*$A$12/1000 -> 53.71 | AP14: 52.3 | AQ14: 50.89 | AR14: 47.69 | AS14: 44.11
B15: 57 | C15: 58.39 | D15: 58.39 | E15: 56.14 | F15: 56.14 | G15: 53.65 | H15: 53.65 | I15: 52.24 | J15: 52.24 | K15: 50.83 | L15: 50.83 | M15: 47.63 | N15: 47.63 | O15: 44.06 | P15: 44.06 | R15: 1.015478261 | S15: 0.9763478261 | T15: 0.9330434783 | U15: 0.9085217391 | V15: 0.884 | W15: 0.8283478261 | X15: 0.7662608696 | Y15: 1 | Z15: 1 | AA15: 1 | AB15: 1 | AC15: 1 | AD15: 1 | AE15: 1 | AF15: 0.835 | AG15: 0.835 | AH15: 0.835 | AI15: 0.835 | AJ15: 0.835 | AK15: 0.835 | AL15: 0.835 | AM15: 58.39 | AN15: =Z15*E15+($A$4-80)*AG15*$A$12/1000 -> 56.14 | AO15: =AA15*G15+($A$4-80)*AH15*$A$12/1000 -> 53.65 | AP15: 52.24 | AQ15: 50.83 | AR15: 47.63 | AS15: 44.06
A16: 2250 | B16: 72 | C16: 70.47 | D16: 37.11 | E16: 67.03 | F16: 35.94 | G16: 63.27 | H16: 34.69 | I16: 61.195 | J16: 34 | K16: 59.12 | L16: 33.31 | M16: 54.56 | N16: 31.82 | O16: 49.64 | P16: 30.23 | R16: 1.225565217 | S16: 1.16573913 | T16: 1.100347826 | U16: 1.06426087 | V16: 1.028173913 | W16: 0.9488695652 | X16: 0.8633043478 | Y16: 0.5266070668 | Z16: 0.5361778308 | AA16: 0.5482851272 | AB16: 0.5556009478 | AC16: 0.5634303112 | AD16: 0.5832111437 | AE16: 0.6089846898 | AF16: 0.835 | AG16: 0.835 | AH16: 0.835 | AI16: 0.835 | AJ16: 0.835 | AK16: 0.835 | AL16: 0.835 | AM16: =Y16*C16+($A$4-80)*AF16*$A$16/1000 -> 37.11 | AN16: =Z16*E16+($A$4-80)*AG16*$A$16/1000 -> 35.94 | AO16: =AA16*G16+($A$4-80)*AH16*$A$16/1000 -> 34.69 | AP16: =AB16*I16+($A$4-80)*AI16*$A$16/1000 -> 34 | AQ16: =AC16*K16+($A$4-80)*AJ16*$A$16/1000 -> 33.31 | AR16: =AD16*M16+($A$4-80)*AK16*$A$16/1000 -> 31.82 | AS16: =AE16*O16+($A$4-80)*AL16*$A$16/1000 -> 30.23
B17: 67 | C17: 64.44 | D17: 47 | E17: 61.36 | F17: 45.85 | G17: 57.98 | H17: 44.6 | I17: 56.09 | J17: 43.895 | K17: 54.2 | L17: 43.19 | M17: 50.07 | N17: 41.65 | O17: 45.61 | P17: 39.92 | R17: 1.120695652 | S17: 1.067130435 | T17: 1.008347826 | U17: 0.9754782609 | V17: 0.9426086957 | W17: 0.8707826087 | X17: 0.7932173913 | Y17: 0.7293606456 | Z17: 0.7472294654 | AA17: 0.7692307692 | AB17: 0.7825815653 | AC17: 0.7968634686 | AD17: 0.8318354304 | AE17: 0.8752466564 | AF17: 0.835 | AG17: 0.835 | AH17: 0.835 | AI17: 0.835 | AJ17: 0.835 | AK17: 0.835 | AL17: 0.835 | AM17: =Y17*C17+($A$4-80)*AF17*$A$16/1000 -> 47 | AN17: =Z17*E17+($A$4-80)*AG17*$A$16/1000 -> 45.85 | AO17: =AA17*G17+($A$4-80)*AH17*$A$16/1000 -> 44.6 | AP17: =AB17*I17+($A$4-80)*AI17*$A$16/1000 -> 43.895 | AQ17: =AC17*K17+($A$4-80)*AJ17*$A$16/1000 -> 43.19 | AR17: =AD17*M17+($A$4-80)*AK17*$A$16/1000 -> 41.65 | AS17: =AE17*O17+($A$4-80)*AL17*$A$16/1000 -> 39.92
B18: 62 | C18: 60.15 | D18: 60.15 | E18: 57.76 | F18: 57.76 | G18: 55.12 | H18: 55.12 | I18: 53.625 | J18: 53.625 | K18: 52.13 | L18: 52.13 | M18: 48.74 | N18: 48.74 | O18: 45 | P18: 45 | R18: 1.046086957 | S18: 1.004521739 | T18: 0.9586086957 | U18: 0.9326086957 | V18: 0.9066086957 | W18: 0.8476521739 | X18: 0.7826086957 | Y18: 1 | Z18: 1 | AA18: 1 | AB18: 1 | AC18: 1 | AD18: 1 | AE18: 1 | AF18: 0.835 | AG18: 0.835 | AH18: 0.835 | AI18: 0.835 | AJ18: 0.835 | AK18: 0.835 | AL18: 0.835 | AM18: 60.15 | AN18: =Z18*E18+($A$4-80)*AG18*$A$16/1000 -> 57.76 | AO18: =AA18*G18+($A$4-80)*AH18*$A$16/1000 -> 55.12 | AP18: 53.625 | AQ18: 52.13 | AR18: 48.74 | AS18: 45
B19: 57 | C19: 60.08 | D19: 60.08 | E19: 57.69 | F19: 57.69 | G19: 55.05 | H19: 55.05 | I19: 53.56 | J19: 53.56 | K19: 52.07 | L19: 52.07 | M19: 48.69 | N19: 48.69 | O19: 44.95 | P19: 44.95 | R19: 1.044869565 | S19: 1.003304348 | T19: 0.9573913043 | U19: 0.9314782609 | V19: 0.9055652174 | W19: 0.8467826087 | X19: 0.7817391304 | Y19: 1 | Z19: 1 | AA19: 1 | AB19: 1 | AC19: 1 | AD19: 1 | AE19: 1 | AF19: 0.835 | AG19: 0.835 | AH19: 0.835 | AI19: 0.835 | AJ19: 0.835 | AK19: 0.835 | AL19: 0.835 | AM19: 60.08 | AN19: =Z19*E19+($A$4-80)*AG19*$A$16/1000 -> 57.69 | AO19: =AA19*G19+($A$4-80)*AH19*$A$16/1000 -> 55.05 | AP19: 53.56 | AQ19: 52.07 | AR19: 48.69 | AS19: 44.95

Sheet CA15NA_18 (hidden)
A2: CA15NA_18
A3: Evaporator Air | C3: Condenser Entering Air Temperature ˚F
A4: 80 | B4: °F DB | C4: 75 | E4: 85 | G4: 95 | I4: 100 | K4: 105 | M4: 115 | O4: 125
A5: CFM | B5: EWB† ˚F | C5: Capacity Mbtuh | E5: Capacity Mbtuh | G5: Capacity Mbtuh | I5: Capacity Mbtuh | K5: Capacity Mbtuh | M5: Capacity Mbtuh | O5: Capacity Mbtuh
C6: Total | D6: Sens. | E6: Total | F6: Sens. | G6: Total | H6: Sens. | I6: Total | J6: Sens. | K6: Total | L6: Sens. | M6: Total | N6: Sens. | O6: Total | P6: Sens.
R7: Total Factors | Y7: Sens. % | AF7: IDB Adj | AM7: Sens Calc
A8: 525 | B8: 72 | C8: =R8*$G$13 -> 67.55428571 | D8: =IF(AM8>C8,C8,AM8) -> 36.01142857 | E8: =S8*$G$13 -> 64.95857143 | F8: =IF(AN8>E8,E8,AN8) -> 35.05857143 | G8: =T8*$G$13 -> 62.19857143 | H8: =IF(AO8>G8,G8,AO8) -> 34.00714286 | I8: =U8*$G$13 -> 60.63785714 | J8: =IF(AP8>I8,I8,AP8) -> 33.43214286 | K8: =V8*$G$13 -> 59.07714286 | L8: =IF(AQ8>K8,K8,AQ8) -> 32.85714286 | M8: =W8*$G$13 -> 55.56142857 | N8: =IF(AR8>M8,M8,AR8) -> 31.60857143 | O8: =X8*$G$13 -> 51.58571429 | P8: =IF(AS8>O8,O8,AS8) -> 30.16285714 | R8: 1.174857143 | S8: 1.129714286 | T8: 1.081714286 | U8: 1.054571429 | V8: 1.027428571 | W8: 0.9662857143 | X8: 0.8971428571 | Y8: 0.53307393 | Z8: 0.5397066262 | AA8: 0.5467511886 | AB8: 0.5513411 | AC8: 0.5561735261 | AD8: 0.5688941455 | AE8: 0.5847133758 | AF8: 0.835 | AG8: 0.835 | AH8: 0.835 | AI8: 0.835 | AJ8: 0.835 | AK8: 0.835 | AL8: 0.835 | AM8: =Y8*C8+($A$4-80)*AF8*$A$8/1000 -> 36.01142857 | AN8: =Z8*E8+($A$4-80)*AG8*$A$8/1000 -> 35.05857143 | AO8: =AA8*G8+($A$4-80)*AH8*$A$8/1000 -> 34.00714286 | AP8: =AB8*I8+($A$4-80)*AI8*$A$8/1000 -> 33.43214286 | AQ8: =AC8*K8+($A$4-80)*AJ8*$A$8/1000 -> 32.85714286 | AR8: =AD8*M8+($A$4-80)*AK8*$A$8/1000 -> 31.60857143 | AS8: =AE8*O8+($A$4-80)*AL8*$A$8/1000 -> 30.16285714
B9: 67 | C9: 61.77142857 | D9: 44.52142857 | E9: 59.24142857 | F9: =IF(AN9>E9,E9,AN9) -> 43.47 | G9: =T9*$G$13 -> 56.51428571 | H9: =IF(AO9>G9,G9,AO9) -> 42.35285714 | I9: 55.01928571 | J9: =IF(AP9>I9,I9,AP9) -> 41.745 | K9: 53.52428571 | L9: =IF(AQ9>K9,K9,AQ9) -> 41.13714286 | M9: 50.14 | N9: =IF(AR9>M9,M9,AR9) -> 39.79 | O9: 46.36142857 | P9: =IF(AS9>O9,O9,AS9) -> 38.31142857 | R9: 1.074285714 | S9: 1.030285714 | T9: 0.9828571429 | U9: 0.9568571429 | V9: 0.9308571429 | W9: 0.872 | X9: 0.8062857143 | Y9: 0.7207446809 | Z9: 0.7337770383 | AA9: 0.7494186047 | AB9: 0.7587339504 | AC9: 0.7685696746 | AD9: 0.7935779817 | AE9: 0.8263642807 | AF9: 0.835 | AG9: 0.835 | AH9: 0.835 | AI9: 0.835 | AJ9: 0.835 | AK9: 0.835 | AL9: 0.835 | AM9: =Y9*C9+($A$4-80)*AF9*$A$8/1000 -> 44.52142857 | AN9: =Z9*E9+($A$4-80)*AG9*$A$8/1000 -> 43.47 | AO9: =AA9*G9+($A$4-80)*AH9*$A$8/1000 -> 42.35285714 | AP9: =AB9*I9+($A$4-80)*AI9*$A$8/1000 -> 41.745 | AQ9: =AC9*K9+($A$4-80)*AJ9*$A$8/1000 -> 41.13714286 | AR9: =AD9*M9+($A$4-80)*AK9*$A$8/1000 -> 39.79 | AS9: =AE9*O9+($A$4-80)*AL9*$A$8/1000 -> 38.31142857
B10: 62 | C10: 56.54714286 | D10: 52.9 | E10: 54.08285714 | F10: 51.78285714 | G10: =T10*$G$13 -> 51.48714286 | H10: 50.6 | I10: 50.20571429 | J10: 49.76214286 | K10: 48.92428571 | L10: 48.92428571 | M10: 46.36142857 | N10: 46.36142857 | O10: 43.47 | P10: 43.47 | R10: 0.9834285714 | S10: 0.9405714286 | T10: 0.8954285714 | U10: 0.8731428571 | V10: 0.8508571429 | W10: 0.8062857143 | X10: 0.756 | Y10: 0.9355026148 | Z10: 0.957472661 | AA10: 0.9827696235 | AB10: 0.9911649215 | AC10: 1 | AD10: 1 | AE10: 1 | AF10: 0.835 | AG10: 0.835 | AH10: 0.835 | AI10: 0.835 | AJ10: 0.835 | AK10: 0.835 | AL10: 0.835 | AM10: 52.9 | AN10: =Z10*E10+($A$4-80)*AG10*$A$8/1000 -> 51.78285714 | AO10: =AA10*G10+($A$4-80)*AH10*$A$8/1000 -> 50.6 | AP10: 49.76214286 | AQ10: 48.92428571 | AR10: 46.36142857 | AS10: 43.47
B11: 57 | C11: 55.26571429 | D11: 55.26571429 | E11: 53.26142857 | F11: 53.26142857 | G11: =T11*$G$13 -> 51.15857143 | H11: 51.15857143 | I11: 49.99214286 | J11: 49.99214286 | K11: 48.82571429 | L11: 48.82571429 | M11: 46.26285714 | N11: 46.26285714 | O11: 43.37142857 | P11: 43.37142857 | R11: 0.9611428571 | S11: 0.9262857143 | T11: 0.8897142857 | U11: 0.8694285714 | V11: 0.8491428571 | W11: 0.8045714286 | X11: 0.7542857143 | Y11: 1 | Z11: 1 | AA11: 1 | AB11: 1 | AC11: 1 | AD11: 1 | AE11: 1 | AF11: 0.835 | AG11: 0.835 | AH11: 0.835 | AI11: 0.835 | AJ11: 0.835 | AK11: 0.835 | AL11: 0.835 | AM11: 55.26571429 | AN11: =Z11*E11+($A$4-80)*AG11*$A$8/1000 -> 53.26142857 | AO11: =AA11*G11+($A$4-80)*AH11*$A$8/1000 -> 51.15857143 | AP11: =AB11*I11+($A$4-80)*AI11*$A$8/1000 -> 49.99214286 | AQ11: 48.82571429 | AR11: 46.26285714 | AS11: 43.37142857
A12: 600 | B12: 72 | C12: 68.70428571 | D12: 37.98285714 | E12: 66.04285714 | F12: 37.03 | G12: =T12*$G$13 -> 63.18428571 | H12: 35.97857143 | I12: 61.57428571 | J12: 35.40357143 | K12: 59.96428571 | L12: 34.82857143 | M12: 56.38285714 | N12: 33.58 | O12: 52.27571429 | P12: 32.13428571 | R12: 1.194857143 | S12: 1.148571429 | T12: 1.098857143 | U12: 1.070857143 | V12: 1.042857143 | W12: 0.9805714286 | X12: 0.9091428571 | Y12: 0.5528455285 | Z12: 0.5606965174 | AA12: 0.5694227769 | AB12: 0.5749733191 | AC12: 0.5808219178 | AD12: 0.5955710956 | AE12: 0.614707731 | AF12: 0.835 | AG12: 0.835 | AH12: 0.835 | AI12: 0.835 | AJ12: 0.835 | AK12: 0.835 | AL12: 0.835 | AM12: =Y12*C12+($A$4-80)*AF12*$A$12/1000 -> 37.98285714 | AN12: =Z12*E12+($A$4-80)*AG12*$A$12/1000 -> 37.03 | AO12: =AA12*G12+($A$4-80)*AH12*$A$12/1000 -> 35.97857143 | AP12: =AB12*I12+($A$4-80)*AI12*$A$12/1000 -> 35.40357143 | AQ12: =AC12*K12+($A$4-80)*AJ12*$A$12/1000 -> 34.82857143 | AR12: =AD12*M12+($A$4-80)*AK12*$A$12/1000 -> 33.58 | AS12: =AE12*O12+($A$4-80)*AL12*$A$12/1000 -> 32.13428571
B13: 67 | C13: 62.88857143 | D13: 47.70857143 | E13: 60.29285714 | F13: 46.69 | G13: 57.5 | H13: 45.57285714 | I13: 55.95571429 | J13: 44.94857143 | K13: 54.41142857 | L13: 44.32428571 | M13: 50.96142857 | N13: 42.97714286 | O13: 47.08428571 | P13: 41.46571429 | R13: 1.093714286 | S13: 1.048571429 | T13: 1 | U13: 0.9731428571 | V13: 0.9462857143 | W13: 0.8862857143 | X13: 0.8188571429 | Y13: 0.7586206897 | Z13: 0.774386921 | AA13: 0.7925714286 | AB13: 0.8032883147 | AC13: 0.8146135266 | AD13: 0.8433268859 | AE13: 0.8806699232 | AF13: 0.835 | AG13: 0.835 | AH13: 0.835 | AI13: 0.835 | AJ13: 0.835 | AK13: 0.835 | AL13: 0.835 | AM13: =Y13*C13+($A$4-80)*AF13*$A$12/1000 -> 47.70857143 | AN13: =Z13*E13+($A$4-80)*AG13*$A$12/1000 -> 46.69 | AO13: =AA13*G13+($A$4-80)*AH13*$A$12/1000 -> 45.57285714 | AP13: =AB13*I13+($A$4-80)*AI13*$A$12/1000 -> 44.94857143 | AQ13: =AC13*K13+($A$4-80)*AJ13*$A$12/1000 -> 44.32428571 | AR13: =AD13*M13+($A$4-80)*AK13*$A$12/1000 -> 42.97714286 | AS13: =AE13*O13+($A$4-80)*AL13*$A$12/1000 -> 41.46571429
B14: 62 | C14: 57.86142857 | D14: 57.30285714 | E14: 55.66 | F14: 55.66 | G14: =T14*$G$13 -> 53.45857143 | H14: 53.45857143 | I14: 52.24285714 | J14: 52.24285714 | K14: 51.02714286 | L14: 51.02714286 | M14: 48.3 | N14: 48.3 | O14: 45.24428571 | P14: 45.24428571 | R14: 1.006285714 | S14: 0.968 | T14: 0.9297142857 | U14: 0.9085714286 | V14: 0.8874285714 | W14: 0.84 | X14: 0.7868571429 | Y14: 0.9903463941 | Z14: 1 | AA14: 1 | AB14: 1 | AC14: 1 | AD14: 1 | AE14: 1 | AF14: 0.835 | AG14: 0.835 | AH14: 0.835 | AI14: 0.835 | AJ14: 0.835 | AK14: 0.835 | AL14: 0.835 | AM14: 57.30285714 | AN14: =Z14*E14+($A$4-80)*AG14*$A$12/1000 -> 55.66 | AO14: =AA14*G14+($A$4-80)*AH14*$A$12/1000 -> 53.45857143 | AP14: 52.24285714 | AQ14: 51.02714286 | AR14: 48.3 | AS14: 45.24428571
B15: 57 | C15: 57.63142857 | D15: 57.63142857 | E15: 55.56142857 | F15: 55.56142857 | G15: 53.36 | H15: 53.36 | I15: 52.14428571 | J15: 52.14428571 | K15: 50.92857143 | L15: 50.92857143 | M15: 48.23428571 | N15: 48.23428571 | O15: 45.17857143 | P15: 45.17857143 | R15: 1.002285714 | S15: 0.9662857143 | T15: 0.928 | U15: 0.9068571429 | V15: 0.8857142857 | W15: 0.8388571429 | X15: 0.7857142857 | Y15: 1 | Z15: 1 | AA15: 1 | AB15: 1 | AC15: 1 | AD15: 1 | AE15: 1 | AF15: 0.835 | AG15: 0.835 | AH15: 0.835 | AI15: 0.835 | AJ15: 0.835 | AK15: 0.835 | AL15: 0.835 | AM15: 57.63142857 | AN15: =Z15*E15+($A$4-80)*AG15*$A$12/1000 -> 55.56142857 | AO15: =AA15*G15+($A$4-80)*AH15*$A$12/1000 -> 53.36 | AP15: 52.14428571 | AQ15: 50.92857143 | AR15: 48.23428571 | AS15: 45.17857143
A16: 675 | B16: 72 | C16: 69.52571429 | D16: 39.92142857 | E16: 66.79857143 | F16: 38.96857143 | G16: 63.87428571 | H16: 37.91714286 | I16: 62.23142857 | J16: 37.34214286 | K16: 60.58857143 | L16: 36.76714286 | M16: 56.90857143 | N16: 35.48571429 | O16: 52.73571429 | P16: 34.07285714 | R16: 1.209142857 | S16: 1.161714286 | T16: 1.110857143 | U16: 1.082285714 | V16: 1.053714286 | W16: 0.9897142857 | X16: 0.9171428571 | Y16: 0.5741965974 | Z16: 0.5833743237 | AA16: 0.5936213992 | AB16: 0.6000527983 | AC16: 0.6068329718 | AD16: 0.623556582 | AE16: 0.646105919 | AF16: 0.835 | AG16: 0.835 | AH16: 0.835 | AI16: 0.835 | AJ16: 0.835 | AK16: 0.835 | AL16: 0.835 | AM16: =Y16*C16+($A$4-80)*AF16*$A$16/1000 -> 39.92142857 | AN16: =Z16*E16+($A$4-80)*AG16*$A$16/1000 -> 38.96857143 | AO16: =AA16*G16+($A$4-80)*AH16*$A$16/1000 -> 37.91714286 | AP16: =AB16*I16+($A$4-80)*AI16*$A$16/1000 -> 37.34214286 | AQ16: =AC16*K16+($A$4-80)*AJ16*$A$16/1000 -> 36.76714286 | AR16: =AD16*M16+($A$4-80)*AK16*$A$16/1000 -> 35.48571429 | AS16: =AE16*O16+($A$4-80)*AL16*$A$16/1000 -> 34.07285714
B17: 67 | C17: 63.71 | D17: 50.86285714 | E17: 61.04857143 | F17: 49.81142857 | G17: 58.22285714 | H17: 48.66142857 | I17: 56.66214286 | J17: 48.05357143 | K17: 55.10142857 | L17: 47.44571429 | M17: 51.55285714 | N17: 46.09857143 | O17: 47.61 | P17: 44.55428571 | R17: 1.108 | S17: 1.061714286 | T17: 1.012571429 | U17: 0.9854285714 | V17: 0.9582857143 | W17: 0.8965714286 | X17: 0.828 | Y17: 0.7983496648 | Z17: 0.8159311087 | AA17: 0.835778781 | AB17: 0.8480719049 | AC17: 0.8610614192 | AD17: 0.8942001275 | AE17: 0.9358178054 | AF17: 0.835 | AG17: 0.835 | AH17: 0.835 | AI17: 0.835 | AJ17: 0.835 | AK17: 0.835 | AL17: 0.835 | AM17: =Y17*C17+($A$4-80)*AF17*$A$16/1000 -> 50.86285714 | AN17: =Z17*E17+($A$4-80)*AG17*$A$16/1000 -> 49.81142857 | AO17: =AA17*G17+($A$4-80)*AH17*$A$16/1000 -> 48.66142857 | AP17: =AB17*I17+($A$4-80)*AI17*$A$16/1000 -> 48.05357143 | AQ17: =AC17*K17+($A$4-80)*AJ17*$A$16/1000 -> 47.44571429 | AR17: =AD17*M17+($A$4-80)*AK17*$A$16/1000 -> 46.09857143 | AS17: =AE17*O17+($A$4-80)*AL17*$A$16/1000 -> 44.55428571
B18: 62 | C18: 59.70142857 | D18: 59.70142857 | E18: 57.56571429 | F18: 57.56571429 | G18: 55.26571429 | H18: 55.26571429 | I18: 54.00071429 | J18: 54.00071429 | K18: 52.73571429 | L18: 52.73571429 | M18: 49.91 | N18: 49.91 | O18: 46.72285714 | P18: 46.72285714 | R18: 1.038285714 | S18: 1.001142857 | T18: 0.9611428571 | U18: 0.9391428571 | V18: 0.9171428571 | W18: 0.868 | X18: 0.8125714286 | Y18: 1 | Z18: 1 | AA18: 1 | AB18: 1 | AC18: 1 | AD18: 1 | AE18: 1 | AF18: 0.835 | AG18: 0.835 | AH18: 0.835 | AI18: 0.835 | AJ18: 0.835 | AK18: 0.835 | AL18: 0.835 | AM18: 59.70142857 | AN18: =Z18*E18+($A$4-80)*AG18*$A$16/1000 -> 57.56571429 | AO18: =AA18*G18+($A$4-80)*AH18*$A$16/1000 -> 55.26571429 | AP18: 54.00071429 | AQ18: 52.73571429 | AR18: 49.91 | AS18: 46.72285714
B19: 57 | C19: 59.60285714 | D19: 59.60285714 | E19: 57.46714286 | F19: 57.46714286 | G19: 55.16714286 | H19: 55.16714286 | I19: 53.91857143 | J19: 53.91857143 | K19: 52.67 | L19: 52.67 | M19: 49.84428571 | N19: 49.84428571 | O19: 46.65714286 | P19: 46.65714286 | R19: 1.036571429 | S19: 0.9994285714 | T19: 0.9594285714 | U19: 0.9377142857 | V19: 0.916 | W19: 0.8668571429 | X19: 0.8114285714 | Y19: 1 | Z19: 1 | AA19: 1 | AB19: 1 | AC19: 1 | AD19: 1 | AE19: 1 | AF19: 0.835 | AG19: 0.835 | AH19: 0.835 | AI19: 0.835 | AJ19: 0.835 | AK19: 0.835 | AL19: 0.835 | AM19: 59.60285714 | AN19: =Z19*E19+($A$4-80)*AG19*$A$16/1000 -> 57.46714286 | AO19: =AA19*G19+($A$4-80)*AH19*$A$16/1000 -> 55.16714286 | AP19: 53.91857143 | AQ19: 52.67 | AR19: 49.84428571 | AS19: 46.65714286

Sheet CA15NA_24 (hidden)
A2: CA15NA_24
A3: Evaporator Air | C3: Condenser Entering Air Temperature ˚F
A4: 80 | B4: °F DB | C4: 75 | E4: 85 | G4: 95 | I4: 100 | K4: 105 | M4: 115 | O4: 125
A5: CFM | B5: EWB† ˚F | C5: Capacity Mbtuh | E5: Capacity Mbtuh | G5: Capacity Mbtuh | I5: Capacity Mbtuh | K5: Capacity Mbtuh | M5: Capacity Mbtuh | O5: Capacity Mbtuh
C6: Total | D6: Sens. | E6: Total | F6: Sens. | G6: Total | H6: Sens. | I6: Total | J6: Sens. | K6: Total | L6: Sens. | M6: Total | N6: Sens. | O6: Total | P6: Sens.
R7: Total Factors | Y7: Sens. % | AF7: IDB Adj | AM7: Sens Calc
A8: 700 | B8: 72 | C8: =R8*$G$13 -> 67.81083299 | D8: =IF(AM8>C8,C8,AM8) -> 36.1940911 | E8: =S8*$G$13 -> 65.02667214 | F8: =IF(AN8>E8,E8,AN8) -> 35.15592942 | G8: =T8*$G$13 -> 62.12453837 | H8: =IF(AO8>G8,G8,AO8) -> 34.07057858 | I8: =U8*$G$13 -> 60.55549856 | J8: =IF(AP8>I8,I8,AP8) -> 33.49251128 | K8: =V8*$G$13 -> 58.98645876 | L8: =IF(AQ8>K8,K8,AQ8) -> 32.91444399 | M8: =W8*$G$13 -> 55.58883874 | N8: =IF(AR8>M8,M8,AR8) -> 31.68752565 | O8: =X8*$G$13 -> 51.74292162 | P8: =IF(AS8>O8,O8,AS8) -> 30.3190398 | R8: 1.179318835 | S8: 1.130898646 | T8: 1.080426754 | U8: 1.053139105 | V8: 1.025851457 | W8: 0.9667624128 | X8: 0.8998768978 | Y8: 0.5337508699 | Z8: 0.5406386067 | AA8: 0.5484238511 | AB8: 0.5530878628 | AC8: 0.558 | AD8: 0.5700339559 | AE8: 0.5859553124 | AF8: 0.835 | AG8: 0.835 | AH8: 0.835 | AI8: 0.835 | AJ8: 0.835 | AK8: 0.835 | AL8: 0.835 | AM8: =Y8*C8+($A$4-80)*AF8*$A$8/1000 -> 36.1940911 | AN8: =Z8*E8+($A$4-80)*AG8*$A$8/1000 -> 35.15592942 | AO8: =AA8*G8+($A$4-80)*AH8*$A$8/1000 -> 34.07057858 | AP8: =AB8*I8+($A$4-80)*AI8*$A$8/1000 -> 33.49251128 | AQ8: =AC8*K8+($A$4-80)*AJ8*$A$8/1000 -> 32.91444399 | AR8: =AD8*M8+($A$4-80)*AK8*$A$8/1000 -> 31.68752565 | AS8: =AE8*O8+($A$4-80)*AL8*$A$8/1000 -> 30.3190398
B9: 67 | C9: 61.9357817 | D9: 44.75892491 | E9: 59.3639721 | F9: =IF(AN9>E9,E9,AN9) -> 43.67357407 | G9: =T9*$G$13 -> 56.62700041 | H9: =IF(AO9>G9,G9,AO9) -> 42.56462864 | I9: 55.18773082 | J9: =IF(AP9>I9,I9,AP9) -> 41.96296676 | K9: 53.74846122 | L9: =IF(AQ9>K9,K9,AQ9) -> 41.36130488 | M9: 50.53959787 | N9: =IF(AR9>M9,M9,AR9) -> 40.08719737 | O9: 46.95322117 | P9: =IF(AS9>O9,O9,AS9) -> 38.67152236 | R9: 1.07714403 | S9: 1.032416906 | T9: 0.9848173984 | U9: 0.9597866229 | V9: 0.9347558474 | W9: 0.8789495281 | X9: 0.8165777595 | Y9: 0.7226666667 | Z9: 0.7356915739 | AA9: 0.7516666667 | AB9: 0.7603676785 | AC9: 0.7695346795 | AD9: 0.7931839402 | AE9: 0.8236180905 | AF9: 0.835 | AG9: 0.835 | AH9: 0.835 | AI9: 0.835 | AJ9: 0.835 | AK9: 0.835 | AL9: 0.835 | AM9: =Y9*C9+($A$4-80)*AF9*$A$8/1000 -> 44.75892491 | AN9: =Z9*E9+($A$4-80)*AG9*$A$8/1000 -> 43.67357407 | AO9: =AA9*G9+($A$4-80)*AH9*$A$8/1000 -> 42.56462864 | AP9: =AB9*I9+($A$4-80)*AI9*$A$8/1000 -> 41.96296676 | AQ9: =AC9*K9+($A$4-80)*AJ9*$A$8/1000 -> 41.36130488 | AR9: =AD9*M9+($A$4-80)*AK9*$A$8/1000 -> 40.08719737 | AS9: =AE9*O9+($A$4-80)*AL9*$A$8/1000 -> 38.67152236
B10: 62 | C10: 56.53262208 | D10: 53.04062372 | E10: 54.17316373 | F10: 51.93167829 | G10: =T10*$G$13 -> 51.67213787 | H10: 50.75194912 | I10: 50.39803037 | J10: 49.93793599 | K10: 49.12392286 | L10: 49.12392286 | M10: 46.69368076 | N10: 46.69368076 | O10: 44.02749282 | P10: 44.02749282 | R10: 0.9831760361 | S10: 0.9421419778 | T10: 0.8986458761 | U10: 0.8764874846 | V10: 0.8543290931 | W10: 0.8120640131 | X10: 0.7656955273 | Y10: 0.938230384 | Z10: 0.9586236934 | AA10: 0.9821917808 | AB10: 0.9908707865 | AC10: 1 | AD10: 1 | AE10: 1 | AF10: 0.835 | AG10: 0.835 | AH10: 0.835 | AI10: 0.835 | AJ10: 0.835 | AK10: 0.835 | AL10: 0.835 | AM10: 53.04062372 | AN10: =Z10*E10+($A$4-80)*AG10*$A$8/1000 -> 51.93167829 | AO10: =AA10*G10+($A$4-80)*AH10*$A$8/1000 -> 50.75194912 | AP10: 49.93793599 | AQ10: 49.12392286 | AR10: 46.69368076 | AS10: 44.02749282
B11: 57 | C11: 55.09335248 | D11: 55.09335248 | E11: 53.2057858 | F11: 53.2057858 | G11: =T11*$G$13 -> 51.2002462 | H11: 51.2002462 | I11: 50.12669265 | J11: 50.12669265 | K11: 49.05313911 | L11: 49.05313911 | M11: 46.622897 | N11: 46.622897 | O11: 43.95670907 | P11: 43.95670907 | R11: 0.9581452606 | S11: 0.925318014 | T11: 0.8904390644 | U11: 0.8717685679 | V11: 0.8530980714 | W11: 0.8108329914 | X11: 0.7644645055 | Y11: 1 | Z11: 1 | AA11: 1 | AB11: 1 | AC11: 1 | AD11: 1 | AE11: 1 | AF11: 0.835 | AG11: 0.835 | AH11: 0.835 | AI11: 0.835 | AJ11: 0.835 | AK11: 0.835 | AL11: 0.835 | AM11: 55.09335248 | AN11: =Z11*E11+($A$4-80)*AG11*$A$8/1000 -> 53.2057858 | AO11: =AA11*G11+($A$4-80)*AH11*$A$8/1000 -> 51.2002462 | AP11: =AB11*I11+($A$4-80)*AI11*$A$8/1000 -> 50.12669265 | AQ11: 49.05313911 | AR11: 46.622897 | AS11: 43.95670907
A12: 800 | B12: 72 | C12: 68.943373 | D12: 38.17603611 | E12: 66.06483381 | F12: 37.13787444 | G12: =T12*$G$13 -> 63.02113254 | H12: 36.02892901 | I12: 61.39310628 | J12: 35.45086172 | K12: 59.76508002 | L12: 34.87279442 | M12: 56.27308166 | N12: 33.64587608 | O12: 52.28559705 | P12: 32.25379565 | R12: 1.199015183 | S12: 1.148953632 | T12: 1.096019696 | U12: 1.067706196 | V12: 1.039392696 | W12: 0.9786622897 | X12: 0.9093147312 | Y12: 0.5537303217 | Z12: 0.5621428571 | AA12: 0.571695994 | AB12: 0.5774404304 | AC12: 0.5834978287 | AD12: 0.5979035639 | AE12: 0.6168772563 | AF12: 0.835 | AG12: 0.835 | AH12: 0.835 | AI12: 0.835 | AJ12: 0.835 | AK12: 0.835 | AL12: 0.835 | AM12: =Y12*C12+($A$4-80)*AF12*$A$12/1000 -> 38.17603611 | AN12: =Z12*E12+($A$4-80)*AG12*$A$12/1000 -> 37.13787444 | AO12: =AA12*G12+($A$4-80)*AH12*$A$12/1000 -> 36.02892901 | AP12: =AB12*I12+($A$4-80)*AI12*$A$12/1000 -> 35.45086172 | AQ12: =AC12*K12+($A$4-80)*AJ12*$A$12/1000 -> 34.87279442 | AR12: =AD12*M12+($A$4-80)*AK12*$A$12/1000 -> 33.64587608 | AS12: =AE12*O12+($A$4-80)*AL12*$A$12/1000 -> 32.25379565
B13: 67 | C13: 62.99753796 | D13: 47.9205991 | E13: 60.33135002 | F13: 46.83524826 | G13: 57.5 | H13: 45.70270825 | I13: 55.98994666 | J13: 45.10104637 | K13: 54.47989331 | L13: 44.49938449 | M13: 51.22384079 | N13: 43.2016824 | O13: 47.54308576 | P13: 41.7624128 | R13: 1.095609356 | S13: 1.04924087 | T13: 1 | U13: 0.9737382027 | V13: 0.9474764054 | W13: 0.890849405 | X13: 0.8268362741 | Y13: 0.7606741573 | Z13: 0.776300352 | AA13: 0.7948297087 | AB13: 0.8055204383 | AC13: 0.8168038112 | AD13: 0.8433901428 | AE13: 0.8784119107 | AF13: 0.835 | AG13: 0.835 | AH13: 0.835 | AI13: 0.835 | AJ13: 0.835 | AK13: 0.835 | AL13: 0.835 | AM13: =Y13*C13+($A$4-80)*AF13*$A$12/1000 -> 47.9205991 | AN13: =Z13*E13+($A$4-80)*AG13*$A$12/1000 -> 46.83524826 | AO13: =AA13*G13+($A$4-80)*AH13*$A$12/1000 -> 45.70270825 | AP13: =AB13*I13+($A$4-80)*AI13*$A$12/1000 -> 45.10104637 | AQ13: =AC13*K13+($A$4-80)*AJ13*$A$12/1000 -> 44.49938449 | AR13: =AD13*M13+($A$4-80)*AK13*$A$12/1000 -> 43.2016824 | AS13: =AE13*O13+($A$4-80)*AL13*$A$12/1000 -> 41.7624128
B14: 62 | C14: 57.783135 | D14: 57.26405416 | E14: 55.54164957 | F14: 55.54164957 | G14: =T14*$G$13 -> 53.39454247 | H14: 53.39454247 | I14: 52.23840788 | J14: 52.23840788 | K14: 51.08227329 | L14: 51.08227329 | M14: 48.51046368 | N14: 48.51046368 | O14: 45.6319245 | P14: 45.6319245 | R14: 1.004924087 | S14: 0.9659417316 | T14: 0.9286007386 | U14: 0.9084940501 | V14: 0.8883873615 | W14: 0.843660238 | X14: 0.7935986869 | Y14: 0.9910167415 | Z14: 1 | AA14: 1 | AB14: 1 | AC14: 1 | AD14: 1 | AE14: 1 | AF14: 0.835 | AG14: 0.835 | AH14: 0.835 | AI14: 0.835 | AJ14: 0.835 | AK14: 0.835 | AL14: 0.835 | AM14: 57.26405416 | AN14: =Z14*E14+($A$4-80)*AG14*$A$12/1000 -> 55.54164957 | AO14: =AA14*G14+($A$4-80)*AH14*$A$12/1000 -> 53.39454247 | AP14: 52.23840788 | AQ14: 51.08227329 | AR14: 48.51046368 | AS14: 45.6319245
B15: 57 | C15: 57.47640542 | D15: 57.47640542 | E15: 55.44727124 | F15: 55.44727124 | G15: 53.32375872 | H15: 53.32375872 | I15: 52.16762413 | J15: 52.16762413 | K15: 51.01148954 | L15: 51.01148954 | M15: 48.43967993 | N15: 48.43967993 | O15: 45.58473533 | P15: 45.58473533 | R15: 0.9995896594 | S15: 0.9643003693 | T15: 0.9273697169 | U15: 0.9072630283 | V15: 0.8871563398 | W15: 0.8424292162 | X15: 0.7927780057 | Y15: 1 | Z15: 1 | AA15: 1 | AB15: 1 | AC15: 1 | AD15: 1 | AE15: 1 | AF15: 0.835 | AG15: 0.835 | AH15: 0.835 | AI15: 0.835 | AJ15: 0.835 | AK15: 0.835 | AL15: 0.835 | AM15: 57.47640542 | AN15: =Z15*E15+($A$4-80)*AG15*$A$12/1000 -> 55.44727124 | AO15: =AA15*G15+($A$4-80)*AH15*$A$12/1000 -> 53.32375872 | AP15: 52.16762413 | AQ15: 51.01148954 | AR15: 48.43967993 | AS15: 45.58473533
A16: 900 | B16: 72 | C16: 69.76918342 | D16: 40.13438654 | E16: 66.77267132 | F16: 39.07263028 | G16: 63.65818629 | H16: 37.96368486 | I16: 61.98297087 | J16: 37.38561756 | K16: 60.30775544 | L16: 36.80755027 | M16: 56.69778416 | N16: 35.53344276 | O16: 52.6395158 | P16: 34.14136233 | R16: 1.213377103 | S16: 1.161263849 | T16: 1.107098892 | U16: 1.077964711 | V16: 1.048830529 | W16: 0.9860484202 | X16: 0.91546984 | Y16: 0.5752451809 | Z16: 0.5851590106 | AA16: 0.5963676798 | AB16: 0.6031594975 | AC16: 0.6103286385 | AD16: 0.6267166042 | AE16: 0.6485880771 | AF16: 0.835 | AG16: 0.835 | AH16: 0.835 | AI16: 0.835 | AJ16: 0.835 | AK16: 0.835 | AL16: 0.835 | AM16: =Y16*C16+($A$4-80)*AF16*$A$16/1000 -> 40.13438654 | AN16: =Z16*E16+($A$4-80)*AG16*$A$16/1000 -> 39.07263028 | AO16: =AA16*G16+($A$4-80)*AH16*$A$16/1000 -> 37.96368486 | AP16: =AB16*I16+($A$4-80)*AI16*$A$16/1000 -> 37.38561756 | AQ16: =AC16*K16+($A$4-80)*AJ16*$A$16/1000 -> 36.80755027 | AR16: =AD16*M16+($A$4-80)*AK16*$A$16/1000 -> 35.53344276 | AS16: =AE16*O16+($A$4-80)*AL16*$A$16/1000 -> 34.14136233
B17: 67 | C17: 63.7997538 | D17: 51.01148954 | E17: 61.03918753 | F17: 49.9261387 | G17: 58.11345917 | H17: 48.74640952 | I17: 56.56801395 | J17: 48.14474764 | K17: 55.02256873 | L17: 47.54308576 | M17: 51.69573246 | N17: 46.22178908 | O17: 47.94419368 | P17: 44.73533032 | R17: 1.109560936 | S17: 1.061551087 | T17: 1.010668855 | U17: 0.983791547 | V17: 0.9569142388 | W17: 0.8990562167 | X17: 0.833812064 | Y17: 0.799556213 | Z17: 0.817935833 | AA17: 0.8388144539 | AB17: 0.8510948905 | AC17: 0.8640651801 | AD17: 0.8941122775 | AE17: 0.9330708661 | AF17: 0.835 | AG17: 0.835 | AH17: 0.835 | AI17: 0.835 | AJ17: 0.835 | AK17: 0.835 | AL17: 0.835 | AM17: =Y17*C17+($A$4-80)*AF17*$A$16/1000 -> 51.01148954 | AN17: =Z17*E17+($A$4-80)*AG17*$A$16/1000 -> 49.9261387 | AO17: =AA17*G17+($A$4-80)*AH17*$A$16/1000 -> 48.74640952 | AP17: =AB17*I17+($A$4-80)*AI17*$A$16/1000 -> 48.14474764 | AQ17: =AC17*K17+($A$4-80)*AJ17*$A$16/1000 -> 47.54308576 | AR17: =AD17*M17+($A$4-80)*AK17*$A$16/1000 -> 46.22178908 | AS17: =AE17*O17+($A$4-80)*AL17*$A$16/1000 -> 44.73533032
B18: 62 | C18: 59.52913418 | D18: 59.52913418 | E18: 57.38202708 | F18: 57.38202708 | G18: 55.11694707 | H18: 55.11694707 | I18: 53.89002872 | J18: 53.89002872 | K18: 52.66311038 | L18: 52.66311038 | M18: 49.99692245 | N18: 49.99692245 | O18: 46.95322117 | P18: 46.95322117 | R18: 1.03528929 | S18: 0.9979482971 | T18: 0.9585556011 | U18: 0.9372178908 | V18: 0.9158801805 | W18: 0.8695116947 | X18: 0.8165777595 | Y18: 1 | Z18: 1 | AA18: 1 | AB18: 1 | AC18: 1 | AD18: 1 | AE18: 1 | AF18: 0.835 | AG18: 0.835 | AH18: 0.835 | AI18: 0.835 | AJ18: 0.835 | AK18: 0.835 | AL18: 0.835 | AM18: 59.52913418 | AN18: =Z18*E18+($A$4-80)*AG18*$A$16/1000 -> 57.38202708 | AO18: =AA18*G18+($A$4-80)*AH18*$A$16/1000 -> 55.11694707 | AP18: 53.89002872 | AQ18: 52.66311038 | AR18: 49.99692245 | AS18: 46.95322117
B19: 57 | C19: 59.43475585 | D19: 59.43475585 | E19: 57.28764875 | F19: 57.28764875 | G19: 55.04616332 | H19: 55.04616332 | I19: 53.83104227 | J19: 53.83104227 | K19: 52.61592121 | L19: 52.61592121 | M19: 49.9261387 | N19: 49.9261387 | O19: 46.88243742 | P19: 46.88243742 | R19: 1.033647928 | S19: 0.9963069348 | T19: 0.9573245794 | U19: 0.9361920394 | V19: 0.9150594994 | W19: 0.868280673 | X19: 0.8153467378 | Y19: 1 | Z19: 1 | AA19: 1 | AB19: 1 | AC19: 1 | AD19: 1 | AE19: 1 | AF19: 0.835 | AG19: 0.835 | AH19: 0.835 | AI19: 0.835 | AJ19: 0.835 | AK19: 0.835 | AL19: 0.835 | AM19: 59.43475585 | AN19: =Z19*E19+($A$4-80)*AG19*$A$16/1000 -> 57.28764875 | AO19: =AA19*G19+($A$4-80)*AH19*$A$16/1000 -> 55.04616332 | AP19: 53.83104227 | AQ19: 52.61592121 | AR19: 49.9261387 | AS19: 46.88243742

Sheet CA15NA_30 (hidden)
A2: CA15NA_30
A3: Evaporator Air | C3: Condenser Entering Air Temperature ˚F
A4: 80 | B4: °F DB | C4: 75 | E4: 85 | G4: 95 | I4: 100 | K4: 105 | M4: 115 | O4: 125
A5: CFM | B5: EWB† ˚F | C5: Capacity Mbtuh | E5: Capacity Mbtuh | G5: Capacity Mbtuh | I5: Capacity Mbtuh | K5: Capacity Mbtuh | M5: Capacity Mbtuh | O5: Capacity Mbtuh
C6: Total | D6: Sens. | E6: Total | F6: Sens. | G6: Total | H6: Sens. | I6: Total | J6: Sens. | K6: Total | L6: Sens. | M6: Total | N6: Sens. | O6: Total | P6: Sens.
R7: Total Factors | Y7: Sens. % | AF7: IDB Adj | AM7: Sens Calc
A8: 875 | B8: 72 | C8: =R8*$G$13 -> 68.69842657 | D8: =IF(AM8>C8,C8,AM8) -> 36.06818182 | E8: =S8*$G$13 -> 65.60227273 | F8: =IF(AN8>E8,E8,AN8) -> 34.94230769 | G8: =T8*$G$13 -> 62.36538462 | H8: =IF(AO8>G8,G8,AO8) -> 33.75611888 | I8: =U8*$G$13 -> 60.66652098 | J8: =IF(AP8>I8,I8,AP8) -> 33.14291958 | K8: =V8*$G$13 -> 58.96765734 | L8: =IF(AQ8>K8,K8,AQ8) -> 32.52972028 | M8: =W8*$G$13 -> 55.30856643 | N8: =IF(AR8>M8,M8,AR8) -> 31.24300699 | O8: =X8*$G$13 -> 51.40821678 | P8: =IF(AS8>O8,O8,AS8) -> 29.87587413 | R8: 1.194755245 | S8: 1.140909091 | T8: 1.084615385 | U8: 1.05506993 | V8: 1.025524476 | W8: 0.9618881119 | X8: 0.8940559441 | Y8: 0.5250219491 | Z8: 0.5326386761 | AA8: 0.5412637008 | AB8: 0.5463131732 | AC8: 0.551653597 | AD8: 0.5648854962 | AE8: 0.5811497849 | AF8: 0.835 | AG8: 0.835 | AH8: 0.835 | AI8: 0.835 | AJ8: 0.835 | AK8: 0.835 | AL8: 0.835 | AM8: =Y8*C8+($A$4-80)*AF8*$A$8/1000 -> 36.06818182 | AN8: =Z8*E8+($A$4-80)*AG8*$A$8/1000 -> 34.94230769 | AO8: =AA8*G8+($A$4-80)*AH8*$A$8/1000 -> 33.75611888 | AP8: =AB8*I8+($A$4-80)*AI8*$A$8/1000 -> 33.14291958 | AQ8: =AC8*K8+($A$4-80)*AJ8*$A$8/1000 -> 32.52972028 | AR8: =AD8*M8+($A$4-80)*AK8*$A$8/1000 -> 31.24300699 | AS8: =AE8*O8+($A$4-80)*AL8*$A$8/1000 -> 29.87587413
B9: 67 | C9: 62.36538462 | D9: 44.43181818 | E9: 59.53059441 | F9: =IF(AN9>E9,E9,AN9) -> 43.28583916 | G9: =T9*$G$13 -> 56.57517483 | H9: =IF(AO9>G9,G9,AO9) -> 42.09965035 | I9: 55.00699301 | J9: =IF(AP9>I9,I9,AP9) -> 41.46634615 | K9: 53.43881119 | L9: =IF(AQ9>K9,K9,AQ9) -> 40.83304196 | M9: 50.08129371 | N9: =IF(AR9>M9,M9,AR9) -> 39.52622378 | O9: 46.50262238 | P9: =IF(AS9>O9,O9,AS9) -> 38.11888112 | R9: 1.084615385 | S9: 1.035314685 | T9: 0.9839160839 | U9: 0.9566433566 | V9: 0.9293706294 | W9: 0.870979021 | X9: 0.8087412587 | Y9: 0.7124435848 | Z9: 0.7271192165 | AA9: 0.7441364606 | AB9: 0.7538377193 | AC9: 0.7641083521 | AD9: 0.7892412686 | AE9: 0.8197146563 | AF9: 0.835 | AG9: 0.835 | AH9: 0.835 | AI9: 0.835 | AJ9: 0.835 | AK9: 0.835 | AL9: 0.835 | AM9: =Y9*C9+($A$4-80)*AF9*$A$8/1000 -> 44.43181818 | AN9: =Z9*E9+($A$4-80)*AG9*$A$8/1000 -> 43.28583916 | AO9: =AA9*G9+($A$4-80)*AH9*$A$8/1000 -> 42.09965035 | AP9: =AB9*I9+($A$4-80)*AI9*$A$8/1000 -> 41.46634615 | AQ9: =AC9*K9+($A$4-80)*AJ9*$A$8/1000 -> 40.83304196 | AR9: =AD9*M9+($A$4-80)*AK9*$A$8/1000 -> 39.52622378 | AS9: =AE9*O9+($A$4-80)*AL9*$A$8/1000 -> 38.11888112
B10: 62 | C10: 56.6756993 | D10: 52.5743007 | E10: 54.12237762 | F10: 51.38811189 | G10: =T10*$G$13 -> 51.46853147 | H10: 50.98601399 | I10: 50.20192308 | J10: 49.96066434 | K10: 48.93531469 | L10: 48.93531469 | M10: 46.46241259 | N10: 46.46241259 | O10: 43.74825175 | P10: 43.74825175 | R10: 0.9856643357 | S10: 0.9412587413 | T10: 0.8951048951 | U10: 0.8730769231 | V10: 0.851048951 | W10: 0.808041958 | X10: 0.7608391608 | Y10: 0.9276339127 | Z10: 0.9494799406 | AA10: 0.990625 | AB10: 0.9951942331 | AC10: 1 | AD10: 1 | AE10: 1 | AF10: 0.835 | AG10: 0.835 | AH10: 0.835 | AI10: 0.835 | AJ10: 0.835 | AK10: 0.835 | AL10: 0.835 | AM10: 52.5743007 | AN10: =Z10*E10+($A$4-80)*AG10*$A$8/1000 -> 51.38811189 | AO10: =AA10*G10+($A$4-80)*AH10*$A$8/1000 -> 50.98601399 | AP10: 49.96066434 | AQ10: 48.93531469 | AR10: 46.46241259 | AS10: 43.74825175
B11: 57 | C11: 55.30856643 | D11: 55.30856643 | E11: 53.29807692 | F11: 53.29807692 | G11: =T11*$G$13 -> 51.16695804 | H11: 51.16695804 | I11: 50.01092657 | J11: 50.01092657 | K11: 48.8548951 | L11: 48.8548951 | M11: 46.38199301 | N11: 46.38199301 | O11: 43.68793706 | P11: 43.68793706 | R11: 0.9618881119 | S11: 0.9269230769 | T11: 0.8898601399 | U11: 0.8697552448 | V11: 0.8496503497 | W11: 0.8066433566 | X11: 0.7597902098 | Y11: 1 | Z11: 1 | AA11: 1 | AB11: 1 | AC11: 1 | AD11: 1 | AE11: 1 | AF11: 0.835 | AG11: 0.835 | AH11: 0.835 | AI11: 0.835 | AJ11: 0.835 | AK11: 0.835 | AL11: 0.835 | AM11: 55.30856643 | AN11: =Z11*E11+($A$4-80)*AG11*$A$8/1000 -> 53.29807692 | AO11: =AA11*G11+($A$4-80)*AH11*$A$8/1000 -> 51.16695804 | AP11: =AB11*I11+($A$4-80)*AI11*$A$8/1000 -> 50.01092657 | AQ11: 48.8548951 | AR11: 46.38199301 | AS11: 43.68793706
A12: 1000 | B12: 72 | C12: 69.94493007 | D12: 38.09877622 | E12: 66.72814685 | F12: 36.93269231 | G12: =T12*$G$13 -> 63.35052448 | H12: 35.7465035 | I12: 61.56118881 | J12: 35.12325175 | K12: 59.77185315 | L12: 34.5 | M12: 55.99213287 | N12: 33.19318182 | O12: 51.97115385 | P12: 31.80594406 | R12: 1.216433566 | S12: 1.16048951 | T12: 1.101748252 | U12: 1.070629371 | V12: 1.03951049 | W12: 0.9737762238 | X12: 0.9038461538 | Y12: 0.5446967519 | Z12: 0.5534799638 | AA12: 0.5642653126 | AB12: 0.5705421293 | AC12: 0.5771947528 | AD12: 0.5928186715 | AE12: 0.6119922631 | AF12: 0.835 | AG12: 0.835 | AH12: 0.835 | AI12: 0.835 | AJ12: 0.835 | AK12: 0.835 | AL12: 0.835 | AM12: =Y12*C12+($A$4-80)*AF12*$A$12/1000 -> 38.09877622 | AN12: =Z12*E12+($A$4-80)*AG12*$A$12/1000 -> 36.93269231 | AO12: =AA12*G12+($A$4-80)*AH12*$A$12/1000 -> 35.7465035 | AP12: =AB12*I12+($A$4-80)*AI12*$A$12/1000 -> 35.12325175 | AQ12: =AC12*K12+($A$4-80)*AJ12*$A$12/1000 -> 34.5 | AR12: =AD12*M12+($A$4-80)*AK12*$A$12/1000 -> 33.19318182 | AS12: =AE12*O12+($A$4-80)*AL12*$A$12/1000 -> 31.80594406
B13: 67 | C13: 63.55157343 | D13: 47.6284965 | E13: 60.57604895 | F13: 46.46241259 | G13: 57.5 | H13: 45.23601399 | I13: 55.8715035 | J13: 44.60270979 | K13: 54.24300699 | L13: 43.96940559 | M13: 50.76486014 | N13: 42.60227273 | O13: 47.08566434 | P13: 41.19493007 | R13: 1.105244755 | S13: 1.053496503 | T13: 1 | U13: 0.9716783217 | V13: 0.9433566434 | W13: 0.8828671329 | X13: 0.8188811189 | Y13: 0.7494463777 | Z13: 0.767009625 | AA13: 0.7867132867 | AB13: 0.7983087442 | AC13: 0.8106004448 | AD13: 0.8392079208 | AE13: 0.8748932536 | AF13: 0.835 | AG13: 0.835 | AH13: 0.835 | AI13: 0.835 | AJ13: 0.835 | AK13: 0.835 | AL13: 0.835 | AM13: =Y13*C13+($A$4-80)*AF13*$A$12/1000 -> 47.6284965 | AN13: =Z13*E13+($A$4-80)*AG13*$A$12/1000 -> 46.46241259 | AO13: =AA13*G13+($A$4-80)*AH13*$A$12/1000 -> 45.23601399 | AP13: =AB13*I13+($A$4-80)*AI13*$A$12/1000 -> 44.60270979 | AQ13: =AC13*K13+($A$4-80)*AJ13*$A$12/1000 -> 43.96940559 | AR13: =AD13*M13+($A$4-80)*AK13*$A$12/1000 -> 42.60227273 | AS13: =AE13*O13+($A$4-80)*AL13*$A$12/1000 -> 41.19493007
B14: 62 | C14: 58.04283217 | D14: 57.72115385 | E14: 55.71066434 | F14: 55.71066434 | G14: =T14*$G$13 -> 53.3986014 | H14: 53.3986014 | I14: 52.16215035 | J14: 52.16215035 | K14: 50.9256993 | L14: 50.9256993 | M14: 48.25174825 | N14: 48.25174825 | O14: 45.37674825 | P14: 45.37674825 | R14: 1.009440559 | S14: 0.9688811189 | T14: 0.9286713287 | U14: 0.9071678322 | V14: 0.8856643357 | W14: 0.8391608392 | X14: 0.7891608392 | Y14: 0.9944579148 | Z14: 1 | AA14: 1 | AB14: 1 | AC14: 1 | AD14: 1 | AE14: 1 | AF14: 0.835 | AG14: 0.835 | AH14: 0.835 | AI14: 0.835 | AJ14: 0.835 | AK14: 0.835 | AL14: 0.835 | AM14: 57.72115385 | AN14: =Z14*E14+($A$4-80)*AG14*$A$12/1000 -> 55.71066434 | AO14: =AA14*G14+($A$4-80)*AH14*$A$12/1000 -> 53.3986014 | AP14: 52.16215035 | AQ14: 50.9256993 | AR14: 48.25174825 | AS14: 45.37674825
B15: 57 | C15: 57.80157343 | D15: 57.80157343 | E15: 55.61013986 | F15: 55.61013986 | G15: 53.31818182 | H15: 53.31818182 | I15: 52.08173077 | J15: 52.08173077 | K15: 50.84527972 | L15: 50.84527972 | M15: 48.19143357 | N15: 48.19143357 | O15: 45.31643357 | P15: 45.31643357 | R15: 1.005244755 | S15: 0.9671328671 | T15: 0.9272727273 | U15: 0.9057692308 | V15: 0.8842657343 | W15: 0.8381118881 | X15: 0.7881118881 | Y15: 1 | Z15: 1 | AA15: 1 | AB15: 1 | AC15: 1 | AD15: 1 | AE15: 1 | AF15: 0.835 | AG15: 0.835 | AH15: 0.835 | AI15: 0.835 | AJ15: 0.835 | AK15: 0.835 | AL15: 0.835 | AM15: 57.80157343 | AN15: =Z15*E15+($A$4-80)*AG15*$A$12/1000 -> 55.61013986 | AO15: =AA15*G15+($A$4-80)*AH15*$A$12/1000 -> 53.31818182 | AP15: 52.08173077 | AQ15: 50.84527972 | AR15: 48.19143357 | AS15: 45.31643357
A16: 1125 | B16: 72 | C16: 70.84965035 | D16: 40.06905594 | E16: 67.49213287 | F16: 38.90297203 | G16: 64.01398601 | H16: 37.67657343 | I16: 62.18444056 | J16: 37.04326923 | K16: 60.3548951 | L16: 36.40996503 | M16: 56.45454545 | N16: 35.08304196 | O16: 52.31293706 | P16: 33.6756993 | R16: 1.232167832 | S16: 1.173776224 | T16: 1.113286713 | U16: 1.081468531 | V16: 1.04965035 | W16: 0.9818181818 | X16: 0.9097902098 | Y16: 0.5655505108 | Z16: 0.5764075067 | AA16: 0.5885678392 | AB16: 0.5956999677 | AC16: 0.6032644903 | AD16: 0.6214387464 | AE16: 0.643735588 | AF16: 0.835 | AG16: 0.835 | AH16: 0.835 | AI16: 0.835 | AJ16: 0.835 | AK16: 0.835 | AL16: 0.835 | AM16: =Y16*C16+($A$4-80)*AF16*$A$16/1000 -> 40.06905594 | AN16: =Z16*E16+($A$4-80)*AG16*$A$16/1000 -> 38.90297203 | AO16: =AA16*G16+($A$4-80)*AH16*$A$16/1000 -> 37.67657343 | AP16: =AB16*I16+($A$4-80)*AI16*$A$16/1000 -> 37.04326923 | AQ16: =AC16*K16+($A$4-80)*AJ16*$A$16/1000 -> 36.40996503 | AR16: =AD16*M16+($A$4-80)*AK16*$A$16/1000 -> 35.08304196 | AS16: =AE16*O16+($A$4-80)*AL16*$A$16/1000 -> 33.6756993
B17: 67 | C17: 64.43618881 | D17: 50.74475524 | E17: 61.38024476 | F17: 49.53846154 | G17: 58.18356643 | H17: 48.29195804 | I17: 56.50480769 | J17: 47.63854895 | K17: 54.82604895 | L17: 46.98513986 | M17: 51.28758741 | N17: 45.61800699 | O17: 47.50786713 | P17: 44.13024476 | R17: 1.120629371 | S17: 1.067482517 | T17: 1.011888112 | U17: 0.9826923077 | V17: 0.9534965035 | W17: 0.891958042 | X17: 0.8262237762 | Y17: 0.7875195008 | Z17: 0.8070750082 | AA17: 0.8299930891 | AB17: 0.8430884184 | AC17: 0.8569856986 | AD17: 0.8894551156 | AE17: 0.9289039357 | AF17: 0.835 | AG17: 0.835 | AH17: 0.835 | AI17: 0.835 | AJ17: 0.835 | AK17: 0.835 | AL17: 0.835 | AM17: =Y17*C17+($A$4-80)*AF17*$A$16/1000 -> 50.74475524 | AN17: =Z17*E17+($A$4-80)*AG17*$A$16/1000 -> 49.53846154 | AO17: =AA17*G17+($A$4-80)*AH17*$A$16/1000 -> 48.29195804 | AP17: =AB17*I17+($A$4-80)*AI17*$A$16/1000 -> 47.63854895 | AQ17: =AC17*K17+($A$4-80)*AJ17*$A$16/1000 -> 46.98513986 | AR17: =AD17*M17+($A$4-80)*AK17*$A$16/1000 -> 45.61800699 | AS17: =AE17*O17+($A$4-80)*AL17*$A$16/1000 -> 44.13024476
B18: 62 | C18: 59.9729021 | D18: 59.9729021 | E18: 57.64073427 | F18: 57.64073427 | G18: 55.18793706 | H18: 55.18793706 | I18: 53.88111888 | J18: 53.88111888 | K18: 52.5743007 | L18: 52.5743007 | M18: 49.73951049 | N18: 49.73951049 | O18: 46.70367133 | P18: 46.70367133 | R18: 1.043006993 | S18: 1.002447552 | T18: 0.9597902098 | U18: 0.9370629371 | V18: 0.9143356643 | W18: 0.865034965 | X18: 0.8122377622 | Y18: 1 | Z18: 1 | AA18: 1 | AB18: 1 | AC18: 1 | AD18: 1 | AE18: 1 | AF18: 0.835 | AG18: 0.835 | AH18: 0.835 | AI18: 0.835 | AJ18: 0.835 | AK18: 0.835 | AL18: 0.835 | AM18: 59.9729021 | AN18: =Z18*E18+($A$4-80)*AG18*$A$16/1000 -> 57.64073427 | AO18: =AA18*G18+($A$4-80)*AH18*$A$16/1000 -> 55.18793706 | AP18: 53.88111888 | AQ18: 52.5743007 | AR18: 49.73951049 | AS18: 46.70367133
B19: 57 | C19: 59.89248252 | D19: 59.89248252 | E19: 57.56031469 | F19: 57.56031469 | G19: 55.10751748 | H19: 55.10751748 | I19: 53.8006993 | J19: 53.8006993 | K19: 52.49388112 | L19: 52.49388112 | M19: 49.6791958 | N19: 49.6791958 | O19: 46.64335664 | P19: 46.64335664 | R19: 1.041608392 | S19: 1.001048951 | T19: 0.9583916084 | U19: 0.9356643357 | V19: 0.9129370629 | W19: 0.863986014 | X19: 0.8111888112 | Y19: 1 | Z19: 1 | AA19: 1 | AB19: 1 | AC19: 1 | AD19: 1 | AE19: 1 | AF19: 0.835 | AG19: 0.835 | AH19: 0.835 | AI19: 0.835 | AJ19: 0.835 | AK19: 0.835 | AL19: 0.835 | AM19: 59.89248252 | AN19: =Z19*E19+($A$4-80)*AG19*$A$16/1000 -> 57.56031469 | AO19: =AA19*G19+($A$4-80)*AH19*$A$16/1000 -> 55.10751748 | AP19: 53.8006993 | AQ19: 52.49388112 | AR19: 49.6791958 | AS19: 46.64335664

Sheet CA15NA_36 (hidden)
A2: CA15NA_36
A3: Evaporator Air | C3: Condenser Entering Air Temperature ˚F
A4: 80 | B4: °F DB | C4: 75 | E4: 85 | G4: 95 | I4: 100 | K4: 105 | M4: 115 | O4: 125
A5: CFM | B5: EWB† ˚F | C5: Capacity Mbtuh | E5: Capacity Mbtuh | G5: Capacity Mbtuh | I5: Capacity Mbtuh | K5: Capacity Mbtuh | M5: Capacity Mbtuh | O5: Capacity Mbtuh
C6: Total | D6: Sens. | E6: Total | F6: Sens. | G6: Total | H6: Sens. | I6: Total | J6: Sens. | K6: Total | L6: Sens. | M6: Total | N6: Sens. | O6: Total | P6: Sens.
R7: Total Factors | Y7: Sens. % | AF7: IDB Adj | AM7: Sens Calc
A8: 1050 | B8: 72 | C8: =R8*$G$13 -> 68.00385935 | D8: =IF(AM8>C8,C8,AM8) -> 34.97998856 | E8: =S8*$G$13 -> 65.11077759 | F8: =IF(AN8>E8,E8,AN8) -> 33.96083476 | G8: =T8*$G$13 -> 61.37935963 | H8: =IF(AO8>G8,G8,AO8) -> 32.66223556 | I8: =U8*$G$13 -> 59.29173814 | J8: =IF(AP8>I8,I8,AP8) -> 31.95540309 | K8: =V8*$G$13 -> 57.20411664 | L8: =IF(AQ8>K8,K8,AQ8) -> 31.24857061 | M8: =W8*$G$13 -> 52.96312178 | N8: =IF(AR8>M8,M8,AR8) -> 29.80202973 | O8: =X8*$G$13 -> 48.88650658 | P8: =IF(AS8>O8,O8,AS8) -> 28.4705546 | R8: 1.182675815 | S8: 1.132361349 | T8: 1.067467124 | U8: 1.031160663 | V8: 0.9948542024 | W8: 0.9210977702 | X8: 0.8502001144 | Y8: 0.5143824027 | Z8: 0.5215854582 | AA8: 0.5321371184 | AB8: 0.5389520377 | AC8: 0.5462643678 | AD8: 0.5626939789 | AE8: 0.5823806321 | AF8: 0.835 | AG8: 0.835 | AH8: 0.835 | AI8: 0.835 | AJ8: 0.835 | AK8: 0.835 | AL8: 0.835 | AM8: =Y8*C8+($A$4-80)*AF8*$A$8/1000 -> 34.97998856 | AN8: =Z8*E8+($A$4-80)*AG8*$A$8/1000 -> 33.96083476 | AO8: =AA8*G8+($A$4-80)*AH8*$A$8/1000 -> 32.66223556 | AP8: =AB8*I8+($A$4-80)*AI8*$A$8/1000 -> 31.95540309 | AQ8: =AC8*K8+($A$4-80)*AJ8*$A$8/1000 -> 31.24857061 | AR8: =AD8*M8+($A$4-80)*AK8*$A$8/1000 -> 29.80202973 | AS8: =AE8*O8+($A$4-80)*AL8*$A$8/1000 -> 28.4705546
B9: 67 | C9: 62.85877644 | D9: 43.7742996 | E9: 60.29445397 | F9: =IF(AN9>E9,E9,AN9) -> 42.77158376 | G9: =T9*$G$13 -> 56.87535735 | H9: =IF(AO9>G9,G9,AO9) -> 41.44010863 | I9: 54.95211549 | J9: =IF(AP9>I9,I9,AP9) -> 40.70861921 | K9: 53.02887364 | L9: =IF(AQ9>K9,K9,AQ9) -> 39.97712979 | M9: 49.13307604 | N9: =IF(AR9>M9,M9,AR9) -> 38.49771298 | O9: 45.36878216 | P9: =IF(AS9>O9,O9,AS9) -> 37.08404803 | R9: 1.093196112 | S9: 1.0485992 | T9: 0.9891366495 | U9: 0.9556889651 | V9: 0.9222412807 | W9: 0.854488279 | X9: 0.7890222985 | Y9: 0.6963912134 | Z9: 0.7093784079 | AA9: 0.7286127168 | AB9: 0.7408016751 | AC9: 0.7538747675 | AD9: 0.7835396454 | AE9: 0.8173913043 | AF9: 0.835 | AG9: 0.835 | AH9: 0.835 | AI9: 0.835 | AJ9: 0.835 | AK9: 0.835 | AL9: 0.835 | AM9: =Y9*C9+($A$4-80)*AF9*$A$8/1000 -> 43.7742996 | AN9: =Z9*E9+($A$4-80)*AG9*$A$8/1000 -> 42.77158376 | AO9: =AA9*G9+($A$4-80)*AH9*$A$8/1000 -> 41.44010863 | AP9: =AB9*I9+($A$4-80)*AI9*$A$8/1000 -> 40.70861921 | AQ9: =AC9*K9+($A$4-80)*AJ9*$A$8/1000 -> 39.97712979 | AR9: =AD9*M9+($A$4-80)*AK9*$A$8/1000 -> 38.49771298 | AS9: =AE9*O9+($A$4-80)*AL9*$A$8/1000 -> 37.08404803
B10: 62 | C10: 57.86163522 | D10: 52.19053745 | E10: 55.64251001 | F10: 51.17138365 | G10: =T10*$G$13 -> 52.61792453 | H10: 52.38779302 | I10: 51.11385077 | J10: 50.99878502 | K10: 49.60977702 | L10: 49.60977702 | M10: 46.56875357 | N10: 46.56875357 | O10: 43.59348199 | P10: 43.59348199 | R10: 1.006289308 | S10: 0.9676958262 | T10: 0.9150943396 | U10: 0.8889365352 | V10: 0.8627787307 | W10: 0.8098913665 | X10: 0.7581475129 | Y10: 0.9019886364 | Z10: 0.9196454948 | AA10: 0.9956263668 | AB10: 0.9977488342 | AC10: 1 | AD10: 1 | AE10: 1 | AF10: 0.835 | AG10: 0.835 | AH10: 0.835 | AI10: 0.835 | AJ10: 0.835 | AK10: 0.835 | AL10: 0.835 | AM10: 52.19053745 | AN10: =Z10*E10+($A$4-80)*AG10*$A$8/1000 -> 51.17138365 | AO10: =AA10*G10+($A$4-80)*AH10*$A$8/1000 -> 52.38779302 | AP10: 50.99878502 | AQ10: 49.60977702 | AR10: 46.56875357 | AS10: 43.59348199
B11: 57 | C11: 56.77672956 | D11: 56.77672956 | E11: 54.95211549 | F11: 54.95211549 | G11: =T11*$G$13 -> 52.43710692 | H11: 52.43710692 | I11: 50.99056604 | J11: 50.99056604 | K11: 49.54402516 | L11: 49.54402516 | M11: 46.50300172 | N11: 46.50300172 | O11: 43.52773013 | P11: 43.52773013 | R11: 0.9874213836 | S11: 0.9556889651 | T11: 0.9119496855 | U11: 0.8867924528 | V11: 0.8616352201 | W11: 0.8087478559 | X11: 0.7570040023 | Y11: 1 | Z11: 1 | AA11: 1 | AB11: 1 | AC11: 1 | AD11: 1 | AE11: 1 | AF11: 0.835 | AG11: 0.835 | AH11: 0.835 | AI11: 0.835 | AJ11: 0.835 | AK11: 0.835 | AL11: 0.835 | AM11: 56.77672956 | AN11: =Z11*E11+($A$4-80)*AG11*$A$8/1000 -> 54.95211549 | AO11: =AA11*G11+($A$4-80)*AH11*$A$8/1000 -> 52.43710692 | AP11: =AB11*I11+($A$4-80)*AI11*$A$8/1000 -> 50.99056604 | AQ11: 49.54402516 | AR11: 46.50300172 | AS11: 43.52773013
A12: 1200 | B12: 72 | C12: 68.76000572 | D12: 36.83747856 | E12: 65.73542024 | F12: 35.80188679 | G12: =T12*$G$13 -> 61.87249857 | H12: 34.48684963 | I12: 59.73556318 | J12: 33.77179817 | K12: 57.59862779 | L12: 33.05674671 | M12: 53.24256718 | N12: 31.61020583 | O12: 49.05088622 | P12: 30.22941681 | R12: 1.195826186 | S12: 1.1432247 | T12: 1.076043453 | U12: 1.03887936 | V12: 1.001715266 | W12: 0.9259576901 | X12: 0.8530588908 | Y12: 0.5357398996 | Z12: 0.544636159 | AA12: 0.5573857598 | AB12: 0.5653549807 | AC12: 0.5739155251 | AD12: 0.5937017598 | AE12: 0.6162868633 | AF12: 0.835 | AG12: 0.835 | AH12: 0.835 | AI12: 0.835 | AJ12: 0.835 | AK12: 0.835 | AL12: 0.835 | AM12: =Y12*C12+($A$4-80)*AF12*$A$12/1000 -> 36.83747856 | AN12: =Z12*E12+($A$4-80)*AG12*$A$12/1000 -> 35.80188679 | AO12: =AA12*G12+($A$4-80)*AH12*$A$12/1000 -> 34.48684963 | AP12: =AB12*I12+($A$4-80)*AI12*$A$12/1000 -> 33.77179817 | AQ12: =AC12*K12+($A$4-80)*AJ12*$A$12/1000 -> 33.05674671 | AR12: =AD12*M12+($A$4-80)*AK12*$A$12/1000 -> 31.61020583 | AS12: =AE12*O12+($A$4-80)*AL12*$A$12/1000 -> 30.22941681
B13: 67 | C13: 63.7135506 | D13: 46.81532304 | E13: 61.03416238 | F13: 45.77973128 | G13: 57.5 | H13: 44.43181818 | I13: 55.51922527 | J13: 43.69210978 | K13: 53.53845054 | L13: 42.95240137 | M13: 49.52758719 | N13: 41.44010863 | O13: 45.68110349 | P13: 39.97712979 | R13: 1.10806175 | S13: 1.061463694 | T13: 1 | U13: 0.9655517439 | V13: 0.9311034877 | W13: 0.8613493425 | X13: 0.7944539737 | Y13: 0.7347781218 | Z13: 0.750067331 | AA13: 0.7727272727 | AB13: 0.7869726129 | AC13: 0.8022720295 | AD13: 0.8367076004 | AE13: 0.8751349406 | AF13: 0.835 | AG13: 0.835 | AH13: 0.835 | AI13: 0.835 | AJ13: 0.835 | AK13: 0.835 | AL13: 0.835 | AM13: =Y13*C13+($A$4-80)*AF13*$A$12/1000 -> 46.81532304 | AN13: =Z13*E13+($A$4-80)*AG13*$A$12/1000 -> 45.77973128 | AO13: =AA13*G13+($A$4-80)*AH13*$A$12/1000 -> 44.43181818 | AP13: =AB13*I13+($A$4-80)*AI13*$A$12/1000 -> 43.69210978 | AQ13: =AC13*K13+($A$4-80)*AJ13*$A$12/1000 -> 42.95240137 | AR13: =AD13*M13+($A$4-80)*AK13*$A$12/1000 -> 41.44010863 | AS13: =AE13*O13+($A$4-80)*AL13*$A$12/1000 -> 39.97712979
B14: 62 | C14: 59.12735849 | D14: 59.12735849 | E14: 57.12192682 | F14: 57.12192682 | G14: =T14*$G$13 -> 54.37678674 | H14: 54.37678674 | I14: 52.80696112 | J14: 52.80696112 | K14: 51.23713551 | L14: 51.23713551 | M14: 47.98241852 | N14: 47.98241852 | O14: 44.77701544 | P14: 44.77701544 | R14: 1.028301887 | S14: 0.9934248142 | T14: 0.9456832476 | U14: 0.9183819325 | V14: 0.8910806175 | W14: 0.8344768439 | X14: 0.7787307033 | Y14: 1 | Z14: 1 | AA14: 1 | AB14: 1 | AC14: 1 | AD14: 1 | AE14: 1 | AF14: 0.835 | AG14: 0.835 | AH14: 0.835 | AI14: 0.835 | AJ14: 0.835 | AK14: 0.835 | AL14: 0.835 | AM14: 59.12735849 | AN14: =Z14*E14+($A$4-80)*AG14*$A$12/1000 -> 57.12192682 | AO14: =AA14*G14+($A$4-80)*AH14*$A$12/1000 -> 54.37678674 | AP14: 52.80696112 | AQ14: 51.23713551 | AR14: 47.98241852 | AS14: 44.77701544
B15: 57 | C15: 59.0287307 | D15: 59.0287307 | E15: 57.03973699 | F15: 57.03973699 | G15: 54.31103488 | H15: 54.31103488 | I15: 52.74120926 | J15: 52.74120926 | K15: 51.17138365 | L15: 51.17138365 | M15: 47.93310463 | N15: 47.93310463 | O15: 44.74413951 | P15: 44.74413951 | R15: 1.026586621 | S15: 0.991995426 | T15: 0.944539737 | U15: 0.917238422 | V15: 0.8899371069 | W15: 0.833619211 | X15: 0.778158948 | Y15: 1 | Z15: 1 | AA15: 1 | AB15: 1 | AC15: 1 | AD15: 1 | AE15: 1 | AF15: 0.835 | AG15: 0.835 | AH15: 0.835 | AI15: 0.835 | AJ15: 0.835 | AK15: 0.835 | AL15: 0.835 | AM15: 59.0287307 | AN15: =Z15*E15+($A$4-80)*AG15*$A$12/1000 -> 57.03973699 | AO15: =AA15*G15+($A$4-80)*AH15*$A$12/1000 -> 54.31103488 | AP15: 52.74120926 | AQ15: 51.17138365 | AR15: 47.93310463 | AS15: 44.74413951
A16: 1350 | B16: 72 | C16: 69.23670669 | D16: 38.6292167 | E16: 66.12993139 | F16: 37.57718696 | G16: 62.16838193 | H16: 36.24571184 | I16: 59.98213265 | J16: 35.53066038 | K16: 57.79588336 | L16: 34.81560892 | M16: 53.34119497 | N16: 33.35263007 | O16: 49.08376215 | P16: 31.95540309 | R16: 1.204116638 | S16: 1.150085763 | T16: 1.081189251 | U16: 1.043167524 | V16: 1.005145798 | W16: 0.927672956 | X16: 0.8536306461 | Y16: 0.5579297246 | Z16: 0.5682326622 | AA16: 0.5830248546 | AB16: 0.5923540696 | AC16: 0.6023890785 | AD16: 0.6252696456 | AE16: 0.6510381782 | AF16: 0.835 | AG16: 0.835 | AH16: 0.835 | AI16: 0.835 | AJ16: 0.835 | AK16: 0.835 | AL16: 0.835 | AM16: =Y16*C16+($A$4-80)*AF16*$A$16/1000 -> 38.6292167 | AN16: =Z16*E16+($A$4-80)*AG16*$A$16/1000 -> 37.57718696 | AO16: =AA16*G16+($A$4-80)*AH16*$A$16/1000 -> 36.24571184 | AP16: =AB16*I16+($A$4-80)*AI16*$A$16/1000 -> 35.53066038 | AQ16: =AC16*K16+($A$4-80)*AJ16*$A$16/1000 -> 34.81560892 | AR16: =AD16*M16+($A$4-80)*AK16*$A$16/1000 -> 33.35263007 | AS16: =AE16*O16+($A$4-80)*AL16*$A$16/1000 -> 31.95540309
B17: 67 | C17: 64.32175529 | D17: 49.77415666 | E17: 61.54373928 | F17: 48.72212693 | G17: 57.91094911 | H17: 47.34133791 | I17: 55.89729846 | J17: 46.57697256 | K17: 53.8836478 | L17: 45.8126072 | M17: 49.82347055 | N17: 44.26743854 | O17: 45.91123499 | P17: 42.68939394 | R17: 1.118639222 | S17: 1.070325901 | T17: 1.007146941 | U17: 0.9721269297 | V17: 0.9371069182 | W17: 0.8664951401 | X17: 0.7984562607 | Y17: 0.7738308203 | Z17: 0.7916666667 | AA17: 0.8174850979 | AB17: 0.8332598147 | AC17: 0.8502135448 | AD17: 0.8884856483 | AE17: 0.9298245614 | AF17: 0.835 | AG17: 0.835 | AH17: 0.835 | AI17: 0.835 | AJ17: 0.835 | AK17: 0.835 | AL17: 0.835 | AM17: =Y17*C17+($A$4-80)*AF17*$A$16/1000 -> 49.77415666 | AN17: =Z17*E17+($A$4-80)*AG17*$A$16/1000 -> 48.72212693 | AO17: =AA17*G17+($A$4-80)*AH17*$A$16/1000 -> 47.34133791 | AP17: =AB17*I17+($A$4-80)*AI17*$A$16/1000 -> 46.57697256 | AQ17: =AC17*K17+($A$4-80)*AJ17*$A$16/1000 -> 45.8126072 | AR17: =AD17*M17+($A$4-80)*AK17*$A$16/1000 -> 44.26743854 | AS17: =AE17*O17+($A$4-80)*AL17*$A$16/1000 -> 42.68939394
B18: 62 | C18: 60.91909663 | D18: 60.91909663 | E18: 58.74928531 | F18: 58.74928531 | G18: 55.82332762 | H18: 55.82332762 | I18: 54.1630932 | J18: 54.1630932 | K18: 52.50285878 | L18: 52.50285878 | M18: 49.05088622 | N18: 49.05088622 | O18: 45.68110349 | P18: 45.68110349 | R18: 1.05946255 | S18: 1.021726701 | T18: 0.9708404803 | U18: 0.9419668382 | V18: 0.9130931961 | W18: 0.8530588908 | X18: 0.7944539737 | Y18: 1 | Z18: 1 | AA18: 1 | AB18: 1 | AC18: 1 | AD18: 1 | AE18: 1 | AF18: 0.835 | AG18: 0.835 | AH18: 0.835 | AI18: 0.835 | AJ18: 0.835 | AK18: 0.835 | AL18: 0.835 | AM18: 60.91909663 | AN18: =Z18*E18+($A$4-80)*AG18*$A$16/1000 -> 58.74928531 | AO18: =AA18*G18+($A$4-80)*AH18*$A$16/1000 -> 55.82332762 | AP18: 54.1630932 | AQ18: 52.50285878 | AR18: 49.05088622 | AS18: 45.68110349
B19: 57 | C19: 60.8369068 | D19: 60.8369068 | E19: 58.68353345 | F19: 58.68353345 | G19: 55.75757576 | H19: 55.75757576 | I19: 54.09734134 | J19: 54.09734134 | K19: 52.43710692 | L19: 52.43710692 | M19: 49.00157233 | N19: 49.00157233 | O19: 45.63178959 | P19: 45.63178959 | R19: 1.058033162 | S19: 1.02058319 | T19: 0.9696969697 | U19: 0.9408233276 | V19: 0.9119496855 | W19: 0.8522012579 | X19: 0.7935963408 | Y19: 1 | Z19: 1 | AA19: 1 | AB19: 1 | AC19: 1 | AD19: 1 | AE19: 1 | AF19: 0.835 | AG19: 0.835 | AH19: 0.835 | AI19: 0.835 | AJ19: 0.835 | AK19: 0.835 | AL19: 0.835 | AM19: 60.8369068 | AN19: =Z19*E19+($A$4-80)*AG19*$A$16/1000 -> 58.68353345 | AO19: =AA19*G19+($A$4-80)*AH19*$A$16/1000 -> 55.75757576 | AP19: 54.09734134 | AQ19: 52.43710692 | AR19: 49.00157233 | AS19: 45.63178959

Sheet CA15NA_42 (hidden)
A2: CA15NA_42
A3: Evaporator Air | C3: Condenser Entering Air Temperature ˚F
A4: 80 | B4: °F DB | C4: 75 | E4: 85 | G4: 95 | I4: 100 | K4: 105 | M4: 115 | O4: 125
A5: CFM | B5: EWB† ˚F | C5: Capacity Mbtuh | E5: Capacity Mbtuh | G5: Capacity Mbtuh | I5: Capacity Mbtuh | K5: Capacity Mbtuh | M5: Capacity Mbtuh | O5: Capacity Mbtuh
C6: Total | D6: Sens. | E6: Total | F6: Sens. | G6: Total | H6: Sens. | I6: Total | J6: Sens. | K6: Total | L6: Sens. | M6: Total | N6: Sens. | O6: Total | P6: Sens.
R7: Total Factors | Y7: Sens. % | AF7: IDB Adj | AM7: Sens Calc
A8: 1200 | B8: 72 | C8: =R8*$G$13 -> 68.15860545 | D8: =IF(AM8>C8,C8,AM8) -> 36.40866683 | E8: =S8*$G$13 -> 65.16572551 | F8: =IF(AN8>E8,E8,AN8) -> 35.27927817 | G8: =T8*$G$13 -> 62.08814142 | H8: =IF(AO8>G8,G8,AO8) -> 34.1216548 | I8: =U8*$G$13 -> 60.45052787 | J8: =IF(AP8>I8,I8,AP8) -> 33.5146084 | K8: =V8*$G$13 -> 58.81291431 | L8: =IF(AQ8>K8,K8,AQ8) -> 32.90756199 | M8: =W8*$G$13 -> 55.28357476 | N8: =IF(AR8>M8,M8,AR8) -> 31.6228824 | O8: =X8*$G$13 -> 51.40130125 | P8: =IF(AS8>O8,O8,AS8) -> 30.21114658 | R8: 1.185367051 | S8: 1.133316965 | T8: 1.079793764 | U8: 1.051313528 | V8: 1.022833292 | W8: 0.9614534741 | X8: 0.893935674 | Y8: 0.5341756421 | Z8: 0.5413778163 | AA8: 0.5495679854 | AB8: 0.5544138253 | AC8: 0.5595295247 | AD8: 0.5720122574 | AE8: 0.587750618 | AF8: 0.835 | AG8: 0.835 | AH8: 0.835 | AI8: 0.835 | AJ8: 0.835 | AK8: 0.835 | AL8: 0.835 | AM8: =Y8*C8+($A$4-80)*AF8*$A$8/1000 -> 36.40866683 | AN8: =Z8*E8+($A$4-80)*AG8*$A$8/1000 -> 35.27927817 | AO8: =AA8*G8+($A$4-80)*AH8*$A$8/1000 -> 34.1216548 | AP8: =AB8*I8+($A$4-80)*AI8*$A$8/1000 -> 33.5146084 | AQ8: =AC8*K8+($A$4-80)*AJ8*$A$8/1000 -> 32.90756199 | AR8: =AD8*M8+($A$4-80)*AK8*$A$8/1000 -> 31.6228824 | AS8: =AE8*O8+($A$4-80)*AL8*$A$8/1000 -> 30.21114658
B9: 67 | C9: 61.9610852 | D9: 44.73790818 | E9: 59.25055242 | F9: =IF(AN9>E9,E9,AN9) -> 43.59440216 | G9: =T9*$G$13 -> 56.46943285 | H9: =IF(AO9>G9,G9,AO9) -> 42.45089615 | I9: 54.98711024 | J9: =IF(AP9>I9,I9,AP9) -> 41.83679106 | K9: 53.50478763 | L9: =IF(AQ9>K9,K9,AQ9) -> 41.22268598 | M9: 50.25779524 | N9: =IF(AR9>M9,M9,AR9) -> 39.90977167 | O9: 46.70022097 | P9: =IF(AS9>O9,O9,AS9) -> 38.48391849 | R9: 1.07758409 | S9: 1.03044439 | T9: 0.9820770931 | U9: 0.9562975694 | V9: 0.9305180457 | W9: 0.8740486128 | X9: 0.812177756 | Y9: 0.7220323536 | Z9: 0.7357636407 | AA9: 0.75175 | AB9: 0.7608472401 | AC9: 0.7704485488 | AD9: 0.7941011236 | AE9: 0.8240628779 | AF9: 0.835 | AG9: 0.835 | AH9: 0.835 | AI9: 0.835 | AJ9: 0.835 | AK9: 0.835 | AL9: 0.835 | AM9: =Y9*C9+($A$4-80)*AF9*$A$8/1000 -> 44.73790818 | AN9: =Z9*E9+($A$4-80)*AG9*$A$8/1000 -> 43.59440216 | AO9: =AA9*G9+($A$4-80)*AH9*$A$8/1000 -> 42.45089615 | AP9: =AB9*I9+($A$4-80)*AI9*$A$8/1000 -> 41.83679106 | AQ9: =AC9*K9+($A$4-80)*AJ9*$A$8/1000 -> 41.22268598 | AR9: =AD9*M9+($A$4-80)*AK9*$A$8/1000 -> 39.90977167 | AS9: =AE9*O9+($A$4-80)*AL9*$A$8/1000 -> 38.48391849
B10: 62 | C10: 56.45531549 | D10: 52.88362386 | E10: 54.02712988 | F10: 51.72600049 | G10: =T10*$G$13 -> 51.55659219 | H10: 50.51190768 | I10: 50.26485392 | J10: 49.74251166 | K10: 48.97311564 | L10: 48.97311564 | M10: 46.55904739 | N10: 46.55904739 | O10: 43.83439725 | P10: 43.83439725 | R10: 0.9818315738 | S10: 0.9396022588 | T10: 0.896636386 | U10: 0.8741713725 | V10: 0.8517063589 | W10: 0.8097225632 | X10: 0.7623373435 | Y10: 0.9367341835 | Z10: 0.9574078913 | AA10: 0.9797371303 | AB10: 0.9896082011 | AC10: 1 | AD10: 1 | AE10: 1 | AF10: 0.835 | AG10: 0.835 | AH10: 0.835 | AI10: 0.835 | AJ10: 0.835 | AK10: 0.835 | AL10: 0.835 | AM10: 52.88362386 | AN10: =Z10*E10+($A$4-80)*AG10*$A$8/1000 -> 51.72600049 | AO10: =AA10*G10+($A$4-80)*AH10*$A$8/1000 -> 50.51190768 | AP10: 49.74251166 | AQ10: 48.97311564 | AR10: 46.55904739 | AS10: 43.83439725
B11: 57 | C11: 54.95887552 | D11: 54.95887552 | E11: 53.05303216 | F11: 53.05303216 | G11: =T11*$G$13 -> 51.03424994 | H11: 51.03424994 | I11: 49.96133071 | J11: 49.96133071 | K11: 48.88841149 | L11: 48.88841149 | M11: 46.48846059 | N11: 46.48846059 | O11: 43.77792782 | P11: 43.77792782 | R11: 0.9558065308 | S11: 0.9226614289 | T11: 0.8875521728 | U11: 0.8688927081 | V11: 0.8502332433 | W11: 0.8084949669 | X11: 0.7613552664 | Y11: 1 | Z11: 1 | AA11: 1 | AB11: 1 | AC11: 1 | AD11: 1 | AE11: 1 | AF11: 0.835 | AG11: 0.835 | AH11: 0.835 | AI11: 0.835 | AJ11: 0.835 | AK11: 0.835 | AL11: 0.835 | AM11: 54.95887552 | AN11: =Z11*E11+($A$4-80)*AG11*$A$8/1000 -> 53.05303216 | AO11: =AA11*G11+($A$4-80)*AH11*$A$8/1000 -> 51.03424994 | AP11: =AB11*I11+($A$4-80)*AI11*$A$8/1000 -> 49.96133071 | AQ11: 48.88841149 | AR11: 46.48846059 | AS11: 43.77792782
A12: 1400 | B12: 72 | C12: 69.55622391 | D12: 38.6815615 | E12: 66.37981832 | F12: 37.52393813 | G12: =T12*$G$13 -> 63.14694329 | H12: 36.3521974 | I12: 61.43874294 | J12: 35.73103364 | K12: 59.7305426 | L12: 35.10986987 | M12: 56.03179475 | N12: 33.79695556 | O12: 51.9942303 | P12: 32.37110238 | R12: 1.209673459 | S12: 1.154431623 | T12: 1.098207709 | U12: 1.068499877 | V12: 1.038792045 | W12: 0.9744659956 | X12: 0.9042474834 | Y12: 0.5561193424 | Z12: 0.5652913654 | AA12: 0.5756762799 | AB12: 0.5815716912 | AC12: 0.5878043016 | AD12: 0.6031746032 | AE12: 0.6225902797 | AF12: 0.835 | AG12: 0.835 | AH12: 0.835 | AI12: 0.835 | AJ12: 0.835 | AK12: 0.835 | AL12: 0.835 | AM12: =Y12*C12+($A$4-80)*AF12*$A$12/1000 -> 38.6815615 | AN12: =Z12*E12+($A$4-80)*AG12*$A$12/1000 -> 37.52393813 | AO12: =AA12*G12+($A$4-80)*AH12*$A$12/1000 -> 36.3521974 | AP12: =AB12*I12+($A$4-80)*AI12*$A$12/1000 -> 35.73103364 | AQ12: =AC12*K12+($A$4-80)*AJ12*$A$12/1000 -> 35.10986987 | AR12: =AD12*M12+($A$4-80)*AK12*$A$12/1000 -> 33.79695556 | AS12: =AE12*O12+($A$4-80)*AL12*$A$12/1000 -> 32.37110238
B13: 67 | C13: 63.30223423 | D13: 48.36606924 | E13: 60.43641051 | F13: 47.20844586 | G13: 57.5 | H13: 46.00847041 | I13: 55.95414928 | J13: 45.38730665 | K13: 54.40829855 | L13: 44.76614289 | M13: 51.03424994 | N13: 43.42499386 | O13: 47.33550209 | P13: 41.94267125 | R13: 1.100908421 | S13: 1.051068009 | T13: 1 | U13: 0.9731156396 | V13: 0.9462312792 | W13: 0.8875521728 | X13: 0.8232261233 | Y13: 0.7640499554 | Z13: 0.7811259052 | AA13: 0.8001473116 | AB13: 0.8111517598 | AC13: 0.8227815257 | AD13: 0.8508990318 | AE13: 0.8860721742 | AF13: 0.835 | AG13: 0.835 | AH13: 0.835 | AI13: 0.835 | AJ13: 0.835 | AK13: 0.835 | AL13: 0.835 | AM13: =Y13*C13+($A$4-80)*AF13*$A$12/1000 -> 48.36606924 | AN13: =Z13*E13+($A$4-80)*AG13*$A$12/1000 -> 47.20844586 | AO13: =AA13*G13+($A$4-80)*AH13*$A$12/1000 -> 46.00847041 | AP13: =AB13*I13+($A$4-80)*AI13*$A$12/1000 -> 45.38730665 | AQ13: =AC13*K13+($A$4-80)*AJ13*$A$12/1000 -> 44.76614289 | AR13: =AD13*M13+($A$4-80)*AK13*$A$12/1000 -> 43.42499386 | AS13: =AE13*O13+($A$4-80)*AL13*$A$12/1000 -> 41.94267125
B14: 62 | C14: 58.06469433 | D14: 57.48588264 | E14: 55.76356494 | F14: 55.76356494 | G14: =T14*$G$13 -> 53.57537442 | H14: 53.57537442 | I14: 52.38951633 | J14: 52.38951633 | K14: 51.20365824 | L14: 51.20365824 | M14: 48.60606433 | N14: 48.60606433 | O14: 45.66965382 | P14: 45.66965382 | R14: 1.009820771 | S14: 0.9698011294 | T14: 0.931745642 | U14: 0.9111220231 | V14: 0.8904984041 | W14: 0.8453228578 | X14: 0.794254849 | Y14: 0.9900316071 | Z14: 1 | AA14: 1 | AB14: 1 | AC14: 1 | AD14: 1 | AE14: 1 | AF14: 0.835 | AG14: 0.835 | AH14: 0.835 | AI14: 0.835 | AJ14: 0.835 | AK14: 0.835 | AL14: 0.835 | AM14: 57.48588264 | AN14: =Z14*E14+($A$4-80)*AG14*$A$12/1000 -> 55.76356494 | AO14: =AA14*G14+($A$4-80)*AH14*$A$12/1000 -> 53.57537442 | AP14: 52.38951633 | AQ14: 51.20365824 | AR14: 48.60606433 | AS14: 45.66965382
B15: 57 | C15: 57.78234716 | D15: 57.78234716 | E15: 55.67886079 | F15: 55.67886079 | G15: 53.49067027 | H15: 53.49067027 | I15: 52.31187086 | J15: 52.31187086 | K15: 51.13307145 | L15: 51.13307145 | M15: 48.53547753 | N15: 48.53547753 | O15: 45.61318438 | P15: 45.61318438 | R15: 1.004910385 | S15: 0.9683280137 | T15: 0.9302725264 | U15: 0.9097716671 | V15: 0.8892708078 | W15: 0.8440952615 | X15: 0.7932727719 | Y15: 1 | Z15: 1 | AA15: 1 | AB15: 1 | AC15: 1 | AD15: 1 | AE15: 1 | AF15: 0.835 | AG15: 0.835 | AH15: 0.835 | AI15: 0.835 | AJ15: 0.835 | AK15: 0.835 | AL15: 0.835 | AM15: 57.78234716 | AN15: =Z15*E15+($A$4-80)*AG15*$A$12/1000 -> 55.67886079 | AO15: =AA15*G15+($A$4-80)*AH15*$A$12/1000 -> 53.49067027 | AP15: 52.31187086 | AQ15: 51.13307145 | AR15: 48.53547753 | AS15: 45.61318438
A16: 1575 | B16: 72 | C16: 70.40326541 | D16: 40.58740486 | E16: 67.14215566 | F16: 39.41566413 | G16: 63.7822244 | H16: 38.21568868 | I16: 62.01755463 | J16: 37.58746624 | K16: 60.25288485 | L16: 36.9592438 | M16: 56.45531549 | N16: 35.63221213 | O16: 52.31892954 | P16: 34.20635895 | R16: 1.224404616 | S16: 1.167689664 | T16: 1.109256077 | U16: 1.078566167 | V16: 1.047876258 | W16: 0.9818315738 | X16: 0.9098944267 | Y16: 0.5764988971 | Z16: 0.5870479394 | AA16: 0.5991589199 | AB16: 0.6060778511 | AC16: 0.6134020619 | AD16: 0.6311577894 | AE16: 0.6538046411 | AF16: 0.835 | AG16: 0.835 | AH16: 0.835 | AI16: 0.835 | AJ16: 0.835 | AK16: 0.835 | AL16: 0.835 | AM16: =Y16*C16+($A$4-80)*AF16*$A$16/1000 -> 40.58740486 | AN16: =Z16*E16+($A$4-80)*AG16*$A$16/1000 -> 39.41566413 | AO16: =AA16*G16+($A$4-80)*AH16*$A$16/1000 -> 38.21568868 | AP16: =AB16*I16+($A$4-80)*AI16*$A$16/1000 -> 37.58746624 | AQ16: =AC16*K16+($A$4-80)*AJ16*$A$16/1000 -> 36.9592438 | AR16: =AD16*M16+($A$4-80)*AK16*$A$16/1000 -> 35.63221213 | AS16: =AE16*O16+($A$4-80)*AL16*$A$16/1000 -> 34.20635895
B17: 67 | C17: 64.121041 | D17: 51.41541861 | E17: 61.17051314 | F17: 50.22956052 | G17: 58.14939848 | H17: 49.01546771 | I17: 56.554137 | J17: 48.38018659 | K17: 54.95887552 | L17: 47.74490548 | M17: 51.51424012 | N17: 46.36140437 | O17: 47.75902283 | P17: 44.82261233 | R17: 1.115148539 | S17: 1.063835011 | T17: 1.011293887 | U17: 0.9835502087 | V17: 0.9558065308 | W17: 0.8958998281 | X17: 0.8305917014 | Y17: 0.8018494055 | Z17: 0.8211400877 | AA17: 0.8429230396 | AB17: 0.8554667998 | AC17: 0.8687387619 | AD17: 0.8999725952 | AE17: 0.93851611 | AF17: 0.835 | AG17: 0.835 | AH17: 0.835 | AI17: 0.835 | AJ17: 0.835 | AK17: 0.835 | AL17: 0.835 | AM17: =Y17*C17+($A$4-80)*AF17*$A$16/1000 -> 51.41541861 | AN17: =Z17*E17+($A$4-80)*AG17*$A$16/1000 -> 50.22956052 | AO17: =AA17*G17+($A$4-80)*AH17*$A$16/1000 -> 49.01546771 | AP17: =AB17*I17+($A$4-80)*AI17*$A$16/1000 -> 48.38018659 | AQ17: =AC17*K17+($A$4-80)*AJ17*$A$16/1000 -> 47.74490548 | AR17: =AD17*M17+($A$4-80)*AK17*$A$16/1000 -> 46.36140437 | AS17: =AE17*O17+($A$4-80)*AL17*$A$16/1000 -> 44.82261233
B18: 62 | C18: 59.82936411 | D18: 59.82936411 | E18: 57.57058679 | F18: 57.57058679 | G18: 55.24122269 | H18: 55.24122269 | I18: 53.98477781 | J18: 53.98477781 | K18: 52.72833292 | L18: 52.72833292 | M18: 49.97544807 | N18: 49.97544807 | O18: 46.88374662 | P18: 46.88374662 | R18: 1.04051068 | S18: 1.001227596 | T18: 0.9607169163 | U18: 0.938865701 | V18: 0.9170144856 | W18: 0.8691382274 | X18: 0.8153695065 | Y18: 1 | Z18: 1 | AA18: 1 | AB18: 1 | AC18: 1 | AD18: 1 | AE18: 1 | AF18: 0.835 | AG18: 0.835 | AH18: 0.835 | AI18: 0.835 | AJ18: 0.835 | AK18: 0.835 | AL18: 0.835 | AM18: 59.82936411 | AN18: =Z18*E18+($A$4-80)*AG18*$A$16/1000 -> 57.57058679 | AO18: =AA18*G18+($A$4-80)*AH18*$A$16/1000 -> 55.24122269 | AP18: 53.98477781 | AQ18: 52.72833292 | AR18: 49.97544807 | AS18: 46.88374662
B19: 57 | C19: 59.74465996 | D19: 59.74465996 | E19: 57.5 | F19: 57.5 | G19: 55.17063589 | H19: 55.17063589 | I19: 53.92124969 | J19: 53.92124969 | K19: 52.67186349 | L19: 52.67186349 | M19: 49.90486128 | N19: 49.90486128 | O19: 46.82727719 | P19: 46.82727719 | R19: 1.039037564 | S19: 1 | T19: 0.9594893199 | U19: 0.9377608642 | V19: 0.9160324085 | W19: 0.867910631 | X19: 0.8143874294 | Y19: 1 | Z19: 1 | AA19: 1 | AB19: 1 | AC19: 1 | AD19: 1 | AE19: 1 | AF19: 0.835 | AG19: 0.835 | AH19: 0.835 | AI19: 0.835 | AJ19: 0.835 | AK19: 0.835 | AL19: 0.835 | AM19: 59.74465996 | AN19: =Z19*E19+($A$4-80)*AG19*$A$16/1000 -> 57.5 | AO19: =AA19*G19+($A$4-80)*AH19*$A$16/1000 -> 55.17063589 | AP19: 53.92124969 | AQ19: 52.67186349 | AR19: 49.90486128 | AS19: 46.82727719

Sheet CA15NA_48 (hidden)
A2: CA15NA_48
A3: Evaporator Air | C3: Condenser Entering Air Temperature ˚F
A4: 80 | B4: °F DB | C4: 75 | E4: 85 | G4: 95 | I4: 100 | K4: 105 | M4: 115 | O4: 125
A5: CFM | B5: EWB† ˚F | C5: Capacity Mbtuh | E5: Capacity Mbtuh | G5: Capacity Mbtuh | I5: Capacity Mbtuh | K5: Capacity Mbtuh | M5: Capacity Mbtuh | O5: Capacity Mbtuh
C6: Total | D6: Sens. | E6: Total | F6: Sens. | G6: Total | H6: Sens. | I6: Total | J6: Sens. | K6: Total | L6: Sens. | M6: Total | N6: Sens. | O6: Total | P6: Sens.
R7: Total Factors | Y7: Sens. % | AF7: IDB Adj | AM7: Sens Calc
A8: 1400 | B8: 72 | C8: =R8*$G$13 -> 68.12802198 | D8: =IF(AM8>C8,C8,AM8) -> 33.74175824 | E8: =S8*$G$13 -> 65.33516484 | F8: =IF(AN8>E8,E8,AN8) -> 32.79395604 | G8: =T8*$G$13 -> 62.28956044 | H8: =IF(AO8>G8,G8,AO8) -> 31.77032967 | I8: =U8*$G$13 -> 60.59615385 | J8: =IF(AP8>I8,I8,AP8) -> 31.20796703 | K8: =V8*$G$13 -> 58.90274725 | L8: =IF(AQ8>K8,K8,AQ8) -> 30.6456044 | M8: =W8*$G$13 -> 54.97252747 | N8: =IF(AR8>M8,M8,AR8) -> 29.35659341 | O8: =X8*$G$13 -> 50.47362637 | P8: =IF(AS8>O8,O8,AS8) -> 27.89065934 | R8: 1.184835165 | S8: 1.136263736 | T8: 1.083296703 | U8: 1.053846154 | V8: 1.024395604 | W8: 0.956043956 | X8: 0.8778021978 | Y8: 0.4952698943 | Z8: 0.501934236 | AA8: 0.510042605 | AB8: 0.5150156413 | AC8: 0.5202746192 | AD8: 0.5340229885 | AE8: 0.5525788683 | AF8: 0.835 | AG8: 0.835 | AH8: 0.835 | AI8: 0.835 | AJ8: 0.835 | AK8: 0.835 | AL8: 0.835 | AM8: =Y8*C8+($A$4-80)*AF8*$A$8/1000 -> 33.74175824 | AN8: =Z8*E8+($A$4-80)*AG8*$A$8/1000 -> 32.79395604 | AO8: =AA8*G8+($A$4-80)*AH8*$A$8/1000 -> 31.77032967 | AP8: =AB8*I8+($A$4-80)*AI8*$A$8/1000 -> 31.20796703 | AQ8: =AC8*K8+($A$4-80)*AJ8*$A$8/1000 -> 30.6456044 | AR8: =AD8*M8+($A$4-80)*AK8*$A$8/1000 -> 29.35659341 | AS8: =AE8*O8+($A$4-80)*AL8*$A$8/1000 -> 27.89065934
B9: 67 | C9: 62.01153846 | D9: 41.8043956 | E9: 59.43351648 | F9: =IF(AN9>E9,E9,AN9) -> 40.81868132 | G9: =T9*$G$13 -> 56.6532967 | H9: =IF(AO9>G9,G9,AO9) -> 39.78241758 | I9: 55.09258242 | J9: =IF(AP9>I9,I9,AP9) -> 39.2010989 | K9: 53.53186813 | L9: =IF(AQ9>K9,K9,AQ9) -> 38.61978022 | M9: 49.94285714 | N9: =IF(AR9>M9,M9,AR9) -> 37.30549451 | O9: 45.82307692 | P9: =IF(AS9>O9,O9,AS9) -> 35.80164835 | R9: 1.078461538 | S9: 1.033626374 | T9: 0.9852747253 | U9: 0.9581318681 | V9: 0.930989011 | W9: 0.8685714286 | X9: 0.7969230769 | Y9: 0.6741389851 | Z9: 0.6867956623 | AA9: 0.7022083426 | AB9: 0.7115494896 | AC9: 0.7214353163 | AD9: 0.7469635628 | AE9: 0.7813017099 | AF9: 0.835 | AG9: 0.835 | AH9: 0.835 | AI9: 0.835 | AJ9: 0.835 | AK9: 0.835 | AL9: 0.835 | AM9: =Y9*C9+($A$4-80)*AF9*$A$8/1000 -> 41.8043956 | AN9: =Z9*E9+($A$4-80)*AG9*$A$8/1000 -> 40.81868132 | AO9: =AA9*G9+($A$4-80)*AH9*$A$8/1000 -> 39.78241758 | AP9: =AB9*I9+($A$4-80)*AI9*$A$8/1000 -> 39.2010989 | AQ9: =AC9*K9+($A$4-80)*AJ9*$A$8/1000 -> 38.61978022 | AR9: =AD9*M9+($A$4-80)*AK9*$A$8/1000 -> 37.30549451 | AS9: =AE9*O9+($A$4-80)*AL9*$A$8/1000 -> 35.80164835
B10: 62 | C10: 56.62802198 | D10: 49.61428571 | E10: 54.29010989 | F10: 48.56538462 | G10: =T10*$G$13 -> 51.8510989 | H10: 51.68681319 | I10: 50.65686813 | J10: 50.57472527 | K10: 49.46263736 | L10: 49.46263736 | M10: 46.7456044 | N10: 46.7456044 | O10: 43.58626374 | P10: 43.58626374 | R10: 0.9848351648 | S10: 0.9441758242 | T10: 0.9017582418 | U10: 0.880989011 | V10: 0.8602197802 | W10: 0.812967033 | X10: 0.758021978 | Y10: 0.8761437179 | Z10: 0.8945530726 | AA10: 0.9968315866 | AB10: 0.9983784458 | AC10: 1 | AD10: 1 | AE10: 1 | AF10: 0.835 | AG10: 0.835 | AH10: 0.835 | AI10: 0.835 | AJ10: 0.835 | AK10: 0.835 | AL10: 0.835 | AM10: 49.61428571 | AN10: =Z10*E10+($A$4-80)*AG10*$A$8/1000 -> 48.56538462 | AO10: =AA10*G10+($A$4-80)*AH10*$A$8/1000 -> 51.68681319 | AP10: 50.57472527 | AQ10: 49.46263736 | AR10: 46.7456044 | AS10: 43.58626374
B11: 57 | C11: 55.62967033 | D11: 55.62967033 | E11: 53.72142857 | F11: 53.72142857 | G11: =T11*$G$13 -> 51.69945055 | H11: 51.69945055 | I11: 50.54313187 | J11: 50.54313187 | K11: 49.38681319 | L11: 49.38681319 | M11: 46.68241758 | N11: 46.68241758 | O11: 43.52307692 | P11: 43.52307692 | R11: 0.9674725275 | S11: 0.9342857143 | T11: 0.8991208791 | U11: 0.879010989 | V11: 0.8589010989 | W11: 0.8118681319 | X11: 0.7569230769 | Y11: 1 | Z11: 1 | AA11: 1 | AB11: 1 | AC11: 1 | AD11: 1 | AE11: 1 | AF11: 0.835 | AG11: 0.835 | AH11: 0.835 | AI11: 0.835 | AJ11: 0.835 | AK11: 0.835 | AL11: 0.835 | AM11: 55.62967033 | AN11: =Z11*E11+($A$4-80)*AG11*$A$8/1000 -> 53.72142857 | AO11: =AA11*G11+($A$4-80)*AH11*$A$8/1000 -> 51.69945055 | AP11: =AB11*I11+($A$4-80)*AI11*$A$8/1000 -> 50.54313187 | AQ11: 49.38681319 | AR11: 46.68241758 | AS11: 43.52307692
A12: 1600 | B12: 72 | C12: 69.17692308 | D12: 35.61208791 | E12: 66.2956044 | F12: 34.65164835 | G12: =T12*$G$13 -> 63.1489011 | H12: 33.61538462 | I12: 61.37967033 | J12: 33.03406593 | K12: 59.61043956 | L12: 32.45274725 | M12: 55.54120879 | N12: 31.13846154 | O12: 50.92857143 | P12: 29.67252747 | R12: 1.203076923 | S12: 1.152967033 | T12: 1.098241758 | U12: 1.067472527 | V12: 1.036703297 | W12: 0.9659340659 | X12: 0.8857142857 | Y12: 0.5147972232 | Z12: 0.5226839497 | AA12: 0.5323193916 | AB12: 0.5381922998 | AC12: 0.5444138223 | AD12: 0.5606370876 | AE12: 0.582630273 | AF12: 0.835 | AG12: 0.835 | AH12: 0.835 | AI12: 0.835 | AJ12: 0.835 | AK12: 0.835 | AL12: 0.835 | AM12: =Y12*C12+($A$4-80)*AF12*$A$12/1000 -> 35.61208791 | AN12: =Z12*E12+($A$4-80)*AG12*$A$12/1000 -> 34.65164835 | AO12: =AA12*G12+($A$4-80)*AH12*$A$12/1000 -> 33.61538462 | AP12: =AB12*I12+($A$4-80)*AI12*$A$12/1000 -> 33.03406593 | AQ12: =AC12*K12+($A$4-80)*AJ12*$A$12/1000 -> 32.45274725 | AR12: =AD12*M12+($A$4-80)*AK12*$A$12/1000 -> 31.13846154 | AS12: =AE12*O12+($A$4-80)*AL12*$A$12/1000 -> 29.67252747
B13: 67 | C13: 63.07307692 | D13: 44.77417582 | E13: 60.38131868 | F13: 43.77582418 | G13: 57.5 | H13: 42.71428571 | I13: 55.88873626 | J13: 42.12664835 | K13: 54.27747253 | L13: 41.53901099 | M13: 50.56208791 | N13: 40.17417582 | O13: 46.34120879 | P13: 38.64505495 | R13: 1.096923077 | S13: 1.05010989 | T13: 1 | U13: 0.971978022 | V13: 0.943956044 | W13: 0.8793406593 | X13: 0.8059340659 | Y13: 0.70987778 | Z13: 0.7249895354 | AA13: 0.7428571429 | AB13: 0.753759186 | AC13: 0.7653084983 | AD13: 0.7945513622 | AE13: 0.8339241887 | AF13: 0.835 | AG13: 0.835 | AH13: 0.835 | AI13: 0.835 | AJ13: 0.835 | AK13: 0.835 | AL13: 0.835 | AM13: =Y13*C13+($A$4-80)*AF13*$A$12/1000 -> 44.77417582 | AN13: =Z13*E13+($A$4-80)*AG13*$A$12/1000 -> 43.77582418 | AO13: =AA13*G13+($A$4-80)*AH13*$A$12/1000 -> 42.71428571 | AP13: =AB13*I13+($A$4-80)*AI13*$A$12/1000 -> 42.12664835 | AQ13: =AC13*K13+($A$4-80)*AJ13*$A$12/1000 -> 41.53901099 | AR13: =AD13*M13+($A$4-80)*AK13*$A$12/1000 -> 40.17417582 | AS13: =AE13*O13+($A$4-80)*AL13*$A$12/1000 -> 38.64505495
B14: 62 | C14: 58.09395604 | D14: 58.09395604 | E14: 56.05934066 | F14: 56.05934066 | G14: =T14*$G$13 -> 53.86043956 | H14: 53.86043956 | I14: 52.61565934 | J14: 52.61565934 | K14: 51.37087912 | L14: 51.37087912 | M14: 48.46428571 | N14: 48.46428571 | O14: 45.09010989 | P14: 45.09010989 | R14: 1.01032967 | S14: 0.9749450549 | T14: 0.9367032967 | U14: 0.9150549451 | V14: 0.8934065934 | W14: 0.8428571429 | X14: 0.7841758242 | Y14: 1 | Z14: 1 | AA14: 1 | AB14: 1 | AC14: 1 | AD14: 1 | AE14: 1 | AF14: 0.835 | AG14: 0.835 | AH14: 0.835 | AI14: 0.835 | AJ14: 0.835 | AK14: 0.835 | AL14: 0.835 | AM14: 58.09395604 | AN14: =Z14*E14+($A$4-80)*AG14*$A$12/1000 -> 56.05934066 | AO14: =AA14*G14+($A$4-80)*AH14*$A$12/1000 -> 53.86043956 | AP14: 52.61565934 | AQ14: 51.37087912 | AR14: 48.46428571 | AS14: 45.09010989
B15: 57 | C15: 58.00549451 | D15: 58.00549451 | E15: 55.97087912 | F15: 55.97087912 | G15: 53.78461538 | H15: 53.78461538 | I15: 52.53983516 | J15: 52.53983516 | K15: 51.29505495 | L15: 51.29505495 | M15: 48.4010989 | N15: 48.4010989 | O15: 45.02692308 | P15: 45.02692308 | R15: 1.008791209 | S15: 0.9734065934 | T15: 0.9353846154 | U15: 0.9137362637 | V15: 0.8920879121 | W15: 0.8417582418 | X15: 0.7830769231 | Y15: 1 | Z15: 1 | AA15: 1 | AB15: 1 | AC15: 1 | AD15: 1 | AE15: 1 | AF15: 0.835 | AG15: 0.835 | AH15: 0.835 | AI15: 0.835 | AJ15: 0.835 | AK15: 0.835 | AL15: 0.835 | AM15: 58.00549451 | AN15: =Z15*E15+($A$4-80)*AG15*$A$12/1000 -> 55.97087912 | AO15: =AA15*G15+($A$4-80)*AH15*$A$12/1000 -> 53.78461538 | AP15: 52.53983516 | AQ15: 51.29505495 | AR15: 48.4010989 | AS15: 45.02692308
A16: 1800 | B16: 72 | C16: 69.9478022 | D16: 37.39395604 | E16: 66.97802198 | F16: 36.42087912 | G16: 63.73021978 | H16: 35.37197802 | I16: 61.91043956 | J16: 34.79065934 | K16: 60.09065934 | L16: 34.20934066 | M16: 55.93296703 | N16: 32.88241758 | O16: 51.19395604 | P16: 31.37857143 | R16: 1.216483516 | S16: 1.164835165 | T16: 1.108351648 | U16: 1.076703297 | V16: 1.045054945 | W16: 0.9727472527 | X16: 0.8903296703 | Y16: 0.5345980126 | Z16: 0.5437735849 | AA16: 0.5550267698 | AB16: 0.5619514187 | AC16: 0.5692954784 | AD16: 0.5878897424 | AE16: 0.6129350778 | AF16: 0.835 | AG16: 0.835 | AH16: 0.835 | AI16: 0.835 | AJ16: 0.835 | AK16: 0.835 | AL16: 0.835 | AM16: =Y16*C16+($A$4-80)*AF16*$A$16/1000 -> 37.39395604 | AN16: =Z16*E16+($A$4-80)*AG16*$A$16/1000 -> 36.42087912 | AO16: =AA16*G16+($A$4-80)*AH16*$A$16/1000 -> 35.37197802 | AP16: =AB16*I16+($A$4-80)*AI16*$A$16/1000 -> 34.79065934 | AQ16: =AC16*K16+($A$4-80)*AJ16*$A$16/1000 -> 34.20934066 | AR16: =AD16*M16+($A$4-80)*AK16*$A$16/1000 -> 32.88241758 | AS16: =AE16*O16+($A$4-80)*AL16*$A$16/1000 -> 31.37857143
B17: 67 | C17: 63.83131868 | D17: 47.64285714 | E17: 61.08901099 | F17: 46.63186813 | G17: 58.11923077 | H17: 45.55769231 | I17: 56.46373626 | J17: 44.9510989 | K17: 54.80824176 | L17: 44.34450549 | M17: 51.02967033 | N17: 42.94175824 | O17: 46.75824176 | P17: 41.2989011 | R17: 1.11010989 | S17: 1.062417582 | T17: 1.010769231 | U17: 0.981978022 | V17: 0.9531868132 | W17: 0.8874725275 | X17: 0.8131868132 | Y17: 0.7463868541 | Z17: 0.7633429872 | AA17: 0.7838660578 | AB17: 0.7961056401 | AC17: 0.8090846207 | AD17: 0.8415056959 | AE17: 0.8832432432 | AF17: 0.835 | AG17: 0.835 | AH17: 0.835 | AI17: 0.835 | AJ17: 0.835 | AK17: 0.835 | AL17: 0.835 | AM17: =Y17*C17+($A$4-80)*AF17*$A$16/1000 -> 47.64285714 | AN17: =Z17*E17+($A$4-80)*AG17*$A$16/1000 -> 46.63186813 | AO17: =AA17*G17+($A$4-80)*AH17*$A$16/1000 -> 45.55769231 | AP17: =AB17*I17+($A$4-80)*AI17*$A$16/1000 -> 44.9510989 | AQ17: =AC17*K17+($A$4-80)*AJ17*$A$16/1000 -> 44.34450549 | AR17: =AD17*M17+($A$4-80)*AK17*$A$16/1000 -> 42.94175824 | AS17: =AE17*O17+($A$4-80)*AL17*$A$16/1000 -> 41.2989011
B18: 62 | C18: 60.04010989 | D18: 60.04010989 | E18: 57.87912088 | F18: 57.87912088 | G18: 55.55384615 | H18: 55.55384615 | I18: 54.23324176 | J18: 54.23324176 | K18: 52.91263736 | L18: 52.91263736 | M18: 49.84175824 | N18: 49.84175824 | O18: 46.29065934 | P18: 46.29065934 | R18: 1.044175824 | S18: 1.006593407 | T18: 0.9661538462 | U18: 0.9431868132 | V18: 0.9202197802 | W18: 0.8668131868 | X18: 0.8050549451 | Y18: 1 | Z18: 1 | AA18: 1 | AB18: 1 | AC18: 1 | AD18: 1 | AE18: 1 | AF18: 0.835 | AG18: 0.835 | AH18: 0.835 | AI18: 0.835 | AJ18: 0.835 | AK18: 0.835 | AL18: 0.835 | AM18: 60.04010989 | AN18: =Z18*E18+($A$4-80)*AG18*$A$16/1000 -> 57.87912088 | AO18: =AA18*G18+($A$4-80)*AH18*$A$16/1000 -> 55.55384615 | AP18: 54.23324176 | AQ18: 52.91263736 | AR18: 49.84175824 | AS18: 46.29065934
B19: 57 | C19: 59.96428571 | D19: 59.96428571 | E19: 57.8032967 | F19: 57.8032967 | G19: 55.49065934 | H19: 55.49065934 | I19: 54.17005495 | J19: 54.17005495 | K19: 52.84945055 | L19: 52.84945055 | M19: 49.79120879 | N19: 49.79120879 | O19: 46.22747253 | P19: 46.22747253 | R19: 1.042857143 | S19: 1.005274725 | T19: 0.9650549451 | U19: 0.9420879121 | V19: 0.9191208791 | W19: 0.8659340659 | X19: 0.803956044 | Y19: 1 | Z19: 1 | AA19: 1 | AB19: 1 | AC19: 1 | AD19: 1 | AE19: 1 | AF19: 0.835 | AG19: 0.835 | AH19: 0.835 | AI19: 0.835 | AJ19: 0.835 | AK19: 0.835 | AL19: 0.835 | AM19: 59.96428571 | AN19: =Z19*E19+($A$4-80)*AG19*$A$16/1000 -> 57.8032967 | AO19: =AA19*G19+($A$4-80)*AH19*$A$16/1000 -> 55.49065934 | AP19: 54.17005495 | AQ19: 52.84945055 | AR19: 49.79120879 | AS19: 46.22747253

Sheet CA15NA_60 (hidden)
A2: CA15NA_60
A3: Evaporator Air | C3: Condenser Entering Air Temperature ˚F
A4: 80 | B4: °F DB | C4: 75 | E4: 85 | G4: 95 | I4: 100 | K4: 105 | M4: 115 | O4: 125
A5: CFM | B5: EWB† ˚F | C5: Capacity Mbtuh | E5: Capacity Mbtuh | G5: Capacity Mbtuh | I5: Capacity Mbtuh | K5: Capacity Mbtuh | M5: Capacity Mbtuh | O5: Capacity Mbtuh
C6: Total | D6: Sens. | E6: Total | F6: Sens. | G6: Total | H6: Sens. | I6: Total | J6: Sens. | K6: Total | L6: Sens. | M6: Total | N6: Sens. | O6: Total | P6: Sens.
R7: Total Factors | Y7: Sens. % | AF7: IDB Adj | AM7: Sens Calc
A8: 1750 | B8: 72 | C8: =R8*$G$13 -> 68.60088943 | D8: =IF(AM8>C8,C8,AM8) -> 35.91995117 | E8: =S8*$G$13 -> 65.53235089 | F8: =IF(AN8>E8,E8,AN8) -> 34.76674224 | G8: =T8*$G$13 -> 62.3234217 | H8: =IF(AO8>G8,G8,AO8) -> 33.5834496 | I8: =U8*$G$13 -> 60.5936083 | J8: =IF(AP8>I8,I8,AP8) -> 32.95169166 | K8: =V8*$G$13 -> 58.86379491 | L8: =IF(AQ8>K8,K8,AQ8) -> 32.31993373 | M8: =W8*$G$13 -> 55.16349843 | N8: =IF(AR8>M8,M8,AR8) -> 30.97619463 | O8: =X8*$G$13 -> 51.01194629 | P8: =IF(AS8>O8,O8,AS8) -> 29.49206488 | R8: 1.193058947 | S8: 1.139693059 | T8: 1.083885595 | U8: 1.053801884 | V8: 1.023718172 | W8: 0.9593651901 | X8: 0.8871642832 | Y8: 0.5236076597 | Z8: 0.5305279265 | AA8: 0.5388576026 | AB8: 0.5438146463 | AC8: 0.5490630324 | AD8: 0.5615342665 | AE8: 0.5781403578 | AF8: 0.835 | AG8: 0.835 | AH8: 0.835 | AI8: 0.835 | AJ8: 0.835 | AK8: 0.835 | AL8: 0.835 | AM8: =Y8*C8+($A$4-80)*AF8*$A$8/1000 -> 35.91995117 | AN8: =Z8*E8+($A$4-80)*AG8*$A$8/1000 -> 34.76674224 | AO8: =AA8*G8+($A$4-80)*AH8*$A$8/1000 -> 33.5834496 | AP8: =AB8*I8+($A$4-80)*AI8*$A$8/1000 -> 32.95169166 | AQ8: =AC8*K8+($A$4-80)*AJ8*$A$8/1000 -> 32.31993373 | AR8: =AD8*M8+($A$4-80)*AK8*$A$8/1000 -> 30.97619463 | AS8: =AE8*O8+($A$4-80)*AL8*$A$8/1000 -> 29.49206488
B9: 67 | C9: 62.41367283 | D9: 44.16288804 | E9: 59.57577607 | F9: =IF(AN9>E9,E9,AN9) -> 42.9996512 | G9: =T9*$G$13 -> 56.65765609 | H9: =IF(AO9>G9,G9,AO9) -> 41.80633066 | I9: 55.0933031 | J9: =IF(AP9>I9,I9,AP9) -> 41.17457272 | K9: 53.52895012 | L9: =IF(AQ9>K9,K9,AQ9) -> 40.54281479 | M9: 50.13951866 | N9: =IF(AR9>M9,M9,AR9) -> 39.18904779 | O9: 46.35899895 | P9: =IF(AS9>O9,O9,AS9) -> 37.69489013 | R9: 1.08545518 | S9: 1.036100453 | T9: 0.9853505406 | U9: 0.9581444018 | V9: 0.930938263 | W9: 0.8719916289 | X9: 0.8062434601 | Y9: 0.7075835476 | Z9: 0.7217640128 | AA9: 0.7378761062 | AB9: 0.7473607572 | AC9: 0.7573997752 | AD9: 0.7816 | AE9: 0.8131083712 | AF9: 0.835 | AG9: 0.835 | AH9: 0.835 | AI9: 0.835 | AJ9: 0.835 | AK9: 0.835 | AL9: 0.835 | AM9: =Y9*C9+($A$4-80)*AF9*$A$8/1000 -> 44.16288804 | AN9: =Z9*E9+($A$4-80)*AG9*$A$8/1000 -> 42.9996512 | AO9: =AA9*G9+($A$4-80)*AH9*$A$8/1000 -> 41.80633066 | AP9: =AB9*I9+($A$4-80)*AI9*$A$8/1000 -> 41.17457272 | AQ9: =AC9*K9+($A$4-80)*AJ9*$A$8/1000 -> 40.54281479 | AR9: =AD9*M9+($A$4-80)*AK9*$A$8/1000 -> 39.18904779 | AS9: =AE9*O9+($A$4-80)*AL9*$A$8/1000 -> 37.69489013
B10: 62 | C10: 57.07882804 | D10: 52.31557377 | E10: 54.5517963 | F10: 51.10219742 | G10: =T10*$G$13 -> 51.98465295 | H10: 49.82865364 | I10: 50.64091385 | J10: 49.5629142 | K10: 49.29717475 | L10: 49.29717475 | M10: 46.77014301 | N10: 46.77014301 | O10: 43.85202302 | P10: 43.85202302 | R10: 0.9926752703 | S10: 0.9487268922 | T10: 0.9040809208 | U10: 0.8807115452 | V10: 0.8573421695 | W10: 0.8133937914 | X10: 0.7626438786 | Y10: 0.9165495432 | Z10: 0.9367647059 | AA10: 0.9585262346 | AB10: 0.9787128713 | AC10: 1 | AD10: 1 | AE10: 1 | AF10: 0.835 | AG10: 0.835 | AH10: 0.835 | AI10: 0.835 | AJ10: 0.835 | AK10: 0.835 | AL10: 0.835 | AM10: 52.31557377 | AN10: =Z10*E10+($A$4-80)*AG10*$A$8/1000 -> 51.10219742 | AO10: =AA10*G10+($A$4-80)*AH10*$A$8/1000 -> 49.82865364 | AP10: 49.5629142 | AQ10: 49.29717475 | AR10: 46.77014301 | AS10: 43.85202302
B11: 57 | C11: 55.79525637 | D11: 55.79525637 | E11: 53.70945239 | F11: 53.70945239 | G11: =T11*$G$13 -> 51.57350889 | H11: 51.57350889 | I11: 50.42029997 | J11: 50.42029997 | K11: 49.26709104 | L11: 49.26709104 | M11: 46.68991978 | N11: 46.68991978 | O11: 43.8018835 | P11: 43.8018835 | R11: 0.9703522846 | S11: 0.9340774329 | T11: 0.8969305895 | U11: 0.876874782 | V11: 0.8568189745 | W11: 0.8119986048 | X11: 0.761771887 | Y11: 1 | Z11: 1 | AA11: 1 | AB11: 1 | AC11: 1 | AD11: 1 | AE11: 1 | AF11: 0.835 | AG11: 0.835 | AH11: 0.835 | AI11: 0.835 | AJ11: 0.835 | AK11: 0.835 | AL11: 0.835 | AM11: 55.79525637 | AN11: =Z11*E11+($A$4-80)*AG11*$A$8/1000 -> 53.70945239 | AO11: =AA11*G11+($A$4-80)*AH11*$A$8/1000 -> 51.57350889 | AP11: =AB11*I11+($A$4-80)*AI11*$A$8/1000 -> 50.42029997 | AQ11: 49.26709104 | AR11: 46.68991978 | AS11: 43.8018835
A12: 2000 | B12: 72 | C12: 69.73404255 | D12: 37.65477851 | E12: 66.54516917 | F12: 36.49154168 | G12: =T12*$G$13 -> 63.21590513 | H12: 35.27816533 | I12: 61.44096617 | J12: 34.64139344 | K12: 59.66602721 | L12: 34.00462156 | M12: 55.78522846 | N12: 32.62077084 | O12: 51.50331357 | P12: 31.11658528 | R12: 1.212765957 | S12: 1.15730729 | T12: 1.099407046 | U12: 1.068538542 | V12: 1.037670038 | W12: 0.9701778863 | X12: 0.8957098012 | Y12: 0.5399769917 | Z12: 0.5483725136 | AA12: 0.5580583756 | AB12: 0.5638158969 | AC12: 0.5699159664 | AD12: 0.5847564264 | AE12: 0.6041666667 | AF12: 0.835 | AG12: 0.835 | AH12: 0.835 | AI12: 0.835 | AJ12: 0.835 | AK12: 0.835 | AL12: 0.835 | AM12: =Y12*C12+($A$4-80)*AF12*$A$12/1000 -> 37.65477851 | AN12: =Z12*E12+($A$4-80)*AG12*$A$12/1000 -> 36.49154168 | AO12: =AA12*G12+($A$4-80)*AH12*$A$12/1000 -> 35.27816533 | AP12: =AB12*I12+($A$4-80)*AI12*$A$12/1000 -> 34.64139344 | AQ12: =AC12*K12+($A$4-80)*AJ12*$A$12/1000 -> 34.00462156 | AR12: =AD12*M12+($A$4-80)*AK12*$A$12/1000 -> 32.62077084 | AS12: =AE12*O12+($A$4-80)*AL12*$A$12/1000 -> 31.11658528
B13: 67 | C13: 63.47663062 | D13: 46.96067318 | E13: 60.51839902 | F13: 45.76735263 | G13: 57.5 | H13: 44.56400419 | I13: 55.88049355 | J13: 43.92221835 | K13: 54.26098709 | L13: 43.28043251 | M13: 50.75122079 | N13: 41.88655389 | O13: 46.87042204 | P13: 40.35228462 | R13: 1.103941402 | S13: 1.052493896 | T13: 1 | U13: 0.9718346704 | V13: 0.9436693408 | W13: 0.8826299268 | X13: 0.8151377747 | Y13: 0.7398104265 | Z13: 0.7562551781 | AA13: 0.7750261597 | AB13: 0.7860026918 | AC13: 0.7976344483 | AD13: 0.8253309623 | AE13: 0.8609328199 | AF13: 0.835 | AG13: 0.835 | AH13: 0.835 | AI13: 0.835 | AJ13: 0.835 | AK13: 0.835 | AL13: 0.835 | AM13: =Y13*C13+($A$4-80)*AF13*$A$12/1000 -> 46.96067318 | AN13: =Z13*E13+($A$4-80)*AG13*$A$12/1000 -> 45.76735263 | AO13: =AA13*G13+($A$4-80)*AH13*$A$12/1000 -> 44.56400419 | AP13: =AB13*I13+($A$4-80)*AI13*$A$12/1000 -> 43.92221835 | AQ13: =AC13*K13+($A$4-80)*AJ13*$A$12/1000 -> 43.28043251 | AR13: =AD13*M13+($A$4-80)*AK13*$A$12/1000 -> 41.88655389 | AS13: =AE13*O13+($A$4-80)*AL13*$A$12/1000 -> 40.35228462
B14: 62 | C14: 58.41253924 | D14: 55.98578654 | E14: 55.8754796 | F14: 55.48439135 | G14: =T14*$G$13 -> 53.51892222 | H14: 53.51892222 | I14: 52.28549006 | J14: 52.28549006 | K14: 51.0520579 | L14: 51.0520579 | M14: 48.29438437 | N14: 48.29438437 | O14: 45.21581793 | P14: 45.21581793 | R14: 1.015870248 | S14: 0.9717474712 | T14: 0.9307638647 | U14: 0.9093128706 | V14: 0.8878618765 | W14: 0.8399023369 | X14: 0.7863620509 | Y14: 0.9584549356 | Z14: 0.9930007179 | AA14: 1 | AB14: 1 | AC14: 1 | AD14: 1 | AE14: 1 | AF14: 0.835 | AG14: 0.835 | AH14: 0.835 | AI14: 0.835 | AJ14: 0.835 | AK14: 0.835 | AL14: 0.835 | AM14: 55.98578654 | AN14: =Z14*E14+($A$4-80)*AG14*$A$12/1000 -> 55.48439135 | AO14: =AA14*G14+($A$4-80)*AH14*$A$12/1000 -> 53.51892222 | AP14: 52.28549006 | AQ14: 51.0520579 | AR14: 48.29438437 | AS14: 45.21581793
B15: 57 | C15: 57.96128357 | D15: 57.96128357 | E15: 55.74511685 | F15: 55.74511685 | G15: 53.44872689 | H15: 53.44872689 | I15: 52.21529473 | J15: 52.21529473 | K15: 50.98186257 | L15: 50.98186257 | M15: 48.24424486 | N15: 48.24424486 | O15: 45.15565051 | P15: 45.15565051 | R15: 1.008022323 | S15: 0.969480293 | T15: 0.9295430764 | U15: 0.9080920823 | V15: 0.8866410882 | W15: 0.8390303453 | X15: 0.785315661 | Y15: 1 | Z15: 1 | AA15: 1 | AB15: 1 | AC15: 1 | AD15: 1 | AE15: 1 | AF15: 0.835 | AG15: 0.835 | AH15: 0.835 | AI15: 0.835 | AJ15: 0.835 | AK15: 0.835 | AL15: 0.835 | AM15: 57.96128357 | AN15: =Z15*E15+($A$4-80)*AG15*$A$12/1000 -> 55.74511685 | AO15: =AA15*G15+($A$4-80)*AH15*$A$12/1000 -> 53.44872689 | AP15: 52.21529473 | AQ15: 50.98186257 | AR15: 48.24424486 | AS15: 45.15565051
A16: 2250 | B16: 72 | C16: 70.56635856 | D16: 39.27929892 | E16: 67.28723404 | F16: 38.09600628 | G16: 63.84766306 | H16: 36.87260202 | I16: 62.01757063 | J16: 36.22580223 | K16: 60.1874782 | L16: 35.57900244 | M16: 56.19637251 | N16: 34.17509592 | O16: 51.80415068 | P16: 32.64082665 | R16: 1.227241018 | S16: 1.170212766 | T16: 1.11039414 | U16: 1.078566446 | V16: 1.046738751 | W16: 0.9773282176 | X16: 0.900941751 | Y16: 0.5566292454 | Z16: 0.5661698957 | AA16: 0.5775090309 | AB16: 0.5841215943 | AC16: 0.5911362879 | AD16: 0.608137045 | AE16: 0.6300813008 | AF16: 0.835 | AG16: 0.835 | AH16: 0.835 | AI16: 0.835 | AJ16: 0.835 | AK16: 0.835 | AL16: 0.835 | AM16: =Y16*C16+($A$4-80)*AF16*$A$16/1000 -> 39.27929892 | AN16: =Z16*E16+($A$4-80)*AG16*$A$16/1000 -> 38.09600628 | AO16: =AA16*G16+($A$4-80)*AH16*$A$16/1000 -> 36.87260202 | AP16: =AB16*I16+($A$4-80)*AI16*$A$16/1000 -> 36.22580223 | AQ16: =AC16*K16+($A$4-80)*AJ16*$A$16/1000 -> 35.57900244 | AR16: =AD16*M16+($A$4-80)*AK16*$A$16/1000 -> 34.17509592 | AS16: =AE16*O16+($A$4-80)*AL16*$A$16/1000 -> 32.64082665
B17: 67 | C17: 64.25880712 | D17: 49.60803976 | E17: 61.250436 | F17: 48.41471922 | G17: 58.11170213 | H17: 47.17125916 | I17: 56.45208406 | J17: 46.51443146 | K17: 54.79246599 | L17: 45.85760377 | M17: 51.21250436 | N17: 44.43364144 | O17: 47.25148239 | P17: 42.80912103 | R17: 1.117544472 | S17: 1.065224974 | T17: 1.010638298 | U17: 0.981775375 | V17: 0.952912452 | W17: 0.8906522497 | X17: 0.8217649111 | Y17: 0.7720037453 | Z17: 0.7904387688 | AA17: 0.8117342537 | AB17: 0.8239630518 | AC17: 0.8369326501 | AD17: 0.8676326611 | AE17: 0.9059847199 | AF17: 0.835 | AG17: 0.835 | AH17: 0.835 | AI17: 0.835 | AJ17: 0.835 | AK17: 0.835 | AL17: 0.835 | AM17: =Y17*C17+($A$4-80)*AF17*$A$16/1000 -> 49.60803976 | AN17: =Z17*E17+($A$4-80)*AG17*$A$16/1000 -> 48.41471922 | AO17: =AA17*G17+($A$4-80)*AH17*$A$16/1000 -> 47.17125916 | AP17: =AB17*I17+($A$4-80)*AI17*$A$16/1000 -> 46.51443146 | AQ17: =AC17*K17+($A$4-80)*AJ17*$A$16/1000 -> 45.85760377 | AR17: =AD17*M17+($A$4-80)*AK17*$A$16/1000 -> 44.43364144 | AS17: =AE17*O17+($A$4-80)*AL17*$A$16/1000 -> 42.80912103
B18: 62 | C18: 59.85655738 | D18: 59.85655738 | E18: 57.47994419 | F18: 57.47994419 | G18: 55.05319149 | H18: 55.05319149 | I18: 53.7395361 | J18: 53.7395361 | K18: 52.42588071 | L18: 52.42588071 | M18: 49.54787234 | N18: 49.54787234 | O18: 46.29883153 | P18: 46.29883153 | R18: 1.040983607 | S18: 0.9996512033 | T18: 0.9574468085 | U18: 0.9346006278 | V18: 0.9117544472 | W18: 0.8617021277 | X18: 0.8051970701 | Y18: 1 | Z18: 1 | AA18: 1 | AB18: 1 | AC18: 1 | AD18: 1 | AE18: 1 | AF18: 0.835 | AG18: 0.835 | AH18: 0.835 | AI18: 0.835 | AJ18: 0.835 | AK18: 0.835 | AL18: 0.835 | AM18: 59.85655738 | AN18: =Z18*E18+($A$4-80)*AG18*$A$16/1000 -> 57.47994419 | AO18: =AA18*G18+($A$4-80)*AH18*$A$16/1000 -> 55.05319149 | AP18: 53.7395361 | AQ18: 52.42588071 | AR18: 49.54787234 | AS18: 46.29883153
B19: 57 | C19: 59.74625044 | D19: 59.74625044 | E19: 57.40974887 | F19: 57.40974887 | G19: 54.98299616 | H19: 54.98299616 | I19: 53.67936868 | J19: 53.67936868 | K19: 52.37574119 | L19: 52.37574119 | M19: 49.48770492 | N19: 49.48770492 | O19: 46.24869201 | P19: 46.24869201 | R19: 1.039065225 | S19: 0.9984304151 | T19: 0.9562260202 | U19: 0.9335542379 | V19: 0.9108824555 | W19: 0.8606557377 | X19: 0.8043250785 | Y19: 1 | Z19: 1 | AA19: 1 | AB19: 1 | AC19: 1 | AD19: 1 | AE19: 1 | AF19: 0.835 | AG19: 0.835 | AH19: 0.835 | AI19: 0.835 | AJ19: 0.835 | AK19: 0.835 | AL19: 0.835 | AM19: 59.74625044 | AN19: =Z19*E19+($A$4-80)*AG19*$A$16/1000 -> 57.40974887 | AO19: =AA19*G19+($A$4-80)*AH19*$A$16/1000 -> 54.98299616 | AP19: 53.67936868 | AQ19: 52.37574119 | AR19: 49.48770492 | AS19: 46.24869201

Sheet CA16NA_18 (hidden)
A2: CA16NA_18
A3: Evaporator Air | C3: Condenser Entering Air Temperature ˚F
A4: 80 | B4: °F DB | C4: 75 | E4: 85 | G4: 95 | I4: 100 | K4: 105 | M4: 115 | O4: 125
A5: CFM | B5: EWB† ˚F | C5: Capacity Mbtuh | E5: Capacity Mbtuh | G5: Capacity Mbtuh | I5: Capacity Mbtuh | K5: Capacity Mbtuh | M5: Capacity Mbtuh | O5: Capacity Mbtuh
C6: Total | D6: Sens. | E6: Total | F6: Sens. | G6: Total | H6: Sens. | I6: Total | J6: Sens. | K6: Total | L6: Sens. | M6: Total | N6: Sens. | O6: Total | P6: Sens.
R7: Total Factors | Y7: Sens. % | AF7: IDB Adj | AM7: Sens Calc
A8: 525 | B8: 72 | C8: =R8*$G$13 -> 22.96 | D8: =IF(AM8>C8,C8,AM8) -> 10.81 | E8: =S8*$G$13 -> 21.96 | F8: =IF(AN8>E8,E8,AN8) -> 10.47 | G8: =T8*$G$13 -> 20.87 | H8: =IF(AO8>G8,G8,AO8) -> 10.1 | I8: =U8*$G$13 -> 20.265 | J8: =IF(AP8>I8,I8,AP8) -> 9.9 | K8: =V8*$G$13 -> 19.66 | L8: =IF(AQ8>K8,K8,AQ8) -> 9.7 | M8: =W8*$G$13 -> 18.39 | N8: =IF(AR8>M8,M8,AR8) -> 9.28 | O8: =X8*$G$13 -> 17.04 | P8: =IF(AS8>O8,O8,AS8) -> 8.84 | R8: 1.189637306 | S8: 1.137823834 | T8: 1.08134715 | U8: 1.05 | V8: 1.01865285 | W8: 0.9528497409 | X8: 0.8829015544 | Y8: 0.4708188153 | Z8: 0.4767759563 | AA8: 0.4839482511 | AB8: 0.488527017 | AC8: 0.493387589 | AD8: 0.5046220772 | AE8: 0.5187793427 | AF8: 0.835 | AG8: 0.835 | AH8: 0.835 | AI8: 0.835 | AJ8: 0.835 | AK8: 0.835 | AL8: 0.835 | AM8: =Y8*C8+($A$4-80)*AF8*$A$8/1000 -> 10.81 | AN8: =Z8*E8+($A$4-80)*AG8*$A$8/1000 -> 10.47 | AO8: =AA8*G8+($A$4-80)*AH8*$A$8/1000 -> 10.1 | AP8: =AB8*I8+($A$4-80)*AI8*$A$8/1000 -> 9.9 | AQ8: =AC8*K8+($A$4-80)*AJ8*$A$8/1000 -> 9.7 | AR8: =AD8*M8+($A$4-80)*AK8*$A$8/1000 -> 9.28 | AS8: =AE8*O8+($A$4-80)*AL8*$A$8/1000 -> 8.84
B9: 67 | C9: 20.95 | D9: 13.24 | E9: 20 | F9: =IF(AN9>E9,E9,AN9) -> 12.88 | G9: =T9*$G$13 -> 18.96 | H9: =IF(AO9>G9,G9,AO9) -> 12.49 | I9: 18.41 | J9: =IF(AP9>I9,I9,AP9) -> 12.29 | K9: 17.86 | L9: =IF(AQ9>K9,K9,AQ9) -> 12.09 | M9: 16.68 | N9: =IF(AR9>M9,M9,AR9) -> 11.66 | O9: 15.44 | P9: =IF(AS9>O9,O9,AS9) -> 11.22 | R9: 1.085492228 | S9: 1.03626943 | T9: 0.9823834197 | U9: 0.9538860104 | V9: 0.925388601 | W9: 0.8642487047 | X9: 0.8 | Y9: 0.6319809069 | Z9: 0.644 | AA9: 0.6587552743 | AB9: 0.6675719718 | AC9: 0.6769316909 | AD9: 0.6990407674 | AE9: 0.7266839378 | AF9: 0.835 | AG9: 0.835 | AH9: 0.835 | AI9: 0.835 | AJ9: 0.835 | AK9: 0.835 | AL9: 0.835 | AM9: =Y9*C9+($A$4-80)*AF9*$A$8/1000 -> 13.24 | AN9: =Z9*E9+($A$4-80)*AG9*$A$8/1000 -> 12.88 | AO9: =AA9*G9+($A$4-80)*AH9*$A$8/1000 -> 12.49 | AP9: =AB9*I9+($A$4-80)*AI9*$A$8/1000 -> 12.29 | AQ9: =AC9*K9+($A$4-80)*AJ9*$A$8/1000 -> 12.09 | AR9: =AD9*M9+($A$4-80)*AK9*$A$8/1000 -> 11.66 | AS9: =AE9*O9+($A$4-80)*AL9*$A$8/1000 -> 11.22
B10: 62 | C10: 19.11 | D10: 15.62 | E10: 18.22 | F10: 15.24 | G10: =T10*$G$13 -> 17.28 | H10: 14.85 | I10: 16.79 | J10: 14.635 | K10: 16.3 | L10: 14.42 | M10: 15.38 | N10: 15.38 | O10: 14.43 | P10: 14.43 | R10: 0.9901554404 | S10: 0.9440414508 | T10: 0.8953367876 | U10: 0.8699481865 | V10: 0.8445595855 | W10: 0.7968911917 | X10: 0.7476683938 | Y10: 0.8173731031 | Z10: 0.8364434687 | AA10: 0.859375 | AB10: 0.8716497915 | AC10: 0.8846625767 | AD10: 1 | AE10: 1 | AF10: 0.835 | AG10: 0.835 | AH10: 0.835 | AI10: 0.835 | AJ10: 0.835 | AK10: 0.835 | AL10: 0.835 | AM10: 15.62 | AN10: =Z10*E10+($A$4-80)*AG10*$A$8/1000 -> 15.24 | AO10: =AA10*G10+($A$4-80)*AH10*$A$8/1000 -> 14.85 | AP10: 14.635 | AQ10: 14.42 | AR10: 15.38 | AS10: 14.43
B11: 57 | C11: 18.48 | D11: 18.48 | E11: 17.78 | F11: 17.78 | G11: =T11*$G$13 -> 17.03 | H11: 17.03 | I11: 16.625 | J11: 16.625 | K11: 16.22 | L11: 16.22 | M11: 15.35 | N11: 15.35 | O11: 14.41 | P11: 14.41 | R11: 0.9575129534 | S11: 0.9212435233 | T11: 0.8823834197 | U11: 0.8613989637 | V11: 0.8404145078 | W11: 0.7953367876 | X11: 0.7466321244 | Y11: 1 | Z11: 1 | AA11: 1 | AB11: 1 | AC11: 1 | AD11: 1 | AE11: 1 | AF11: 0.835 | AG11: 0.835 | AH11: 0.835 | AI11: 0.835 | AJ11: 0.835 | AK11: 0.835 | AL11: 0.835 | AM11: 18.48 | AN11: =Z11*E11+($A$4-80)*AG11*$A$8/1000 -> 17.78 | AO11: =AA11*G11+($A$4-80)*AH11*$A$8/1000 -> 17.03 | AP11: =AB11*I11+($A$4-80)*AI11*$A$8/1000 -> 16.625 | AQ11: 16.22 | AR11: 15.35 | AS11: 14.41
A12: 600 | B12: 72 | C12: 23.38 | D12: 11.37 | E12: 22.33 | F12: 11.02 | G12: =T12*$G$13 -> 21.21 | H12: 10.65 | I12: 20.58 | J12: 10.45 | K12: 19.95 | L12: 10.25 | M12: 18.63 | N12: 9.82 | O12: 17.24 | P12: 9.38 | R12: 1.211398964 | S12: 1.156994819 | T12: 1.098963731 | U12: 1.066321244 | V12: 1.033678756 | W12: 0.9652849741 | X12: 0.8932642487 | Y12: 0.4863130881 | Z12: 0.4935064935 | AA12: 0.5021216407 | AB12: 0.5077745384 | AC12: 0.5137844612 | AD12: 0.527106817 | AE12: 0.5440835267 | AF12: 0.835 | AG12: 0.835 | AH12: 0.835 | AI12: 0.835 | AJ12: 0.835 | AK12: 0.835 | AL12: 0.835 | AM12: =Y12*C12+($A$4-80)*AF12*$A$12/1000 -> 11.37 | AN12: =Z12*E12+($A$4-80)*AG12*$A$12/1000 -> 11.02 | AO12: =AA12*G12+($A$4-80)*AH12*$A$12/1000 -> 10.65 | AP12: =AB12*I12+($A$4-80)*AI12*$A$12/1000 -> 10.45 | AQ12: =AC12*K12+($A$4-80)*AJ12*$A$12/1000 -> 10.25 | AR12: =AD12*M12+($A$4-80)*AK12*$A$12/1000 -> 9.82 | AS12: =AE12*O12+($A$4-80)*AL12*$A$12/1000 -> 9.38
B13: 67 | C13: 21.35 | D13: 14.13 | E13: 20.39 | F13: 13.78 | G13: 19.3 | H13: 13.38 | I13: 18.725 | J13: 13.175 | K13: 18.15 | L13: 12.97 | M13: 16.93 | N13: 12.54 | O13: 15.64 | P13: 12.08 | R13: 1.106217617 | S13: 1.056476684 | T13: 1 | U13: 0.9702072539 | V13: 0.9404145078 | W13: 0.8772020725 | X13: 0.8103626943 | Y13: 0.6618266979 | Z13: 0.6758214811 | AA13: 0.6932642487 | AB13: 0.7036048064 | AC13: 0.714600551 | AD13: 0.7406969876 | AE13: 0.7723785166 | AF13: 0.835 | AG13: 0.835 | AH13: 0.835 | AI13: 0.835 | AJ13: 0.835 | AK13: 0.835 | AL13: 0.835 | AM13: =Y13*C13+($A$4-80)*AF13*$A$12/1000 -> 14.13 | AN13: =Z13*E13+($A$4-80)*AG13*$A$12/1000 -> 13.78 | AO13: =AA13*G13+($A$4-80)*AH13*$A$12/1000 -> 13.38 | AP13: =AB13*I13+($A$4-80)*AI13*$A$12/1000 -> 13.175 | AQ13: =AC13*K13+($A$4-80)*AJ13*$A$12/1000 -> 12.97 | AR13: =AD13*M13+($A$4-80)*AK13*$A$12/1000 -> 12.54 | AS13: =AE13*O13+($A$4-80)*AL13*$A$12/1000 -> 12.08
B14: 62 | C14: 19.57 | D14: 16.85 | E14: 18.67 | F14: 16.45 | G14: =T14*$G$13 -> 17.78 | H14: 17.78 | I14: 17.35 | J14: 17.35 | K14: 16.92 | L14: 16.92 | M14: 15.98 | N14: 15.98 | O14: 14.98 | P14: 14.98 | R14: 1.013989637 | S14: 0.967357513 | T14: 0.9212435233 | U14: 0.8989637306 | V14: 0.8766839378 | W14: 0.8279792746 | X14: 0.7761658031 | Y14: 0.8610117527 | Z14: 0.881092662 | AA14: 1 | AB14: 1 | AC14: 1 | AD14: 1 | AE14: 1 | AF14: 0.835 | AG14: 0.835 | AH14: 0.835 | AI14: 0.835 | AJ14: 0.835 | AK14: 0.835 | AL14: 0.835 | AM14: 16.85 | AN14: =Z14*E14+($A$4-80)*AG14*$A$12/1000 -> 16.45 | AO14: =AA14*G14+($A$4-80)*AH14*$A$12/1000 -> 17.78 | AP14: 17.35 | AQ14: 16.92 | AR14: 15.98 | AS14: 14.98
B15: 57 | C15: 19.32 | D15: 19.32 | E15: 18.57 | F15: 18.57 | G15: 17.76 | H15: 17.76 | I15: 17.325 | J15: 17.325 | K15: 16.89 | L15: 16.89 | M15: 15.96 | N15: 15.96 | O15: 14.95 | P15: 14.95 | R15: 1.001036269 | S15: 0.9621761658 | T15: 0.9202072539 | U15: 0.8976683938 | V15: 0.8751295337 | W15: 0.8269430052 | X15: 0.774611399 | Y15: 1 | Z15: 1 | AA15: 1 | AB15: 1 | AC15: 1 | AD15: 1 | AE15: 1 | AF15: 0.835 | AG15: 0.835 | AH15: 0.835 | AI15: 0.835 | AJ15: 0.835 | AK15: 0.835 | AL15: 0.835 | AM15: 19.32 | AN15: =Z15*E15+($A$4-80)*AG15*$A$12/1000 -> 18.57 | AO15: =AA15*G15+($A$4-80)*AH15*$A$12/1000 -> 17.76 | AP15: 17.325 | AQ15: 16.89 | AR15: 15.96 | AS15: 14.95
A16: 675 | B16: 72 | C16: 23.68 | D16: 11.91 | E16: 22.6 | F16: 11.55 | G16: 21.45 | H16: 11.18 | I16: 20.805 | J16: 10.975 | K16: 20.16 | L16: 10.77 | M16: 18.8 | N16: 10.34 | O16: 17.37 | P16: 9.9 | R16: 1.226943005 | S16: 1.170984456 | T16: 1.111398964 | U16: 1.077979275 | V16: 1.044559585 | W16: 0.9740932642 | X16: 0.9 | Y16: 0.5029560811 | Z16: 0.5110619469 | AA16: 0.5212121212 | AB16: 0.5275174237 | AC16: 0.5342261905 | AD16: 0.55 | AE16: 0.5699481865 | AF16: 0.835 | AG16: 0.835 | AH16: 0.835 | AI16: 0.835 | AJ16: 0.835 | AK16: 0.835 | AL16: 0.835 | AM16: =Y16*C16+($A$4-80)*AF16*$A$16/1000 -> 11.91 | AN16: =Z16*E16+($A$4-80)*AG16*$A$16/1000 -> 11.55 | AO16: =AA16*G16+($A$4-80)*AH16*$A$16/1000 -> 11.18 | AP16: =AB16*I16+($A$4-80)*AI16*$A$16/1000 -> 10.975 | AQ16: =AC16*K16+($A$4-80)*AJ16*$A$16/1000 -> 10.77 | AR16: =AD16*M16+($A$4-80)*AK16*$A$16/1000 -> 10.34 | AS16: =AE16*O16+($A$4-80)*AL16*$A$16/1000 -> 9.9
B17: 67 | C17: 21.66 | D17: 15 | E17: 20.65 | F17: 14.64 | G17: 19.55 | H17: 14.24 | I17: 18.955 | J17: 14.03 | K17: 18.36 | L17: 13.82 | M17: 17.11 | N17: 13.38 | O17: 15.8 | P17: 12.92 | R17: 1.122279793 | S17: 1.069948187 | T17: 1.012953368 | U17: 0.9821243523 | V17: 0.9512953368 | W17: 0.8865284974 | X17: 0.8186528497 | Y17: 0.6925207756 | Z17: 0.7089588378 | AA17: 0.7283887468 | AB17: 0.7401740965 | AC17: 0.7527233115 | AD17: 0.7819988311 | AE17: 0.817721519 | AF17: 0.835 | AG17: 0.835 | AH17: 0.835 | AI17: 0.835 | AJ17: 0.835 | AK17: 0.835 | AL17: 0.835 | AM17: =Y17*C17+($A$4-80)*AF17*$A$16/1000 -> 15 | AN17: =Z17*E17+($A$4-80)*AG17*$A$16/1000 -> 14.64 | AO17: =AA17*G17+($A$4-80)*AH17*$A$16/1000 -> 14.24 | AP17: =AB17*I17+($A$4-80)*AI17*$A$16/1000 -> 14.03 | AQ17: =AC17*K17+($A$4-80)*AJ17*$A$16/1000 -> 13.82 | AR17: =AD17*M17+($A$4-80)*AK17*$A$16/1000 -> 13.38 | AS17: =AE17*O17+($A$4-80)*AL17*$A$16/1000 -> 12.92
B18: 62 | C18: 20.03 | D18: 20.03 | E18: 19.25 | F18: 19.25 | G18: 18.38 | H18: 18.38 | I18: 17.92 | J18: 17.92 | K18: 17.46 | L18: 17.46 | M18: 16.47 | N18: 16.47 | O18: 15.41 | P18: 15.41 | R18: 1.037823834 | S18: 0.9974093264 | T18: 0.9523316062 | U18: 0.9284974093 | V18: 0.9046632124 | W18: 0.8533678756 | X18: 0.7984455959 | Y18: 1 | Z18: 1 | AA18: 1 | AB18: 1 | AC18: 1 | AD18: 1 | AE18: 1 | AF18: 0.835 | AG18: 0.835 | AH18: 0.835 | AI18: 0.835 | AJ18: 0.835 | AK18: 0.835 | AL18: 0.835 | AM18: 20.03 | AN18: =Z18*E18+($A$4-80)*AG18*$A$16/1000 -> 19.25 | AO18: =AA18*G18+($A$4-80)*AH18*$A$16/1000 -> 18.38 | AP18: 17.92 | AQ18: 17.46 | AR18: 16.47 | AS18: 15.41
B19: 57 | C19: 20 | D19: 20 | E19: 19.22 | F19: 19.22 | G19: 18.36 | H19: 18.36 | I19: 17.9 | J19: 17.9 | K19: 17.44 | L19: 17.44 | M19: 16.45 | N19: 16.45 | O19: 15.39 | P19: 15.39 | R19: 1.03626943 | S19: 0.9958549223 | T19: 0.9512953368 | U19: 0.9274611399 | V19: 0.903626943 | W19: 0.8523316062 | X19: 0.7974093264 | Y19: 1 | Z19: 1 | AA19: 1 | AB19: 1 | AC19: 1 | AD19: 1 | AE19: 1 | AF19: 0.835 | AG19: 0.835 | AH19: 0.835 | AI19: 0.835 | AJ19: 0.835 | AK19: 0.835 | AL19: 0.835 | AM19: 20 | AN19: =Z19*E19+($A$4-80)*AG19*$A$16/1000 -> 19.22 | AO19: =AA19*G19+($A$4-80)*AH19*$A$16/1000 -> 18.36 | AP19: 17.9 | AQ19: 17.44 | AR19: 16.45 | AS19: 15.39

Sheet CA16NA_24 (hidden)
A2: CA16NA_24
A3: Evaporator Air | C3: Condenser Entering Air Temperature ˚F
A4: 80 | B4: °F DB | C4: 75 | E4: 85 | G4: 95 | I4: 100 | K4: 105 | M4: 115 | O4: 125
A5: CFM | B5: EWB† ˚F | C5: Capacity Mbtuh | E5: Capacity Mbtuh | G5: Capacity Mbtuh | I5: Capacity Mbtuh | K5: Capacity Mbtuh | M5: Capacity Mbtuh | O5: Capacity Mbtuh
C6: Total | D6: Sens. | E6: Total | F6: Sens. | G6: Total | H6: Sens. | I6: Total | J6: Sens. | K6: Total | L6: Sens. | M6: Total | N6: Sens. | O6: Total | P6: Sens.
R7: Total Factors | Y7: Sens. % | AF7: IDB Adj | AM7: Sens Calc
A8: 700 | B8: 72 | C8: =R8*$G$13 -> 30.48689516 | D8: =IF(AM8>C8,C8,AM8) -> 14.79616935 | E8: =S8*$G$13 -> 29.08850806 | F8: =IF(AN8>E8,E8,AN8) -> 14.31290323 | G8: =T8*$G$13 -> 27.59758065 | H8: =IF(AO8>G8,G8,AO8) -> 13.79879032 | I8: =U8*$G$13 -> 26.81612903 | J8: =IF(AP8>I8,I8,AP8) -> 13.53659274 | K8: =V8*$G$13 -> 26.03467742 | L8: =IF(AQ8>K8,K8,AQ8) -> 13.27439516 | M8: =W8*$G$13 -> 24.37923387 | N8: =IF(AR8>M8,M8,AR8) -> 12.71915323 | O8: =X8*$G$13 -> 22.62096774 | P8: =IF(AS8>O8,O8,AS8) -> 12.13306452 | R8: 1.195564516 | S8: 1.140725806 | T8: 1.082258065 | U8: 1.051612903 | V8: 1.020967742 | W8: 0.9560483871 | X8: 0.8870967742 | Y8: 0.4853288364 | Z8: 0.4920466596 | AA8: 0.5 | AB8: 0.5047929448 | AC8: 0.5098736177 | AD8: 0.5217207929 | AE8: 0.5363636364 | AF8: 0.835 | AG8: 0.835 | AH8: 0.835 | AI8: 0.835 | AJ8: 0.835 | AK8: 0.835 | AL8: 0.835 | AM8: =Y8*C8+($A$4-80)*AF8*$A$8/1000 -> 14.79616935 | AN8: =Z8*E8+($A$4-80)*AG8*$A$8/1000 -> 14.31290323 | AO8: =AA8*G8+($A$4-80)*AH8*$A$8/1000 -> 13.79879032 | AP8: =AB8*I8+($A$4-80)*AI8*$A$8/1000 -> 13.53659274 | AQ8: =AC8*K8+($A$4-80)*AJ8*$A$8/1000 -> 13.27439516 | AR8: =AD8*M8+($A$4-80)*AK8*$A$8/1000 -> 12.71915323 | AS8: =AE8*O8+($A$4-80)*AL8*$A$8/1000 -> 12.13306452
B9: 67 | C9: 27.69012097 | D9: 18.12762097 | E9: 26.40483871 | F9: =IF(AN9>E9,E9,AN9) -> 17.63407258 | G9: =T9*$G$13 -> 25.0578629 | H9: =IF(AO9>G9,G9,AO9) -> 17.11995968 | I9: 24.34324597 | J9: =IF(AP9>I9,I9,AP9) -> 16.85262097 | K9: 23.62862903 | L9: =IF(AQ9>K9,K9,AQ9) -> 16.58528226 | M9: 22.1171371 | N9: =IF(AR9>M9,M9,AR9) -> 16.01975806 | O9: 20.50282258 | P9: =IF(AS9>O9,O9,AS9) -> 15.43366935 | R9: 1.085887097 | S9: 1.035483871 | T9: 0.9826612903 | U9: 0.9546370968 | V9: 0.9266129032 | W9: 0.8673387097 | X9: 0.8040322581 | Y9: 0.6546602302 | Z9: 0.667834891 | AA9: 0.6832170702 | AB9: 0.6922914467 | AC9: 0.7019147084 | AD9: 0.7243142724 | AE9: 0.7527582748 | AF9: 0.835 | AG9: 0.835 | AH9: 0.835 | AI9: 0.835 | AJ9: 0.835 | AK9: 0.835 | AL9: 0.835 | AM9: =Y9*C9+($A$4-80)*AF9*$A$8/1000 -> 18.12762097 | AN9: =Z9*E9+($A$4-80)*AG9*$A$8/1000 -> 17.63407258 | AO9: =AA9*G9+($A$4-80)*AH9*$A$8/1000 -> 17.11995968 | AP9: =AB9*I9+($A$4-80)*AI9*$A$8/1000 -> 16.85262097 | AQ9: =AC9*K9+($A$4-80)*AJ9*$A$8/1000 -> 16.58528226 | AR9: =AD9*M9+($A$4-80)*AK9*$A$8/1000 -> 16.01975806 | AS9: =AE9*O9+($A$4-80)*AL9*$A$8/1000 -> 15.43366935
B10: 62 | C10: 25.19153226 | D10: 21.38709677 | E10: 24.05020161 | F10: 20.89354839 | G10: =T10*$G$13 -> 22.84717742 | H10: 20.36915323 | I10: 22.23024194 | J10: 20.97066532 | K10: 21.61330645 | L10: 21.57217742 | M10: 20.47197581 | N10: 20.47197581 | O10: 19.25866935 | P10: 19.25866935 | R10: 0.9879032258 | S10: 0.9431451613 | T10: 0.8959677419 | U10: 0.8717741935 | V10: 0.8475806452 | W10: 0.8028225806 | X10: 0.7552419355 | Y10: 0.8489795918 | Z10: 0.8687473279 | AA10: 0.8915391539 | AB10: 0.9433395005 | AC10: 0.9980970504 | AD10: 1 | AE10: 1 | AF10: 0.835 | AG10: 0.835 | AH10: 0.835 | AI10: 0.835 | AJ10: 0.835 | AK10: 0.835 | AL10: 0.835 | AM10: 21.38709677 | AN10: =Z10*E10+($A$4-80)*AG10*$A$8/1000 -> 20.89354839 | AO10: =AA10*G10+($A$4-80)*AH10*$A$8/1000 -> 20.36915323 | AP10: 20.97066532 | AQ10: 21.57217742 | AR10: 20.47197581 | AS10: 19.25866935
B11: 57 | C11: 24.50262097 | D11: 24.50262097 | E11: 23.59778226 | F11: 23.59778226 | G11: =T11*$G$13 -> 22.61068548 | H11: 22.61068548 | I11: 22.09143145 | J11: 22.09143145 | K11: 21.57217742 | L11: 21.57217742 | M11: 20.44112903 | N11: 20.44112903 | O11: 19.22782258 | P11: 19.22782258 | R11: 0.9608870968 | S11: 0.9254032258 | T11: 0.8866935484 | U11: 0.8663306452 | V11: 0.8459677419 | W11: 0.8016129032 | X11: 0.7540322581 | Y11: 1 | Z11: 1 | AA11: 1 | AB11: 1 | AC11: 1 | AD11: 1 | AE11: 1 | AF11: 0.835 | AG11: 0.835 | AH11: 0.835 | AI11: 0.835 | AJ11: 0.835 | AK11: 0.835 | AL11: 0.835 | AM11: 24.50262097 | AN11: =Z11*E11+($A$4-80)*AG11*$A$8/1000 -> 23.59778226 | AO11: =AA11*G11+($A$4-80)*AH11*$A$8/1000 -> 22.61068548 | AP11: =AB11*I11+($A$4-80)*AI11*$A$8/1000 -> 22.09143145 | AQ11: 21.57217742 | AR11: 20.44112903 | AS11: 19.22782258
A12: 800 | B12: 72 | C12: 31.03185484 | D12: 15.57762097 | E12: 29.59233871 | F12: 15.09435484 | G12: =T12*$G$13 -> 28.03971774 | H12: 14.56995968 | I12: 27.22227823 | J12: 14.30262097 | K12: 26.40483871 | L12: 14.03528226 | M12: 24.68770161 | N12: 13.46975806 | O12: 22.87802419 | P12: 12.88366935 | R12: 1.216935484 | S12: 1.160483871 | T12: 1.099596774 | U12: 1.067540323 | V12: 1.035483871 | W12: 0.9681451613 | X12: 0.8971774194 | Y12: 0.5019880716 | Z12: 0.510076442 | AA12: 0.5196186285 | AB12: 0.525401322 | AC12: 0.5315420561 | AD12: 0.5456059975 | AE12: 0.5631460674 | AF12: 0.835 | AG12: 0.835 | AH12: 0.835 | AI12: 0.835 | AJ12: 0.835 | AK12: 0.835 | AL12: 0.835 | AM12: =Y12*C12+($A$4-80)*AF12*$A$12/1000 -> 15.57762097 | AN12: =Z12*E12+($A$4-80)*AG12*$A$12/1000 -> 15.09435484 | AO12: =AA12*G12+($A$4-80)*AH12*$A$12/1000 -> 14.56995968 | AP12: =AB12*I12+($A$4-80)*AI12*$A$12/1000 -> 14.30262097 | AQ12: =AC12*K12+($A$4-80)*AJ12*$A$12/1000 -> 14.03528226 | AR12: =AD12*M12+($A$4-80)*AK12*$A$12/1000 -> 13.46975806 | AS12: =AE12*O12+($A$4-80)*AL12*$A$12/1000 -> 12.88366935
B13: 67 | C13: 28.26592742 | D13: 19.39233871 | E13: 26.91895161 | F13: 18.88850806 | G13: 25.5 | H13: 18.3641129 | I13: 24.75453629 | J13: 18.08649194 | K13: 24.00907258 | L13: 17.80887097 | M13: 22.4358871 | N13: 17.24334677 | O13: 20.78044355 | P13: 16.63669355 | R13: 1.108467742 | S13: 1.055645161 | T13: 1 | U13: 0.970766129 | V13: 0.9415322581 | W13: 0.8798387097 | X13: 0.8149193548 | Y13: 0.686067661 | Z13: 0.7016806723 | AA13: 0.7201612903 | AB13: 0.7306334372 | AC13: 0.7417558887 | AD13: 0.7685609533 | AE13: 0.8005937655 | AF13: 0.835 | AG13: 0.835 | AH13: 0.835 | AI13: 0.835 | AJ13: 0.835 | AK13: 0.835 | AL13: 0.835 | AM13: =Y13*C13+($A$4-80)*AF13*$A$12/1000 -> 19.39233871 | AN13: =Z13*E13+($A$4-80)*AG13*$A$12/1000 -> 18.88850806 | AO13: =AA13*G13+($A$4-80)*AH13*$A$12/1000 -> 18.3641129 | AP13: =AB13*I13+($A$4-80)*AI13*$A$12/1000 -> 18.08649194 | AQ13: =AC13*K13+($A$4-80)*AJ13*$A$12/1000 -> 17.80887097 | AR13: =AD13*M13+($A$4-80)*AK13*$A$12/1000 -> 17.24334677 | AS13: =AE13*O13+($A$4-80)*AL13*$A$12/1000 -> 16.63669355
B14: 62 | C14: 25.83931452 | D14: 23.09395161 | E14: 24.68770161 | F14: 24.57459677 | G14: =T14*$G$13 -> 23.61834677 | H14: 23.61834677 | I14: 23.05282258 | J14: 23.05282258 | K14: 22.48729839 | L14: 22.48729839 | M14: 21.27399194 | N14: 21.27399194 | O14: 19.97842742 | P14: 19.97842742 | R14: 1.013306452 | S14: 0.9681451613 | T14: 0.9262096774 | U14: 0.9040322581 | V14: 0.8818548387 | W14: 0.8342741935 | X14: 0.7834677419 | Y14: 0.8937524871 | Z14: 0.9954185756 | AA14: 1 | AB14: 1 | AC14: 1 | AD14: 1 | AE14: 1 | AF14: 0.835 | AG14: 0.835 | AH14: 0.835 | AI14: 0.835 | AJ14: 0.835 | AK14: 0.835 | AL14: 0.835 | AM14: 23.09395161 | AN14: =Z14*E14+($A$4-80)*AG14*$A$12/1000 -> 24.57459677 | AO14: =AA14*G14+($A$4-80)*AH14*$A$12/1000 -> 23.61834677 | AP14: 23.05282258 | AQ14: 22.48729839 | AR14: 21.27399194 | AS14: 19.97842742
B15: 57 | C15: 25.61310484 | D15: 25.61310484 | E15: 24.62600806 | F15: 24.62600806 | G15: 23.57721774 | H15: 23.57721774 | I15: 23.01169355 | J15: 23.01169355 | K15: 22.44616935 | L15: 22.44616935 | M15: 21.24314516 | N15: 21.24314516 | O15: 19.94758065 | P15: 19.94758065 | R15: 1.004435484 | S15: 0.9657258065 | T15: 0.9245967742 | U15: 0.9024193548 | V15: 0.8802419355 | W15: 0.8330645161 | X15: 0.7822580645 | Y15: 1 | Z15: 1 | AA15: 1 | AB15: 1 | AC15: 1 | AD15: 1 | AE15: 1 | AF15: 0.835 | AG15: 0.835 | AH15: 0.835 | AI15: 0.835 | AJ15: 0.835 | AK15: 0.835 | AL15: 0.835 | AM15: 25.61310484 | AN15: =Z15*E15+($A$4-80)*AG15*$A$12/1000 -> 24.62600806 | AO15: =AA15*G15+($A$4-80)*AH15*$A$12/1000 -> 23.57721774 | AP15: 23.01169355 | AQ15: 22.44616935 | AR15: 21.24314516 | AS15: 19.94758065
A16: 900 | B16: 72 | C16: 31.42258065 | D16: 16.32822581 | E16: 29.95221774 | F16: 15.83467742 | G16: 28.34818548 | H16: 15.31028226 | I16: 27.50504032 | J16: 15.03780242 | K16: 26.66189516 | L16: 14.76532258 | M16: 24.90362903 | N16: 14.19979839 | O16: 23.04254032 | P16: 13.60342742 | R16: 1.232258065 | S16: 1.174596774 | T16: 1.111693548 | U16: 1.078629032 | V16: 1.045564516 | W16: 0.9766129032 | X16: 0.9036290323 | Y16: 0.5196335079 | Z16: 0.5286646069 | AA16: 0.5400797969 | AB16: 0.546728972 | AC16: 0.5537986888 | AD16: 0.5701899257 | AE16: 0.5903614458 | AF16: 0.835 | AG16: 0.835 | AH16: 0.835 | AI16: 0.835 | AJ16: 0.835 | AK16: 0.835 | AL16: 0.835 | AM16: =Y16*C16+($A$4-80)*AF16*$A$16/1000 -> 16.32822581 | AN16: =Z16*E16+($A$4-80)*AG16*$A$16/1000 -> 15.83467742 | AO16: =AA16*G16+($A$4-80)*AH16*$A$16/1000 -> 15.31028226 | AP16: =AB16*I16+($A$4-80)*AI16*$A$16/1000 -> 15.03780242 | AQ16: =AC16*K16+($A$4-80)*AJ16*$A$16/1000 -> 14.76532258 | AR16: =AD16*M16+($A$4-80)*AK16*$A$16/1000 -> 14.19979839 | AS16: =AE16*O16+($A$4-80)*AL16*$A$16/1000 -> 13.60342742
B17: 67 | C17: 28.67721774 | D17: 20.60564516 | E17: 27.27883065 | F17: 20.09153226 | G17: 25.81875 | H17: 19.55685484 | I17: 25.05272177 | J17: 19.27923387 | K17: 24.28669355 | L17: 19.0016129 | M17: 22.67237903 | N17: 18.41552419 | O17: 20.97580645 | P17: 17.79858871 | R17: 1.124596774 | S17: 1.069758065 | T17: 1.0125 | U17: 0.9824596774 | V17: 0.9524193548 | W17: 0.8891129032 | X17: 0.8225806452 | Y17: 0.7185371101 | Z17: 0.736524689 | AA17: 0.7574671446 | AB17: 0.7695464806 | AC17: 0.7823878069 | AD17: 0.812244898 | AE17: 0.8485294118 | AF17: 0.835 | AG17: 0.835 | AH17: 0.835 | AI17: 0.835 | AJ17: 0.835 | AK17: 0.835 | AL17: 0.835 | AM17: =Y17*C17+($A$4-80)*AF17*$A$16/1000 -> 20.60564516 | AN17: =Z17*E17+($A$4-80)*AG17*$A$16/1000 -> 20.09153226 | AO17: =AA17*G17+($A$4-80)*AH17*$A$16/1000 -> 19.55685484 | AP17: =AB17*I17+($A$4-80)*AI17*$A$16/1000 -> 19.27923387 | AQ17: =AC17*K17+($A$4-80)*AJ17*$A$16/1000 -> 19.0016129 | AR17: =AD17*M17+($A$4-80)*AK17*$A$16/1000 -> 18.41552419 | AS17: =AE17*O17+($A$4-80)*AL17*$A$16/1000 -> 17.79858871
B18: 62 | C18: 26.5796371 | D18: 26.5796371 | E18: 25.52056452 | F18: 25.52056452 | G18: 24.39979839 | H18: 24.39979839 | I18: 23.80342742 | J18: 23.80342742 | K18: 23.20705645 | L18: 23.20705645 | M18: 21.92177419 | N18: 21.92177419 | O18: 20.54395161 | P18: 20.54395161 | R18: 1.04233871 | S18: 1.000806452 | T18: 0.9568548387 | U18: 0.9334677419 | V18: 0.9100806452 | W18: 0.8596774194 | X18: 0.8056451613 | Y18: 1 | Z18: 1 | AA18: 1 | AB18: 1 | AC18: 1 | AD18: 1 | AE18: 1 | AF18: 0.835 | AG18: 0.835 | AH18: 0.835 | AI18: 0.835 | AJ18: 0.835 | AK18: 0.835 | AL18: 0.835 | AM18: 26.5796371 | AN18: =Z18*E18+($A$4-80)*AG18*$A$16/1000 -> 25.52056452 | AO18: =AA18*G18+($A$4-80)*AH18*$A$16/1000 -> 24.39979839 | AP18: 23.80342742 | AQ18: 23.20705645 | AR18: 21.92177419 | AS18: 20.54395161
B19: 57 | C19: 26.53850806 | D19: 26.53850806 | E19: 25.48971774 | F19: 25.48971774 | G19: 24.36895161 | H19: 24.36895161 | I19: 23.77258065 | J19: 23.77258065 | K19: 23.17620968 | L19: 23.17620968 | M19: 21.90120968 | N19: 21.90120968 | O19: 20.5233871 | P19: 20.5233871 | R19: 1.040725806 | S19: 0.9995967742 | T19: 0.9556451613 | U19: 0.9322580645 | V19: 0.9088709677 | W19: 0.8588709677 | X19: 0.8048387097 | Y19: 1 | Z19: 1 | AA19: 1 | AB19: 1 | AC19: 1 | AD19: 1 | AE19: 1 | AF19: 0.835 | AG19: 0.835 | AH19: 0.835 | AI19: 0.835 | AJ19: 0.835 | AK19: 0.835 | AL19: 0.835 | AM19: 26.53850806 | AN19: =Z19*E19+($A$4-80)*AG19*$A$16/1000 -> 25.48971774 | AO19: =AA19*G19+($A$4-80)*AH19*$A$16/1000 -> 24.36895161 | AP19: 23.77258065 | AQ19: 23.17620968 | AR19: 21.90120968 | AS19: 20.5233871

Sheet CA16NA_30 (hidden)
A2: CA16NA_30
A3: Evaporator Air | C3: Condenser Entering Air Temperature ˚F
A4: 80 | B4: °F DB | C4: 75 | E4: 85 | G4: 95 | I4: 100 | K4: 105 | M4: 115 | O4: 125
A5: CFM | B5: EWB† ˚F | C5: Capacity Mbtuh | E5: Capacity Mbtuh | G5: Capacity Mbtuh | I5: Capacity Mbtuh | K5: Capacity Mbtuh | M5: Capacity Mbtuh | O5: Capacity Mbtuh
C6: Total | D6: Sens. | E6: Total | F6: Sens. | G6: Total | H6: Sens. | I6: Total | J6: Sens. | K6: Total | L6: Sens. | M6: Total | N6: Sens. | O6: Total | P6: Sens.
R7: Total Factors | Y7: Sens. % | AF7: IDB Adj | AM7: Sens Calc
A8: 875 | B8: 72 | C8: =R8*$G$13 -> 34.81 | D8: =IF(AM8>C8,C8,AM8) -> 17.02 | E8: =S8*$G$13 -> 33.26 | F8: =IF(AN8>E8,E8,AN8) -> 16.49 | G8: =T8*$G$13 -> 31.65 | H8: =IF(AO8>G8,G8,AO8) -> 15.94 | I8: =U8*$G$13 -> 30.795 | J8: =IF(AP8>I8,I8,AP8) -> 15.655 | K8: =V8*$G$13 -> 29.94 | L8: =IF(AQ8>K8,K8,AQ8) -> 15.37 | M8: =W8*$G$13 -> 28.08 | N8: =IF(AR8>M8,M8,AR8) -> 14.76 | O8: =X8*$G$13 -> 26.06 | P8: =IF(AS8>O8,O8,AS8) -> 14.1 | R8: 1.192123288 | S8: 1.139041096 | T8: 1.08390411 | U8: 1.054623288 | V8: 1.025342466 | W8: 0.9616438356 | X8: 0.8924657534 | Y8: 0.4889399598 | Z8: 0.4957907396 | AA8: 0.5036334913 | AB8: 0.508361747 | AC8: 0.5133600534 | AD8: 0.5256410256 | AE8: 0.5410590944 | AF8: 0.835 | AG8: 0.835 | AH8: 0.835 | AI8: 0.835 | AJ8: 0.835 | AK8: 0.835 | AL8: 0.835 | AM8: =Y8*C8+($A$4-80)*AF8*$A$8/1000 -> 17.02 | AN8: =Z8*E8+($A$4-80)*AG8*$A$8/1000 -> 16.49 | AO8: =AA8*G8+($A$4-80)*AH8*$A$8/1000 -> 15.94 | AP8: =AB8*I8+($A$4-80)*AI8*$A$8/1000 -> 15.655 | AQ8: =AC8*K8+($A$4-80)*AJ8*$A$8/1000 -> 15.37 | AR8: =AD8*M8+($A$4-80)*AK8*$A$8/1000 -> 14.76 | AS8: =AE8*O8+($A$4-80)*AL8*$A$8/1000 -> 14.1
B9: 67 | C9: 31.64 | D9: 20.98 | E9: 30.23 | F9: =IF(AN9>E9,E9,AN9) -> 20.44 | G9: =T9*$G$13 -> 28.75 | H9: =IF(AO9>G9,G9,AO9) -> 19.89 | I9: 27.96 | J9: =IF(AP9>I9,I9,AP9) -> 19.595 | K9: 27.17 | L9: =IF(AQ9>K9,K9,AQ9) -> 19.3 | M9: 25.46 | N9: =IF(AR9>M9,M9,AR9) -> 18.68 | O9: 23.59 | P9: =IF(AS9>O9,O9,AS9) -> 18 | R9: 1.083561644 | S9: 1.035273973 | T9: 0.9845890411 | U9: 0.9575342466 | V9: 0.9304794521 | W9: 0.8719178082 | X9: 0.8078767123 | Y9: 0.6630847029 | Z9: 0.6761495203 | AA9: 0.691826087 | AB9: 0.7008226037 | AC9: 0.7103422893 | AD9: 0.7336999214 | AE9: 0.7630351844 | AF9: 0.835 | AG9: 0.835 | AH9: 0.835 | AI9: 0.835 | AJ9: 0.835 | AK9: 0.835 | AL9: 0.835 | AM9: =Y9*C9+($A$4-80)*AF9*$A$8/1000 -> 20.98 | AN9: =Z9*E9+($A$4-80)*AG9*$A$8/1000 -> 20.44 | AO9: =AA9*G9+($A$4-80)*AH9*$A$8/1000 -> 19.89 | AP9: =AB9*I9+($A$4-80)*AI9*$A$8/1000 -> 19.595 | AQ9: =AC9*K9+($A$4-80)*AJ9*$A$8/1000 -> 19.3 | AR9: =AD9*M9+($A$4-80)*AK9*$A$8/1000 -> 18.68 | AS9: =AE9*O9+($A$4-80)*AL9*$A$8/1000 -> 18
B10: 62 | C10: 28.91 | D10: 24.88 | E10: 27.64 | F10: 24.33 | G10: =T10*$G$13 -> 26.34 | H10: 23.74 | I10: 25.71 | J10: 24.41 | K10: 25.08 | L10: 25.08 | M10: 23.77 | N10: 23.77 | O10: 22.33 | P10: 22.33 | R10: 0.9900684932 | S10: 0.9465753425 | T10: 0.9020547945 | U10: 0.8804794521 | V10: 0.8589041096 | W10: 0.8140410959 | X10: 0.7647260274 | Y10: 0.8606018679 | Z10: 0.8802460203 | AA10: 0.9012908125 | AB10: 0.9494360171 | AC10: 1 | AD10: 1 | AE10: 1 | AF10: 0.835 | AG10: 0.835 | AH10: 0.835 | AI10: 0.835 | AJ10: 0.835 | AK10: 0.835 | AL10: 0.835 | AM10: 24.88 | AN10: =Z10*E10+($A$4-80)*AG10*$A$8/1000 -> 24.33 | AO10: =AA10*G10+($A$4-80)*AH10*$A$8/1000 -> 23.74 | AP10: 24.41 | AQ10: 25.08 | AR10: 23.77 | AS10: 22.33
B11: 57 | C11: 28.34 | D11: 28.34 | E11: 27.32 | F11: 27.32 | G11: =T11*$G$13 -> 26.23 | H11: 26.23 | I11: 25.635 | J11: 25.635 | K11: 25.04 | L11: 25.04 | M11: 23.74 | N11: 23.74 | O11: 22.29 | P11: 22.29 | R11: 0.9705479452 | S11: 0.9356164384 | T11: 0.8982876712 | U11: 0.8779109589 | V11: 0.8575342466 | W11: 0.8130136986 | X11: 0.7633561644 | Y11: 1 | Z11: 1 | AA11: 1 | AB11: 1 | AC11: 1 | AD11: 1 | AE11: 1 | AF11: 0.835 | AG11: 0.835 | AH11: 0.835 | AI11: 0.835 | AJ11: 0.835 | AK11: 0.835 | AL11: 0.835 | AM11: 28.34 | AN11: =Z11*E11+($A$4-80)*AG11*$A$8/1000 -> 27.32 | AO11: =AA11*G11+($A$4-80)*AH11*$A$8/1000 -> 26.23 | AP11: =AB11*I11+($A$4-80)*AI11*$A$8/1000 -> 25.635 | AQ11: 25.04 | AR11: 23.74 | AS11: 22.29
A12: 1000 | B12: 72 | C12: 35.4 | D12: 17.92 | E12: 33.78 | F12: 17.38 | G12: =T12*$G$13 -> 32.11 | H12: 16.83 | I12: 31.22 | J12: 16.54 | K12: 30.33 | L12: 16.25 | M12: 28.41 | N12: 15.63 | O12: 26.33 | P12: 14.96 | R12: 1.212328767 | S12: 1.156849315 | T12: 1.099657534 | U12: 1.069178082 | V12: 1.03869863 | W12: 0.9729452055 | X12: 0.9017123288 | Y12: 0.5062146893 | Z12: 0.5145056246 | AA12: 0.5241357832 | AB12: 0.5297885971 | AC12: 0.5357731619 | AD12: 0.5501583949 | AE12: 0.5681731865 | AF12: 0.835 | AG12: 0.835 | AH12: 0.835 | AI12: 0.835 | AJ12: 0.835 | AK12: 0.835 | AL12: 0.835 | AM12: =Y12*C12+($A$4-80)*AF12*$A$12/1000 -> 17.92 | AN12: =Z12*E12+($A$4-80)*AG12*$A$12/1000 -> 17.38 | AO12: =AA12*G12+($A$4-80)*AH12*$A$12/1000 -> 16.83 | AP12: =AB12*I12+($A$4-80)*AI12*$A$12/1000 -> 16.54 | AQ12: =AC12*K12+($A$4-80)*AJ12*$A$12/1000 -> 16.25 | AR12: =AD12*M12+($A$4-80)*AK12*$A$12/1000 -> 15.63 | AS12: =AE12*O12+($A$4-80)*AL12*$A$12/1000 -> 14.96
B13: 67 | C13: 32.21 | D13: 22.42 | E13: 30.73 | F13: 21.88 | G13: 29.2 | H13: 21.32 | I13: 28.385 | J13: 21.02 | K13: 27.57 | L13: 20.72 | M13: 25.8 | N13: 20.08 | O13: 23.88 | P13: 19.39 | R13: 1.103082192 | S13: 1.05239726 | T13: 1 | U13: 0.9720890411 | V13: 0.9441780822 | W13: 0.8835616438 | X13: 0.8178082192 | Y13: 0.6960571251 | Z13: 0.71200781 | AA13: 0.7301369863 | AB13: 0.7405319711 | AC13: 0.7515415306 | AD13: 0.7782945736 | AE13: 0.8119765494 | AF13: 0.835 | AG13: 0.835 | AH13: 0.835 | AI13: 0.835 | AJ13: 0.835 | AK13: 0.835 | AL13: 0.835 | AM13: =Y13*C13+($A$4-80)*AF13*$A$12/1000 -> 22.42 | AN13: =Z13*E13+($A$4-80)*AG13*$A$12/1000 -> 21.88 | AO13: =AA13*G13+($A$4-80)*AH13*$A$12/1000 -> 21.32 | AP13: =AB13*I13+($A$4-80)*AI13*$A$12/1000 -> 21.02 | AQ13: =AC13*K13+($A$4-80)*AJ13*$A$12/1000 -> 20.72 | AR13: =AD13*M13+($A$4-80)*AK13*$A$12/1000 -> 20.08 | AS13: =AE13*O13+($A$4-80)*AL13*$A$12/1000 -> 19.39
B14: 62 | C14: 29.63 | D14: 29.37 | E14: 28.47 | F14: 28.47 | G14: =T14*$G$13 -> 27.3 | H14: 27.3 | I14: 26.665 | J14: 26.665 | K14: 26.03 | L14: 26.03 | M14: 24.65 | N14: 24.65 | O14: 23.12 | P14: 23.12 | R14: 1.014726027 | S14: 0.975 | T14: 0.9349315068 | U14: 0.9131849315 | V14: 0.8914383562 | W14: 0.8441780822 | X14: 0.7917808219 | Y14: 0.9912251097 | Z14: 1 | AA14: 1 | AB14: 1 | AC14: 1 | AD14: 1 | AE14: 1 | AF14: 0.835 | AG14: 0.835 | AH14: 0.835 | AI14: 0.835 | AJ14: 0.835 | AK14: 0.835 | AL14: 0.835 | AM14: 29.37 | AN14: =Z14*E14+($A$4-80)*AG14*$A$12/1000 -> 28.47 | AO14: =AA14*G14+($A$4-80)*AH14*$A$12/1000 -> 27.3 | AP14: 26.665 | AQ14: 26.03 | AR14: 24.65 | AS14: 23.12
B15: 57 | C15: 29.54 | D15: 29.54 | E15: 28.43 | F15: 28.43 | G15: 27.26 | H15: 27.26 | I15: 26.625 | J15: 26.625 | K15: 25.99 | L15: 25.99 | M15: 24.61 | N15: 24.61 | O15: 23.08 | P15: 23.08 | R15: 1.011643836 | S15: 0.973630137 | T15: 0.9335616438 | U15: 0.9118150685 | V15: 0.8900684932 | W15: 0.8428082192 | X15: 0.7904109589 | Y15: 1 | Z15: 1 | AA15: 1 | AB15: 1 | AC15: 1 | AD15: 1 | AE15: 1 | AF15: 0.835 | AG15: 0.835 | AH15: 0.835 | AI15: 0.835 | AJ15: 0.835 | AK15: 0.835 | AL15: 0.835 | AM15: 29.54 | AN15: =Z15*E15+($A$4-80)*AG15*$A$12/1000 -> 28.43 | AO15: =AA15*G15+($A$4-80)*AH15*$A$12/1000 -> 27.26 | AP15: 26.625 | AQ15: 25.99 | AR15: 24.61 | AS15: 23.08
A16: 1125 | B16: 72 | C16: 35.82 | D16: 18.78 | E16: 34.16 | F16: 18.24 | G16: 32.43 | H16: 17.67 | I16: 31.515 | J16: 17.38 | K16: 30.6 | L16: 17.09 | M16: 28.63 | N16: 16.46 | O16: 26.5 | P16: 15.79 | R16: 1.226712329 | S16: 1.169863014 | T16: 1.110616438 | U16: 1.079280822 | V16: 1.047945205 | W16: 0.9804794521 | X16: 0.9075342466 | Y16: 0.5242881072 | Z16: 0.5339578454 | AA16: 0.5448658649 | AB16: 0.5514834206 | AC16: 0.558496732 | AD16: 0.5749214111 | AE16: 0.5958490566 | AF16: 0.835 | AG16: 0.835 | AH16: 0.835 | AI16: 0.835 | AJ16: 0.835 | AK16: 0.835 | AL16: 0.835 | AM16: =Y16*C16+($A$4-80)*AF16*$A$16/1000 -> 18.78 | AN16: =Z16*E16+($A$4-80)*AG16*$A$16/1000 -> 18.24 | AO16: =AA16*G16+($A$4-80)*AH16*$A$16/1000 -> 17.67 | AP16: =AB16*I16+($A$4-80)*AI16*$A$16/1000 -> 17.38 | AQ16: =AC16*K16+($A$4-80)*AJ16*$A$16/1000 -> 17.09 | AR16: =AD16*M16+($A$4-80)*AK16*$A$16/1000 -> 16.46 | AS16: =AE16*O16+($A$4-80)*AL16*$A$16/1000 -> 15.79
B17: 67 | C17: 32.63 | D17: 23.81 | E17: 31.11 | F17: 23.26 | G17: 29.54 | H17: 22.69 | I17: 28.7 | J17: 22.385 | K17: 27.86 | L17: 22.08 | M17: 26.06 | N17: 21.42 | O17: 24.12 | P17: 20.7 | R17: 1.117465753 | S17: 1.065410959 | T17: 1.011643836 | U17: 0.9828767123 | V17: 0.954109589 | W17: 0.8924657534 | X17: 0.8260273973 | Y17: 0.7296965982 | Z17: 0.7476695596 | AA17: 0.7681110359 | AB17: 0.7799651568 | AC17: 0.7925340991 | AD17: 0.8219493477 | AE17: 0.8582089552 | AF17: 0.835 | AG17: 0.835 | AH17: 0.835 | AI17: 0.835 | AJ17: 0.835 | AK17: 0.835 | AL17: 0.835 | AM17: =Y17*C17+($A$4-80)*AF17*$A$16/1000 -> 23.81 | AN17: =Z17*E17+($A$4-80)*AG17*$A$16/1000 -> 23.26 | AO17: =AA17*G17+($A$4-80)*AH17*$A$16/1000 -> 22.69 | AP17: =AB17*I17+($A$4-80)*AI17*$A$16/1000 -> 22.385 | AQ17: =AC17*K17+($A$4-80)*AJ17*$A$16/1000 -> 22.08 | AR17: =AD17*M17+($A$4-80)*AK17*$A$16/1000 -> 21.42 | AS17: =AE17*O17+($A$4-80)*AL17*$A$16/1000 -> 20.7
B18: 62 | C18: 30.56 | D18: 30.56 | E18: 29.38 | F18: 29.38 | G18: 28.15 | H18: 28.15 | I18: 27.48 | J18: 27.48 | K18: 26.81 | L18: 26.81 | M18: 25.35 | N18: 25.35 | O18: 23.75 | P18: 23.75 | R18: 1.046575342 | S18: 1.006164384 | T18: 0.9640410959 | U18: 0.9410958904 | V18: 0.9181506849 | W18: 0.8681506849 | X18: 0.8133561644 | Y18: 1 | Z18: 1 | AA18: 1 | AB18: 1 | AC18: 1 | AD18: 1 | AE18: 1 | AF18: 0.835 | AG18: 0.835 | AH18: 0.835 | AI18: 0.835 | AJ18: 0.835 | AK18: 0.835 | AL18: 0.835 | AM18: 30.56 | AN18: =Z18*E18+($A$4-80)*AG18*$A$16/1000 -> 29.38 | AO18: =AA18*G18+($A$4-80)*AH18*$A$16/1000 -> 28.15 | AP18: 27.48 | AQ18: 26.81 | AR18: 25.35 | AS18: 23.75
B19: 57 | C19: 30.52 | D19: 30.52 | E19: 29.34 | F19: 29.34 | G19: 28.11 | H19: 28.11 | I19: 27.44 | J19: 27.44 | K19: 26.77 | L19: 26.77 | M19: 25.32 | N19: 25.32 | O19: 23.72 | P19: 23.72 | R19: 1.045205479 | S19: 1.004794521 | T19: 0.9626712329 | U19: 0.9397260274 | V19: 0.9167808219 | W19: 0.8671232877 | X19: 0.8123287671 | Y19: 1 | Z19: 1 | AA19: 1 | AB19: 1 | AC19: 1 | AD19: 1 | AE19: 1 | AF19: 0.835 | AG19: 0.835 | AH19: 0.835 | AI19: 0.835 | AJ19: 0.835 | AK19: 0.835 | AL19: 0.835 | AM19: 30.52 | AN19: =Z19*E19+($A$4-80)*AG19*$A$16/1000 -> 29.34 | AO19: =AA19*G19+($A$4-80)*AH19*$A$16/1000 -> 28.11 | AP19: 27.44 | AQ19: 26.77 | AR19: 25.32 | AS19: 23.72

Sheet CA16NA_36 (hidden)
A2: CA16NA_36
A3: Evaporator Air | C3: Condenser Entering Air Temperature ˚F
A4: 80 | B4: °F DB | C4: 75 | E4: 85 | G4: 95 | I4: 100 | K4: 105 | M4: 115 | O4: 125
A5: CFM | B5: EWB† ˚F | C5: Capacity Mbtuh | E5: Capacity Mbtuh | G5: Capacity Mbtuh | I5: Capacity Mbtuh | K5: Capacity Mbtuh | M5: Capacity Mbtuh | O5: Capacity Mbtuh
C6: Total | D6: Sens. | E6: Total | F6: Sens. | G6: Total | H6: Sens. | I6: Total | J6: Sens. | K6: Total | L6: Sens. | M6: Total | N6: Sens. | O6: Total | P6: Sens.
R7: Total Factors | Y7: Sens. % | AF7: IDB Adj | AM7: Sens Calc
A8: 1050 | B8: 72 | C8: =R8*$G$13 -> 41.54 | D8: =IF(AM8>C8,C8,AM8) -> 20.61 | E8: =S8*$G$13 -> 39.67 | F8: =IF(AN8>E8,E8,AN8) -> 19.95 | G8: =T8*$G$13 -> 37.71 | H8: =IF(AO8>G8,G8,AO8) -> 19.27 | I8: =U8*$G$13 -> 36.66 | J8: =IF(AP8>I8,I8,AP8) -> 18.915 | K8: =V8*$G$13 -> 35.61 | L8: =IF(AQ8>K8,K8,AQ8) -> 18.56 | M8: =W8*$G$13 -> 33.39 | N8: =IF(AR8>M8,M8,AR8) -> 17.82 | O8: =X8*$G$13 -> 31.01 | P8: =IF(AS8>O8,O8,AS8) -> 17.02 | R8: 1.193678161 | S8: 1.139942529 | T8: 1.08362069 | U8: 1.053448276 | V8: 1.023275862 | W8: 0.9594827586 | X8: 0.891091954 | Y8: 0.4961482908 | Z8: 0.5028989161 | AA8: 0.5110050385 | AB8: 0.5159574468 | AC8: 0.5212019096 | AD8: 0.5336927224 | AE8: 0.548855208 | AF8: 0.835 | AG8: 0.835 | AH8: 0.835 | AI8: 0.835 | AJ8: 0.835 | AK8: 0.835 | AL8: 0.835 | AM8: =Y8*C8+($A$4-80)*AF8*$A$8/1000 -> 20.61 | AN8: =Z8*E8+($A$4-80)*AG8*$A$8/1000 -> 19.95 | AO8: =AA8*G8+($A$4-80)*AH8*$A$8/1000 -> 19.27 | AP8: =AB8*I8+($A$4-80)*AI8*$A$8/1000 -> 18.915 | AQ8: =AC8*K8+($A$4-80)*AJ8*$A$8/1000 -> 18.56 | AR8: =AD8*M8+($A$4-80)*AK8*$A$8/1000 -> 17.82 | AS8: =AE8*O8+($A$4-80)*AL8*$A$8/1000 -> 17.02
B9: 67 | C9: 37.77 | D9: 25.37 | E9: 36.06 | F9: =IF(AN9>E9,E9,AN9) -> 24.72 | G9: =T9*$G$13 -> 34.26 | H9: =IF(AO9>G9,G9,AO9) -> 24.03 | I9: 33.3 | J9: =IF(AP9>I9,I9,AP9) -> 23.67 | K9: 32.34 | L9: =IF(AQ9>K9,K9,AQ9) -> 23.31 | M9: 30.3 | N9: =IF(AR9>M9,M9,AR9) -> 22.55 | O9: 28.11 | P9: =IF(AS9>O9,O9,AS9) -> 21.74 | R9: 1.085344828 | S9: 1.036206897 | T9: 0.9844827586 | U9: 0.9568965517 | V9: 0.9293103448 | W9: 0.8706896552 | X9: 0.8077586207 | Y9: 0.6716971141 | Z9: 0.6855241265 | AA9: 0.7014010508 | AB9: 0.7108108108 | AC9: 0.7207792208 | AD9: 0.7442244224 | AE9: 0.7733902526 | AF9: 0.835 | AG9: 0.835 | AH9: 0.835 | AI9: 0.835 | AJ9: 0.835 | AK9: 0.835 | AL9: 0.835 | AM9: =Y9*C9+($A$4-80)*AF9*$A$8/1000 -> 25.37 | AN9: =Z9*E9+($A$4-80)*AG9*$A$8/1000 -> 24.72 | AO9: =AA9*G9+($A$4-80)*AH9*$A$8/1000 -> 24.03 | AP9: =AB9*I9+($A$4-80)*AI9*$A$8/1000 -> 23.67 | AQ9: =AC9*K9+($A$4-80)*AJ9*$A$8/1000 -> 23.31 | AR9: =AD9*M9+($A$4-80)*AK9*$A$8/1000 -> 22.55 | AS9: =AE9*O9+($A$4-80)*AL9*$A$8/1000 -> 21.74
B10: 62 | C10: 34.49 | D10: 30.08 | E10: 32.95 | F10: 29.4 | G10: =T10*$G$13 -> 31.36 | H10: 28.68 | I10: 30.59 | J10: 29.25 | K10: 29.82 | L10: 29.82 | M10: 28.28 | N10: 28.28 | O10: 26.6 | P10: 26.6 | R10: 0.991091954 | S10: 0.9468390805 | T10: 0.9011494253 | U10: 0.8790229885 | V10: 0.8568965517 | W10: 0.8126436782 | X10: 0.7643678161 | Y10: 0.8721368513 | Z10: 0.8922610015 | AA10: 0.9145408163 | AB10: 0.9561948349 | AC10: 1 | AD10: 1 | AE10: 1 | AF10: 0.835 | AG10: 0.835 | AH10: 0.835 | AI10: 0.835 | AJ10: 0.835 | AK10: 0.835 | AL10: 0.835 | AM10: 30.08 | AN10: =Z10*E10+($A$4-80)*AG10*$A$8/1000 -> 29.4 | AO10: =AA10*G10+($A$4-80)*AH10*$A$8/1000 -> 28.68 | AP10: 29.25 | AQ10: 29.82 | AR10: 28.28 | AS10: 26.6
B11: 57 | C11: 33.77 | D11: 33.77 | E11: 32.53 | F11: 32.53 | G11: =T11*$G$13 -> 31.2 | H11: 31.2 | I11: 30.485 | J11: 30.485 | K11: 29.77 | L11: 29.77 | M11: 28.23 | N11: 28.23 | O11: 26.56 | P11: 26.56 | R11: 0.9704022989 | S11: 0.9347701149 | T11: 0.8965517241 | U11: 0.8760057471 | V11: 0.8554597701 | W11: 0.8112068966 | X11: 0.7632183908 | Y11: 1 | Z11: 1 | AA11: 1 | AB11: 1 | AC11: 1 | AD11: 1 | AE11: 1 | AF11: 0.835 | AG11: 0.835 | AH11: 0.835 | AI11: 0.835 | AJ11: 0.835 | AK11: 0.835 | AL11: 0.835 | AM11: 33.77 | AN11: =Z11*E11+($A$4-80)*AG11*$A$8/1000 -> 32.53 | AO11: =AA11*G11+($A$4-80)*AH11*$A$8/1000 -> 31.2 | AP11: =AB11*I11+($A$4-80)*AI11*$A$8/1000 -> 30.485 | AQ11: 29.77 | AR11: 28.23 | AS11: 26.56
A12: 1200 | B12: 72 | C12: 42.26 | D12: 21.7 | E12: 40.3 | F12: 21.03 | G12: =T12*$G$13 -> 38.26 | H12: 20.34 | I12: 37.17 | J12: 19.98 | K12: 36.08 | L12: 19.62 | M12: 33.78 | N12: 18.86 | O12: 31.32 | P12: 18.06 | R12: 1.214367816 | S12: 1.158045977 | T12: 1.099425287 | U12: 1.068103448 | V12: 1.036781609 | W12: 0.9706896552 | X12: 0.9 | Y12: 0.5134879319 | Z12: 0.5218362283 | AA12: 0.5316257188 | AB12: 0.5375302663 | AC12: 0.5437915743 | AD12: 0.5583185317 | AE12: 0.5766283525 | AF12: 0.835 | AG12: 0.835 | AH12: 0.835 | AI12: 0.835 | AJ12: 0.835 | AK12: 0.835 | AL12: 0.835 | AM12: =Y12*C12+($A$4-80)*AF12*$A$12/1000 -> 21.7 | AN12: =Z12*E12+($A$4-80)*AG12*$A$12/1000 -> 21.03 | AO12: =AA12*G12+($A$4-80)*AH12*$A$12/1000 -> 20.34 | AP12: =AB12*I12+($A$4-80)*AI12*$A$12/1000 -> 19.98 | AQ12: =AC12*K12+($A$4-80)*AJ12*$A$12/1000 -> 19.62 | AR12: =AD12*M12+($A$4-80)*AK12*$A$12/1000 -> 18.86 | AS12: =AE12*O12+($A$4-80)*AL12*$A$12/1000 -> 18.06
B13: 67 | C13: 38.46 | D13: 27.12 | E13: 36.67 | F13: 26.45 | G13: 34.8 | H13: 25.75 | I13: 33.805 | J13: 25.385 | K13: 32.81 | L13: 25.02 | M13: 30.7 | N13: 24.24 | O13: 28.46 | P13: 23.42 | R13: 1.105172414 | S13: 1.053735632 | T13: 1 | U13: 0.971408046 | V13: 0.942816092 | W13: 0.882183908 | X13: 0.817816092 | Y13: 0.7051482059 | Z13: 0.7212980638 | AA13: 0.7399425287 | AB13: 0.7509244195 | AC13: 0.7625723865 | AD13: 0.7895765472 | AE13: 0.8229093465 | AF13: 0.835 | AG13: 0.835 | AH13: 0.835 | AI13: 0.835 | AJ13: 0.835 | AK13: 0.835 | AL13: 0.835 | AM13: =Y13*C13+($A$4-80)*AF13*$A$12/1000 -> 27.12 | AN13: =Z13*E13+($A$4-80)*AG13*$A$12/1000 -> 26.45 | AO13: =AA13*G13+($A$4-80)*AH13*$A$12/1000 -> 25.75 | AP13: =AB13*I13+($A$4-80)*AI13*$A$12/1000 -> 25.385 | AQ13: =AC13*K13+($A$4-80)*AJ13*$A$12/1000 -> 25.02 | AR13: =AD13*M13+($A$4-80)*AK13*$A$12/1000 -> 24.24 | AS13: =AE13*O13+($A$4-80)*AL13*$A$12/1000 -> 23.42
B14: 62 | C14: 35.34 | D14: 32.4 | E14: 33.92 | F14: 33.92 | G14: =T14*$G$13 -> 32.49 | H14: 32.49 | I14: 31.72 | J14: 31.72 | K14: 30.95 | L14: 30.95 | M14: 29.31 | N14: 29.31 | O14: 27.53 | P14: 27.53 | R14: 1.015517241 | S14: 0.9747126437 | T14: 0.9336206897 | U14: 0.9114942529 | V14: 0.8893678161 | W14: 0.8422413793 | X14: 0.791091954 | Y14: 0.9168081494 | Z14: 1 | AA14: 1 | AB14: 1 | AC14: 1 | AD14: 1 | AE14: 1 | AF14: 0.835 | AG14: 0.835 | AH14: 0.835 | AI14: 0.835 | AJ14: 0.835 | AK14: 0.835 | AL14: 0.835 | AM14: 32.4 | AN14: =Z14*E14+($A$4-80)*AG14*$A$12/1000 -> 33.92 | AO14: =AA14*G14+($A$4-80)*AH14*$A$12/1000 -> 32.49 | AP14: 31.72 | AQ14: 30.95 | AR14: 29.31 | AS14: 27.53
B15: 57 | C15: 35.2 | D15: 35.2 | E15: 33.86 | F15: 33.86 | G15: 32.44 | H15: 32.44 | I15: 31.675 | J15: 31.675 | K15: 30.91 | L15: 30.91 | M15: 29.27 | N15: 29.27 | O15: 27.49 | P15: 27.49 | R15: 1.011494253 | S15: 0.9729885057 | T15: 0.932183908 | U15: 0.9102011494 | V15: 0.8882183908 | W15: 0.841091954 | X15: 0.7899425287 | Y15: 1 | Z15: 1 | AA15: 1 | AB15: 1 | AC15: 1 | AD15: 1 | AE15: 1 | AF15: 0.835 | AG15: 0.835 | AH15: 0.835 | AI15: 0.835 | AJ15: 0.835 | AK15: 0.835 | AL15: 0.835 | AM15: 35.2 | AN15: =Z15*E15+($A$4-80)*AG15*$A$12/1000 -> 33.86 | AO15: =AA15*G15+($A$4-80)*AH15*$A$12/1000 -> 32.44 | AP15: 31.675 | AQ15: 30.91 | AR15: 29.27 | AS15: 27.49
A16: 1350 | B16: 72 | C16: 42.77 | D16: 22.73 | E16: 40.75 | F16: 22.06 | G16: 38.64 | H16: 21.36 | I16: 37.52 | J16: 20.995 | K16: 36.4 | L16: 20.63 | M16: 34.04 | N16: 19.87 | O16: 31.52 | P16: 19.06 | R16: 1.229022989 | S16: 1.170977011 | T16: 1.110344828 | U16: 1.07816092 | V16: 1.045977011 | W16: 0.9781609195 | X16: 0.9057471264 | Y16: 0.5314472761 | Z16: 0.5413496933 | AA16: 0.5527950311 | AB16: 0.5595682303 | AC16: 0.5667582418 | AD16: 0.5837250294 | AE16: 0.6046954315 | AF16: 0.835 | AG16: 0.835 | AH16: 0.835 | AI16: 0.835 | AJ16: 0.835 | AK16: 0.835 | AL16: 0.835 | AM16: =Y16*C16+($A$4-80)*AF16*$A$16/1000 -> 22.73 | AN16: =Z16*E16+($A$4-80)*AG16*$A$16/1000 -> 22.06 | AO16: =AA16*G16+($A$4-80)*AH16*$A$16/1000 -> 21.36 | AP16: =AB16*I16+($A$4-80)*AI16*$A$16/1000 -> 20.995 | AQ16: =AC16*K16+($A$4-80)*AJ16*$A$16/1000 -> 20.63 | AR16: =AD16*M16+($A$4-80)*AK16*$A$16/1000 -> 19.87 | AS16: =AE16*O16+($A$4-80)*AL16*$A$16/1000 -> 19.06
B17: 67 | C17: 38.96 | D17: 28.8 | E17: 37.13 | F17: 28.12 | G17: 35.2 | H17: 27.41 | I17: 34.18 | J17: 27.035 | K17: 33.16 | L17: 26.66 | M17: 31.01 | N17: 25.86 | O17: 28.72 | P17: 25.01 | R17: 1.11954023 | S17: 1.066954023 | T17: 1.011494253 | U17: 0.982183908 | V17: 0.9528735632 | W17: 0.891091954 | X17: 0.8252873563 | Y17: 0.7392197125 | Z17: 0.7573390789 | AA17: 0.7786931818 | AB17: 0.7909596255 | AC17: 0.8039806996 | AD17: 0.8339245405 | AE17: 0.870821727 | AF17: 0.835 | AG17: 0.835 | AH17: 0.835 | AI17: 0.835 | AJ17: 0.835 | AK17: 0.835 | AL17: 0.835 | AM17: =Y17*C17+($A$4-80)*AF17*$A$16/1000 -> 28.8 | AN17: =Z17*E17+($A$4-80)*AG17*$A$16/1000 -> 28.12 | AO17: =AA17*G17+($A$4-80)*AH17*$A$16/1000 -> 27.41 | AP17: =AB17*I17+($A$4-80)*AI17*$A$16/1000 -> 27.035 | AQ17: =AC17*K17+($A$4-80)*AJ17*$A$16/1000 -> 26.66 | AR17: =AD17*M17+($A$4-80)*AK17*$A$16/1000 -> 25.86 | AS17: =AE17*O17+($A$4-80)*AL17*$A$16/1000 -> 25.01
B18: 62 | C18: 36.43 | D18: 36.43 | E18: 35.01 | F18: 35.01 | G18: 33.51 | H18: 33.51 | I18: 32.695 | J18: 32.695 | K18: 31.88 | L18: 31.88 | M18: 30.15 | N18: 30.15 | O18: 28.26 | P18: 28.26 | R18: 1.04683908 | S18: 1.006034483 | T18: 0.9629310345 | U18: 0.9395114943 | V18: 0.916091954 | W18: 0.8663793103 | X18: 0.8120689655 | Y18: 1 | Z18: 1 | AA18: 1 | AB18: 1 | AC18: 1 | AD18: 1 | AE18: 1 | AF18: 0.835 | AG18: 0.835 | AH18: 0.835 | AI18: 0.835 | AJ18: 0.835 | AK18: 0.835 | AL18: 0.835 | AM18: 36.43 | AN18: =Z18*E18+($A$4-80)*AG18*$A$16/1000 -> 35.01 | AO18: =AA18*G18+($A$4-80)*AH18*$A$16/1000 -> 33.51 | AP18: 32.695 | AQ18: 31.88 | AR18: 30.15 | AS18: 28.26
B19: 57 | C19: 36.38 | D19: 36.38 | E19: 34.96 | F19: 34.96 | G19: 33.46 | H19: 33.46 | I19: 32.65 | J19: 32.65 | K19: 31.84 | L19: 31.84 | M19: 30.11 | N19: 30.11 | O19: 28.23 | P19: 28.23 | R19: 1.045402299 | S19: 1.004597701 | T19: 0.9614942529 | U19: 0.9382183908 | V19: 0.9149425287 | W19: 0.8652298851 | X19: 0.8112068966 | Y19: 1 | Z19: 1 | AA19: 1 | AB19: 1 | AC19: 1 | AD19: 1 | AE19: 1 | AF19: 0.835 | AG19: 0.835 | AH19: 0.835 | AI19: 0.835 | AJ19: 0.835 | AK19: 0.835 | AL19: 0.835 | AM19: 36.38 | AN19: =Z19*E19+($A$4-80)*AG19*$A$16/1000 -> 34.96 | AO19: =AA19*G19+($A$4-80)*AH19*$A$16/1000 -> 33.46 | AP19: 32.65 | AQ19: 31.84 | AR19: 30.11 | AS19: 28.23

Sheet CA16NA_42 (hidden)
A2: CA16NA_42
A3: Evaporator Air | C3: Condenser Entering Air Temperature ˚F
A4: 80 | B4: °F DB | C4: 75 | E4: 85 | G4: 95 | I4: 100 | K4: 105 | M4: 115 | O4: 125
A5: CFM | B5: EWB† ˚F | C5: Capacity Mbtuh | E5: Capacity Mbtuh | G5: Capacity Mbtuh | I5: Capacity Mbtuh | K5: Capacity Mbtuh | M5: Capacity Mbtuh | O5: Capacity Mbtuh
C6: Total | D6: Sens. | E6: Total | F6: Sens. | G6: Total | H6: Sens. | I6: Total | J6: Sens. | K6: Total | L6: Sens. | M6: Total | N6: Sens. | O6: Total | P6: Sens.
R7: Total Factors | Y7: Sens. % | AF7: IDB Adj | AM7: Sens Calc
A8: 1225 | B8: 72 | C8: =R8*$G$13 -> 49.58 | D8: =IF(AM8>C8,C8,AM8) -> 23.96 | E8: =S8*$G$13 -> 47.31 | F8: =IF(AN8>E8,E8,AN8) -> 23.18 | G8: =T8*$G$13 -> 44.88 | H8: =IF(AO8>G8,G8,AO8) -> 22.37 | I8: =U8*$G$13 -> 43.59 | J8: =IF(AP8>I8,I8,AP8) -> 21.94 | K8: =V8*$G$13 -> 42.3 | L8: =IF(AQ8>K8,K8,AQ8) -> 21.51 | M8: =W8*$G$13 -> 39.58 | N8: =IF(AR8>M8,M8,AR8) -> 20.62 | O8: =X8*$G$13 -> 36.71 | P8: =IF(AS8>O8,O8,AS8) -> 19.69 | R8: 1.194698795 | S8: 1.14 | T8: 1.081445783 | U8: 1.050361446 | V8: 1.019277108 | W8: 0.9537349398 | X8: 0.8845783133 | Y8: 0.4832593788 | Z8: 0.4899598394 | AA8: 0.4984402852 | AB8: 0.503326451 | AC8: 0.5085106383 | AD8: 0.520970187 | AE8: 0.5363661128 | AF8: 0.835 | AG8: 0.835 | AH8: 0.835 | AI8: 0.835 | AJ8: 0.835 | AK8: 0.835 | AL8: 0.835 | AM8: =Y8*C8+($A$4-80)*AF8*$A$8/1000 -> 23.96 | AN8: =Z8*E8+($A$4-80)*AG8*$A$8/1000 -> 23.18 | AO8: =AA8*G8+($A$4-80)*AH8*$A$8/1000 -> 22.37 | AP8: =AB8*I8+($A$4-80)*AI8*$A$8/1000 -> 21.94 | AQ8: =AC8*K8+($A$4-80)*AJ8*$A$8/1000 -> 21.51 | AR8: =AD8*M8+($A$4-80)*AK8*$A$8/1000 -> 20.62 | AS8: =AE8*O8+($A$4-80)*AL8*$A$8/1000 -> 19.69
B9: 67 | C9: 45.17 | D9: 29.52 | E9: 43.1 | F9: =IF(AN9>E9,E9,AN9) -> 28.75 | G9: =T9*$G$13 -> 40.9 | H9: =IF(AO9>G9,G9,AO9) -> 27.93 | I9: 39.725 | J9: =IF(AP9>I9,I9,AP9) -> 27.5 | K9: 38.55 | L9: =IF(AQ9>K9,K9,AQ9) -> 27.07 | M9: 36.07 | N9: =IF(AR9>M9,M9,AR9) -> 26.17 | O9: 33.47 | P9: =IF(AS9>O9,O9,AS9) -> 25.23 | R9: 1.088433735 | S9: 1.038554217 | T9: 0.9855421687 | U9: 0.9572289157 | V9: 0.9289156627 | W9: 0.8691566265 | X9: 0.8065060241 | Y9: 0.6535311047 | Z9: 0.6670533643 | AA9: 0.6828850856 | AB9: 0.6922592826 | AC9: 0.7022049287 | AD9: 0.7255336845 | AE9: 0.7538093815 | AF9: 0.835 | AG9: 0.835 | AH9: 0.835 | AI9: 0.835 | AJ9: 0.835 | AK9: 0.835 | AL9: 0.835 | AM9: =Y9*C9+($A$4-80)*AF9*$A$8/1000 -> 29.52 | AN9: =Z9*E9+($A$4-80)*AG9*$A$8/1000 -> 28.75 | AO9: =AA9*G9+($A$4-80)*AH9*$A$8/1000 -> 27.93 | AP9: =AB9*I9+($A$4-80)*AI9*$A$8/1000 -> 27.5 | AQ9: =AC9*K9+($A$4-80)*AJ9*$A$8/1000 -> 27.07 | AR9: =AD9*M9+($A$4-80)*AK9*$A$8/1000 -> 26.17 | AS9: =AE9*O9+($A$4-80)*AL9*$A$8/1000 -> 25.23
B10: 62 | C10: 41.32 | D10: 35.02 | E10: 39.49 | F10: 34.22 | G10: =T10*$G$13 -> 37.56 | H10: 33.36 | I10: 36.605 | J10: 34.505 | K10: 35.65 | L10: 35.65 | M10: 33.78 | N10: 33.78 | O10: 31.76 | P10: 31.76 | R10: 0.9956626506 | S10: 0.9515662651 | T10: 0.905060241 | U10: 0.8820481928 | V10: 0.8590361446 | W10: 0.8139759036 | X10: 0.7653012048 | Y10: 0.8475314618 | Z10: 0.8665484933 | AA10: 0.8881789137 | AB10: 0.9426307881 | AC10: 1 | AD10: 1 | AE10: 1 | AF10: 0.835 | AG10: 0.835 | AH10: 0.835 | AI10: 0.835 | AJ10: 0.835 | AK10: 0.835 | AL10: 0.835 | AM10: 35.02 | AN10: =Z10*E10+($A$4-80)*AG10*$A$8/1000 -> 34.22 | AO10: =AA10*G10+($A$4-80)*AH10*$A$8/1000 -> 33.36 | AP10: 34.505 | AQ10: 35.65 | AR10: 33.78 | AS10: 31.76
B11: 57 | C11: 40.45 | D11: 40.45 | E11: 38.96 | F11: 38.96 | G11: =T11*$G$13 -> 37.34 | H11: 37.34 | I11: 36.47 | J11: 36.47 | K11: 35.6 | L11: 35.6 | M11: 33.73 | N11: 33.73 | O11: 31.72 | P11: 31.72 | R11: 0.9746987952 | S11: 0.9387951807 | T11: 0.8997590361 | U11: 0.8787951807 | V11: 0.8578313253 | W11: 0.8127710843 | X11: 0.7643373494 | Y11: 1 | Z11: 1 | AA11: 1 | AB11: 1 | AC11: 1 | AD11: 1 | AE11: 1 | AF11: 0.835 | AG11: 0.835 | AH11: 0.835 | AI11: 0.835 | AJ11: 0.835 | AK11: 0.835 | AL11: 0.835 | AM11: 40.45 | AN11: =Z11*E11+($A$4-80)*AG11*$A$8/1000 -> 38.96 | AO11: =AA11*G11+($A$4-80)*AH11*$A$8/1000 -> 37.34 | AP11: =AB11*I11+($A$4-80)*AI11*$A$8/1000 -> 36.47 | AQ11: 35.6 | AR11: 33.73 | AS11: 31.72
A12: 1400 | B12: 72 | C12: 50.4 | D12: 25.19 | E12: 48.02 | F12: 24.4 | G12: =T12*$G$13 -> 45.48 | H12: 23.57 | I12: 44.15 | J12: 23.135 | K12: 42.82 | L12: 22.7 | M12: 39.99 | N12: 21.79 | O12: 37.02 | P12: 20.85 | R12: 1.214457831 | S12: 1.157108434 | T12: 1.095903614 | U12: 1.063855422 | V12: 1.031807229 | W12: 0.9636144578 | X12: 0.8920481928 | Y12: 0.4998015873 | Z12: 0.508121616 | AA12: 0.5182497801 | AB12: 0.52400906 | AC12: 0.5301261093 | AD12: 0.5448862216 | AE12: 0.5632090762 | AF12: 0.835 | AG12: 0.835 | AH12: 0.835 | AI12: 0.835 | AJ12: 0.835 | AK12: 0.835 | AL12: 0.835 | AM12: =Y12*C12+($A$4-80)*AF12*$A$12/1000 -> 25.19 | AN12: =Z12*E12+($A$4-80)*AG12*$A$12/1000 -> 24.4 | AO12: =AA12*G12+($A$4-80)*AH12*$A$12/1000 -> 23.57 | AP12: =AB12*I12+($A$4-80)*AI12*$A$12/1000 -> 23.135 | AQ12: =AC12*K12+($A$4-80)*AJ12*$A$12/1000 -> 22.7 | AR12: =AD12*M12+($A$4-80)*AK12*$A$12/1000 -> 21.79 | AS12: =AE12*O12+($A$4-80)*AL12*$A$12/1000 -> 20.85
B13: 67 | C13: 45.95 | D13: 31.5 | E13: 43.8 | F13: 30.72 | G13: 41.5 | H13: 29.88 | I13: 40.285 | J13: 29.44 | K13: 39.07 | L13: 29 | M13: 36.51 | N13: 28.08 | O13: 33.83 | P13: 27.12 | R13: 1.107228916 | S13: 1.055421687 | T13: 1 | U13: 0.9707228916 | V13: 0.9414457831 | W13: 0.8797590361 | X13: 0.8151807229 | Y13: 0.6855277476 | Z13: 0.701369863 | AA13: 0.72 | AB13: 0.7307930992 | AC13: 0.7422574866 | AD13: 0.769104355 | AE13: 0.8016553355 | AF13: 0.835 | AG13: 0.835 | AH13: 0.835 | AI13: 0.835 | AJ13: 0.835 | AK13: 0.835 | AL13: 0.835 | AM13: =Y13*C13+($A$4-80)*AF13*$A$12/1000 -> 31.5 | AN13: =Z13*E13+($A$4-80)*AG13*$A$12/1000 -> 30.72 | AO13: =AA13*G13+($A$4-80)*AH13*$A$12/1000 -> 29.88 | AP13: =AB13*I13+($A$4-80)*AI13*$A$12/1000 -> 29.44 | AQ13: =AC13*K13+($A$4-80)*AJ13*$A$12/1000 -> 29 | AR13: =AD13*M13+($A$4-80)*AK13*$A$12/1000 -> 28.08 | AS13: =AE13*O13+($A$4-80)*AL13*$A$12/1000 -> 27.12
B14: 62 | C14: 42.31 | D14: 37.65 | E14: 40.55 | F14: 40.55 | G14: =T14*$G$13 -> 38.82 | H14: 38.82 | I14: 37.88 | J14: 37.88 | K14: 36.94 | L14: 36.94 | M14: 34.93 | N14: 34.93 | O14: 32.78 | P14: 32.78 | R14: 1.019518072 | S14: 0.9771084337 | T14: 0.9354216867 | U14: 0.9127710843 | V14: 0.8901204819 | W14: 0.841686747 | X14: 0.7898795181 | Y14: 0.8898605531 | Z14: 1 | AA14: 1 | AB14: 1 | AC14: 1 | AD14: 1 | AE14: 1 | AF14: 0.835 | AG14: 0.835 | AH14: 0.835 | AI14: 0.835 | AJ14: 0.835 | AK14: 0.835 | AL14: 0.835 | AM14: 37.65 | AN14: =Z14*E14+($A$4-80)*AG14*$A$12/1000 -> 40.55 | AO14: =AA14*G14+($A$4-80)*AH14*$A$12/1000 -> 38.82 | AP14: 37.88 | AQ14: 36.94 | AR14: 34.93 | AS14: 32.78
B15: 57 | C15: 42.1 | D15: 42.1 | E15: 40.5 | F15: 40.5 | G15: 38.76 | H15: 38.76 | I15: 37.825 | J15: 37.825 | K15: 36.89 | L15: 36.89 | M15: 34.89 | N15: 34.89 | O15: 32.74 | P15: 32.74 | R15: 1.014457831 | S15: 0.9759036145 | T15: 0.9339759036 | U15: 0.9114457831 | V15: 0.8889156627 | W15: 0.8407228916 | X15: 0.7889156627 | Y15: 1 | Z15: 1 | AA15: 1 | AB15: 1 | AC15: 1 | AD15: 1 | AE15: 1 | AF15: 0.835 | AG15: 0.835 | AH15: 0.835 | AI15: 0.835 | AJ15: 0.835 | AK15: 0.835 | AL15: 0.835 | AM15: 42.1 | AN15: =Z15*E15+($A$4-80)*AG15*$A$12/1000 -> 40.5 | AO15: =AA15*G15+($A$4-80)*AH15*$A$12/1000 -> 38.76 | AP15: 37.825 | AQ15: 36.89 | AR15: 34.89 | AS15: 32.74
A16: 1575 | B16: 72 | C16: 50.98 | D16: 26.36 | E16: 48.52 | F16: 25.56 | G16: 45.91 | H16: 24.72 | I16: 44.535 | J16: 24.275 | K16: 43.16 | L16: 23.83 | M16: 40.25 | N16: 22.92 | O16: 37.22 | P16: 21.97 | R16: 1.228433735 | S16: 1.169156627 | T16: 1.10626506 | U16: 1.07313253 | V16: 1.04 | W16: 0.9698795181 | X16: 0.8968674699 | Y16: 0.5170655159 | Z16: 0.526793075 | AA16: 0.5384447833 | AB16: 0.5450769058 | AC16: 0.5521316033 | AD16: 0.5694409938 | AE16: 0.5902740462 | AF16: 0.835 | AG16: 0.835 | AH16: 0.835 | AI16: 0.835 | AJ16: 0.835 | AK16: 0.835 | AL16: 0.835 | AM16: =Y16*C16+($A$4-80)*AF16*$A$16/1000 -> 26.36 | AN16: =Z16*E16+($A$4-80)*AG16*$A$16/1000 -> 25.56 | AO16: =AA16*G16+($A$4-80)*AH16*$A$16/1000 -> 24.72 | AP16: =AB16*I16+($A$4-80)*AI16*$A$16/1000 -> 24.275 | AQ16: =AC16*K16+($A$4-80)*AJ16*$A$16/1000 -> 23.83 | AR16: =AD16*M16+($A$4-80)*AK16*$A$16/1000 -> 22.92 | AS16: =AE16*O16+($A$4-80)*AL16*$A$16/1000 -> 21.97
B17: 67 | C17: 46.53 | D17: 33.41 | E17: 44.31 | F17: 32.6 | G17: 41.95 | H17: 31.75 | I17: 40.7 | J17: 31.3 | K17: 39.45 | L17: 30.85 | M17: 36.83 | N17: 29.9 | O17: 34.11 | P17: 28.9 | R17: 1.121204819 | S17: 1.067710843 | T17: 1.010843373 | U17: 0.9807228916 | V17: 0.9506024096 | W17: 0.8874698795 | X17: 0.8219277108 | Y17: 0.7180313776 | Z17: 0.7357255698 | AA17: 0.7568533969 | AB17: 0.769041769 | AC17: 0.7820025349 | AD17: 0.8118381754 | AE17: 0.8472588684 | AF17: 0.835 | AG17: 0.835 | AH17: 0.835 | AI17: 0.835 | AJ17: 0.835 | AK17: 0.835 | AL17: 0.835 | AM17: =Y17*C17+($A$4-80)*AF17*$A$16/1000 -> 33.41 | AN17: =Z17*E17+($A$4-80)*AG17*$A$16/1000 -> 32.6 | AO17: =AA17*G17+($A$4-80)*AH17*$A$16/1000 -> 31.75 | AP17: =AB17*I17+($A$4-80)*AI17*$A$16/1000 -> 31.3 | AQ17: =AC17*K17+($A$4-80)*AJ17*$A$16/1000 -> 30.85 | AR17: =AD17*M17+($A$4-80)*AK17*$A$16/1000 -> 29.9 | AS17: =AE17*O17+($A$4-80)*AL17*$A$16/1000 -> 28.9
B18: 62 | C18: 43.52 | D18: 43.52 | E18: 41.82 | F18: 41.82 | G18: 39.96 | H18: 39.96 | I18: 38.97 | J18: 38.97 | K18: 37.98 | L18: 37.98 | M18: 35.86 | N18: 35.86 | O18: 33.58 | P18: 33.58 | R18: 1.048674699 | S18: 1.007710843 | T18: 0.9628915663 | U18: 0.9390361446 | V18: 0.9151807229 | W18: 0.8640963855 | X18: 0.8091566265 | Y18: 1 | Z18: 1 | AA18: 1 | AB18: 1 | AC18: 1 | AD18: 1 | AE18: 1 | AF18: 0.835 | AG18: 0.835 | AH18: 0.835 | AI18: 0.835 | AJ18: 0.835 | AK18: 0.835 | AL18: 0.835 | AM18: 43.52 | AN18: =Z18*E18+($A$4-80)*AG18*$A$16/1000 -> 41.82 | AO18: =AA18*G18+($A$4-80)*AH18*$A$16/1000 -> 39.96 | AP18: 38.97 | AQ18: 37.98 | AR18: 35.86 | AS18: 33.58
B19: 57 | C19: 43.46 | D19: 43.46 | E19: 41.76 | F19: 41.76 | G19: 39.91 | H19: 39.91 | I19: 38.92 | J19: 38.92 | K19: 37.93 | L19: 37.93 | M19: 35.81 | N19: 35.81 | O19: 33.55 | P19: 33.55 | R19: 1.047228916 | S19: 1.00626506 | T19: 0.961686747 | U19: 0.9378313253 | V19: 0.9139759036 | W19: 0.8628915663 | X19: 0.8084337349 | Y19: 1 | Z19: 1 | AA19: 1 | AB19: 1 | AC19: 1 | AD19: 1 | AE19: 1 | AF19: 0.835 | AG19: 0.835 | AH19: 0.835 | AI19: 0.835 | AJ19: 0.835 | AK19: 0.835 | AL19: 0.835 | AM19: 43.46 | AN19: =Z19*E19+($A$4-80)*AG19*$A$16/1000 -> 41.76 | AO19: =AA19*G19+($A$4-80)*AH19*$A$16/1000 -> 39.91 | AP19: 38.92 | AQ19: 37.93 | AR19: 35.81 | AS19: 33.55

Sheet CA16NA_48 (hidden)
A2: CA16NA_48
A3: Evaporator Air | C3: Condenser Entering Air Temperature ˚F
A4: 80 | B4: °F DB | C4: 75 | E4: 85 | G4: 95 | I4: 100 | K4: 105 | M4: 115 | O4: 125
A5: CFM | B5: EWB† ˚F | C5: Capacity Mbtuh | E5: Capacity Mbtuh | G5: Capacity Mbtuh | I5: Capacity Mbtuh | K5: Capacity Mbtuh | M5: Capacity Mbtuh | O5: Capacity Mbtuh
C6: Total | D6: Sens. | E6: Total | F6: Sens. | G6: Total | H6: Sens. | I6: Total | J6: Sens. | K6: Total | L6: Sens. | M6: Total | N6: Sens. | O6: Total | P6: Sens.
R7: Total Factors | Y7: Sens. % | AF7: IDB Adj | AM7: Sens Calc
A8: 1400 | B8: 72 | C8: =R8*$G$13 -> 55.58 | D8: =IF(AM8>C8,C8,AM8) -> 27.79 | E8: =S8*$G$13 -> 52.81 | F8: =IF(AN8>E8,E8,AN8) -> 26.81 | G8: =T8*$G$13 -> 49.96 | H8: =IF(AO8>G8,G8,AO8) -> 25.82 | I8: =U8*$G$13 -> 48.475 | J8: =IF(AP8>I8,I8,AP8) -> 25.315 | K8: =V8*$G$13 -> 46.99 | L8: =IF(AQ8>K8,K8,AQ8) -> 24.81 | M8: =W8*$G$13 -> 43.89 | N8: =IF(AR8>M8,M8,AR8) -> 23.76 | O8: =X8*$G$13 -> 40.59 | P8: =IF(AS8>O8,O8,AS8) -> 22.65 | R8: 1.20826087 | S8: 1.148043478 | T8: 1.086086957 | U8: 1.053804348 | V8: 1.021521739 | W8: 0.9541304348 | X8: 0.8823913043 | Y8: 0.5 | Z8: 0.5076690021 | AA8: 0.5168134508 | AB8: 0.5222279526 | AC8: 0.5279846776 | AD8: 0.5413533835 | AE8: 0.5580192166 | AF8: 0.835 | AG8: 0.835 | AH8: 0.835 | AI8: 0.835 | AJ8: 0.835 | AK8: 0.835 | AL8: 0.835 | AM8: =Y8*C8+($A$4-80)*AF8*$A$8/1000 -> 27.79 | AN8: =Z8*E8+($A$4-80)*AG8*$A$8/1000 -> 26.81 | AO8: =AA8*G8+($A$4-80)*AH8*$A$8/1000 -> 25.82 | AP8: =AB8*I8+($A$4-80)*AI8*$A$8/1000 -> 25.315 | AQ8: =AC8*K8+($A$4-80)*AJ8*$A$8/1000 -> 24.81 | AR8: =AD8*M8+($A$4-80)*AK8*$A$8/1000 -> 23.76 | AS8: =AE8*O8+($A$4-80)*AL8*$A$8/1000 -> 22.65
B9: 67 | C9: 50.34 | D9: 34.19 | E9: 47.86 | F9: =IF(AN9>E9,E9,AN9) -> 33.23 | G9: =T9*$G$13 -> 45.32 | H9: =IF(AO9>G9,G9,AO9) -> 32.26 | I9: 43.995 | J9: =IF(AP9>I9,I9,AP9) -> 31.76 | K9: 42.67 | L9: =IF(AQ9>K9,K9,AQ9) -> 31.26 | M9: 39.88 | N9: =IF(AR9>M9,M9,AR9) -> 30.21 | O9: 36.92 | P9: =IF(AS9>O9,O9,AS9) -> 29.1 | R9: 1.094347826 | S9: 1.040434783 | T9: 0.9852173913 | U9: 0.9564130435 | V9: 0.9276086957 | W9: 0.8669565217 | X9: 0.8026086957 | Y9: 0.6791815654 | Z9: 0.6943167572 | AA9: 0.7118270079 | AB9: 0.7219002159 | AC9: 0.7325990157 | AD9: 0.7575225677 | AE9: 0.7881906826 | AF9: 0.835 | AG9: 0.835 | AH9: 0.835 | AI9: 0.835 | AJ9: 0.835 | AK9: 0.835 | AL9: 0.835 | AM9: =Y9*C9+($A$4-80)*AF9*$A$8/1000 -> 34.19 | AN9: =Z9*E9+($A$4-80)*AG9*$A$8/1000 -> 33.23 | AO9: =AA9*G9+($A$4-80)*AH9*$A$8/1000 -> 32.26 | AP9: =AB9*I9+($A$4-80)*AI9*$A$8/1000 -> 31.76 | AQ9: =AC9*K9+($A$4-80)*AJ9*$A$8/1000 -> 31.26 | AR9: =AD9*M9+($A$4-80)*AK9*$A$8/1000 -> 30.21 | AS9: =AE9*O9+($A$4-80)*AL9*$A$8/1000 -> 29.1
B10: 62 | C10: 45.83 | D10: 40.46 | E10: 43.71 | F10: 39.48 | G10: =T10*$G$13 -> 41.58 | H10: 41.2 | I10: 40.565 | J10: 40.375 | K10: 39.55 | L10: 39.55 | M10: 37.46 | N10: 37.46 | O10: 35.17 | P10: 35.17 | R10: 0.9963043478 | S10: 0.9502173913 | T10: 0.9039130435 | U10: 0.8818478261 | V10: 0.8597826087 | W10: 0.8143478261 | X10: 0.7645652174 | Y10: 0.882827842 | Z10: 0.9032258065 | AA10: 0.9908609909 | AB10: 0.9953161593 | AC10: 1 | AD10: 1 | AE10: 1 | AF10: 0.835 | AG10: 0.835 | AH10: 0.835 | AI10: 0.835 | AJ10: 0.835 | AK10: 0.835 | AL10: 0.835 | AM10: 40.46 | AN10: =Z10*E10+($A$4-80)*AG10*$A$8/1000 -> 39.48 | AO10: =AA10*G10+($A$4-80)*AH10*$A$8/1000 -> 41.2 | AP10: 40.375 | AQ10: 39.55 | AR10: 37.46 | AS10: 35.17
B11: 57 | C11: 44.96 | D11: 44.96 | E11: 43.24 | F11: 43.24 | G11: =T11*$G$13 -> 41.42 | H11: 41.42 | I11: 40.45 | J11: 40.45 | K11: 39.48 | L11: 39.48 | M11: 37.41 | N11: 37.41 | O11: 35.13 | P11: 35.13 | R11: 0.9773913043 | S11: 0.94 | T11: 0.9004347826 | U11: 0.8793478261 | V11: 0.8582608696 | W11: 0.8132608696 | X11: 0.7636956522 | Y11: 1 | Z11: 1 | AA11: 1 | AB11: 1 | AC11: 1 | AD11: 1 | AE11: 1 | AF11: 0.835 | AG11: 0.835 | AH11: 0.835 | AI11: 0.835 | AJ11: 0.835 | AK11: 0.835 | AL11: 0.835 | AM11: 44.96 | AN11: =Z11*E11+($A$4-80)*AG11*$A$8/1000 -> 43.24 | AO11: =AA11*G11+($A$4-80)*AH11*$A$8/1000 -> 41.42 | AP11: =AB11*I11+($A$4-80)*AI11*$A$8/1000 -> 40.45 | AQ11: 39.48 | AR11: 37.41 | AS11: 35.13
A12: 1600 | B12: 72 | C12: 56.55 | D12: 29.22 | E12: 53.65 | F12: 28.22 | G12: =T12*$G$13 -> 50.66 | H12: 27.2 | I12: 49.12 | J12: 26.685 | K12: 47.58 | L12: 26.17 | M12: 44.35 | N12: 25.09 | O12: 40.94 | P12: 23.97 | R12: 1.229347826 | S12: 1.166304348 | T12: 1.101304348 | U12: 1.067826087 | V12: 1.034347826 | W12: 0.9641304348 | X12: 0.89 | Y12: 0.5167108753 | Z12: 0.5260018639 | AA12: 0.5369127517 | AB12: 0.5432614007 | AC12: 0.5500210172 | AD12: 0.5657271702 | AE12: 0.5854909624 | AF12: 0.835 | AG12: 0.835 | AH12: 0.835 | AI12: 0.835 | AJ12: 0.835 | AK12: 0.835 | AL12: 0.835 | AM12: =Y12*C12+($A$4-80)*AF12*$A$12/1000 -> 29.22 | AN12: =Z12*E12+($A$4-80)*AG12*$A$12/1000 -> 28.22 | AO12: =AA12*G12+($A$4-80)*AH12*$A$12/1000 -> 27.2 | AP12: =AB12*I12+($A$4-80)*AI12*$A$12/1000 -> 26.685 | AQ12: =AC12*K12+($A$4-80)*AJ12*$A$12/1000 -> 26.17 | AR12: =AD12*M12+($A$4-80)*AK12*$A$12/1000 -> 25.09 | AS12: =AE12*O12+($A$4-80)*AL12*$A$12/1000 -> 23.97
B13: 67 | C13: 51.23 | D13: 36.48 | E13: 48.66 | F13: 35.5 | G13: 46 | H13: 34.5 | I13: 44.625 | J13: 33.985 | K13: 43.25 | L13: 33.47 | M13: 40.37 | N13: 32.39 | O13: 37.31 | P13: 31.24 | R13: 1.113695652 | S13: 1.057826087 | T13: 1 | U13: 0.9701086957 | V13: 0.9402173913 | W13: 0.8776086957 | X13: 0.8110869565 | Y13: 0.712082764 | Z13: 0.7295519934 | AA13: 0.75 | AB13: 0.7615686275 | AC13: 0.7738728324 | AD13: 0.8023284617 | AE13: 0.8373090324 | AF13: 0.835 | AG13: 0.835 | AH13: 0.835 | AI13: 0.835 | AJ13: 0.835 | AK13: 0.835 | AL13: 0.835 | AM13: =Y13*C13+($A$4-80)*AF13*$A$12/1000 -> 36.48 | AN13: =Z13*E13+($A$4-80)*AG13*$A$12/1000 -> 35.5 | AO13: =AA13*G13+($A$4-80)*AH13*$A$12/1000 -> 34.5 | AP13: =AB13*I13+($A$4-80)*AI13*$A$12/1000 -> 33.985 | AQ13: =AC13*K13+($A$4-80)*AJ13*$A$12/1000 -> 33.47 | AR13: =AD13*M13+($A$4-80)*AK13*$A$12/1000 -> 32.39 | AS13: =AE13*O13+($A$4-80)*AL13*$A$12/1000 -> 31.24
B14: 62 | C14: 47.04 | D14: 46.57 | E14: 45.07 | F14: 45.07 | G14: =T14*$G$13 -> 43.08 | H14: 43.08 | I14: 42.025 | J14: 42.025 | K14: 40.97 | L14: 40.97 | M14: 38.72 | N14: 38.72 | O14: 36.27 | P14: 36.27 | R14: 1.022608696 | S14: 0.9797826087 | T14: 0.9365217391 | U14: 0.9135869565 | V14: 0.8906521739 | W14: 0.8417391304 | X14: 0.7884782609 | Y14: 0.9900085034 | Z14: 1 | AA14: 1 | AB14: 1 | AC14: 1 | AD14: 1 | AE14: 1 | AF14: 0.835 | AG14: 0.835 | AH14: 0.835 | AI14: 0.835 | AJ14: 0.835 | AK14: 0.835 | AL14: 0.835 | AM14: 46.57 | AN14: =Z14*E14+($A$4-80)*AG14*$A$12/1000 -> 45.07 | AO14: =AA14*G14+($A$4-80)*AH14*$A$12/1000 -> 43.08 | AP14: 42.025 | AQ14: 40.97 | AR14: 38.72 | AS14: 36.27
B15: 57 | C15: 46.87 | D15: 46.87 | E15: 44.99 | F15: 44.99 | G15: 43.03 | H15: 43.03 | I15: 41.975 | J15: 41.975 | K15: 40.92 | L15: 40.92 | M15: 38.67 | N15: 38.67 | O15: 36.23 | P15: 36.23 | R15: 1.018913043 | S15: 0.9780434783 | T15: 0.9354347826 | U15: 0.9125 | V15: 0.8895652174 | W15: 0.8406521739 | X15: 0.7876086957 | Y15: 1 | Z15: 1 | AA15: 1 | AB15: 1 | AC15: 1 | AD15: 1 | AE15: 1 | AF15: 0.835 | AG15: 0.835 | AH15: 0.835 | AI15: 0.835 | AJ15: 0.835 | AK15: 0.835 | AL15: 0.835 | AM15: 46.87 | AN15: =Z15*E15+($A$4-80)*AG15*$A$12/1000 -> 44.99 | AO15: =AA15*G15+($A$4-80)*AH15*$A$12/1000 -> 43.03 | AP15: 41.975 | AQ15: 40.92 | AR15: 38.67 | AS15: 36.23
A16: 1800 | B16: 72 | C16: 57.26 | D16: 30.57 | E16: 54.24 | F16: 29.55 | G16: 51.16 | H16: 28.51 | I16: 49.565 | J16: 27.985 | K16: 47.97 | L16: 27.46 | M16: 44.65 | N16: 26.36 | O16: 41.16 | P16: 25.22 | R16: 1.244782609 | S16: 1.179130435 | T16: 1.112173913 | U16: 1.0775 | V16: 1.042826087 | W16: 0.9706521739 | X16: 0.8947826087 | Y16: 0.5338805449 | Z16: 0.544800885 | AA16: 0.5572713057 | AB16: 0.5646121255 | AC16: 0.572441109 | AD16: 0.5903695409 | AE16: 0.6127308066 | AF16: 0.835 | AG16: 0.835 | AH16: 0.835 | AI16: 0.835 | AJ16: 0.835 | AK16: 0.835 | AL16: 0.835 | AM16: =Y16*C16+($A$4-80)*AF16*$A$16/1000 -> 30.57 | AN16: =Z16*E16+($A$4-80)*AG16*$A$16/1000 -> 29.55 | AO16: =AA16*G16+($A$4-80)*AH16*$A$16/1000 -> 28.51 | AP16: =AB16*I16+($A$4-80)*AI16*$A$16/1000 -> 27.985 | AQ16: =AC16*K16+($A$4-80)*AJ16*$A$16/1000 -> 27.46 | AR16: =AD16*M16+($A$4-80)*AK16*$A$16/1000 -> 26.36 | AS16: =AE16*O16+($A$4-80)*AL16*$A$16/1000 -> 25.22
B17: 67 | C17: 51.92 | D17: 38.67 | E17: 49.24 | F17: 37.66 | G17: 46.51 | H17: 36.63 | I17: 45.09 | J17: 36.1 | K17: 43.67 | L17: 35.57 | M17: 40.72 | N17: 34.44 | O17: 37.63 | P17: 33.23 | R17: 1.128695652 | S17: 1.070434783 | T17: 1.011086957 | U17: 0.9802173913 | V17: 0.9493478261 | W17: 0.8852173913 | X17: 0.8180434783 | Y17: 0.7447996918 | Z17: 0.7648253452 | AA17: 0.787572565 | AB17: 0.8006209803 | AC17: 0.8145179757 | AD17: 0.8457760314 | AE17: 0.883072017 | AF17: 0.835 | AG17: 0.835 | AH17: 0.835 | AI17: 0.835 | AJ17: 0.835 | AK17: 0.835 | AL17: 0.835 | AM17: =Y17*C17+($A$4-80)*AF17*$A$16/1000 -> 38.67 | AN17: =Z17*E17+($A$4-80)*AG17*$A$16/1000 -> 37.66 | AO17: =AA17*G17+($A$4-80)*AH17*$A$16/1000 -> 36.63 | AP17: =AB17*I17+($A$4-80)*AI17*$A$16/1000 -> 36.1 | AQ17: =AC17*K17+($A$4-80)*AJ17*$A$16/1000 -> 35.57 | AR17: =AD17*M17+($A$4-80)*AK17*$A$16/1000 -> 34.44 | AS17: =AE17*O17+($A$4-80)*AL17*$A$16/1000 -> 33.23
B18: 62 | C18: 48.5 | D18: 48.5 | E18: 46.48 | F18: 46.48 | G18: 44.35 | H18: 44.35 | I18: 43.23 | J18: 43.23 | K18: 42.11 | L18: 42.11 | M18: 39.72 | N18: 39.72 | O18: 37.13 | P18: 37.13 | R18: 1.054347826 | S18: 1.010434783 | T18: 0.9641304348 | U18: 0.9397826087 | V18: 0.9154347826 | W18: 0.8634782609 | X18: 0.807173913 | Y18: 1 | Z18: 1 | AA18: 1 | AB18: 1 | AC18: 1 | AD18: 1 | AE18: 1 | AF18: 0.835 | AG18: 0.835 | AH18: 0.835 | AI18: 0.835 | AJ18: 0.835 | AK18: 0.835 | AL18: 0.835 | AM18: 48.5 | AN18: =Z18*E18+($A$4-80)*AG18*$A$16/1000 -> 46.48 | AO18: =AA18*G18+($A$4-80)*AH18*$A$16/1000 -> 44.35 | AP18: 43.23 | AQ18: 42.11 | AR18: 39.72 | AS18: 37.13
B19: 57 | C19: 48.44 | D19: 48.44 | E19: 46.42 | F19: 46.42 | G19: 44.3 | H19: 44.3 | I19: 43.185 | J19: 43.185 | K19: 42.07 | L19: 42.07 | M19: 39.68 | N19: 39.68 | O19: 37.09 | P19: 37.09 | R19: 1.053043478 | S19: 1.009130435 | T19: 0.9630434783 | U19: 0.9388043478 | V19: 0.9145652174 | W19: 0.8626086957 | X19: 0.8063043478 | Y19: 1 | Z19: 1 | AA19: 1 | AB19: 1 | AC19: 1 | AD19: 1 | AE19: 1 | AF19: 0.835 | AG19: 0.835 | AH19: 0.835 | AI19: 0.835 | AJ19: 0.835 | AK19: 0.835 | AL19: 0.835 | AM19: 48.44 | AN19: =Z19*E19+($A$4-80)*AG19*$A$16/1000 -> 46.42 | AO19: =AA19*G19+($A$4-80)*AH19*$A$16/1000 -> 44.3 | AP19: 43.185 | AQ19: 42.07 | AR19: 39.68 | AS19: 37.09

Sheet CA16NA_49 (hidden)
A2: CA16NA_49
A3: Evaporator Air | C3: Condenser Entering Air Temperature ˚F
A4: 80 | B4: °F DB | C4: 75 | E4: 85 | G4: 95 | I4: 100 | K4: 105 | M4: 115 | O4: 125
A5: CFM | B5: EWB† ˚F | C5: Capacity Mbtuh | E5: Capacity Mbtuh | G5: Capacity Mbtuh | I5: Capacity Mbtuh | K5: Capacity Mbtuh | M5: Capacity Mbtuh | O5: Capacity Mbtuh
C6: Total | D6: Sens. | E6: Total | F6: Sens. | G6: Total | H6: Sens. | I6: Total | J6: Sens. | K6: Total | L6: Sens. | M6: Total | N6: Sens. | O6: Total | P6: Sens.
R7: Total Factors | Y7: Sens. % | AF7: IDB Adj | AM7: Sens Calc
A8: 1400 | B8: 72 | C8: =R8*$G$13 -> 57.92 | D8: =IF(AM8>C8,C8,AM8) -> 28.29 | E8: =S8*$G$13 -> 55.13 | F8: =IF(AN8>E8,E8,AN8) -> 27.3 | G8: =T8*$G$13 -> 52.32 | H8: =IF(AO8>G8,G8,AO8) -> 26.32 | I8: =U8*$G$13 -> 50.89 | J8: =IF(AP8>I8,I8,AP8) -> 25.825 | K8: =V8*$G$13 -> 49.46 | L8: =IF(AQ8>K8,K8,AQ8) -> 25.33 | M8: =W8*$G$13 -> 46.46 | N8: =IF(AR8>M8,M8,AR8) -> 24.31 | O8: =X8*$G$13 -> 43.33 | P8: =IF(AS8>O8,O8,AS8) -> 23.26 | R8: 1.194226804 | S8: 1.136701031 | T8: 1.078762887 | U8: 1.049278351 | V8: 1.019793814 | W8: 0.9579381443 | X8: 0.8934020619 | Y8: 0.4884323204 | Z8: 0.4951931798 | AA8: 0.503058104 | AB8: 0.5074670859 | AC8: 0.512131015 | AD8: 0.5232458028 | AE8: 0.5368105239 | AF8: 0.835 | AG8: 0.835 | AH8: 0.835 | AI8: 0.835 | AJ8: 0.835 | AK8: 0.835 | AL8: 0.835 | AM8: =Y8*C8+($A$4-80)*AF8*$A$8/1000 -> 28.29 | AN8: =Z8*E8+($A$4-80)*AG8*$A$8/1000 -> 27.3 | AO8: =AA8*G8+($A$4-80)*AH8*$A$8/1000 -> 26.32 | AP8: =AB8*I8+($A$4-80)*AI8*$A$8/1000 -> 25.825 | AQ8: =AC8*K8+($A$4-80)*AJ8*$A$8/1000 -> 25.33 | AR8: =AD8*M8+($A$4-80)*AK8*$A$8/1000 -> 24.31 | AS8: =AE8*O8+($A$4-80)*AL8*$A$8/1000 -> 23.26
B9: 67 | C9: 52.84 | D9: 34.68 | E9: 50.34 | F9: =IF(AN9>E9,E9,AN9) -> 33.7 | G9: =T9*$G$13 -> 47.78 | H9: =IF(AO9>G9,G9,AO9) -> 32.72 | I9: 46.465 | J9: =IF(AP9>I9,I9,AP9) -> 32.22 | K9: 45.15 | L9: =IF(AQ9>K9,K9,AQ9) -> 31.72 | M9: 42.41 | N9: =IF(AR9>M9,M9,AR9) -> 30.69 | O9: 39.51 | P9: =IF(AS9>O9,O9,AS9) -> 29.62 | R9: 1.089484536 | S9: 1.037938144 | T9: 0.9851546392 | U9: 0.9580412371 | V9: 0.9309278351 | W9: 0.8744329897 | X9: 0.8146391753 | Y9: 0.656320969 | Z9: 0.6694477553 | AA9: 0.6848053579 | AB9: 0.6934251587 | AC9: 0.7025470653 | AD9: 0.7236500825 | AE9: 0.7496836244 | AF9: 0.835 | AG9: 0.835 | AH9: 0.835 | AI9: 0.835 | AJ9: 0.835 | AK9: 0.835 | AL9: 0.835 | AM9: =Y9*C9+($A$4-80)*AF9*$A$8/1000 -> 34.68 | AN9: =Z9*E9+($A$4-80)*AG9*$A$8/1000 -> 33.7 | AO9: =AA9*G9+($A$4-80)*AH9*$A$8/1000 -> 32.72 | AP9: =AB9*I9+($A$4-80)*AI9*$A$8/1000 -> 32.22 | AQ9: =AC9*K9+($A$4-80)*AJ9*$A$8/1000 -> 31.72 | AR9: =AD9*M9+($A$4-80)*AK9*$A$8/1000 -> 30.69 | AS9: =AE9*O9+($A$4-80)*AL9*$A$8/1000 -> 29.62
B10: 62 | C10: 48.3 | D10: 40.98 | E10: 46.07 | F10: 40 | G10: =T10*$G$13 -> 43.81 | H10: 38.99 | I10: 42.66 | J10: 38.455 | K10: 41.51 | L10: 37.92 | M10: 39.3 | N10: 39.3 | O10: 37.08 | P10: 37.08 | R10: 0.9958762887 | S10: 0.9498969072 | T10: 0.9032989691 | U10: 0.8795876289 | V10: 0.8558762887 | W10: 0.8103092784 | X10: 0.7645360825 | Y10: 0.848447205 | Z10: 0.8682439766 | AA10: 0.8899794567 | AB10: 0.9014299109 | AC10: 0.9135148157 | AD10: 1 | AE10: 1 | AF10: 0.835 | AG10: 0.835 | AH10: 0.835 | AI10: 0.835 | AJ10: 0.835 | AK10: 0.835 | AL10: 0.835 | AM10: 40.98 | AN10: =Z10*E10+($A$4-80)*AG10*$A$8/1000 -> 40 | AO10: =AA10*G10+($A$4-80)*AH10*$A$8/1000 -> 38.99 | AP10: 38.455 | AQ10: 37.92 | AR10: 39.3 | AS10: 37.08
B11: 57 | C11: 46.85 | D11: 46.85 | E11: 45.08 | F11: 45.08 | G11: =T11*$G$13 -> 43.24 | H11: 43.24 | I11: 42.275 | J11: 42.275 | K11: 41.31 | L11: 41.31 | M11: 39.25 | N11: 39.25 | O11: 37.04 | P11: 37.04 | R11: 0.9659793814 | S11: 0.9294845361 | T11: 0.8915463918 | U11: 0.8716494845 | V11: 0.8517525773 | W11: 0.8092783505 | X11: 0.7637113402 | Y11: 1 | Z11: 1 | AA11: 1 | AB11: 1 | AC11: 1 | AD11: 1 | AE11: 1 | AF11: 0.835 | AG11: 0.835 | AH11: 0.835 | AI11: 0.835 | AJ11: 0.835 | AK11: 0.835 | AL11: 0.835 | AM11: 46.85 | AN11: =Z11*E11+($A$4-80)*AG11*$A$8/1000 -> 45.08 | AO11: =AA11*G11+($A$4-80)*AH11*$A$8/1000 -> 43.24 | AP11: =AB11*I11+($A$4-80)*AI11*$A$8/1000 -> 42.275 | AQ11: 41.31 | AR11: 39.25 | AS11: 37.04
A12: 1600 | B12: 72 | C12: 58.92 | D12: 29.68 | E12: 56.01 | F12: 28.68 | G12: =T12*$G$13 -> 53.08 | H12: 27.68 | I12: 51.585 | J12: 27.18 | K12: 50.09 | L12: 26.68 | M12: 46.99 | N12: 25.64 | O12: 43.76 | P12: 24.58 | R12: 1.214845361 | S12: 1.154845361 | T12: 1.09443299 | U12: 1.063608247 | V12: 1.032783505 | W12: 0.9688659794 | X12: 0.9022680412 | Y12: 0.5037338764 | Z12: 0.5120514194 | AA12: 0.5214770158 | AB12: 0.5268973539 | AC12: 0.5326412458 | AD12: 0.5456480102 | AE12: 0.5617001828 | AF12: 0.835 | AG12: 0.835 | AH12: 0.835 | AI12: 0.835 | AJ12: 0.835 | AK12: 0.835 | AL12: 0.835 | AM12: =Y12*C12+($A$4-80)*AF12*$A$12/1000 -> 29.68 | AN12: =Z12*E12+($A$4-80)*AG12*$A$12/1000 -> 28.68 | AO12: =AA12*G12+($A$4-80)*AH12*$A$12/1000 -> 27.68 | AP12: =AB12*I12+($A$4-80)*AI12*$A$12/1000 -> 27.18 | AQ12: =AC12*K12+($A$4-80)*AJ12*$A$12/1000 -> 26.68 | AR12: =AD12*M12+($A$4-80)*AK12*$A$12/1000 -> 25.64 | AS12: =AE12*O12+($A$4-80)*AL12*$A$12/1000 -> 24.58
B13: 67 | C13: 53.8 | D13: 36.92 | E13: 51.16 | F13: 35.92 | G13: 48.5 | H13: 34.92 | I13: 47.135 | J13: 34.415 | K13: 45.77 | L13: 33.91 | M13: 42.94 | N13: 32.86 | O13: 39.97 | P13: 31.77 | R13: 1.109278351 | S13: 1.054845361 | T13: 1 | U13: 0.9718556701 | V13: 0.9437113402 | W13: 0.8853608247 | X13: 0.8241237113 | Y13: 0.6862453532 | Z13: 0.7021110242 | AA13: 0.72 | AB13: 0.730136841 | AC13: 0.7408783046 | AD13: 0.7652538426 | AE13: 0.7948461346 | AF13: 0.835 | AG13: 0.835 | AH13: 0.835 | AI13: 0.835 | AJ13: 0.835 | AK13: 0.835 | AL13: 0.835 | AM13: =Y13*C13+($A$4-80)*AF13*$A$12/1000 -> 36.92 | AN13: =Z13*E13+($A$4-80)*AG13*$A$12/1000 -> 35.92 | AO13: =AA13*G13+($A$4-80)*AH13*$A$12/1000 -> 34.92 | AP13: =AB13*I13+($A$4-80)*AI13*$A$12/1000 -> 34.415 | AQ13: =AC13*K13+($A$4-80)*AJ13*$A$12/1000 -> 33.91 | AR13: =AD13*M13+($A$4-80)*AK13*$A$12/1000 -> 32.86 | AS13: =AE13*O13+($A$4-80)*AL13*$A$12/1000 -> 31.77
B14: 62 | C14: 49.4 | D14: 44.03 | E14: 47.13 | F14: 42.97 | G14: =T14*$G$13 -> 44.97 | H14: 44.97 | I14: 43.925 | J14: 43.925 | K14: 42.88 | L14: 42.88 | M14: 40.67 | N14: 40.67 | O14: 38.32 | P14: 38.32 | R14: 1.018556701 | S14: 0.9717525773 | T14: 0.9272164948 | U14: 0.9056701031 | V14: 0.8841237113 | W14: 0.838556701 | X14: 0.7901030928 | Y14: 0.8912955466 | Z14: 0.9117335031 | AA14: 1 | AB14: 1 | AC14: 1 | AD14: 1 | AE14: 1 | AF14: 0.835 | AG14: 0.835 | AH14: 0.835 | AI14: 0.835 | AJ14: 0.835 | AK14: 0.835 | AL14: 0.835 | AM14: 44.03 | AN14: =Z14*E14+($A$4-80)*AG14*$A$12/1000 -> 42.97 | AO14: =AA14*G14+($A$4-80)*AH14*$A$12/1000 -> 44.97 | AP14: 43.925 | AQ14: 42.88 | AR14: 40.67 | AS14: 38.32
B15: 57 | C15: 48.81 | D15: 48.81 | E15: 46.88 | F15: 46.88 | G15: 44.91 | H15: 44.91 | I15: 43.87 | J15: 43.87 | K15: 42.83 | L15: 42.83 | M15: 40.62 | N15: 40.62 | O15: 38.26 | P15: 38.26 | R15: 1.006391753 | S15: 0.9665979381 | T15: 0.9259793814 | U15: 0.9045360825 | V15: 0.8830927835 | W15: 0.8375257732 | X15: 0.7888659794 | Y15: 1 | Z15: 1 | AA15: 1 | AB15: 1 | AC15: 1 | AD15: 1 | AE15: 1 | AF15: 0.835 | AG15: 0.835 | AH15: 0.835 | AI15: 0.835 | AJ15: 0.835 | AK15: 0.835 | AL15: 0.835 | AM15: 48.81 | AN15: =Z15*E15+($A$4-80)*AG15*$A$12/1000 -> 46.88 | AO15: =AA15*G15+($A$4-80)*AH15*$A$12/1000 -> 44.91 | AP15: 43.87 | AQ15: 42.83 | AR15: 40.62 | AS15: 38.26
A16: 1800 | B16: 72 | C16: 59.66 | D16: 31.01 | E16: 56.64 | F16: 29.99 | G16: 53.61 | H16: 28.97 | I16: 52.075 | J16: 28.465 | K16: 50.54 | L16: 27.96 | M16: 47.35 | N16: 26.91 | O16: 44.03 | P16: 25.83 | R16: 1.230103093 | S16: 1.167835052 | T16: 1.105360825 | U16: 1.07371134 | V16: 1.042061856 | W16: 0.9762886598 | X16: 0.9078350515 | Y16: 0.5197787462 | Z16: 0.5294844633 | AA16: 0.5403842567 | AB16: 0.5466154585 | AC16: 0.5532251682 | AD16: 0.5683210137 | AE16: 0.586645469 | AF16: 0.835 | AG16: 0.835 | AH16: 0.835 | AI16: 0.835 | AJ16: 0.835 | AK16: 0.835 | AL16: 0.835 | AM16: =Y16*C16+($A$4-80)*AF16*$A$16/1000 -> 31.01 | AN16: =Z16*E16+($A$4-80)*AG16*$A$16/1000 -> 29.99 | AO16: =AA16*G16+($A$4-80)*AH16*$A$16/1000 -> 28.97 | AP16: =AB16*I16+($A$4-80)*AI16*$A$16/1000 -> 28.465 | AQ16: =AC16*K16+($A$4-80)*AJ16*$A$16/1000 -> 27.96 | AR16: =AD16*M16+($A$4-80)*AK16*$A$16/1000 -> 26.91 | AS16: =AE16*O16+($A$4-80)*AL16*$A$16/1000 -> 25.83
B17: 67 | C17: 54.5 | D17: 39.06 | E17: 51.77 | F17: 38.05 | G17: 49.02 | H17: 37.03 | I17: 47.62 | J17: 36.515 | K17: 46.22 | L17: 36 | M17: 43.32 | N17: 34.93 | O17: 40.28 | P17: 33.8 | R17: 1.12371134 | S17: 1.06742268 | T17: 1.010721649 | U17: 0.9818556701 | V17: 0.9529896907 | W17: 0.8931958763 | X17: 0.8305154639 | Y17: 0.7166972477 | Z17: 0.7349816496 | AA17: 0.7554059568 | AB17: 0.766799664 | AC17: 0.7788836002 | AD17: 0.8063250231 | AE17: 0.8391261172 | AF17: 0.835 | AG17: 0.835 | AH17: 0.835 | AI17: 0.835 | AJ17: 0.835 | AK17: 0.835 | AL17: 0.835 | AM17: =Y17*C17+($A$4-80)*AF17*$A$16/1000 -> 39.06 | AN17: =Z17*E17+($A$4-80)*AG17*$A$16/1000 -> 38.05 | AO17: =AA17*G17+($A$4-80)*AH17*$A$16/1000 -> 37.03 | AP17: =AB17*I17+($A$4-80)*AI17*$A$16/1000 -> 36.515 | AQ17: =AC17*K17+($A$4-80)*AJ17*$A$16/1000 -> 36 | AR17: =AD17*M17+($A$4-80)*AK17*$A$16/1000 -> 34.93 | AS17: =AE17*O17+($A$4-80)*AL17*$A$16/1000 -> 33.8
B18: 62 | C18: 50.46 | D18: 50.46 | E18: 48.42 | F18: 48.42 | G18: 46.31 | H18: 46.31 | I18: 45.205 | J18: 45.205 | K18: 44.1 | L18: 44.1 | M18: 41.77 | N18: 41.77 | O18: 39.29 | P18: 39.29 | R18: 1.040412371 | S18: 0.9983505155 | T18: 0.9548453608 | U18: 0.9320618557 | V18: 0.9092783505 | W18: 0.8612371134 | X18: 0.8101030928 | Y18: 1 | Z18: 1 | AA18: 1 | AB18: 1 | AC18: 1 | AD18: 1 | AE18: 1 | AF18: 0.835 | AG18: 0.835 | AH18: 0.835 | AI18: 0.835 | AJ18: 0.835 | AK18: 0.835 | AL18: 0.835 | AM18: 50.46 | AN18: =Z18*E18+($A$4-80)*AG18*$A$16/1000 -> 48.42 | AO18: =AA18*G18+($A$4-80)*AH18*$A$16/1000 -> 46.31 | AP18: 45.205 | AQ18: 44.1 | AR18: 41.77 | AS18: 39.29
B19: 57 | C19: 50.41 | D19: 50.41 | E19: 48.35 | F19: 48.35 | G19: 46.25 | H19: 46.25 | I19: 45.15 | J19: 45.15 | K19: 44.05 | L19: 44.05 | M19: 41.72 | N19: 41.72 | O19: 39.25 | P19: 39.25 | R19: 1.039381443 | S19: 0.9969072165 | T19: 0.9536082474 | U19: 0.9309278351 | V19: 0.9082474227 | W19: 0.8602061856 | X19: 0.8092783505 | Y19: 1 | Z19: 1 | AA19: 1 | AB19: 1 | AC19: 1 | AD19: 1 | AE19: 1 | AF19: 0.835 | AG19: 0.835 | AH19: 0.835 | AI19: 0.835 | AJ19: 0.835 | AK19: 0.835 | AL19: 0.835 | AM19: 50.41 | AN19: =Z19*E19+($A$4-80)*AG19*$A$16/1000 -> 48.35 | AO19: =AA19*G19+($A$4-80)*AH19*$A$16/1000 -> 46.25 | AP19: 45.15 | AQ19: 44.05 | AR19: 41.72 | AS19: 39.25

Sheet CA16NA_60 (hidden)
A2: CA16NA_60
A3: Evaporator Air | C3: Condenser Entering Air Temperature ˚F
A4: 80 | B4: °F DB | C4: 75 | E4: 85 | G4: 95 | I4: 100 | K4: 105 | M4: 115 | O4: 125
A5: CFM | B5: EWB† ˚F | C5: Capacity Mbtuh | E5: Capacity Mbtuh | G5: Capacity Mbtuh | I5: Capacity Mbtuh | K5: Capacity Mbtuh | M5: Capacity Mbtuh | O5: Capacity Mbtuh
C6: Total | D6: Sens. | E6: Total | F6: Sens. | G6: Total | H6: Sens. | I6: Total | J6: Sens. | K6: Total | L6: Sens. | M6: Total | N6: Sens. | O6: Total | P6: Sens.
R7: Total Factors | Y7: Sens. % | AF7: IDB Adj | AM7: Sens Calc
A8: 1750 | B8: 72 | C8: =R8*$G$13 -> 67.62 | D8: =IF(AM8>C8,C8,AM8) -> 32.42 | E8: =S8*$G$13 -> 64.18 | F8: =IF(AN8>E8,E8,AN8) -> 31.31 | G8: =T8*$G$13 -> 60.57 | H8: =IF(AO8>G8,G8,AO8) -> 30.15 | I8: =U8*$G$13 -> 58.685 | J8: =IF(AP8>I8,I8,AP8) -> 29.555 | K8: =V8*$G$13 -> 56.8 | L8: =IF(AQ8>K8,K8,AQ8) -> 28.96 | M8: =W8*$G$13 -> 52.78 | N8: =IF(AR8>M8,M8,AR8) -> 27.7 | O8: =X8*$G$13 -> 48.5 | P8: =IF(AS8>O8,O8,AS8) -> 26.38 | R8: 1.2075 | S8: 1.146071429 | T8: 1.081607143 | U8: 1.047946429 | V8: 1.014285714 | W8: 0.9425 | X8: 0.8660714286 | Y8: 0.4794439515 | Z8: 0.4878466812 | AA8: 0.4977711738 | AB8: 0.5036210275 | AC8: 0.5098591549 | AD8: 0.5248200076 | AE8: 0.5439175258 | AF8: 0.835 | AG8: 0.835 | AH8: 0.835 | AI8: 0.835 | AJ8: 0.835 | AK8: 0.835 | AL8: 0.835 | AM8: =Y8*C8+($A$4-80)*AF8*$A$8/1000 -> 32.42 | AN8: =Z8*E8+($A$4-80)*AG8*$A$8/1000 -> 31.31 | AO8: =AA8*G8+($A$4-80)*AH8*$A$8/1000 -> 30.15 | AP8: =AB8*I8+($A$4-80)*AI8*$A$8/1000 -> 29.555 | AQ8: =AC8*K8+($A$4-80)*AJ8*$A$8/1000 -> 28.96 | AR8: =AD8*M8+($A$4-80)*AK8*$A$8/1000 -> 27.7 | AS8: =AE8*O8+($A$4-80)*AL8*$A$8/1000 -> 26.38
B9: 67 | C9: 61.6 | D9: 40.4 | E9: 58.54 | F9: =IF(AN9>E9,E9,AN9) -> 39.31 | G9: =T9*$G$13 -> 55.32 | H9: =IF(AO9>G9,G9,AO9) -> 38.17 | I9: 53.61 | J9: =IF(AP9>I9,I9,AP9) -> 37.57 | K9: 51.9 | L9: =IF(AQ9>K9,K9,AQ9) -> 36.97 | M9: 48.28 | N9: =IF(AR9>M9,M9,AR9) -> 35.7 | O9: 44.4 | P9: =IF(AS9>O9,O9,AS9) -> 34.35 | R9: 1.1 | S9: 1.045357143 | T9: 0.9878571429 | U9: 0.9573214286 | V9: 0.9267857143 | W9: 0.8621428571 | X9: 0.7928571429 | Y9: 0.6558441558 | Z9: 0.6715066621 | AA9: 0.6899855387 | AB9: 0.7008020892 | AC9: 0.7123314066 | AD9: 0.7394366197 | AE9: 0.7736486486 | AF9: 0.835 | AG9: 0.835 | AH9: 0.835 | AI9: 0.835 | AJ9: 0.835 | AK9: 0.835 | AL9: 0.835 | AM9: =Y9*C9+($A$4-80)*AF9*$A$8/1000 -> 40.4 | AN9: =Z9*E9+($A$4-80)*AG9*$A$8/1000 -> 39.31 | AO9: =AA9*G9+($A$4-80)*AH9*$A$8/1000 -> 38.17 | AP9: =AB9*I9+($A$4-80)*AI9*$A$8/1000 -> 37.57 | AQ9: =AC9*K9+($A$4-80)*AJ9*$A$8/1000 -> 36.97 | AR9: =AD9*M9+($A$4-80)*AK9*$A$8/1000 -> 35.7 | AS9: =AE9*O9+($A$4-80)*AL9*$A$8/1000 -> 34.35
B10: 62 | C10: 56.64 | D10: 48.23 | E10: 54.07 | F10: 53.77 | G10: =T10*$G$13 -> 51.6 | H10: 51.6 | I10: 50.295 | J10: 50.295 | K10: 48.99 | L10: 48.99 | M10: 46.15 | N10: 46.15 | O10: 43.04 | P10: 43.04 | R10: 1.011428571 | S10: 0.9655357143 | T10: 0.9214285714 | U10: 0.898125 | V10: 0.8748214286 | W10: 0.8241071429 | X10: 0.7685714286 | Y10: 0.8515183616 | Z10: 0.9944516368 | AA10: 1 | AB10: 1 | AC10: 1 | AD10: 1 | AE10: 1 | AF10: 0.835 | AG10: 0.835 | AH10: 0.835 | AI10: 0.835 | AJ10: 0.835 | AK10: 0.835 | AL10: 0.835 | AM10: 48.23 | AN10: =Z10*E10+($A$4-80)*AG10*$A$8/1000 -> 53.77 | AO10: =AA10*G10+($A$4-80)*AH10*$A$8/1000 -> 51.6 | AP10: 50.295 | AQ10: 48.99 | AR10: 46.15 | AS10: 43.04
B11: 57 | C11: 56.19 | D11: 56.19 | E11: 53.95 | F11: 53.95 | G11: =T11*$G$13 -> 51.53 | H11: 51.53 | I11: 50.23 | J11: 50.23 | K11: 48.93 | L11: 48.93 | M11: 46.09 | N11: 46.09 | O11: 42.99 | P11: 42.99 | R11: 1.003392857 | S11: 0.9633928571 | T11: 0.9201785714 | U11: 0.8969642857 | V11: 0.87375 | W11: 0.8230357143 | X11: 0.7676785714 | Y11: 1 | Z11: 1 | AA11: 1 | AB11: 1 | AC11: 1 | AD11: 1 | AE11: 1 | AF11: 0.835 | AG11: 0.835 | AH11: 0.835 | AI11: 0.835 | AJ11: 0.835 | AK11: 0.835 | AL11: 0.835 | AM11: 56.19 | AN11: =Z11*E11+($A$4-80)*AG11*$A$8/1000 -> 53.95 | AO11: =AA11*G11+($A$4-80)*AH11*$A$8/1000 -> 51.53 | AP11: =AB11*I11+($A$4-80)*AI11*$A$8/1000 -> 50.23 | AQ11: 48.93 | AR11: 46.09 | AS11: 42.99
A12: 2000 | B12: 72 | C12: 68.55 | D12: 34.11 | E12: 64.97 | F12: 32.98 | G12: =T12*$G$13 -> 61.23 | H12: 31.81 | I12: 59.27 | J12: 31.2 | K12: 57.31 | L12: 30.59 | M12: 53.17 | N12: 29.32 | O12: 48.77 | P12: 27.98 | R12: 1.224107143 | S12: 1.160178571 | T12: 1.093392857 | U12: 1.058392857 | V12: 1.023392857 | W12: 0.9494642857 | X12: 0.8708928571 | Y12: 0.4975929978 | Z12: 0.507618901 | AA12: 0.5195165768 | AB12: 0.5264045892 | AC12: 0.5337637411 | AD12: 0.5514387813 | AE12: 0.5737133484 | AF12: 0.835 | AG12: 0.835 | AH12: 0.835 | AI12: 0.835 | AJ12: 0.835 | AK12: 0.835 | AL12: 0.835 | AM12: =Y12*C12+($A$4-80)*AF12*$A$12/1000 -> 34.11 | AN12: =Z12*E12+($A$4-80)*AG12*$A$12/1000 -> 32.98 | AO12: =AA12*G12+($A$4-80)*AH12*$A$12/1000 -> 31.81 | AP12: =AB12*I12+($A$4-80)*AI12*$A$12/1000 -> 31.2 | AQ12: =AC12*K12+($A$4-80)*AJ12*$A$12/1000 -> 30.59 | AR12: =AD12*M12+($A$4-80)*AK12*$A$12/1000 -> 29.32 | AS12: =AE12*O12+($A$4-80)*AL12*$A$12/1000 -> 27.98
B13: 67 | C13: 62.54 | D13: 43.18 | E13: 59.33 | F13: 42.05 | G13: 56 | H13: 40.88 | I13: 54.235 | J13: 40.26 | K13: 52.47 | L13: 39.64 | M13: 48.75 | N13: 38.33 | O13: 44.8 | P13: 36.91 | R13: 1.116785714 | S13: 1.059464286 | T13: 1 | U13: 0.9684821429 | V13: 0.9369642857 | W13: 0.8705357143 | X13: 0.8 | Y13: 0.6904381196 | Z13: 0.7087476825 | AA13: 0.73 | AB13: 0.7423250668 | AC13: 0.7554793215 | AD13: 0.7862564103 | AE13: 0.8238839286 | AF13: 0.835 | AG13: 0.835 | AH13: 0.835 | AI13: 0.835 | AJ13: 0.835 | AK13: 0.835 | AL13: 0.835 | AM13: =Y13*C13+($A$4-80)*AF13*$A$12/1000 -> 43.18 | AN13: =Z13*E13+($A$4-80)*AG13*$A$12/1000 -> 42.05 | AO13: =AA13*G13+($A$4-80)*AH13*$A$12/1000 -> 40.88 | AP13: =AB13*I13+($A$4-80)*AI13*$A$12/1000 -> 40.26 | AQ13: =AC13*K13+($A$4-80)*AJ13*$A$12/1000 -> 39.64 | AR13: =AD13*M13+($A$4-80)*AK13*$A$12/1000 -> 38.33 | AS13: =AE13*O13+($A$4-80)*AL13*$A$12/1000 -> 36.91
B14: 62 | C14: 58.38 | D14: 58.38 | E14: 55.95 | F14: 55.95 | G14: =T14*$G$13 -> 53.34 | H14: 53.34 | I14: 51.94 | J14: 51.94 | K14: 50.54 | L14: 50.54 | M14: 47.51 | N14: 47.51 | O14: 44.2 | P14: 44.2 | R14: 1.0425 | S14: 0.9991071429 | T14: 0.9525 | U14: 0.9275 | V14: 0.9025 | W14: 0.8483928571 | X14: 0.7892857143 | Y14: 1 | Z14: 1 | AA14: 1 | AB14: 1 | AC14: 1 | AD14: 1 | AE14: 1 | AF14: 0.835 | AG14: 0.835 | AH14: 0.835 | AI14: 0.835 | AJ14: 0.835 | AK14: 0.835 | AL14: 0.835 | AM14: 58.38 | AN14: =Z14*E14+($A$4-80)*AG14*$A$12/1000 -> 55.95 | AO14: =AA14*G14+($A$4-80)*AH14*$A$12/1000 -> 53.34 | AP14: 51.94 | AQ14: 50.54 | AR14: 47.51 | AS14: 44.2
B15: 57 | C15: 58.3 | D15: 58.3 | E15: 55.88 | F15: 55.88 | G15: 53.27 | H15: 53.27 | I15: 51.875 | J15: 51.875 | K15: 50.48 | L15: 50.48 | M15: 47.45 | N15: 47.45 | O15: 44.15 | P15: 44.15 | R15: 1.041071429 | S15: 0.9978571429 | T15: 0.95125 | U15: 0.9263392857 | V15: 0.9014285714 | W15: 0.8473214286 | X15: 0.7883928571 | Y15: 1 | Z15: 1 | AA15: 1 | AB15: 1 | AC15: 1 | AD15: 1 | AE15: 1 | AF15: 0.835 | AG15: 0.835 | AH15: 0.835 | AI15: 0.835 | AJ15: 0.835 | AK15: 0.835 | AL15: 0.835 | AM15: 58.3 | AN15: =Z15*E15+($A$4-80)*AG15*$A$12/1000 -> 55.88 | AO15: =AA15*G15+($A$4-80)*AH15*$A$12/1000 -> 53.27 | AP15: 51.875 | AQ15: 50.48 | AR15: 47.45 | AS15: 44.15
A16: 2250 | B16: 72 | C16: 69.2 | D16: 35.72 | E16: 65.5 | F16: 34.57 | G16: 61.65 | H16: 33.38 | I16: 59.64 | J16: 32.76 | K16: 57.63 | L16: 32.14 | M16: 53.4 | N16: 30.86 | O16: 48.9 | P16: 29.5 | R16: 1.235714286 | S16: 1.169642857 | T16: 1.100892857 | U16: 1.065 | V16: 1.029107143 | W16: 0.9535714286 | X16: 0.8732142857 | Y16: 0.5161849711 | Z16: 0.5277862595 | AA16: 0.5414436334 | AB16: 0.5492957746 | AC16: 0.5576956446 | AD16: 0.5779026217 | AE16: 0.6032719836 | AF16: 0.835 | AG16: 0.835 | AH16: 0.835 | AI16: 0.835 | AJ16: 0.835 | AK16: 0.835 | AL16: 0.835 | AM16: =Y16*C16+($A$4-80)*AF16*$A$16/1000 -> 35.72 | AN16: =Z16*E16+($A$4-80)*AG16*$A$16/1000 -> 34.57 | AO16: =AA16*G16+($A$4-80)*AH16*$A$16/1000 -> 33.38 | AP16: =AB16*I16+($A$4-80)*AI16*$A$16/1000 -> 32.76 | AQ16: =AC16*K16+($A$4-80)*AJ16*$A$16/1000 -> 32.14 | AR16: =AD16*M16+($A$4-80)*AK16*$A$16/1000 -> 30.86 | AS16: =AE16*O16+($A$4-80)*AL16*$A$16/1000 -> 29.5
B17: 67 | C17: 63.21 | D17: 45.81 | E17: 59.93 | F17: 44.66 | G17: 56.49 | H17: 43.45 | I17: 54.69 | J17: 42.81 | K17: 52.89 | L17: 42.17 | M17: 49.12 | N17: 40.78 | O17: 45.19 | P17: 44.77 | R17: 1.12875 | S17: 1.070178571 | T17: 1.00875 | U17: 0.9766071429 | V17: 0.9444642857 | W17: 0.8771428571 | X17: 0.8069642857 | Y17: 0.7247271001 | Z17: 0.7452027365 | AA17: 0.7691626837 | AB17: 0.7827756445 | AC17: 0.7973151825 | AD17: 0.8302117264 | AE17: 0.9907059084 | AF17: 0.835 | AG17: 0.835 | AH17: 0.835 | AI17: 0.835 | AJ17: 0.835 | AK17: 0.835 | AL17: 0.835 | AM17: =Y17*C17+($A$4-80)*AF17*$A$16/1000 -> 45.81 | AN17: =Z17*E17+($A$4-80)*AG17*$A$16/1000 -> 44.66 | AO17: =AA17*G17+($A$4-80)*AH17*$A$16/1000 -> 43.45 | AP17: =AB17*I17+($A$4-80)*AI17*$A$16/1000 -> 42.81 | AQ17: =AC17*K17+($A$4-80)*AJ17*$A$16/1000 -> 42.17 | AR17: =AD17*M17+($A$4-80)*AK17*$A$16/1000 -> 40.78 | AS17: =AE17*O17+($A$4-80)*AL17*$A$16/1000 -> 44.77
B18: 62 | C18: 60.1 | D18: 60.1 | E18: 57.51 | F18: 57.51 | G18: 54.74 | H18: 54.74 | I18: 53.255 | J18: 53.255 | K18: 51.77 | L18: 51.77 | M18: 48.57 | N18: 48.57 | O18: 45.09 | P18: 45.09 | R18: 1.073214286 | S18: 1.026964286 | T18: 0.9775 | U18: 0.9509821429 | V18: 0.9244642857 | W18: 0.8673214286 | X18: 0.8051785714 | Y18: 1 | Z18: 1 | AA18: 1 | AB18: 1 | AC18: 1 | AD18: 1 | AE18: 1 | AF18: 0.835 | AG18: 0.835 | AH18: 0.835 | AI18: 0.835 | AJ18: 0.835 | AK18: 0.835 | AL18: 0.835 | AM18: 60.1 | AN18: =Z18*E18+($A$4-80)*AG18*$A$16/1000 -> 57.51 | AO18: =AA18*G18+($A$4-80)*AH18*$A$16/1000 -> 54.74 | AP18: 53.255 | AQ18: 51.77 | AR18: 48.57 | AS18: 45.09
B19: 57 | C19: 60.02 | D19: 60.02 | E19: 57.44 | F19: 57.44 | G19: 54.67 | H19: 54.67 | I19: 53.19 | J19: 53.19 | K19: 51.71 | L19: 51.71 | M19: 48.52 | N19: 48.52 | O19: 45.05 | P19: 45.05 | R19: 1.071785714 | S19: 1.025714286 | T19: 0.97625 | U19: 0.9498214286 | V19: 0.9233928571 | W19: 0.8664285714 | X19: 0.8044642857 | Y19: 1 | Z19: 1 | AA19: 1 | AB19: 1 | AC19: 1 | AD19: 1 | AE19: 1 | AF19: 0.835 | AG19: 0.835 | AH19: 0.835 | AI19: 0.835 | AJ19: 0.835 | AK19: 0.835 | AL19: 0.835 | AM19: 60.02 | AN19: =Z19*E19+($A$4-80)*AG19*$A$16/1000 -> 57.44 | AO19: =AA19*G19+($A$4-80)*AH19*$A$16/1000 -> 54.67 | AP19: 53.19 | AQ19: 51.71 | AR19: 48.52 | AS19: 45.05

Sheet CA16NA_61 (hidden)
A2: CA16NA_61
A3: Evaporator Air | C3: Condenser Entering Air Temperature ˚F
A4: 80 | B4: °F DB | C4: 75 | E4: 85 | G4: 95 | I4: 100 | K4: 105 | M4: 115 | O4: 125
A5: CFM | B5: EWB† ˚F | C5: Capacity Mbtuh | E5: Capacity Mbtuh | G5: Capacity Mbtuh | I5: Capacity Mbtuh | K5: Capacity Mbtuh | M5: Capacity Mbtuh | O5: Capacity Mbtuh
C6: Total | D6: Sens. | E6: Total | F6: Sens. | G6: Total | H6: Sens. | I6: Total | J6: Sens. | K6: Total | L6: Sens. | M6: Total | N6: Sens. | O6: Total | P6: Sens.
R7: Total Factors | Y7: Sens. % | AF7: IDB Adj | AM7: Sens Calc
A8: 1750 | B8: 72 | C8: =R8*$G$13 -> 71.33 | D8: =IF(AM8>C8,C8,AM8) -> 35.83 | E8: =S8*$G$13 -> 67.92 | F8: =IF(AN8>E8,E8,AN8) -> 34.63 | G8: =T8*$G$13 -> 64.29 | H8: =IF(AO8>G8,G8,AO8) -> 33.36 | I8: =U8*$G$13 -> 62.335 | J8: =IF(AP8>I8,I8,AP8) -> 32.685 | K8: =V8*$G$13 -> 60.38 | L8: =IF(AQ8>K8,K8,AQ8) -> 32.01 | M8: =W8*$G$13 -> 56.18 | N8: =IF(AR8>M8,M8,AR8) -> 30.58 | O8: =X8*$G$13 -> 51.64 | P8: =IF(AS8>O8,O8,AS8) -> 29.06 | R8: 1.198823529 | S8: 1.141512605 | T8: 1.080504202 | U8: 1.047647059 | V8: 1.014789916 | W8: 0.9442016807 | X8: 0.8678991597 | Y8: 0.5023131922 | Z8: 0.5098645465 | AA8: 0.5188987401 | AB8: 0.5243442689 | AC8: 0.5301424313 | AD8: 0.5443218227 | AE8: 0.5627420604 | AF8: 0.835 | AG8: 0.835 | AH8: 0.835 | AI8: 0.835 | AJ8: 0.835 | AK8: 0.835 | AL8: 0.835 | AM8: =Y8*C8+($A$4-80)*AF8*$A$8/1000 -> 35.83 | AN8: =Z8*E8+($A$4-80)*AG8*$A$8/1000 -> 34.63 | AO8: =AA8*G8+($A$4-80)*AH8*$A$8/1000 -> 33.36 | AP8: =AB8*I8+($A$4-80)*AI8*$A$8/1000 -> 32.685 | AQ8: =AC8*K8+($A$4-80)*AJ8*$A$8/1000 -> 32.01 | AR8: =AD8*M8+($A$4-80)*AK8*$A$8/1000 -> 30.58 | AS8: =AE8*O8+($A$4-80)*AL8*$A$8/1000 -> 29.06
B9: 67 | C9: 64.99 | D9: 44.18 | E9: 61.93 | F9: =IF(AN9>E9,E9,AN9) -> 42.98 | G9: =T9*$G$13 -> 58.65 | H9: =IF(AO9>G9,G9,AO9) -> 41.72 | I9: 56.895 | J9: =IF(AP9>I9,I9,AP9) -> 41.055 | K9: 55.14 | L9: =IF(AQ9>K9,K9,AQ9) -> 40.39 | M9: 51.36 | N9: =IF(AR9>M9,M9,AR9) -> 38.96 | O9: 47.28 | P9: =IF(AS9>O9,O9,AS9) -> 37.43 | R9: 1.092268908 | S9: 1.040840336 | T9: 0.9857142857 | U9: 0.9562184874 | V9: 0.9267226891 | W9: 0.8631932773 | X9: 0.7946218487 | Y9: 0.6797968918 | Z9: 0.6940093654 | AA9: 0.7113384484 | AB9: 0.7215924071 | AC9: 0.7324990932 | AD9: 0.7585669782 | AE9: 0.7916666667 | AF9: 0.835 | AG9: 0.835 | AH9: 0.835 | AI9: 0.835 | AJ9: 0.835 | AK9: 0.835 | AL9: 0.835 | AM9: =Y9*C9+($A$4-80)*AF9*$A$8/1000 -> 44.18 | AN9: =Z9*E9+($A$4-80)*AG9*$A$8/1000 -> 42.98 | AO9: =AA9*G9+($A$4-80)*AH9*$A$8/1000 -> 41.72 | AP9: =AB9*I9+($A$4-80)*AI9*$A$8/1000 -> 41.055 | AQ9: =AC9*K9+($A$4-80)*AJ9*$A$8/1000 -> 40.39 | AR9: =AD9*M9+($A$4-80)*AK9*$A$8/1000 -> 38.96 | AS9: =AE9*O9+($A$4-80)*AL9*$A$8/1000 -> 37.43
B10: 62 | C10: 59.53 | D10: 52.42 | E10: 56.85 | F10: 51.21 | G10: =T10*$G$13 -> 54.02 | H10: 49.88 | I10: 52.615 | J10: 50.545 | K10: 51.21 | L10: 51.21 | M10: 48.34 | N10: 48.34 | O10: 45.16 | P10: 45.16 | R10: 1.000504202 | S10: 0.9554621849 | T10: 0.9078991597 | U10: 0.8842857143 | V10: 0.8606722689 | W10: 0.8124369748 | X10: 0.7589915966 | Y10: 0.8805644213 | Z10: 0.9007915567 | AA10: 0.9233617179 | AB10: 0.9606576071 | AC10: 1 | AD10: 1 | AE10: 1 | AF10: 0.835 | AG10: 0.835 | AH10: 0.835 | AI10: 0.835 | AJ10: 0.835 | AK10: 0.835 | AL10: 0.835 | AM10: 52.42 | AN10: =Z10*E10+($A$4-80)*AG10*$A$8/1000 -> 51.21 | AO10: =AA10*G10+($A$4-80)*AH10*$A$8/1000 -> 49.88 | AP10: 50.545 | AQ10: 51.21 | AR10: 48.34 | AS10: 45.16
B11: 57 | C11: 58.32 | D11: 58.32 | E11: 56.13 | F11: 56.13 | G11: =T11*$G$13 -> 53.74 | H11: 53.74 | I11: 52.44 | J11: 52.44 | K11: 51.14 | L11: 51.14 | M11: 48.27 | N11: 48.27 | O11: 45.1 | P11: 45.1 | R11: 0.9801680672 | S11: 0.9433613445 | T11: 0.9031932773 | U11: 0.8813445378 | V11: 0.8594957983 | W11: 0.8112605042 | X11: 0.7579831933 | Y11: 1 | Z11: 1 | AA11: 1 | AB11: 1 | AC11: 1 | AD11: 1 | AE11: 1 | AF11: 0.835 | AG11: 0.835 | AH11: 0.835 | AI11: 0.835 | AJ11: 0.835 | AK11: 0.835 | AL11: 0.835 | AM11: 58.32 | AN11: =Z11*E11+($A$4-80)*AG11*$A$8/1000 -> 56.13 | AO11: =AA11*G11+($A$4-80)*AH11*$A$8/1000 -> 53.74 | AP11: =AB11*I11+($A$4-80)*AI11*$A$8/1000 -> 52.44 | AQ11: 51.14 | AR11: 48.27 | AS11: 45.1
A12: 2000 | B12: 72 | C12: 72.48 | D12: 37.66 | E12: 68.92 | F12: 36.43 | G12: =T12*$G$13 -> 65.12 | H12: 35.13 | I12: 63.095 | J12: 34.45 | K12: 61.07 | L12: 33.77 | M12: 56.7 | N12: 32.32 | O12: 52.02 | P12: 30.78 | R12: 1.218151261 | S12: 1.158319328 | T12: 1.094453782 | U12: 1.060420168 | V12: 1.026386555 | W12: 0.9529411765 | X12: 0.8742857143 | Y12: 0.5195916115 | Z12: 0.5285838654 | AA12: 0.539465602 | AB12: 0.5460020604 | AC12: 0.5529719993 | AD12: 0.5700176367 | AE12: 0.5916955017 | AF12: 0.835 | AG12: 0.835 | AH12: 0.835 | AI12: 0.835 | AJ12: 0.835 | AK12: 0.835 | AL12: 0.835 | AM12: =Y12*C12+($A$4-80)*AF12*$A$12/1000 -> 37.66 | AN12: =Z12*E12+($A$4-80)*AG12*$A$12/1000 -> 36.43 | AO12: =AA12*G12+($A$4-80)*AH12*$A$12/1000 -> 35.13 | AP12: =AB12*I12+($A$4-80)*AI12*$A$12/1000 -> 34.45 | AQ12: =AC12*K12+($A$4-80)*AJ12*$A$12/1000 -> 33.77 | AR12: =AD12*M12+($A$4-80)*AK12*$A$12/1000 -> 32.32 | AS12: =AE12*O12+($A$4-80)*AL12*$A$12/1000 -> 30.78
B13: 67 | C13: 66.09 | D13: 47.12 | E13: 62.91 | F13: 45.91 | G13: 59.5 | H13: 44.63 | I13: 57.675 | J13: 43.94 | K13: 55.85 | L13: 43.25 | M13: 51.93 | N13: 41.79 | O13: 47.73 | P13: 40.21 | R13: 1.110756303 | S13: 1.057310924 | T13: 1 | U13: 0.9693277311 | V13: 0.9386554622 | W13: 0.8727731092 | X13: 0.8021848739 | Y13: 0.712967166 | Z13: 0.7297726911 | AA13: 0.7500840336 | AB13: 0.7618552232 | AC13: 0.7743957028 | AD13: 0.8047371462 | AE13: 0.8424470983 | AF13: 0.835 | AG13: 0.835 | AH13: 0.835 | AI13: 0.835 | AJ13: 0.835 | AK13: 0.835 | AL13: 0.835 | AM13: =Y13*C13+($A$4-80)*AF13*$A$12/1000 -> 47.12 | AN13: =Z13*E13+($A$4-80)*AG13*$A$12/1000 -> 45.91 | AO13: =AA13*G13+($A$4-80)*AH13*$A$12/1000 -> 44.63 | AP13: =AB13*I13+($A$4-80)*AI13*$A$12/1000 -> 43.94 | AQ13: =AC13*K13+($A$4-80)*AJ13*$A$12/1000 -> 43.25 | AR13: =AD13*M13+($A$4-80)*AK13*$A$12/1000 -> 41.79 | AS13: =AE13*O13+($A$4-80)*AL13*$A$12/1000 -> 40.21
B14: 62 | C14: 60.95 | D14: 56.32 | E14: 58.37 | F14: 58.37 | G14: =T14*$G$13 -> 55.8 | H14: 55.8 | I14: 54.39 | J14: 54.39 | K14: 52.98 | L14: 52.98 | M14: 49.89 | N14: 49.89 | O14: 46.49 | P14: 46.49 | R14: 1.024369748 | S14: 0.9810084034 | T14: 0.9378151261 | U14: 0.9141176471 | V14: 0.8904201681 | W14: 0.838487395 | X14: 0.7813445378 | Y14: 0.9240360952 | Z14: 1 | AA14: 1 | AB14: 1 | AC14: 1 | AD14: 1 | AE14: 1 | AF14: 0.835 | AG14: 0.835 | AH14: 0.835 | AI14: 0.835 | AJ14: 0.835 | AK14: 0.835 | AL14: 0.835 | AM14: 56.32 | AN14: =Z14*E14+($A$4-80)*AG14*$A$12/1000 -> 58.37 | AO14: =AA14*G14+($A$4-80)*AH14*$A$12/1000 -> 55.8 | AP14: 54.39 | AQ14: 52.98 | AR14: 49.89 | AS14: 46.49
B15: 57 | C15: 60.67 | D15: 60.67 | E15: 58.3 | F15: 58.3 | G15: 55.71 | H15: 55.71 | I15: 54.31 | J15: 54.31 | K15: 52.91 | L15: 52.91 | M15: 49.83 | N15: 49.83 | O15: 46.44 | P15: 46.44 | R15: 1.019663866 | S15: 0.9798319328 | T15: 0.936302521 | U15: 0.9127731092 | V15: 0.8892436975 | W15: 0.8374789916 | X15: 0.7805042017 | Y15: 1 | Z15: 1 | AA15: 1 | AB15: 1 | AC15: 1 | AD15: 1 | AE15: 1 | AF15: 0.835 | AG15: 0.835 | AH15: 0.835 | AI15: 0.835 | AJ15: 0.835 | AK15: 0.835 | AL15: 0.835 | AM15: 60.67 | AN15: =Z15*E15+($A$4-80)*AG15*$A$12/1000 -> 58.3 | AO15: =AA15*G15+($A$4-80)*AH15*$A$12/1000 -> 55.71 | AP15: 54.31 | AQ15: 52.91 | AR15: 49.83 | AS15: 46.44
A16: 2250 | B16: 72 | C16: 73.3 | D16: 39.39 | E16: 69.62 | F16: 38.14 | G16: 65.7 | H16: 36.83 | I16: 63.61 | J16: 36.14 | K16: 61.52 | L16: 35.45 | M16: 57.03 | N16: 33.98 | O16: 52.24 | P16: 32.42 | R16: 1.231932773 | S16: 1.170084034 | T16: 1.104201681 | U16: 1.06907563 | V16: 1.03394958 | W16: 0.958487395 | X16: 0.8779831933 | Y16: 0.5373806276 | Z16: 0.547831083 | AA16: 0.5605783866 | AB16: 0.568149662 | AC16: 0.5762353706 | AD16: 0.5958267578 | AE16: 0.6205972435 | AF16: 0.835 | AG16: 0.835 | AH16: 0.835 | AI16: 0.835 | AJ16: 0.835 | AK16: 0.835 | AL16: 0.835 | AM16: =Y16*C16+($A$4-80)*AF16*$A$16/1000 -> 39.39 | AN16: =Z16*E16+($A$4-80)*AG16*$A$16/1000 -> 38.14 | AO16: =AA16*G16+($A$4-80)*AH16*$A$16/1000 -> 36.83 | AP16: =AB16*I16+($A$4-80)*AI16*$A$16/1000 -> 36.14 | AQ16: =AC16*K16+($A$4-80)*AJ16*$A$16/1000 -> 35.45 | AR16: =AD16*M16+($A$4-80)*AK16*$A$16/1000 -> 33.98 | AS16: =AE16*O16+($A$4-80)*AL16*$A$16/1000 -> 32.42
B17: 67 | C17: 66.92 | D17: 49.95 | E17: 63.61 | F17: 48.71 | G17: 60.1 | H17: 47.39 | I17: 58.23 | J17: 46.685 | K17: 56.36 | L17: 45.98 | M17: 52.35 | N17: 44.47 | O17: 48.09 | P17: 42.81 | R17: 1.124705882 | S17: 1.06907563 | T17: 1.010084034 | U17: 0.9786554622 | V17: 0.9472268908 | W17: 0.8798319328 | X17: 0.8082352941 | Y17: 0.7464136282 | Z17: 0.7657601006 | AA17: 0.7885191348 | AB17: 0.8017345011 | AC17: 0.8158268275 | AD17: 0.8494746896 | AE17: 0.890205864 | AF17: 0.835 | AG17: 0.835 | AH17: 0.835 | AI17: 0.835 | AJ17: 0.835 | AK17: 0.835 | AL17: 0.835 | AM17: =Y17*C17+($A$4-80)*AF17*$A$16/1000 -> 49.95 | AN17: =Z17*E17+($A$4-80)*AG17*$A$16/1000 -> 48.71 | AO17: =AA17*G17+($A$4-80)*AH17*$A$16/1000 -> 47.39 | AP17: =AB17*I17+($A$4-80)*AI17*$A$16/1000 -> 46.685 | AQ17: =AC17*K17+($A$4-80)*AJ17*$A$16/1000 -> 45.98 | AR17: =AD17*M17+($A$4-80)*AK17*$A$16/1000 -> 44.47 | AS17: =AE17*O17+($A$4-80)*AL17*$A$16/1000 -> 42.81
B18: 62 | C18: 62.68 | D18: 62.68 | E18: 60.15 | F18: 60.15 | G18: 57.4 | H18: 57.4 | I18: 55.9 | J18: 55.9 | K18: 54.4 | L18: 54.4 | M18: 51.13 | N18: 51.13 | O18: 47.53 | P18: 47.53 | R18: 1.053445378 | S18: 1.01092437 | T18: 0.9647058824 | U18: 0.9394957983 | V18: 0.9142857143 | W18: 0.8593277311 | X18: 0.7988235294 | Y18: 1 | Z18: 1 | AA18: 1 | AB18: 1 | AC18: 1 | AD18: 1 | AE18: 1 | AF18: 0.835 | AG18: 0.835 | AH18: 0.835 | AI18: 0.835 | AJ18: 0.835 | AK18: 0.835 | AL18: 0.835 | AM18: 62.68 | AN18: =Z18*E18+($A$4-80)*AG18*$A$16/1000 -> 60.15 | AO18: =AA18*G18+($A$4-80)*AH18*$A$16/1000 -> 57.4 | AP18: 55.9 | AQ18: 54.4 | AR18: 51.13 | AS18: 47.53
B19: 57 | C19: 62.6 | D19: 62.6 | E19: 60.07 | F19: 60.07 | G19: 57.32 | H19: 57.32 | I19: 55.83 | J19: 55.83 | K19: 54.34 | L19: 54.34 | M19: 51.07 | N19: 51.07 | O19: 47.48 | P19: 47.48 | R19: 1.05210084 | S19: 1.009579832 | T19: 0.9633613445 | U19: 0.9383193277 | V19: 0.9132773109 | W19: 0.8583193277 | X19: 0.7979831933 | Y19: 1 | Z19: 1 | AA19: 1 | AB19: 1 | AC19: 1 | AD19: 1 | AE19: 1 | AF19: 0.835 | AG19: 0.835 | AH19: 0.835 | AI19: 0.835 | AJ19: 0.835 | AK19: 0.835 | AL19: 0.835 | AM19: 62.6 | AN19: =Z19*E19+($A$4-80)*AG19*$A$16/1000 -> 60.07 | AO19: =AA19*G19+($A$4-80)*AH19*$A$16/1000 -> 57.32 | AP19: 55.83 | AQ19: 54.34 | AR19: 51.07 | AS19: 47.48

Sheet 24ABB3_18 (hidden)
A2: 24ABB3_18
A3: Evaporator Air | C3: Condenser Entering Air Temperature ˚F
A4: 80 | B4: °F DB | C4: 75 | E4: 85 | G4: 95 | I4: 100 | K4: 105 | M4: 115 | O4: 125
A5: CFM | B5: EWB† ˚F | C5: Capacity Mbtuh | E5: Capacity Mbtuh | G5: Capacity Mbtuh | I5: Capacity Mbtuh | K5: Capacity Mbtuh | M5: Capacity Mbtuh | O5: Capacity Mbtuh
C6: Total | D6: Sens. | E6: Total | F6: Sens. | G6: Total | H6: Sens. | I6: Total | J6: Sens. | K6: Total | L6: Sens. | M6: Total | N6: Sens. | O6: Total | P6: Sens.
R7: Total Factors | Y7: Sens. % | AF7: IDB Adj | AM7: Sens Calc
A8: 525 | B8: 72 | C8: =R8*$G$13 -> 20.79 | D8: =IF(AM8>C8,C8,AM8) -> 10.51 | E8: =S8*$G$13 -> 19.89 | F8: =IF(AN8>E8,E8,AN8) -> 10.18 | G8: =T8*$G$13 -> 18.93 | H8: =IF(AO8>G8,G8,AO8) -> 9.83 | I8: =U8*$G$13 -> 18.435 | J8: =IF(AP8>I8,I8,AP8) -> 9.652125806 | K8: =V8*$G$13 -> 17.94 | L8: =IF(AQ8>K8,K8,AQ8) -> 9.47 | M8: =W8*$G$13 -> 16.87 | N8: =IF(AR8>M8,M8,AR8) -> 9.09 | O8: =X8*$G$13 -> 15.67 | P8: =IF(AS8>O8,O8,AS8) -> 8.67 | R8: 1.18125 | S8: 1.130113636 | T8: 1.075568182 | U8: 1.047443182 | V8: 1.019318182 | W8: 0.9585227273 | X8: 0.8903409091 | Y8: 0.5055315055 | Z8: 0.5118149824 | AA8: 0.5192815637 | AB8: 0.5235761219 | AC8: 0.52787068 | AD8: 0.5388263189 | AE8: 0.5532865348 | AF8: 0.835 | AG8: 0.835 | AH8: 0.835 | AI8: 0.835 | AJ8: 0.835 | AK8: 0.835 | AL8: 0.835 | AM8: =Y8*C8+($A$4-80)*AF8*$A$8/1000 -> 10.51 | AN8: =Z8*E8+($A$4-80)*AG8*$A$8/1000 -> 10.18 | AO8: =AA8*G8+($A$4-80)*AH8*$A$8/1000 -> 9.83 | AP8: =AB8*I8+($A$4-80)*AI8*$A$8/1000 -> 9.652125806 | AQ8: =AC8*K8+($A$4-80)*AJ8*$A$8/1000 -> 9.47 | AR8: =AD8*M8+($A$4-80)*AK8*$A$8/1000 -> 9.09 | AS8: =AE8*O8+($A$4-80)*AL8*$A$8/1000 -> 8.67
B9: 67 | C9: 19.09 | D9: 12.93 | E9: 18.24 | F9: =IF(AN9>E9,E9,AN9) -> 12.58 | G9: =T9*$G$13 -> 17.33 | H9: =IF(AO9>G9,G9,AO9) -> 12.21 | I9: 16.86 | J9: =IF(AP9>I9,I9,AP9) -> 12.02919079 | K9: 16.39 | L9: =IF(AQ9>K9,K9,AQ9) -> 11.84 | M9: 15.37 | N9: =IF(AR9>M9,M9,AR9) -> 11.44 | O9: 14.26 | P9: =IF(AS9>O9,O9,AS9) -> 11.01 | R9: 1.084659091 | S9: 1.036363636 | T9: 0.9846590909 | U9: 0.9579545455 | V9: 0.93125 | W9: 0.8732954545 | X9: 0.8102272727 | Y9: 0.6773179675 | Z9: 0.6896929825 | AA9: 0.704558569 | AB9: 0.7134751356 | AC9: 0.7223917023 | AD9: 0.7443070917 | AE9: 0.7720897616 | AF9: 0.835 | AG9: 0.835 | AH9: 0.835 | AI9: 0.835 | AJ9: 0.835 | AK9: 0.835 | AL9: 0.835 | AM9: =Y9*C9+($A$4-80)*AF9*$A$8/1000 -> 12.93 | AN9: =Z9*E9+($A$4-80)*AG9*$A$8/1000 -> 12.58 | AO9: =AA9*G9+($A$4-80)*AH9*$A$8/1000 -> 12.21 | AP9: =AB9*I9+($A$4-80)*AI9*$A$8/1000 -> 12.02919079 | AQ9: =AC9*K9+($A$4-80)*AJ9*$A$8/1000 -> 11.84 | AR9: =AD9*M9+($A$4-80)*AK9*$A$8/1000 -> 11.44 | AS9: =AE9*O9+($A$4-80)*AL9*$A$8/1000 -> 11.01
B10: 62 | C10: 17.53 | D10: 15.32 | E10: 16.74 | F10: 14.95 | G10: =T10*$G$13 -> 15.91 | H10: 14.57 | I10: 15.475 | J10: 14.3705926 | K10: 15.04 | L10: 14.16 | M10: 14.17 | N10: 14.17 | O10: 13.33 | P10: 13.33 | R10: 0.9960227273 | S10: 0.9511363636 | T10: 0.9039772727 | U10: 0.8792613636 | V10: 0.8545454545 | W10: 0.8051136364 | X10: 0.7573863636 | Y10: 0.873930405 | Z10: 0.8930704898 | AA10: 0.9157762414 | AB10: 0.9286328015 | AC10: 0.9414893617 | AD10: 1 | AE10: 1 | AF10: 0.835 | AG10: 0.835 | AH10: 0.835 | AI10: 0.835 | AJ10: 0.835 | AK10: 0.835 | AL10: 0.835 | AM10: 15.32 | AN10: =Z10*E10+($A$4-80)*AG10*$A$8/1000 -> 14.95 | AO10: =AA10*G10+($A$4-80)*AH10*$A$8/1000 -> 14.57 | AP10: 14.3705926 | AQ10: 14.16 | AR10: 14.17 | AS10: 13.33
B11: 57 | C11: 17 | D11: 17 | E11: 16.36 | F11: 16.36 | G11: =T11*$G$13 -> 15.67 | H11: 15.67 | I11: 15.31 | J11: 15.31 | K11: 14.95 | L11: 14.95 | M11: 14.18 | N11: 14.18 | O11: 13.33 | P11: 13.33 | R11: 0.9659090909 | S11: 0.9295454545 | T11: 0.8903409091 | U11: 0.8698863636 | V11: 0.8494318182 | W11: 0.8056818182 | X11: 0.7573863636 | Y11: 1 | Z11: 1 | AA11: 1 | AB11: 1 | AC11: 1 | AD11: 1 | AE11: 1 | AF11: 0.835 | AG11: 0.835 | AH11: 0.835 | AI11: 0.835 | AJ11: 0.835 | AK11: 0.835 | AL11: 0.835 | AM11: 17 | AN11: =Z11*E11+($A$4-80)*AG11*$A$8/1000 -> 16.36 | AO11: =AA11*G11+($A$4-80)*AH11*$A$8/1000 -> 15.67 | AP11: =AB11*I11+($A$4-80)*AI11*$A$8/1000 -> 15.31 | AQ11: 14.95 | AR11: 14.18 | AS11: 13.33
A12: 600 | B12: 72 | C12: 21.12 | D12: 11.01 | E12: 20.19 | F12: 10.67 | G12: =T12*$G$13 -> 19.19 | H12: 10.32 | I12: 18.685 | J12: 10.14254386 | K12: 18.18 | L12: 9.96 | M12: 17.07 | N12: 9.57 | O12: 15.84 | P12: 9.15 | R12: 1.2 | S12: 1.147159091 | T12: 1.090340909 | U12: 1.061647727 | V12: 1.032954545 | W12: 0.9698863636 | X12: 0.9 | Y12: 0.5213068182 | Z12: 0.5284794453 | AA12: 0.5377800938 | AB12: 0.5428174396 | AC12: 0.5478547855 | AD12: 0.5606326889 | AE12: 0.5776515152 | AF12: 0.835 | AG12: 0.835 | AH12: 0.835 | AI12: 0.835 | AJ12: 0.835 | AK12: 0.835 | AL12: 0.835 | AM12: =Y12*C12+($A$4-80)*AF12*$A$12/1000 -> 11.01 | AN12: =Z12*E12+($A$4-80)*AG12*$A$12/1000 -> 10.67 | AO12: =AA12*G12+($A$4-80)*AH12*$A$12/1000 -> 10.32 | AP12: =AB12*I12+($A$4-80)*AI12*$A$12/1000 -> 10.14254386 | AQ12: =AC12*K12+($A$4-80)*AJ12*$A$12/1000 -> 9.96 | AR12: =AD12*M12+($A$4-80)*AK12*$A$12/1000 -> 9.57 | AS12: =AE12*O12+($A$4-80)*AL12*$A$12/1000 -> 9.15
B13: 67 | C13: 19.42 | D13: 13.74 | E13: 18.54 | F13: 13.39 | G13: 17.6 | H13: 13.02 | I13: 17.115 | J13: 12.84006843 | K13: 16.63 | L13: 12.65 | M13: 15.59 | N13: 12.24 | O13: 14.44 | P13: 11.8 | R13: 1.103409091 | S13: 1.053409091 | T13: 1 | U13: 0.9724431818 | V13: 0.9448863636 | W13: 0.8857954545 | X13: 0.8204545455 | Y13: 0.7075180227 | Z13: 0.7222222222 | AA13: 0.7397727273 | AB13: 0.7502231045 | AC13: 0.7606734817 | AD13: 0.7851186658 | AE13: 0.8171745152 | AF13: 0.835 | AG13: 0.835 | AH13: 0.835 | AI13: 0.835 | AJ13: 0.835 | AK13: 0.835 | AL13: 0.835 | AM13: =Y13*C13+($A$4-80)*AF13*$A$12/1000 -> 13.74 | AN13: =Z13*E13+($A$4-80)*AG13*$A$12/1000 -> 13.39 | AO13: =AA13*G13+($A$4-80)*AH13*$A$12/1000 -> 13.02 | AP13: =AB13*I13+($A$4-80)*AI13*$A$12/1000 -> 12.84006843 | AQ13: =AC13*K13+($A$4-80)*AJ13*$A$12/1000 -> 12.65 | AR13: =AD13*M13+($A$4-80)*AK13*$A$12/1000 -> 12.24 | AS13: =AE13*O13+($A$4-80)*AL13*$A$12/1000 -> 11.8
B14: 62 | C14: 17.93 | D14: 16.44 | E14: 17.12 | F14: 16.06 | G14: =T14*$G$13 -> 16.3 | H14: 16.21 | I14: 15.915 | J14: 15.87106288 | K14: 15.53 | L14: 15.53 | M14: 14.71 | N14: 14.71 | O14: 13.81 | P14: 13.81 | R14: 1.01875 | S14: 0.9727272727 | T14: 0.9261363636 | U14: 0.9042613636 | V14: 0.8823863636 | W14: 0.8357954545 | X14: 0.7846590909 | Y14: 0.9168990519 | Z14: 0.9380841121 | AA14: 0.9944785276 | AB14: 0.9972392638 | AC14: 1 | AD14: 1 | AE14: 1 | AF14: 0.835 | AG14: 0.835 | AH14: 0.835 | AI14: 0.835 | AJ14: 0.835 | AK14: 0.835 | AL14: 0.835 | AM14: 16.44 | AN14: =Z14*E14+($A$4-80)*AG14*$A$12/1000 -> 16.06 | AO14: =AA14*G14+($A$4-80)*AH14*$A$12/1000 -> 16.21 | AP14: 15.87106288 | AQ14: 15.53 | AR14: 14.71 | AS14: 13.81
B15: 57 | C15: 17.7 | D15: 17.7 | E15: 17.02 | F15: 17.02 | G15: 16.29 | H15: 16.29 | I15: 15.91 | J15: 15.91 | K15: 15.53 | L15: 15.53 | M15: 14.71 | N15: 14.71 | O15: 13.81 | P15: 13.81 | R15: 1.005681818 | S15: 0.9670454545 | T15: 0.9255681818 | U15: 0.9039772727 | V15: 0.8823863636 | W15: 0.8357954545 | X15: 0.7846590909 | Y15: 1 | Z15: 1 | AA15: 1 | AB15: 1 | AC15: 1 | AD15: 1 | AE15: 1 | AF15: 0.835 | AG15: 0.835 | AH15: 0.835 | AI15: 0.835 | AJ15: 0.835 | AK15: 0.835 | AL15: 0.835 | AM15: 17.7 | AN15: =Z15*E15+($A$4-80)*AG15*$A$12/1000 -> 17.02 | AO15: =AA15*G15+($A$4-80)*AH15*$A$12/1000 -> 16.29 | AP15: 15.91 | AQ15: 15.53 | AR15: 14.71 | AS15: 13.81
A16: 675 | B16: 72 | C16: 21.35 | D16: 11.48 | E16: 20.39 | F16: 11.14 | G16: 19.37 | H16: 10.79 | I16: 18.855 | J16: 10.61300124 | K16: 18.34 | L16: 10.43 | M16: 17.2 | N16: 10.04 | O16: 15.94 | P16: 9.61 | R16: 1.213068182 | S16: 1.158522727 | T16: 1.100568182 | U16: 1.071306818 | V16: 1.042045455 | W16: 0.9772727273 | X16: 0.9056818182 | Y16: 0.537704918 | Z16: 0.5463462482 | AA16: 0.5570469799 | AB16: 0.562874635 | AC16: 0.5687022901 | AD16: 0.5837209302 | AE16: 0.6028858218 | AF16: 0.835 | AG16: 0.835 | AH16: 0.835 | AI16: 0.835 | AJ16: 0.835 | AK16: 0.835 | AL16: 0.835 | AM16: =Y16*C16+($A$4-80)*AF16*$A$16/1000 -> 11.48 | AN16: =Z16*E16+($A$4-80)*AG16*$A$16/1000 -> 11.14 | AO16: =AA16*G16+($A$4-80)*AH16*$A$16/1000 -> 10.79 | AP16: =AB16*I16+($A$4-80)*AI16*$A$16/1000 -> 10.61300124 | AQ16: =AC16*K16+($A$4-80)*AJ16*$A$16/1000 -> 10.43 | AR16: =AD16*M16+($A$4-80)*AK16*$A$16/1000 -> 10.04 | AS16: =AE16*O16+($A$4-80)*AL16*$A$16/1000 -> 9.61
B17: 67 | C17: 19.66 | D17: 14.52 | E17: 18.76 | F17: 14.17 | G17: 17.79 | H17: 13.8 | I17: 17.3 | J17: 13.61554132 | K17: 16.81 | L17: 13.42 | M17: 15.74 | N17: 13.01 | O17: 14.58 | P17: 12.56 | R17: 1.117045455 | S17: 1.065909091 | T17: 1.010795455 | U17: 0.9829545455 | V17: 0.9551136364 | W17: 0.8943181818 | X17: 0.8284090909 | Y17: 0.7385554425 | Z17: 0.7553304904 | AA17: 0.7757166948 | AB17: 0.7870255098 | AC17: 0.7983343248 | AD17: 0.8265565438 | AE17: 0.8614540466 | AF17: 0.835 | AG17: 0.835 | AH17: 0.835 | AI17: 0.835 | AJ17: 0.835 | AK17: 0.835 | AL17: 0.835 | AM17: =Y17*C17+($A$4-80)*AF17*$A$16/1000 -> 14.52 | AN17: =Z17*E17+($A$4-80)*AG17*$A$16/1000 -> 14.17 | AO17: =AA17*G17+($A$4-80)*AH17*$A$16/1000 -> 13.8 | AP17: =AB17*I17+($A$4-80)*AI17*$A$16/1000 -> 13.61554132 | AQ17: =AC17*K17+($A$4-80)*AJ17*$A$16/1000 -> 13.42 | AR17: =AD17*M17+($A$4-80)*AK17*$A$16/1000 -> 13.01 | AS17: =AE17*O17+($A$4-80)*AL17*$A$16/1000 -> 12.56
B18: 62 | C18: 18.28 | D18: 18.11 | E18: 17.55 | F18: 17.55 | G18: 16.79 | H18: 16.79 | I18: 16.39 | J18: 16.39 | K18: 15.99 | L18: 15.99 | M18: 15.13 | N18: 15.13 | O18: 14.18 | P18: 14.18 | R18: 1.038636364 | S18: 0.9971590909 | T18: 0.9539772727 | U18: 0.93125 | V18: 0.9085227273 | W18: 0.8596590909 | X18: 0.8056818182 | Y18: 0.9907002188 | Z18: 1 | AA18: 1 | AB18: 1 | AC18: 1 | AD18: 1 | AE18: 1 | AF18: 0.835 | AG18: 0.835 | AH18: 0.835 | AI18: 0.835 | AJ18: 0.835 | AK18: 0.835 | AL18: 0.835 | AM18: 18.11 | AN18: =Z18*E18+($A$4-80)*AG18*$A$16/1000 -> 17.55 | AO18: =AA18*G18+($A$4-80)*AH18*$A$16/1000 -> 16.79 | AP18: 16.39 | AQ18: 15.99 | AR18: 15.13 | AS18: 14.18
B19: 57 | C19: 18.26 | D19: 18.26 | E19: 17.55 | F19: 17.55 | G19: 16.79 | H19: 16.79 | I19: 16.39 | J19: 16.39 | K19: 15.99 | L19: 15.99 | M19: 15.13 | N19: 15.13 | O19: 14.18 | P19: 14.18 | R19: 1.0375 | S19: 0.9971590909 | T19: 0.9539772727 | U19: 0.93125 | V19: 0.9085227273 | W19: 0.8596590909 | X19: 0.8056818182 | Y19: 1 | Z19: 1 | AA19: 1 | AB19: 1 | AC19: 1 | AD19: 1 | AE19: 1 | AF19: 0.835 | AG19: 0.835 | AH19: 0.835 | AI19: 0.835 | AJ19: 0.835 | AK19: 0.835 | AL19: 0.835 | AM19: 18.26 | AN19: =Z19*E19+($A$4-80)*AG19*$A$16/1000 -> 17.55 | AO19: =AA19*G19+($A$4-80)*AH19*$A$16/1000 -> 16.79 | AP19: 16.39 | AQ19: 15.99 | AR19: 15.13 | AS19: 14.18

Sheet 24ABB3_24 (hidden)
A2: 24ABB3_24
A3: Evaporator Air | C3: Condenser Entering Air Temperature ˚F
A4: 80 | B4: °F DB | C4: 75 | E4: 85 | G4: 95 | I4: 100 | K4: 105 | M4: 115 | O4: 125
A5: CFM | B5: EWB† ˚F | C5: Capacity Mbtuh | E5: Capacity Mbtuh | G5: Capacity Mbtuh | I5: Capacity Mbtuh | K5: Capacity Mbtuh | M5: Capacity Mbtuh | O5: Capacity Mbtuh
C6: Total | D6: Sens. | E6: Total | F6: Sens. | G6: Total | H6: Sens. | I6: Total | J6: Sens. | K6: Total | L6: Sens. | M6: Total | N6: Sens. | O6: Total | P6: Sens.
R7: Total Factors | Y7: Sens. % | AF7: IDB Adj | AM7: Sens Calc
A8: 700 | B8: 72 | C8: =R8*$G$13 -> 70.66956522 | D8: =IF(AM8>C8,C8,AM8) -> 34.6173913 | E8: =S8*$G$13 -> 67.35652174 | F8: =IF(AN8>E8,E8,AN8) -> 33.44347826 | G8: =T8*$G$13 -> 64.25217391 | H8: =IF(AO8>G8,G8,AO8) -> 32.37391304 | I8: =U8*$G$13 -> 62.67391304 | J8: =IF(AP8>I8,I8,AP8) -> 31.84585816 | K8: =V8*$G$13 -> 61.09565217 | L8: =IF(AQ8>K8,K8,AQ8) -> 31.30434783 | M8: =W8*$G$13 -> 57.6 | N8: =IF(AR8>M8,M8,AR8) -> 30.10434783 | O8: =X8*$G$13 -> 53.66086957 | P8: =IF(AS8>O8,O8,AS8) -> 28.8 | R8: 1.177826087 | S8: 1.122608696 | T8: 1.070869565 | U8: 1.044565217 | V8: 1.01826087 | W8: 0.96 | X8: 0.8943478261 | Y8: 0.4898486526 | Z8: 0.49651433 | AA8: 0.5038570849 | AB8: 0.5081198319 | AC8: 0.512382579 | AD8: 0.5226449275 | AE8: 0.5367039378 | AF8: 0.835 | AG8: 0.835 | AH8: 0.835 | AI8: 0.835 | AJ8: 0.835 | AK8: 0.835 | AL8: 0.835 | AM8: =Y8*C8+($A$4-80)*AF8*$A$8/1000 -> 34.6173913 | AN8: =Z8*E8+($A$4-80)*AG8*$A$8/1000 -> 33.44347826 | AO8: =AA8*G8+($A$4-80)*AH8*$A$8/1000 -> 32.37391304 | AP8: =AB8*I8+($A$4-80)*AI8*$A$8/1000 -> 31.84585816 | AQ8: =AC8*K8+($A$4-80)*AJ8*$A$8/1000 -> 31.30434783 | AR8: =AD8*M8+($A$4-80)*AK8*$A$8/1000 -> 30.10434783 | AS8: =AE8*O8+($A$4-80)*AL8*$A$8/1000 -> 28.8
B9: 67 | C9: 64.93043478 | D9: 42.80869565 | E9: 62.16521739 | F9: =IF(AN9>E9,E9,AN9) -> 41.71304348 | G9: =T9*$G$13 -> 59.24347826 | H9: =IF(AO9>G9,G9,AO9) -> 40.59130435 | I9: 57.73043478 | J9: =IF(AP9>I9,I9,AP9) -> 40.04324076 | K9: 56.2173913 | L9: =IF(AQ9>K9,K9,AQ9) -> 39.46956522 | M9: 52.95652174 | N9: =IF(AR9>M9,M9,AR9) -> 38.24347826 | O9: 49.27826087 | P9: =IF(AS9>O9,O9,AS9) -> 36.88695652 | R9: 1.082173913 | S9: 1.036086957 | T9: 0.9873913043 | U9: 0.962173913 | V9: 0.9369565217 | W9: 0.8826086957 | X9: 0.8213043478 | Y9: 0.6593009241 | Z9: 0.6710029375 | AA9: 0.6851607221 | AB9: 0.6936244446 | AC9: 0.7020881671 | AD9: 0.7221674877 | AE9: 0.7485442033 | AF9: 0.835 | AG9: 0.835 | AH9: 0.835 | AI9: 0.835 | AJ9: 0.835 | AK9: 0.835 | AL9: 0.835 | AM9: =Y9*C9+($A$4-80)*AF9*$A$8/1000 -> 42.80869565 | AN9: =Z9*E9+($A$4-80)*AG9*$A$8/1000 -> 41.71304348 | AO9: =AA9*G9+($A$4-80)*AH9*$A$8/1000 -> 40.59130435 | AP9: =AB9*I9+($A$4-80)*AI9*$A$8/1000 -> 40.04324076 | AQ9: =AC9*K9+($A$4-80)*AJ9*$A$8/1000 -> 39.46956522 | AR9: =AD9*M9+($A$4-80)*AK9*$A$8/1000 -> 38.24347826 | AS9: =AE9*O9+($A$4-80)*AL9*$A$8/1000 -> 36.88695652
B10: 62 | C10: 60.02608696 | D10: 51.02608696 | E10: 57.46956522 | F10: 49.93043478 | G10: =T10*$G$13 -> 54.75652174 | H10: 48.70434783 | I10: 53.38695652 | J10: 48.09385031 | K10: 52.0173913 | L10: 47.45217391 | M10: 49.33043478 | N10: 49.33043478 | O10: 46.48695652 | P10: 46.48695652 | R10: 1.000434783 | S10: 0.957826087 | T10: 0.9126086957 | U10: 0.8897826087 | V10: 0.8669565217 | W10: 0.822173913 | X10: 0.7747826087 | Y10: 0.850065189 | Z10: 0.8688152519 | AA10: 0.8894711768 | AB10: 0.9008539434 | AC10: 0.9122367101 | AD10: 1 | AE10: 1 | AF10: 0.835 | AG10: 0.835 | AH10: 0.835 | AI10: 0.835 | AJ10: 0.835 | AK10: 0.835 | AL10: 0.835 | AM10: 51.02608696 | AN10: =Z10*E10+($A$4-80)*AG10*$A$8/1000 -> 49.93043478 | AO10: =AA10*G10+($A$4-80)*AH10*$A$8/1000 -> 48.70434783 | AP10: 48.09385031 | AQ10: 47.45217391 | AR10: 49.33043478 | AS10: 46.48695652
B11: 57 | C11: 58.59130435 | D11: 58.59130435 | E11: 56.50434783 | F11: 56.50434783 | G11: =T11*$G$13 -> 54.23478261 | H11: 54.23478261 | I11: 53.06086957 | J11: 53.06086957 | K11: 51.88695652 | L11: 51.88695652 | M11: 49.33043478 | N11: 49.33043478 | O11: 46.48695652 | P11: 46.48695652 | R11: 0.9765217391 | S11: 0.9417391304 | T11: 0.9039130435 | U11: 0.8843478261 | V11: 0.8647826087 | W11: 0.822173913 | X11: 0.7747826087 | Y11: 1 | Z11: 1 | AA11: 1 | AB11: 1 | AC11: 1 | AD11: 1 | AE11: 1 | AF11: 0.835 | AG11: 0.835 | AH11: 0.835 | AI11: 0.835 | AJ11: 0.835 | AK11: 0.835 | AL11: 0.835 | AM11: 58.59130435 | AN11: =Z11*E11+($A$4-80)*AG11*$A$8/1000 -> 56.50434783 | AO11: =AA11*G11+($A$4-80)*AH11*$A$8/1000 -> 54.23478261 | AP11: =AB11*I11+($A$4-80)*AI11*$A$8/1000 -> 53.06086957 | AQ11: 51.88695652 | AR11: 49.33043478 | AS11: 46.48695652
A12: 800 | B12: 72 | C12: 71.79130435 | D12: 36.31304348 | E12: 68.2173913 | F12: 35.11304348 | G12: =T12*$G$13 -> 64.9826087 | H12: 34.0173913 | I12: 63.36521739 | J12: 33.47739323 | K12: 61.74782609 | L12: 32.92173913 | M12: 58.14782609 | N12: 31.72173913 | O12: 54.07826087 | P12: 30.39130435 | R12: 1.196521739 | S12: 1.136956522 | T12: 1.083043478 | U12: 1.056086957 | V12: 1.029130435 | W12: 0.9691304348 | X12: 0.9013043478 | Y12: 0.5058139535 | Z12: 0.5147227533 | AA12: 0.5234845444 | AB12: 0.5283244437 | AC12: 0.5331643431 | AD12: 0.5455361148 | AE12: 0.5619874578 | AF12: 0.835 | AG12: 0.835 | AH12: 0.835 | AI12: 0.835 | AJ12: 0.835 | AK12: 0.835 | AL12: 0.835 | AM12: =Y12*C12+($A$4-80)*AF12*$A$12/1000 -> 36.31304348 | AN12: =Z12*E12+($A$4-80)*AG12*$A$12/1000 -> 35.11304348 | AO12: =AA12*G12+($A$4-80)*AH12*$A$12/1000 -> 34.0173913 | AP12: =AB12*I12+($A$4-80)*AI12*$A$12/1000 -> 33.47739323 | AQ12: =AC12*K12+($A$4-80)*AJ12*$A$12/1000 -> 32.92173913 | AR12: =AD12*M12+($A$4-80)*AK12*$A$12/1000 -> 31.72173913 | AS12: =AE12*O12+($A$4-80)*AL12*$A$12/1000 -> 30.39130435
B13: 67 | C13: 65.86956522 | D13: 45.49565217 | E13: 63.02608696 | F13: 44.42608696 | G13: 60 | H13: 43.30434783 | I13: 58.46086957 | J13: 42.74495326 | K13: 56.92173913 | L13: 42.15652174 | M13: 53.55652174 | N13: 40.93043478 | O13: 49.8 | P13: 39.54782609 | R13: 1.097826087 | S13: 1.050434783 | T13: 1 | U13: 0.9743478261 | V13: 0.9486956522 | W13: 0.8926086957 | X13: 0.83 | Y13: 0.6906930693 | Z13: 0.704884106 | AA13: 0.7217391304 | AB13: 0.73117204 | AC13: 0.7406049496 | AD13: 0.7642474428 | AE13: 0.794133054 | AF13: 0.835 | AG13: 0.835 | AH13: 0.835 | AI13: 0.835 | AJ13: 0.835 | AK13: 0.835 | AL13: 0.835 | AM13: =Y13*C13+($A$4-80)*AF13*$A$12/1000 -> 45.49565217 | AN13: =Z13*E13+($A$4-80)*AG13*$A$12/1000 -> 44.42608696 | AO13: =AA13*G13+($A$4-80)*AH13*$A$12/1000 -> 43.30434783 | AP13: =AB13*I13+($A$4-80)*AI13*$A$12/1000 -> 42.74495326 | AQ13: =AC13*K13+($A$4-80)*AJ13*$A$12/1000 -> 42.15652174 | AR13: =AD13*M13+($A$4-80)*AK13*$A$12/1000 -> 40.93043478 | AS13: =AE13*O13+($A$4-80)*AL13*$A$12/1000 -> 39.54782609
B14: 62 | C14: 61.22608696 | D14: 54.75652174 | E14: 58.66956522 | F14: 53.53043478 | G14: =T14*$G$13 -> 56.13913043 | H14: 56.13913043 | I14: 54.91304348 | J14: 54.91304348 | K14: 53.68695652 | L14: 53.68695652 | M14: 50.97391304 | N14: 50.97391304 | O14: 47.94782609 | P14: 47.94782609 | R14: 1.020434783 | S14: 0.977826087 | T14: 0.9356521739 | U14: 0.9152173913 | V14: 0.8947826087 | W14: 0.8495652174 | X14: 0.7991304348 | Y14: 0.8943331913 | Z14: 0.9124055136 | AA14: 1 | AB14: 1 | AC14: 1 | AD14: 1 | AE14: 1 | AF14: 0.835 | AG14: 0.835 | AH14: 0.835 | AI14: 0.835 | AJ14: 0.835 | AK14: 0.835 | AL14: 0.835 | AM14: 54.75652174 | AN14: =Z14*E14+($A$4-80)*AG14*$A$12/1000 -> 53.53043478 | AO14: =AA14*G14+($A$4-80)*AH14*$A$12/1000 -> 56.13913043 | AP14: 54.91304348 | AQ14: 53.68695652 | AR14: 50.97391304 | AS14: 47.94782609
B15: 57 | C15: 60.7826087 | D15: 60.7826087 | E15: 58.53913043 | F15: 58.53913043 | G15: 56.16521739 | H15: 56.16521739 | I15: 54.92608696 | J15: 54.92608696 | K15: 53.68695652 | L15: 53.68695652 | M15: 50.97391304 | N15: 50.97391304 | O15: 47.94782609 | P15: 47.94782609 | R15: 1.013043478 | S15: 0.9756521739 | T15: 0.9360869565 | U15: 0.9154347826 | V15: 0.8947826087 | W15: 0.8495652174 | X15: 0.7991304348 | Y15: 1 | Z15: 1 | AA15: 1 | AB15: 1 | AC15: 1 | AD15: 1 | AE15: 1 | AF15: 0.835 | AG15: 0.835 | AH15: 0.835 | AI15: 0.835 | AJ15: 0.835 | AK15: 0.835 | AL15: 0.835 | AM15: 60.7826087 | AN15: =Z15*E15+($A$4-80)*AG15*$A$12/1000 -> 58.53913043 | AO15: =AA15*G15+($A$4-80)*AH15*$A$12/1000 -> 56.16521739 | AP15: 54.92608696 | AQ15: 53.68695652 | AR15: 50.97391304 | AS15: 47.94782609
A16: 900 | B16: 72 | C16: 72.49565217 | D16: 37.90434783 | E16: 68.89565217 | F16: 36.70434783 | G16: 65.47826087 | H16: 35.55652174 | I16: 63.82173913 | J16: 35.01806774 | K16: 62.16521739 | L16: 34.46086957 | M16: 58.48695652 | N16: 33.28695652 | O16: 54.33913043 | P16: 31.93043478 | R16: 1.20826087 | S16: 1.14826087 | T16: 1.091304348 | U16: 1.063695652 | V16: 1.036086957 | W16: 0.9747826087 | X16: 0.9056521739 | Y16: 0.522849946 | Z16: 0.5327527452 | AA16: 0.5430278884 | AB16: 0.5486855766 | AC16: 0.5543432648 | AD16: 0.5691347012 | AE16: 0.5876140182 | AF16: 0.835 | AG16: 0.835 | AH16: 0.835 | AI16: 0.835 | AJ16: 0.835 | AK16: 0.835 | AL16: 0.835 | AM16: =Y16*C16+($A$4-80)*AF16*$A$16/1000 -> 37.90434783 | AN16: =Z16*E16+($A$4-80)*AG16*$A$16/1000 -> 36.70434783 | AO16: =AA16*G16+($A$4-80)*AH16*$A$16/1000 -> 35.55652174 | AP16: =AB16*I16+($A$4-80)*AI16*$A$16/1000 -> 35.01806774 | AQ16: =AC16*K16+($A$4-80)*AJ16*$A$16/1000 -> 34.46086957 | AR16: =AD16*M16+($A$4-80)*AK16*$A$16/1000 -> 33.28695652 | AS16: =AE16*O16+($A$4-80)*AL16*$A$16/1000 -> 31.93043478
B17: 67 | C17: 66.54782609 | D17: 48.13043478 | E17: 63.6 | F17: 47.03478261 | G17: 60.54782609 | H17: 45.88695652 | I17: 58.96956522 | J17: 45.33015377 | K17: 57.39130435 | L17: 44.73913043 | M17: 53.94782609 | N17: 43.46086957 | O17: 50.13913043 | P17: 42.05217391 | R17: 1.109130435 | S17: 1.06 | T17: 1.009130435 | U17: 0.982826087 | V17: 0.9565217391 | W17: 0.8991304348 | X17: 0.8356521739 | Y17: 0.723245786 | Z17: 0.7395406071 | AA17: 0.7578629901 | AB17: 0.7687042223 | AC17: 0.7795454545 | AD17: 0.8056092843 | AE17: 0.8387096774 | AF17: 0.835 | AG17: 0.835 | AH17: 0.835 | AI17: 0.835 | AJ17: 0.835 | AK17: 0.835 | AL17: 0.835 | AM17: =Y17*C17+($A$4-80)*AF17*$A$16/1000 -> 48.13043478 | AN17: =Z17*E17+($A$4-80)*AG17*$A$16/1000 -> 47.03478261 | AO17: =AA17*G17+($A$4-80)*AH17*$A$16/1000 -> 45.88695652 | AP17: =AB17*I17+($A$4-80)*AI17*$A$16/1000 -> 45.33015377 | AQ17: =AC17*K17+($A$4-80)*AJ17*$A$16/1000 -> 44.73913043 | AR17: =AD17*M17+($A$4-80)*AK17*$A$16/1000 -> 43.46086957 | AS17: =AE17*O17+($A$4-80)*AL17*$A$16/1000 -> 42.05217391
B18: 62 | C18: 62.53043478 | D18: 62.53043478 | E18: 60.1826087 | F18: 60.1826087 | G18: 57.67826087 | H18: 57.67826087 | I18: 56.38695652 | J18: 56.38695652 | K18: 55.09565217 | L18: 55.09565217 | M18: 52.25217391 | N18: 52.25217391 | O18: 49.09565217 | P18: 49.09565217 | R18: 1.042173913 | S18: 1.003043478 | T18: 0.9613043478 | U18: 0.9397826087 | V18: 0.9182608696 | W18: 0.8708695652 | X18: 0.8182608696 | Y18: 1 | Z18: 1 | AA18: 1 | AB18: 1 | AC18: 1 | AD18: 1 | AE18: 1 | AF18: 0.835 | AG18: 0.835 | AH18: 0.835 | AI18: 0.835 | AJ18: 0.835 | AK18: 0.835 | AL18: 0.835 | AM18: 62.53043478 | AN18: =Z18*E18+($A$4-80)*AG18*$A$16/1000 -> 60.1826087 | AO18: =AA18*G18+($A$4-80)*AH18*$A$16/1000 -> 57.67826087 | AP18: 56.38695652 | AQ18: 55.09565217 | AR18: 52.25217391 | AS18: 49.09565217
B19: 57 | C19: 62.50434783 | D19: 62.50434783 | E19: 60.1826087 | F19: 60.1826087 | G19: 57.67826087 | H19: 57.67826087 | I19: 56.38695652 | J19: 56.38695652 | K19: 55.09565217 | L19: 55.09565217 | M19: 52.27826087 | N19: 52.27826087 | O19: 49.09565217 | P19: 49.09565217 | R19: 1.04173913 | S19: 1.003043478 | T19: 0.9613043478 | U19: 0.9397826087 | V19: 0.9182608696 | W19: 0.8713043478 | X19: 0.8182608696 | Y19: 1 | Z19: 1 | AA19: 1 | AB19: 1 | AC19: 1 | AD19: 1 | AE19: 1 | AF19: 0.835 | AG19: 0.835 | AH19: 0.835 | AI19: 0.835 | AJ19: 0.835 | AK19: 0.835 | AL19: 0.835 | AM19: 62.50434783 | AN19: =Z19*E19+($A$4-80)*AG19*$A$16/1000 -> 60.1826087 | AO19: =AA19*G19+($A$4-80)*AH19*$A$16/1000 -> 57.67826087 | AP19: 56.38695652 | AQ19: 55.09565217 | AR19: 52.27826087 | AS19: 49.09565217

Sheet 24ABB3_30 (hidden)
A2: 24ABB3_30
A3: Evaporator Air | C3: Condenser Entering Air Temperature ˚F
A4: 80 | B4: °F DB | C4: 75 | E4: 85 | G4: 95 | I4: 100 | K4: 105 | M4: 115 | O4: 125
A5: CFM | B5: EWB† ˚F | C5: Capacity Mbtuh | E5: Capacity Mbtuh | G5: Capacity Mbtuh | I5: Capacity Mbtuh | K5: Capacity Mbtuh | M5: Capacity Mbtuh | O5: Capacity Mbtuh
C6: Total | D6: Sens. | E6: Total | F6: Sens. | G6: Total | H6: Sens. | I6: Total | J6: Sens. | K6: Total | L6: Sens. | M6: Total | N6: Sens. | O6: Total | P6: Sens.
R7: Total Factors | Y7: Sens. % | AF7: IDB Adj | AM7: Sens Calc
A8: 875 | B8: 72 | C8: =R8*$G$13 -> 32.18 | D8: =IF(AM8>C8,C8,AM8) -> 16.57 | E8: =S8*$G$13 -> 30.84 | F8: =IF(AN8>E8,E8,AN8) -> 16.09 | G8: =T8*$G$13 -> 29.42 | H8: =IF(AO8>G8,G8,AO8) -> 15.59 | I8: =U8*$G$13 -> 28.675 | J8: =IF(AP8>I8,I8,AP8) -> 15.33359521 | K8: =V8*$G$13 -> 27.93 | L8: =IF(AQ8>K8,K8,AQ8) -> 15.07 | M8: =W8*$G$13 -> 26.28 | N8: =IF(AR8>M8,M8,AR8) -> 14.5 | O8: =X8*$G$13 -> 24.43 | P8: =IF(AS8>O8,O8,AS8) -> 13.86 | R8: 1.174452555 | S8: 1.125547445 | T8: 1.073722628 | U8: 1.046532847 | V8: 1.019343066 | W8: 0.9591240876 | X8: 0.8916058394 | Y8: 0.514916097 | Z8: 0.5217250324 | AA8: 0.5299116247 | AB8: 0.5347374092 | AC8: 0.5395631937 | AD8: 0.5517503805 | AE8: 0.5673352436 | AF8: 0.835 | AG8: 0.835 | AH8: 0.835 | AI8: 0.835 | AJ8: 0.835 | AK8: 0.835 | AL8: 0.835 | AM8: =Y8*C8+($A$4-80)*AF8*$A$8/1000 -> 16.57 | AN8: =Z8*E8+($A$4-80)*AG8*$A$8/1000 -> 16.09 | AO8: =AA8*G8+($A$4-80)*AH8*$A$8/1000 -> 15.59 | AP8: =AB8*I8+($A$4-80)*AI8*$A$8/1000 -> 15.33359521 | AQ8: =AC8*K8+($A$4-80)*AJ8*$A$8/1000 -> 15.07 | AR8: =AD8*M8+($A$4-80)*AK8*$A$8/1000 -> 14.5 | AS8: =AE8*O8+($A$4-80)*AL8*$A$8/1000 -> 13.86
B9: 67 | C9: 29.7 | D9: 20.7 | E9: 28.44 | F9: =IF(AN9>E9,E9,AN9) -> 20.2 | G9: =T9*$G$13 -> 27.08 | H9: =IF(AO9>G9,G9,AO9) -> 19.68 | I9: 26.375 | J9: =IF(AP9>I9,I9,AP9) -> 19.41151853 | K9: 25.67 | L9: =IF(AQ9>K9,K9,AQ9) -> 19.13 | M9: 24.11 | N9: =IF(AR9>M9,M9,AR9) -> 18.54 | O9: 22.39 | P9: =IF(AS9>O9,O9,AS9) -> 17.88 | R9: 1.083941606 | S9: 1.037956204 | T9: 0.9883211679 | U9: 0.9625912409 | V9: 0.9368613139 | W9: 0.8799270073 | X9: 0.8171532847 | Y9: 0.696969697 | Z9: 0.7102672293 | AA9: 0.7267355982 | AB9: 0.7359817454 | AC9: 0.7452278925 | AD9: 0.7689755288 | AE9: 0.7985707905 | AF9: 0.835 | AG9: 0.835 | AH9: 0.835 | AI9: 0.835 | AJ9: 0.835 | AK9: 0.835 | AL9: 0.835 | AM9: =Y9*C9+($A$4-80)*AF9*$A$8/1000 -> 20.7 | AN9: =Z9*E9+($A$4-80)*AG9*$A$8/1000 -> 20.2 | AO9: =AA9*G9+($A$4-80)*AH9*$A$8/1000 -> 19.68 | AP9: =AB9*I9+($A$4-80)*AI9*$A$8/1000 -> 19.41151853 | AQ9: =AC9*K9+($A$4-80)*AJ9*$A$8/1000 -> 19.13 | AR9: =AD9*M9+($A$4-80)*AK9*$A$8/1000 -> 18.54 | AS9: =AE9*O9+($A$4-80)*AL9*$A$8/1000 -> 17.88
B10: 62 | C10: 27.5 | D10: 24.8 | E10: 26.34 | F10: 24.26 | G10: =T10*$G$13 -> 25.11 | H10: 23.67 | I10: 24.525 | J10: 23.82177419 | K10: 23.94 | L10: 23.94 | M10: 22.71 | N10: 22.71 | O10: 21.35 | P10: 21.35 | R10: 1.003649635 | S10: 0.9613138686 | T10: 0.9164233577 | U10: 0.8950729927 | V10: 0.8737226277 | W10: 0.8288321168 | X10: 0.7791970803 | Y10: 0.9018181818 | Z10: 0.92103265 | AA10: 0.9426523297 | AB10: 0.9713261649 | AC10: 1 | AD10: 1 | AE10: 1 | AF10: 0.835 | AG10: 0.835 | AH10: 0.835 | AI10: 0.835 | AJ10: 0.835 | AK10: 0.835 | AL10: 0.835 | AM10: 24.8 | AN10: =Z10*E10+($A$4-80)*AG10*$A$8/1000 -> 24.26 | AO10: =AA10*G10+($A$4-80)*AH10*$A$8/1000 -> 23.67 | AP10: 23.82177419 | AQ10: 23.94 | AR10: 22.71 | AS10: 21.35
B11: 57 | C11: 27.1 | D11: 27.1 | E11: 26.12 | F11: 26.12 | G11: =T11*$G$13 -> 25.05 | H11: 25.05 | I11: 24.495 | J11: 24.495 | K11: 23.94 | L11: 23.94 | M11: 22.71 | N11: 22.71 | O11: 21.35 | P11: 21.35 | R11: 0.9890510949 | S11: 0.9532846715 | T11: 0.9142335766 | U11: 0.8939781022 | V11: 0.8737226277 | W11: 0.8288321168 | X11: 0.7791970803 | Y11: 1 | Z11: 1 | AA11: 1 | AB11: 1 | AC11: 1 | AD11: 1 | AE11: 1 | AF11: 0.835 | AG11: 0.835 | AH11: 0.835 | AI11: 0.835 | AJ11: 0.835 | AK11: 0.835 | AL11: 0.835 | AM11: 27.1 | AN11: =Z11*E11+($A$4-80)*AG11*$A$8/1000 -> 26.12 | AO11: =AA11*G11+($A$4-80)*AH11*$A$8/1000 -> 25.05 | AP11: =AB11*I11+($A$4-80)*AI11*$A$8/1000 -> 24.495 | AQ11: 23.94 | AR11: 22.71 | AS11: 21.35
